Workbook

Sheet Info
A1: FALSE | B1: Ende
A2: Ende | B2: Aktiva
B3: Ende
B10: Kosten- und Leistungsrechnung
B11: für die kommunale Wasserversorgung in der Steiermark
C13: Version 02/2019
G14: =CONCATENATE("Rechnungsabschlussjahr: "&BAB!J12) -> Rechnungsabschlussjahr: 2017
C16: Bezeichnung der KLR-Ebene (Gemeinde, AWV, AWG, etc.): | G16: Stichtag | I16: Ansatz
G17: 2017-12-31 | I17: 850
C18: 8179.26 | E18: =DATE(G18,1,1) -> 2017-01-01 | G18: =YEAR(G17) -> 2017
C19: 9623.94
C21: Erstellungsdatum:
C22: Dateneingabe durch:
C23: Funktion:
C25: Der Ersteller erklärt, die nachfolgenden Nutzungsbedingungen akzeptiert zu haben.
C30: Herausgeber:
C32: Amt der Steiermärkischen Landesregierung, Abteilung 14, Wasserwirtschaft, Ressourcen und Nachhaltigkeit
C33: Wartingergasse 43, 8010 Graz
C35: Gemeindebund Steiermark
C36: Stadionplatz 2, 8041 Graz
C38: Inhaltliche Bearbeitung:
C40: Dipl.-Ing. Peter Rappold, Amt der Steiermärkischen Landesregierung, Abteilung 14
C41: Telefonnummer: 0316 877-4152, E-Mail: peter.rappold@stmk.gv.at
C43: Christian Lang, BSc MSc, Gemeindebund Steiermark
C44: Telefonnummer: 0316 82 20 79-205, E-Mail: lang@gemeindebund.steiermark.at
C46: Programmierung der Arbeitsmappe:
C48: Prok. Ing. Franz Murnig, Quantum - Institut für betriebswirtschaftliche Beratung GmbH
C49: Telefonnummer: 0463 32612-41, E-Mail: franz.murnig@quantum-gmbh.at
C51: Haftungsausschluss
C53: Eine Haftung des Herausgebers für Schäden aufgrund von Fehlern im Programm wird ausgeschlossen. Die Ergebnisse sind auf Plausibilität zu prüfen.
C55: Nutzungsbedingungen
C57: Die gegenständliche Excel-Arbeitsmappe steht den Wasserversorgern in der Steiermark kostenlos zur Verfügung. Eine Nutzung für Wasserversorger außerhalb der Steiermark ist aus rechtlichen Gründen nicht zulässig.
C59: Anwendungsbeginn und heranzuziehendes Rechnungsjahr
C61: Die Kosten- und Leistungsrechnung (KLR) samt Finanzierungsplan ist für Landesförderungsanträge ab dem 01.01.2017 mit der gegenständlichen Arbeitsmappe in der A14 einzureichen.
C63: Für die KLR ist jenes Rechnungsjahr heranzuziehen, welches bis zum Zeitpunkt der Einreichung der KLR zuletzt abgeschlossen wurde.
C65: Bis 30. Juni eines Jahres dürfen jedoch auch die Daten des Rechnungsabschlusses des vorvorigen Jahres herangezogen werden. Das heißt, dass zum Beispiel für die Einreichung einer KLR bis Ende Juni 2019 auch noch der Rechnungsabschluss 2017 verwendet werden kann.
C67: Zur Kontrolle der Basisdaten des Rechnungsabschlusses, ist ein entsprechender PDF-Auszug des Ansatzes / Detailnachweises Wasserversorgung zu übermitteln.
C68: Grundlagen
C70: Das Arbeiten mit der Arbeitsmappe setzt Grundkenntnisse im Umgang mit Excel voraus. Es wird empfohlen, die entsprechenden Kapitel im Excel-Handbuch oder in der eingebauten Excel-Hilfe (Taste F1) zu lesen!
C72: Vor dem Arbeiten mit dieser Arbeitsmappe ist die Makrosicherheit einzustellen:
C73: Ab Excel 2013 ist beim ersten Mal unter "Datei / Optionen / Trust Center / Einstellungen für Trust Center / Makroeinstellungen" der Button "Alle Makros mit Benachrichtigung deaktivieren" auszuwählen. Nach jedem weiteren Programmstart dieser Excel-Datei muss, in einer sich automatisch öffnenden Sicherheitswarnung (Pop-up-Zeile oberhalb der Tabelle), der Button "Inhalt aktivieren" gewählt werden.
C75: Sofortige Berechnung von Formeln ohne Zwischenspeichern: Datei / Optionen / Formeln / Automatisch
C77: Registerblatt Anlagen (auch für Subventionen und Interessentenbeiträge)
C79: Anschaffungskosten sind auch für Grundstücke einzutragen. Gemäß ÖWAV AB 61 ist der Barwert von Subventionen und Interessentenbeiträgen frühestens mit dem Inbetriebnahmedatum und in ihrer Summe maximal bis zu den Anschaffungskosten von Bauabschnitten zu aktivieren und investitionskostenaliquotiert (Grundstücke ausgenommen) für deren Anlagenarten mit ihren verschiedenen Nutzungsdauern / Restnutzungsdauern aufzulösen. Diese Werte sind erforderlichenfalls in getrennten Zeilen auf verschiedene Kostenstellen und bei Subventionen auch nach den Förderungsarten (Investitionskostenzuschuss / Finanzierungszuschuss) aufzuteilen. Die Auflösung von Interessenten-beiträgen, welche nicht zur Finanzierung von Bauabschnitten verwendet werden, ist möglich. In diesen Fällen muss die Auflösung über die längste betriebsgewöhnliche Nutzungsdauer der Wasserversorgungsanlage erfolgen. Eingaben in Form von Verknüpfungen mit anderen Registerblättern können beim späteren Auslesen der Excel Daten zu Problemen führen.
C81: Registerblatt Schulden
C83: Wurden nur Teile des ursprünglichen Nominales für den angegeben Bauabschnitt verwendet, ist in der Bezeichnung (unter Angabe des ursprünglichen Gesamtnominales) darauf hinzuweisen. Nur wenn das gesamte ursprüngliche Nominale einem einzigen Bauabschnitt mit nur einer Kostenstelle zuzuordnen ist, dann ist für dieses Nominale eine einzige Zeile ausreichend. Ansonsten ist das Nominale (unter Angabe des ursprünglichen Gesamtnominales in der Bezeichnung) auf mehrere Zeilen aufzuteilen. Eingaben in Form von Verknüpfungen mit anderen Registerblättern können beim späteren Auslesen der Excel Daten zu Problemen führen.
C85: Registerblatt Anlagenzusammenfassung
C87: Die Anlagenzusammenfassung hat keinen Einfluss auf die KLR, sondern stellt die schlüssige Finanzierung dar. Dazu werden aus den Registerblättern "Anlagen" (mit Subventionen und Interessentenbeiträgen) und "Schulden" alle Daten mit dem gemeinsamen Bezeichnungsschlüssel addiert. Wenn für einen Bauabschnitt auch Schulden für Investitionen außerhalb des einfachen Jahreserfordernisses gemäß ÖWAV AB 48 bestehen, dann entstehen bei diesem Bauabschnitt Überfinanzierungen, da im Anlagenverzeichnis (des Registerblattes "Anlagen") des Unterabschnittes Abwasserbeseitigung keine betriebsnotwendigen Anlagen (im Bereich des einfachen Jahreserfordernisses) zu finanzieren sind. Eine Dokumentation der Überfinanzierungen im Registerblatt "Erläuterungen" ist zweckmäßig.
C89: Registerblatt Erläuterungen
C91: Dieses Registerblatt kann durch die AnwenderInnen mit den Möglichkeiten einer Excel-Tabelle frei formatiert werden. Hier sind die Dokumentationen zu den anderen Registerblättern anzugeben. Insbesondere: gemäß ÖWAV AB 61 bauabschnittsbezogen vorzunehmende Zuordnungen und Aufteilungen von Subventionen und Interessentenbeiträgen, Grundlagen und Berechnungen interner plausibler historischer Wertfeststellungen gemäß ÖWAV AB 61, nicht förderungsfähige Anschaffungskosten und Nachweis von Kosten / Erlösen aus Neubildungen / Auflösungen von Rückstellungen (jeweils nur für die erworbenen Ansprüche aus der betriebsnotwendigen Leistungserbringung für das betrachtete Rechnungsjahr).
C93: Registerblatt Baupreisindex
C95: Dieses Registerblatt kann durch die AnwenderInnen mit den Möglichkeiten einer Excel-Tabelle frei formatiert werden. Hier sind für simulierte Anschaffungskosten gemäß ÖWAV Arbeitsbehelf 61 für Bewertungen mittels Durchschnittspreisermittlung (oder Gutachten) samt Inflationsbereinigung (mittels Baupreisindex) die Grundlagen und Berechnungen zu dokumentieren.
C97: Registerblatt Eigenkapitalzinsen
C99: Die Eigenkapitalbasis ist gemäß ÖWAV AB 41 der Jahresdurchschnitt der Restwerte von: Anschaffungskosten minus Interessentenbeiträge und Subventionsbarwerte (der Investitionskosten- und Finanzierungszuschüsse) minus Nominalen der Schulden für Investitionen (nur für das einfache Jahreserfordernis gemäß ÖWAV AB 48). Als Eigenkapitalzinssatz ist der Zinssatz der zum Zeitpunkt der Erstellung der Kosten- und Leistungsrechnung zuletzt begebenen langfristigen inländischen Bundesanleihe anzugeben. Dieser kann mit dem nachfolgenden Link aus der Liste der Barwertzinssätze der Kommunalkredit Public Consulting GmbH entnommen werden:
C100: https://www.umweltfoerderung.at/fileadmin/user_upload/media/umweltfoerderung/Dokumente_Betriebe/Wasser_Betriebe/Alle_Dokumente/Termine_KOSI_Zinssatz_Index_SWW.pdf
C101: Registerblatt BÜB Ausgaben
C103: Nur die Ausgaben des Rechnungsabschlusses des Ansatzes (Anordnungssoll, OH) / Detailnachweises Wasserversorgung (RA WV) sind im Registerblatt "BÜB Ausgaben" unter Befüllung der Spalte "Ansatz" zu übertragen. Wenn diese Ausgaben dem Registerblatt "BAB" als Kosten zuzuordnen sind, dann ist ihr Anteil nach Kostenstellen anzugeben. Alle Fremdkapitalzinsen des RA WV für Finanzierungsleasing / Forderungskauf, für Darlehen / Innere Darlehen und für die sonstigen Schuldaufnahmen sind im Registerblatt "BÜB Ausgaben" für das Registerblatt "BAB" unter Punkt 2.2.2 als Kosten zu übernehmen. Dies gilt auch nach Ablauf der Nutzungsdauer von Investitionen.
C104: Die Berücksichtigung (finanzierungswirksamer oder kalkulatorischer) periodengerechter Neubildungen von Rückstellungen für Ansprüche, welche von der betriebsnotwendigen Leistungserbringung im betrachteten Rechnungsjahr verursacht wurden, ist im Registerblatt "Erläuterungen" zu dokumentieren und über das Registerblatt "BÜB Ausgaben" dem Registerblatt "BAB" nach Kostenstellen und Kostenarten zuzuordnen. Periodengerechte nur kalkulatorische haushaltsinterne Vergütungen und Rückstellungen sind ohne Befüllung der Spalte "Ansatz" anzugeben, damit diese kalkulatorischen Kosten bei der Summenbildung des RA WV nicht dazuaddiert werden.
C105: Im Fall nicht verbuchter innerbetrieblicher Verwaltungsleistungen sind als Vorgabe des Landes Steiermark ohne Nachweis höchstens nachfolgend angeführte Prozentsätze der Ausgaben (Anordnungssoll) des laufenden Betriebes für Vertretungskörper, Hauptverwaltung sowie für Anlagen der Verwaltung dem Haushalt Wasserversorgung als Verwaltungskosten plausibel den kalkulatorischen Kosten zurechenbar: 5 % wenn der gesamte Betrieb (Verteilung und Gewinnung) nur von der KLR-Ebene durchgeführt wird, 4 % wenn der Betrieb der Gewinnung nicht von der KLR-Ebene durchgeführt wird und 3 % wenn der gesamte Betrieb nicht von der KLR-Ebene durchgeführt wird.
C106: Tilgungen werden dem Punkt 2.6 des Finanzierungsplanes zugeordnet. Alle anderen Ausgaben, welche nicht dem Registerblatt "BAB" zugeordnet werden können, sind dem Punkt 1.8 des Finanzierungsplanes zuzuordnen. Für Punkt 1.8 und Punkt 2.6 darf im Registerblatt "BÜB Ausgaben" keine Aufteilung nach Kostenstellen erfolgen.
C107: Registerblatt BÜB Einnahmen
C109: Nur die Einnahmen des Rechnungsabschlusses des Ansatzes (Anordnungssoll, OH) / Detailnachweises Wasserversorgung (RA WV) sind im Registerblatt "BÜB Einnahmen" unter Befüllung der Spalte "Ansatz" zu übertragen und den Registerblättern "BAB" oder "Finanzierungsplan" zuzuordnen. Die (finanzierungswirksame oder nur kalkulatorische) periodengerechte Auflösung von Rückstellungen für Ansprüche, welche von der betriebsnotwendigen Leistungserbringung im betrachteten Rechnungsjahr verursacht wurde, ist im Registerblatt "Erläuterungen" zu dokumentieren und über das Registerblatt "BÜB Einnahmen" dem Registerblatt "BAB" zuzuordnen. Periodengerechte nur kalkulatorische haushaltsinterne Vergütungen und Rückstellungsauflösungen sind ohne Befüllung der Spalte "Ansatz" anzugeben, damit diese kalkulatorischen Kosten bei der Summenbildung des RA WV nicht dazuaddiert werden. Zusätzlich ist der Rücklagenstand per 31.12. des betrachteten Rechnungsjahres im Registerblatt "BÜB Einnahmen" für die Verwendung im Finanzierungsplan einzutragen.
C110: Registerblatt BAB
C112: Im Registerblatt "BAB" werden die Kosten von den Registerblättern "Anlagen" (inkl. Subventionen / Interessentenbeiträge), "Eigenkapitalzinsen", "BÜB Ausgaben" und die Erlöse vom Registerblatt "BÜB Einnahmen" befüllt. Bei der KLR von Gemeinden ist im Anschlussgrad der Hauptwohnsitzbevölkerung auch die durch Wassergenossenschaften entsorgte Hauptwohnsitzbevölkerung einzurechnen. Bei der KLR von Wasserverbänden und Wassergenossenschaften ist der Anschlussgrad immer 100%.
C113: Vorgegebene Nutzungsdauern für die KLR in ganzen Jahren, sofern keine Begründungen für Abweichungen vorliegen
C114: Vor dem Beschluss der Eröffnungsbilanz gemäß VRV 2015 ist für die örtlichen Nutzungsdauern der rot und kursiv gekennzeichneten Anlagen ein Gemeinderatsbeschluss bzw. ein Verbandsbeschluss zu fassen.
C115: 000 Bebaute Grundstücke | I115: keine Eingabe
C116: 001 Unbebaute Grundstücke | I116: keine Eingabe
C117: 004 Wasser- u. Kanalisationsbauten- u. anlagen, bauliche Anlagen, ohne Wasserleitungen | I117: 25
C118: 004 Wasser- u. Kanalisationsbauten- u. anlagen, Wasserleitungen, Hydranten, Schieber, Entlüftungen | I118: 50
C119: 020 Masch. u. masch. Anl., Installat., el. u. elektron. Anl. u. Steuerungen, Wasseraufber., Notstromaggr. | I119: 13
C120: 030 Werkzeuge und Geräte | I120: 8
C121: 040 Personenkraftfahrzeuge | I121: 8
C122: 040 Betriebsfahrzeuge ohne Personenkraftfahrzeuge | I122: 10
C123: 042 Arbeitsplatzausstattung, mit Betriebssystemen | I123: 4
C124: 042 Bodenbeläge, Wandverkleidungen, Wasseruhren, Feuerbekämpfungsanlagen- u. geräte | I124: 5
C125: 042 Videoanlagen | I125: 6
C126: 042 Server | I126: 7
C127: 042 Sonstige elektronische Maschinen u. Büromaschinen | I127: 8
C128: 042 Einrichtungs- u. Ausstattungsgegenst., Laboreinrichtungen, Überwachungs-, Alarm- u. Fernwirkanlagen | I128: 10
C129: 070 Immaterielle Anlagen, mit gekaufter Software, ohne Leitungsinformationssysteme | I129: Vertrag /Nutzung
C130: 070 Leitungsinformationssysteme | I130: 10
C131: Zuordnungen zu den Kostenstellen - WASSER
C133: Verteilung:
C134: Leitungen samt Einbauten (Schieber, Entlüftungen, Druckreduktionen, Messeinrichtungen, Energierzeugungsan- lagen), Hochbehälter, Wasserübernahmebauwerke und Wasserzähler. Wenn sie örtlich nicht bei der Gewinnungs- oder Aufbereitungsanlage situiert sind, zählen auch folgende dazu: Tiefbehälter, Pumpschächte, Pumpwerke, UV-Desinfektionsanlagen sowie die für den Betrieb der Wasserverteilung benützten Anteile von Betriebsgebäuden, Bauhöfen, Fahrzeugen, Maschinen, Werkzeugen, EDV-Anlagen und Steuerungen.
C135: Gewinnung:
C136: Brunnen, Quellen samt deren Ableitungen und Aufbereitungsanlagen. Wenn sie örtlich bei der Gewinnungs- oder Aufbereitungsanlage situiert sind, zählen auch folgende Anlagen dazu: Tiefbehälter, Pumpschächte, Pumpwerke, UV-Desinfektionsanlagen, Energieerzeugungsanlagen sowie die für den Betrieb der Wassergewinnung benützten Anteile von Betriebsgebäuden, Bauhöfen, Fahrzeugen, Maschinen, Werkzeugen, EDV-Anlagen und Steuerungen.
C137: Verwaltung:
C138: Gebäude, Büroausstattungen und EDV-Anlagen (inkl. Zubehör und Software) für die Tätigkeit der Organe und der Gemeindehauptverwaltung / Verbandsverwaltung / Genossenschaftsverwaltung.
C140: Datenerfassung im Excel-Tool
C142: Die Bedienung der Tabellen erfolgt in den Registerblättern "Anlagen", "Schulden", "BÜB- Ausgaben" und "BÜB Einnahmen" mittels der benutzerdefinierten Symbolleiste, welche unter dem Reiter ADD-INS ersichtlich ist.
C147: Es stehen dabei folgende Icons zur Verfügung: Zeilen einfügen, Zeilen löschen, Drucken und Jahreswechsel.
C149: Beim Drucken besteht die Auswahlmöglichkeit Konzept / Bericht:
C150: - Konzept bedeutet, der Ausdruck erfolgt wie in Excel dargestellt
C151: - Bericht bedeutet, einen makrobasierten optimierten Ausdruck für einen Bericht ohne Leerzeilen
C153: Der Jahreswechsel kann entweder über das Icon unter den ADD-INS erfolgen oder über den Button "Jahreswechsel mit Buchwertübernahme" im Info-Blatt. Hinweis für "zukünftige Investitionen" im Finanzierungsplan: Nach dem Jahreswechsel sind bestehende Angaben des Vorjahresfinanzierungsplanes manuell um ein Jahr zurückzusetzen!
C154: Im Registerblatt "Anlagenzusammenfassung" erfolgt das Einfügen bzw. das Löschen von Zeilen nicht über das Tool Add-Ins sondern mittels: Zeile markieren (z.B. 18); rechte Maustaste "kopieren"; wieder rechte Maustaste und "kopierte Zellen einfügen" bestätigen bzw. mittels: Zeile markieren (z.B. 18); rechte Maustaste "Zellen löschen" bestätigen.
C156: Finanzierungsplan:
C158: Hinweis: Das "Liquiditätsergebnis exkl. zukünftige Investitionen" muss für das Rechnungsjahr der KLR Null ergeben (mit Ausnahme von nicht finanzierungswirksamen, also nur kalkulatorischen Kosten aus haushaltsinternen Vergütungen und Rückstellungsbildungen, welche hier dann liquiditätsmäßig negativ dargestellt werden)!
C159: Ausgehend vom betrachteten Rechnungsjahr der KLR sind für die nächsten zehn Jahre Veränderungen bei den bereits bestehenden Betriebskosten (nach den Kostenarten des Registerblattes "BAB"), Gebühreneinnahmen, Annuitäten und Finanzierungszuschüssen darstellbar. Für jedes der folgenden 10 Jahre sind die Investitionskosten von vorgesehenen Leitungsinformationssystemen, Sanierungsbauvorhaben, Anpassungen an den Stand der Technik und Neuerrichtungen sowie die durch diese Investitionen verursachten Betriebskostenveränderungen einzutragen. Förderungsbarwerte, Interessentenbeiträge und die Summe der Mittel aus Rücklagen und OH sind für jedes der folgenden 10 Jahre jeweils getrennt einzugeben. Deren Gesamtsumme wird von den Investitionskosten dieses Jahres abgezogen, um das erforderliche ungeförderte Darlehensnominale für die Investitionen dieses Jahres zu errechnen. Daraus wird für jedes der folgenden zehn Jahre (für die anzugebende Darlehenslaufzeit und den anzugebenden Darlehenszinssatz) die Annuität berechnet. Annuitäten und Finanzierungszuschüsse sind im Jahr nach dem Auslaufen einmalig negativ einzutragen. Zusätzliche Gebühreneinnahmen durch zukünftige Investitionen sind einmalig nur im ersten Jahr der Entstehung einzutragen. Sonstige OH Ausgaben sind (ohne Zuführung Rücklagen, ohne Gewinnentnahmen und ohne Verrechnungen zwischen OH und AOH) als Jahresgesamtbeträge für jedes einzelne Jahr anzugeben. Nur Interessentenbeiträge / IZ / sonstige Einnahmen, welche nicht im gleichen Jahr zur Finanzierung von Investitionen der Finanzierungsplanprojekte verwendet werden, sind ebenfalls als Jahresgesamtbeträge für jedes einzelne Jahr anzugeben. Das Ergebnis ist eine jährliche und eine kumulierte Gegenüberstellung der Einnahmen und Ausgaben für eine Zehnjahresplanung ohne Investitionen und ohne Gebührenveränderungen sowie für eine Zehnjahresplanung mit Investitionen (für Leitungsinformationssyteme, Reinvestitionen und Neuerrichtungen) und mit Gebührenveränderungen. Der Finanzierungsplan für die nächsten 10 Jahre ist gemeinsam mit der KLR des betrachten Rechnungsjahres für die Vorlage bei der Gemeindeaufsichtsbehörde im Zuge der Genehmigung von Gebührenverordnungen und Darlehensaufnahmen vorgesehen.

Sheet Anlagen
A1: FALSE | B1: Ende
A2: FALSE | B2: Anlagen | C2: 001.00
A3: FALSE | B3: Ende
A4: TRUE | B4: =CONCATENATE(TEXT(wST.Ansatz,"000")&", Anlagen-, Subventions- und Interessentenbeitragsnachweis Wasserversorgung per "&TEXT(wST.PeriodeEnde,"T. MMMM JJJJ")&" KLR-Ebene: "&wST.ORT) -> 850, Anlagen-, Subventions- und Interessentenbeitragsnachweis Wasserversorgung per 31. Dezember 2017 KLR-Ebene:
A5: TRUE | Z5: Zusatzerfassung | AD5: AfA | AG5: =U6 -> Buchwert 31.12.2017
A6: TRUE | B6: Konto | C6: Ansatz | D6: Anlagennummer | E6: Bezeichnung | F6: Anlagenart | G6: TT.MM.JJJJ Aktivierungs-datum | H6: Nutzungs-dauer | I6: ="Wert für HK / Subv. / Anschlussbeiträge bis "&TEXT(wST.PeriodeAnfang,"T.M.JJJJ") -> Wert für HK / Subv. / Anschlussbeiträge bis 1.1.2017 | J6: ="Zugänge im Jahr "&TEXT(wST.PeriodeAnfang,"JJJJ") -> Zugänge im Jahr 2017 | K6: ="Abgänge (HK) im Jahr "&TEXT(wST.PeriodeAnfang,"JJJJ") -> Abgänge (HK) im Jahr 2017 | L6: ="Wert bis "&TEXT(wST.PeriodeEnde,"T.M.JJJJ") -> Wert bis 31.12.2017 | M6: ="kumulierte Abschreibung bis "&TEXT(wST.PeriodeAnfang,"T.M.JJ") -> kumulierte Abschreibung bis 1.1.17 | N6: verbleibender Anteil nach Abgang | O6: ="Restbuchwert vor Afa" -> Restbuchwert vor Afa | P6: Restnutzungsdauer | Q6: Abschreibung / Auflösung Haushaltsjahr | R6: Abschreibung Haushaltsjahr ohne Abgang | S6: Restbuch- wert- abschreibung | T6: ="kumulierte Abschreibung / Auflösung bis "&TEXT(wST.PeriodeEnde,"T.M.JJJJ") -> kumulierte Abschreibung / Auflösung bis 31.12.2017 | U6: ="Buchwert "&TEXT(wST.PeriodeEnde,"T.M.JJJJ") -> Buchwert 31.12.2017 | Z6: Zuordnung Anlagen-zusammenfassung | AA6: IZ/FZ | AB6: Kontrolle für KLR | AC6: Kostenstelle für KLR | AD6: Verteilung | AE6: Gewinnung | AF6: Verwaltung | AG6: Verteilung | AH6: Gewinnung | AI6: Verwaltung
A7: =L7>0 -> FALSE | B7: 0 | C7: GRUNDSTÜCKE | I7: =SUM(I8,I14,I18,I22,I43) -> 0 | J7: =SUM(J8,J14,J18,J22,J43) -> 0 | K7: =SUM(K8,K14,K18,K22,K43) -> 0 | L7: =SUM(L8,L14,L18,L22,L43) -> 0 | M7: =SUM(M8,M14,M18,M22,M43) -> 0 | Q7: =SUM(Q8,Q14,Q18,Q22,Q43) -> 0 | T7: =SUM(T8,T14,T18,T22,T43) -> 0 | U7: =SUM(U8,U14,U18,U22,U43) -> 0
A8: =L8>0 -> FALSE | B8: 0 | C8: Bebaute Grundstücke | I8: =SUMPRODUCT(I9:I13,$V9:$V13) -> 0 | J8: =SUMPRODUCT(J9:J13,$V9:$V13) -> 0 | K8: =SUMPRODUCT(K9:K13,$V9:$V13) -> 0 | L8: =SUMPRODUCT(L9:L13,$V9:$V13) -> 0 | M8: =SUMPRODUCT(M9:M13,$V9:$V13) -> 0 | Q8: =SUMPRODUCT(Q9:Q13,$V9:$V13) -> 0 | R8: =SUMPRODUCT(R9:R13,$V9:$V13) -> 0 | T8: =SUMPRODUCT(T9:T13,$V9:$V13) -> 0 | U8: =SUMPRODUCT(U9:U13,$V9:$V13) -> 0 | X8: =SUM(X9:X13) -> 0
A9: =V9>0 -> FALSE | L9: =IF(AND(W9+H9<=wST.Jahr,J9<>0,NOT(ISBLANK(H9))),"Zugang ungültig!",IF(W9>wST.Jahr,0,SUM(I9,J9,-K9))) -> 0 | M9: =IF(H9=0,0,IF(W9>=wST.Jahr,0,MAX(0,MIN(I9,I9/H9*(wST.Jahr-W9)-I9/H9*IF(MONTH(G9)>6,0.5,0))))) -> 0 | N9: =IF(SUM(I9,J9)=0,1,1-K9/SUM(I9,J9)) -> 1 | O9: =(J9+I9-M9)*N9 -> 0 | P9: =MAX(0,(W9+H9-wST.Jahr+IF(AND(W9<>wST.Jahr,MONTH(G9)>6),0.5,0))*IF(AND(W9=wST.Jahr,MONTH(G9)>6),2,1)) -> 0 | Q9: =R9+S9 -> 0 | R9: =IF(P9=0,0,IF(W9>wST.Jahr,0,MAX(0,MIN(O9,O9/P9)))) -> 0 | S9: =(J9+I9-M9)*(1-N9) -> 0 | T9: =MIN(I9+J9,M9+R9+S9) -> 0 | U9: =IF(W9>wST.Jahr,0,I9+J9-T9) -> 0 | V9: =IF(C9=0,0,IF(VALUE(LEFT(C9,3))=wST.Ansatz,1,0)) -> 0 | W9: =YEAR(G9) -> 1900 | X9: =IF(W9>wST.Jahr-1,0,I9*V9) -> 0 | AB9: =IF(AND(AC9="",C9=""),"",IF(AND(C9<>"",AC9=""),"Keine Zuordnung",IF(OR(AC9=$AD$6,AC9=$AE$6,AC9=$AF$6),"OK","Falsche Kostenstelle"))) ->  | AD9: =IF($AC9=AD$6,$Q9,) -> 0 | AE9: 0 | AF9: 0 | AG9: =IF($AC9=AG$6,$U9,) -> 0 | AH9: 0 | AI9: 0
A10: =V10>0 -> FALSE | L10: =IF(AND(W10+H10<=wST.Jahr,J10<>0,NOT(ISBLANK(H10))),"Zugang ungültig!",IF(W10>wST.Jahr,0,SUM(I10,J10,-K10))) -> 0 | M10: =IF(H10=0,0,IF(W10>=wST.Jahr,0,MAX(0,MIN(I10,I10/H10*(wST.Jahr-W10)-I10/H10*IF(MONTH(G10)>6,0.5,0))))) -> 0 | N10: =IF(SUM(I10,J10)=0,1,1-K10/SUM(I10,J10)) -> 1 | O10: =(J10+I10-M10)*N10 -> 0 | P10: =MAX(0,(W10+H10-wST.Jahr+IF(AND(W10<>wST.Jahr,MONTH(G10)>6),0.5,0))*IF(AND(W10=wST.Jahr,MONTH(G10)>6),2,1)) -> 0 | Q10: =R10+S10 -> 0 | R10: =IF(P10=0,0,IF(W10>wST.Jahr,0,MAX(0,MIN(O10,O10/P10)))) -> 0 | S10: =(J10+I10-M10)*(1-N10) -> 0 | T10: =MIN(I10+J10,M10+R10+S10) -> 0 | U10: =IF(W10>wST.Jahr,0,I10+J10-T10) -> 0 | V10: =IF(C10=0,0,IF(VALUE(LEFT(C10,3))=wST.Ansatz,1,0)) -> 0 | W10: =YEAR(G10) -> 1900 | X10: =IF(W10>wST.Jahr-1,0,I10*V10) -> 0 | AB10: =IF(AND(AC10="",C10=""),"",IF(AND(C10<>"",AC10=""),"Keine Zuordnung",IF(OR(AC10=$AD$6,AC10=$AE$6,AC10=$AF$6),"OK","Falsche Kostenstelle"))) ->  | AD10: 0 | AE10: 0 | AF10: 0 | AG10: 0 | AH10: 0 | AI10: 0
A11: =V11>0 -> FALSE | L11: =IF(AND(W11+H11<=wST.Jahr,J11<>0,NOT(ISBLANK(H11))),"Zugang ungültig!",IF(W11>wST.Jahr,0,SUM(I11,J11,-K11))) -> 0 | M11: =IF(H11=0,0,IF(W11>=wST.Jahr,0,MAX(0,MIN(I11,I11/H11*(wST.Jahr-W11)-I11/H11*IF(MONTH(G11)>6,0.5,0))))) -> 0 | N11: =IF(SUM(I11,J11)=0,1,1-K11/SUM(I11,J11)) -> 1 | O11: =(J11+I11-M11)*N11 -> 0 | P11: =MAX(0,(W11+H11-wST.Jahr+IF(AND(W11<>wST.Jahr,MONTH(G11)>6),0.5,0))*IF(AND(W11=wST.Jahr,MONTH(G11)>6),2,1)) -> 0 | Q11: =R11+S11 -> 0 | R11: =IF(P11=0,0,IF(W11>wST.Jahr,0,MAX(0,MIN(O11,O11/P11)))) -> 0 | S11: =(J11+I11-M11)*(1-N11) -> 0 | T11: =MIN(I11+J11,M11+R11+S11) -> 0 | U11: =IF(W11>wST.Jahr,0,I11+J11-T11) -> 0 | V11: =IF(C11=0,0,IF(VALUE(LEFT(C11,3))=wST.Ansatz,1,0)) -> 0 | W11: =YEAR(G11) -> 1900 | X11: =IF(W11>wST.Jahr-1,0,I11*V11) -> 0 | AB11: =IF(AND(AC11="",C11=""),"",IF(AND(C11<>"",AC11=""),"Keine Zuordnung",IF(OR(AC11=$AD$6,AC11=$AE$6,AC11=$AF$6),"OK","Falsche Kostenstelle"))) ->  | AD11: 0 | AE11: 0 | AF11: 0 | AG11: 0 | AH11: 0 | AI11: 0
A12: =V12>0 -> FALSE | L12: =IF(AND(W12+H12<=wST.Jahr,J12<>0,NOT(ISBLANK(H12))),"Zugang ungültig!",IF(W12>wST.Jahr,0,SUM(I12,J12,-K12))) -> 0 | M12: =IF(H12=0,0,IF(W12>=wST.Jahr,0,MAX(0,MIN(I12,I12/H12*(wST.Jahr-W12)-I12/H12*IF(MONTH(G12)>6,0.5,0))))) -> 0 | N12: =IF(SUM(I12,J12)=0,1,1-K12/SUM(I12,J12)) -> 1 | O12: =(J12+I12-M12)*N12 -> 0 | P12: =MAX(0,(W12+H12-wST.Jahr+IF(AND(W12<>wST.Jahr,MONTH(G12)>6),0.5,0))*IF(AND(W12=wST.Jahr,MONTH(G12)>6),2,1)) -> 0 | Q12: =R12+S12 -> 0 | R12: =IF(P12=0,0,IF(W12>wST.Jahr,0,MAX(0,MIN(O12,O12/P12)))) -> 0 | S12: =(J12+I12-M12)*(1-N12) -> 0 | T12: =MIN(I12+J12,M12+R12+S12) -> 0 | U12: =IF(W12>wST.Jahr,0,I12+J12-T12) -> 0 | V12: =IF(C12=0,0,IF(VALUE(LEFT(C12,3))=wST.Ansatz,1,0)) -> 0 | W12: =YEAR(G12) -> 1900 | X12: =IF(W12>wST.Jahr-1,0,I12*V12) -> 0 | AB12: =IF(AND(AC12="",C12=""),"",IF(AND(C12<>"",AC12=""),"Keine Zuordnung",IF(OR(AC12=$AD$6,AC12=$AE$6,AC12=$AF$6),"OK","Falsche Kostenstelle"))) ->  | AD12: 0 | AE12: 0 | AF12: 0 | AG12: 0 | AH12: 0 | AI12: 0
A13: =V13>0 -> FALSE | L13: =IF(AND(W13+H13<=wST.Jahr,J13<>0,NOT(ISBLANK(H13))),"Zugang ungültig!",IF(W13>wST.Jahr,0,SUM(I13,J13,-K13))) -> 0 | M13: =IF(H13=0,0,IF(W13>=wST.Jahr,0,MAX(0,MIN(I13,I13/H13*(wST.Jahr-W13)-I13/H13*IF(MONTH(G13)>6,0.5,0))))) -> 0 | N13: =IF(SUM(I13,J13)=0,1,1-K13/SUM(I13,J13)) -> 1 | O13: =(J13+I13-M13)*N13 -> 0 | P13: =MAX(0,(W13+H13-wST.Jahr+IF(AND(W13<>wST.Jahr,MONTH(G13)>6),0.5,0))*IF(AND(W13=wST.Jahr,MONTH(G13)>6),2,1)) -> 0 | Q13: =R13+S13 -> 0 | R13: =IF(P13=0,0,IF(W13>wST.Jahr,0,MAX(0,MIN(O13,O13/P13)))) -> 0 | S13: =(J13+I13-M13)*(1-N13) -> 0 | T13: =MIN(I13+J13,M13+R13+S13) -> 0 | U13: =IF(W13>wST.Jahr,0,I13+J13-T13) -> 0 | V13: =IF(C13=0,0,IF(VALUE(LEFT(C13,3))=wST.Ansatz,1,0)) -> 0 | W13: =YEAR(G13) -> 1900 | X13: =IF(W13>wST.Jahr-1,0,I13*V13) -> 0 | AD13: 0 | AE13: 0 | AF13: 0 | AG13: 0 | AH13: 0 | AI13: 0
A14: =L14>0 -> FALSE | B14: 1 | C14: Unbebaute Grundstücke | I14: =SUMPRODUCT(I15:I17,$V15:$V17) -> 0 | J14: =SUMPRODUCT(J15:J17,$V15:$V17) -> 0 | K14: =SUMPRODUCT(K15:K17,$V15:$V17) -> 0 | L14: =SUMPRODUCT(L15:L17,$V15:$V17) -> 0 | M14: =SUMPRODUCT(M15:M17,$V15:$V17) -> 0 | Q14: =SUMPRODUCT(Q15:Q17,$V15:$V17) -> 0 | R14: =SUMPRODUCT(R15:R17,$V15:$V17) -> 0 | T14: =SUMPRODUCT(T15:T17,$V15:$V17) -> 0 | U14: =SUMPRODUCT(U15:U17,$V15:$V17) -> 0 | X14: =SUM(X15:X17) -> 0
A15: =V15>0 -> FALSE | L15: =IF(AND(W15+H15<=wST.Jahr,J15<>0,NOT(ISBLANK(H15))),"Zugang ungültig!",IF(W15>wST.Jahr,0,SUM(I15,J15,-K15))) -> 0 | M15: =IF(H15=0,0,IF(W15>=wST.Jahr,0,MAX(0,MIN(I15,I15/H15*(wST.Jahr-W15)-I15/H15*IF(MONTH(G15)>6,0.5,0))))) -> 0 | N15: =IF(SUM(I15,J15)=0,1,1-K15/SUM(I15,J15)) -> 1 | O15: =(J15+I15-M15)*N15 -> 0 | P15: =MAX(0,(W15+H15-wST.Jahr+IF(AND(W15<>wST.Jahr,MONTH(G15)>6),0.5,0))*IF(AND(W15=wST.Jahr,MONTH(G15)>6),2,1)) -> 0 | Q15: =R15+S15 -> 0 | R15: =IF(P15=0,0,IF(W15>wST.Jahr,0,MAX(0,MIN(O15,O15/P15)))) -> 0 | S15: =(J15+I15-M15)*(1-N15) -> 0 | T15: =MIN(I15+J15,M15+R15+S15) -> 0 | U15: =IF(W15>wST.Jahr,0,I15+J15-T15) -> 0 | V15: =IF(C15=0,0,IF(VALUE(LEFT(C15,3))=wST.Ansatz,1,0)) -> 0 | W15: =YEAR(G15) -> 1900 | X15: =IF(W15>wST.Jahr-1,0,I15*V15) -> 0 | AB15: =IF(AND(AC15="",C15=""),"",IF(AND(C15<>"",AC15=""),"Keine Zuordnung",IF(OR(AC15=$AD$6,AC15=$AE$6,AC15=$AF$6),"OK","Falsche Kostenstelle"))) ->  | AD15: =IF($AC15=AD$6,$Q15,) -> 0 | AE15: 0 | AF15: 0 | AG15: =IF($AC15=AG$6,$U15,) -> 0 | AH15: 0 | AI15: 0
A16: =V16>0 -> FALSE | L16: =IF(AND(W16+H16<=wST.Jahr,J16<>0,NOT(ISBLANK(H16))),"Zugang ungültig!",IF(W16>wST.Jahr,0,SUM(I16,J16,-K16))) -> 0 | M16: =IF(H16=0,0,IF(W16>=wST.Jahr,0,MAX(0,MIN(I16,I16/H16*(wST.Jahr-W16)-I16/H16*IF(MONTH(G16)>6,0.5,0))))) -> 0 | N16: =IF(SUM(I16,J16)=0,1,1-K16/SUM(I16,J16)) -> 1 | O16: =(J16+I16-M16)*N16 -> 0 | P16: =MAX(0,(W16+H16-wST.Jahr+IF(AND(W16<>wST.Jahr,MONTH(G16)>6),0.5,0))*IF(AND(W16=wST.Jahr,MONTH(G16)>6),2,1)) -> 0 | Q16: =R16+S16 -> 0 | R16: =IF(P16=0,0,IF(W16>wST.Jahr,0,MAX(0,MIN(O16,O16/P16)))) -> 0 | S16: =(J16+I16-M16)*(1-N16) -> 0 | T16: =MIN(I16+J16,M16+R16+S16) -> 0 | U16: =IF(W16>wST.Jahr,0,I16+J16-T16) -> 0 | V16: =IF(C16=0,0,IF(VALUE(LEFT(C16,3))=wST.Ansatz,1,0)) -> 0 | W16: =YEAR(G16) -> 1900 | X16: =IF(W16>wST.Jahr-1,0,I16*V16) -> 0 | AB16: =IF(AND(AC16="",C16=""),"",IF(AND(C16<>"",AC16=""),"Keine Zuordnung",IF(OR(AC16=$AD$6,AC16=$AE$6,AC16=$AF$6),"OK","Falsche Kostenstelle"))) ->  | AD16: 0 | AE16: 0 | AF16: 0 | AG16: 0 | AH16: 0 | AI16: 0
A17: =V17>0 -> FALSE | L17: =IF(AND(W17+H17<=wST.Jahr,J17<>0,NOT(ISBLANK(H17))),"Zugang ungültig!",IF(W17>wST.Jahr,0,SUM(I17,J17,-K17))) -> 0 | M17: =IF(H17=0,0,IF(W17>=wST.Jahr,0,MAX(0,MIN(I17,I17/H17*(wST.Jahr-W17)-I17/H17*IF(MONTH(G17)>6,0.5,0))))) -> 0 | N17: =IF(SUM(I17,J17)=0,1,1-K17/SUM(I17,J17)) -> 1 | O17: =(J17+I17-M17)*N17 -> 0 | P17: =MAX(0,(W17+H17-wST.Jahr+IF(AND(W17<>wST.Jahr,MONTH(G17)>6),0.5,0))*IF(AND(W17=wST.Jahr,MONTH(G17)>6),2,1)) -> 0 | Q17: =R17+S17 -> 0 | R17: =IF(P17=0,0,IF(W17>wST.Jahr,0,MAX(0,MIN(O17,O17/P17)))) -> 0 | S17: =(J17+I17-M17)*(1-N17) -> 0 | T17: =MIN(I17+J17,M17+R17+S17) -> 0 | U17: =IF(W17>wST.Jahr,0,I17+J17-T17) -> 0 | V17: =IF(C17=0,0,IF(VALUE(LEFT(C17,3))=wST.Ansatz,1,0)) -> 0 | W17: =YEAR(G17) -> 1900 | X17: =IF(W17>wST.Jahr-1,0,I17*V17) -> 0 | AD17: 0 | AE17: 0 | AF17: 0 | AG17: 0 | AH17: 0 | AI17: 0
A18: =L18>0 -> FALSE | B18: 2 | C18: Straßenbauten | I18: =SUMPRODUCT(I19:I21,$V19:$V21) -> 0 | J18: =SUMPRODUCT(J19:J21,$V19:$V21) -> 0 | K18: =SUMPRODUCT(K19:K21,$V19:$V21) -> 0 | L18: =SUMPRODUCT(L19:L21,$V19:$V21) -> 0 | M18: =SUMPRODUCT(M19:M21,$V19:$V21) -> 0 | Q18: =SUMPRODUCT(Q19:Q21,$V19:$V21) -> 0 | R18: =SUMPRODUCT(R19:R21,$V19:$V21) -> 0 | T18: =SUMPRODUCT(T19:T21,$V19:$V21) -> 0 | U18: =SUMPRODUCT(U19:U21,$V19:$V21) -> 0 | X18: =SUM(X19:X21) -> 0
A19: =V19>0 -> FALSE | L19: =IF(AND(W19+H19<=wST.Jahr,J19<>0,NOT(ISBLANK(H19))),"Zugang ungültig!",IF(W19>wST.Jahr,0,SUM(I19,J19,-K19))) -> 0 | M19: =IF(H19=0,0,IF(W19>=wST.Jahr,0,MAX(0,MIN(I19,I19/H19*(wST.Jahr-W19)-I19/H19*IF(MONTH(G19)>6,0.5,0))))) -> 0 | N19: =IF(SUM(I19,J19)=0,1,1-K19/SUM(I19,J19)) -> 1 | O19: =(J19+I19-M19)*N19 -> 0 | P19: =MAX(0,(W19+H19-wST.Jahr+IF(AND(W19<>wST.Jahr,MONTH(G19)>6),0.5,0))*IF(AND(W19=wST.Jahr,MONTH(G19)>6),2,1)) -> 0 | Q19: =R19+S19 -> 0 | R19: =IF(P19=0,0,IF(W19>wST.Jahr,0,MAX(0,MIN(O19,O19/P19)))) -> 0 | S19: =(J19+I19-M19)*(1-N19) -> 0 | T19: =MIN(I19+J19,M19+R19+S19) -> 0 | U19: =IF(W19>wST.Jahr,0,I19+J19-T19) -> 0 | V19: =IF(C19=0,0,IF(VALUE(LEFT(C19,3))=wST.Ansatz,1,0)) -> 0 | W19: =YEAR(G19) -> 1900 | X19: =IF(W19>wST.Jahr-1,0,I19*V19) -> 0 | AB19: =IF(AND(AC19="",C19=""),"",IF(AND(C19<>"",AC19=""),"Keine Zuordnung",IF(OR(AC19=$AD$6,AC19=$AE$6,AC19=$AF$6),"OK","Falsche Kostenstelle"))) ->  | AD19: =IF($AC19=AD$6,$Q19,) -> 0 | AE19: 0 | AF19: 0 | AG19: =IF($AC19=AG$6,$U19,) -> 0 | AH19: 0 | AI19: 0
A20: =V20>0 -> FALSE | L20: =IF(AND(W20+H20<=wST.Jahr,J20<>0,NOT(ISBLANK(H20))),"Zugang ungültig!",IF(W20>wST.Jahr,0,SUM(I20,J20,-K20))) -> 0 | M20: =IF(H20=0,0,IF(W20>=wST.Jahr,0,MAX(0,MIN(I20,I20/H20*(wST.Jahr-W20)-I20/H20*IF(MONTH(G20)>6,0.5,0))))) -> 0 | N20: =IF(SUM(I20,J20)=0,1,1-K20/SUM(I20,J20)) -> 1 | O20: =(J20+I20-M20)*N20 -> 0 | P20: =MAX(0,(W20+H20-wST.Jahr+IF(AND(W20<>wST.Jahr,MONTH(G20)>6),0.5,0))*IF(AND(W20=wST.Jahr,MONTH(G20)>6),2,1)) -> 0 | Q20: =R20+S20 -> 0 | R20: =IF(P20=0,0,IF(W20>wST.Jahr,0,MAX(0,MIN(O20,O20/P20)))) -> 0 | S20: =(J20+I20-M20)*(1-N20) -> 0 | T20: =MIN(I20+J20,M20+R20+S20) -> 0 | U20: =IF(W20>wST.Jahr,0,I20+J20-T20) -> 0 | V20: =IF(C20=0,0,IF(VALUE(LEFT(C20,3))=wST.Ansatz,1,0)) -> 0 | W20: =YEAR(G20) -> 1900 | X20: =IF(W20>wST.Jahr-1,0,I20*V20) -> 0 | AB20: =IF(AND(AC20="",C20=""),"",IF(AND(C20<>"",AC20=""),"Keine Zuordnung",IF(OR(AC20=$AD$6,AC20=$AE$6,AC20=$AF$6),"OK","Falsche Kostenstelle"))) ->  | AD20: 0 | AE20: 0 | AF20: 0 | AG20: 0 | AH20: 0 | AI20: 0
A21: =V21>0 -> FALSE | L21: =IF(AND(W21+H21<=wST.Jahr,J21<>0,NOT(ISBLANK(H21))),"Zugang ungültig!",IF(W21>wST.Jahr,0,SUM(I21,J21,-K21))) -> 0 | M21: =IF(H21=0,0,IF(W21>=wST.Jahr,0,MAX(0,MIN(I21,I21/H21*(wST.Jahr-W21)-I21/H21*IF(MONTH(G21)>6,0.5,0))))) -> 0 | N21: =IF(SUM(I21,J21)=0,1,1-K21/SUM(I21,J21)) -> 1 | O21: =(J21+I21-M21)*N21 -> 0 | P21: =MAX(0,(W21+H21-wST.Jahr+IF(AND(W21<>wST.Jahr,MONTH(G21)>6),0.5,0))*IF(AND(W21=wST.Jahr,MONTH(G21)>6),2,1)) -> 0 | Q21: =R21+S21 -> 0 | R21: =IF(P21=0,0,IF(W21>wST.Jahr,0,MAX(0,MIN(O21,O21/P21)))) -> 0 | S21: =(J21+I21-M21)*(1-N21) -> 0 | T21: =MIN(I21+J21,M21+R21+S21) -> 0 | U21: =IF(W21>wST.Jahr,0,I21+J21-T21) -> 0 | V21: =IF(C21=0,0,IF(VALUE(LEFT(C21,3))=wST.Ansatz,1,0)) -> 0 | W21: =YEAR(G21) -> 1900 | X21: =IF(W21>wST.Jahr-1,0,I21*V21) -> 0 | AD21: 0 | AE21: 0 | AF21: 0 | AG21: 0 | AH21: 0 | AI21: 0
A22: =L22>0 -> FALSE | B22: 4 | C22: Wasser- und Kanalisationsbauten- und anlagen | I22: =SUMPRODUCT(I23:I42,$V23:$V42) -> 0 | J22: =SUMPRODUCT(J23:J42,$V23:$V42) -> 0 | K22: =SUMPRODUCT(K23:K42,$V23:$V42) -> 0 | L22: =SUMPRODUCT(L23:L42,$V23:$V42) -> 0 | M22: =SUMPRODUCT(M23:M42,$V23:$V42) -> 0 | Q22: =SUMPRODUCT(Q23:Q42,$V23:$V42) -> 0 | R22: =SUMPRODUCT(R23:R42,$V23:$V42) -> 0 | T22: =SUMPRODUCT(T23:T42,$V23:$V42) -> 0 | U22: =SUMPRODUCT(U23:U42,$V23:$V42) -> 0 | X22: =SUM(X23:X42) -> 0
A23: =V23>0 -> FALSE | L23: =IF(AND(W23+H23<=wST.Jahr,J23<>0,NOT(ISBLANK(H23))),"Zugang ungültig!",IF(W23>wST.Jahr,0,SUM(I23,J23,-K23))) -> 0 | M23: =IF(H23=0,0,IF(W23>=wST.Jahr,0,MAX(0,MIN(I23,I23/H23*(wST.Jahr-W23)-I23/H23*IF(MONTH(G23)>6,0.5,0))))) -> 0 | N23: =IF(SUM(I23,J23)=0,1,1-K23/SUM(I23,J23)) -> 1 | O23: =(J23+I23-M23)*N23 -> 0 | P23: =MAX(0,(W23+H23-wST.Jahr+IF(AND(W23<>wST.Jahr,MONTH(G23)>6),0.5,0))*IF(AND(W23=wST.Jahr,MONTH(G23)>6),2,1)) -> 0 | Q23: =R23+S23 -> 0 | R23: =IF(P23=0,0,IF(W23>wST.Jahr,0,MAX(0,MIN(O23,O23/P23)))) -> 0 | S23: =(J23+I23-M23)*(1-N23) -> 0 | T23: =MIN(I23+J23,M23+R23+S23) -> 0 | U23: =IF(W23>wST.Jahr,0,I23+J23-T23) -> 0 | V23: =IF(C23=0,0,IF(VALUE(LEFT(C23,3))=wST.Ansatz,1,0)) -> 0 | W23: =YEAR(G23) -> 1900 | X23: =IF(W23>wST.Jahr-1,0,I23*V23) -> 0 | AB23: =IF(AND(AC23="",C23=""),"",IF(AND(C23<>"",AC23=""),"Keine Zuordnung",IF(OR(AC23=$AD$6,AC23=$AE$6,AC23=$AF$6),"OK","Falsche Kostenstelle"))) ->  | AD23: =IF($AC23=AD$6,$Q23,) -> 0 | AE23: 0 | AF23: 0 | AG23: =IF($AC23=AG$6,$U23,) -> 0 | AH23: 0 | AI23: 0
A24: FALSE | L24: 0 | M24: 0 | N24: 1 | O24: 0 | P24: 0 | Q24: 0 | R24: 0 | S24: 0 | T24: 0 | U24: 0 | V24: 0 | W24: 1900 | X24: 0 | AB24: =IF(AND(AC24="",C24=""),"",IF(AND(C24<>"",AC24=""),"Keine Zuordnung",IF(OR(AC24=$AD$6,AC24=$AE$6,AC24=$AF$6),"OK","Falsche Kostenstelle"))) ->  | AD24: 0 | AE24: 0 | AF24: 0 | AG24: =IF($AC24=AG$6,$U24,) -> 0 | AH24: 0 | AI24: 0
A25: =V25>0 -> FALSE | L25: =IF(AND(W25+H25<=wST.Jahr,J25<>0,NOT(ISBLANK(H25))),"Zugang ungültig!",IF(W25>wST.Jahr,0,SUM(I25,J25,-K25))) -> 0 | M25: 0 | N25: =IF(SUM(I25,J25)=0,1,1-K25/SUM(I25,J25)) -> 1 | O25: =(J25+I25-M25)*N25 -> 0 | P25: =MAX(0,(W25+H25-wST.Jahr+IF(AND(W25<>wST.Jahr,MONTH(G25)>6),0.5,0))*IF(AND(W25=wST.Jahr,MONTH(G25)>6),2,1)) -> 0 | Q25: =R25+S25 -> 0 | R25: 0 | S25: =(J25+I25-M25)*(1-N25) -> 0 | T25: =MIN(I25+J25,M25+R25+S25) -> 0 | U25: =IF(W25>wST.Jahr,0,I25+J25-T25) -> 0 | V25: =IF(C25=0,0,IF(VALUE(LEFT(C25,3))=wST.Ansatz,1,0)) -> 0 | W25: =YEAR(G25) -> 1900 | X25: =IF(W25>wST.Jahr-1,0,I25*V25) -> 0 | AB25: =IF(AND(AC25="",C25=""),"",IF(AND(C25<>"",AC25=""),"Keine Zuordnung",IF(OR(AC25=$AD$6,AC25=$AE$6,AC25=$AF$6),"OK","Falsche Kostenstelle"))) ->  | AD25: 0 | AE25: 0 | AF25: 0 | AG25: 0 | AH25: 0 | AI25: 0
A26: =V26>0 -> FALSE | L26: =IF(AND(W26+H26<=wST.Jahr,J26<>0,NOT(ISBLANK(H26))),"Zugang ungültig!",IF(W26>wST.Jahr,0,SUM(I26,J26,-K26))) -> 0 | M26: 0 | N26: =IF(SUM(I26,J26)=0,1,1-K26/SUM(I26,J26)) -> 1 | O26: =(J26+I26-M26)*N26 -> 0 | P26: =MAX(0,(W26+H26-wST.Jahr+IF(AND(W26<>wST.Jahr,MONTH(G26)>6),0.5,0))*IF(AND(W26=wST.Jahr,MONTH(G26)>6),2,1)) -> 0 | Q26: =R26+S26 -> 0 | R26: 0 | S26: =(J26+I26-M26)*(1-N26) -> 0 | T26: =MIN(I26+J26,M26+R26+S26) -> 0 | U26: =IF(W26>wST.Jahr,0,I26+J26-T26) -> 0 | V26: 0 | W26: =YEAR(G26) -> 1900 | X26: =IF(W26>wST.Jahr-1,0,I26*V26) -> 0 | AD26: 0 | AE26: 0 | AF26: 0 | AG26: 0 | AH26: 0 | AI26: 0
A27: =V27>0 -> FALSE | L27: =IF(AND(W27+H27<=wST.Jahr,J27<>0,NOT(ISBLANK(H27))),"Zugang ungültig!",IF(W27>wST.Jahr,0,SUM(I27,J27,-K27))) -> 0 | M27: 0 | N27: =IF(SUM(I27,J27)=0,1,1-K27/SUM(I27,J27)) -> 1 | O27: =(J27+I27-M27)*N27 -> 0 | P27: =MAX(0,(W27+H27-wST.Jahr+IF(AND(W27<>wST.Jahr,MONTH(G27)>6),0.5,0))*IF(AND(W27=wST.Jahr,MONTH(G27)>6),2,1)) -> 0 | Q27: =R27+S27 -> 0 | R27: 0 | S27: =(J27+I27-M27)*(1-N27) -> 0 | T27: =MIN(I27+J27,M27+R27+S27) -> 0 | U27: =IF(W27>wST.Jahr,0,I27+J27-T27) -> 0 | V27: 0 | W27: =YEAR(G27) -> 1900 | X27: =IF(W27>wST.Jahr-1,0,I27*V27) -> 0 | AD27: 0 | AE27: 0 | AF27: 0 | AG27: 0 | AH27: 0 | AI27: 0
A28: =V28>0 -> FALSE | L28: =IF(AND(W28+H28<=wST.Jahr,J28<>0,NOT(ISBLANK(H28))),"Zugang ungültig!",IF(W28>wST.Jahr,0,SUM(I28,J28,-K28))) -> 0 | M28: 0 | N28: =IF(SUM(I28,J28)=0,1,1-K28/SUM(I28,J28)) -> 1 | O28: =(J28+I28-M28)*N28 -> 0 | P28: =MAX(0,(W28+H28-wST.Jahr+IF(AND(W28<>wST.Jahr,MONTH(G28)>6),0.5,0))*IF(AND(W28=wST.Jahr,MONTH(G28)>6),2,1)) -> 0 | Q28: =R28+S28 -> 0 | R28: 0 | S28: =(J28+I28-M28)*(1-N28) -> 0 | T28: =MIN(I28+J28,M28+R28+S28) -> 0 | U28: =IF(W28>wST.Jahr,0,I28+J28-T28) -> 0 | V28: 0 | W28: =YEAR(G28) -> 1900 | X28: =IF(W28>wST.Jahr-1,0,I28*V28) -> 0 | AD28: 0 | AE28: 0 | AF28: 0 | AG28: 0 | AH28: 0 | AI28: 0
A29: =V29>0 -> FALSE | L29: =IF(AND(W29+H29<=wST.Jahr,J29<>0,NOT(ISBLANK(H29))),"Zugang ungültig!",IF(W29>wST.Jahr,0,SUM(I29,J29,-K29))) -> 0 | M29: 0 | N29: =IF(SUM(I29,J29)=0,1,1-K29/SUM(I29,J29)) -> 1 | O29: =(J29+I29-M29)*N29 -> 0 | P29: =MAX(0,(W29+H29-wST.Jahr+IF(AND(W29<>wST.Jahr,MONTH(G29)>6),0.5,0))*IF(AND(W29=wST.Jahr,MONTH(G29)>6),2,1)) -> 0 | Q29: =R29+S29 -> 0 | R29: 0 | S29: =(J29+I29-M29)*(1-N29) -> 0 | T29: =MIN(I29+J29,M29+R29+S29) -> 0 | U29: =IF(W29>wST.Jahr,0,I29+J29-T29) -> 0 | V29: 0 | W29: =YEAR(G29) -> 1900 | X29: =IF(W29>wST.Jahr-1,0,I29*V29) -> 0 | AD29: 0 | AE29: 0 | AF29: 0 | AG29: 0 | AH29: 0 | AI29: 0
A30: =V30>0 -> FALSE | L30: =IF(AND(W30+H30<=wST.Jahr,J30<>0,NOT(ISBLANK(H30))),"Zugang ungültig!",IF(W30>wST.Jahr,0,SUM(I30,J30,-K30))) -> 0 | M30: 0 | N30: =IF(SUM(I30,J30)=0,1,1-K30/SUM(I30,J30)) -> 1 | O30: =(J30+I30-M30)*N30 -> 0 | P30: =MAX(0,(W30+H30-wST.Jahr+IF(AND(W30<>wST.Jahr,MONTH(G30)>6),0.5,0))*IF(AND(W30=wST.Jahr,MONTH(G30)>6),2,1)) -> 0 | Q30: =R30+S30 -> 0 | R30: 0 | S30: =(J30+I30-M30)*(1-N30) -> 0 | T30: =MIN(I30+J30,M30+R30+S30) -> 0 | U30: =IF(W30>wST.Jahr,0,I30+J30-T30) -> 0 | V30: 0 | W30: =YEAR(G30) -> 1900 | X30: =IF(W30>wST.Jahr-1,0,I30*V30) -> 0 | AD30: 0 | AE30: 0 | AF30: 0 | AG30: 0 | AH30: 0 | AI30: 0
A31: =V31>0 -> FALSE | L31: =IF(AND(W31+H31<=wST.Jahr,J31<>0,NOT(ISBLANK(H31))),"Zugang ungültig!",IF(W31>wST.Jahr,0,SUM(I31,J31,-K31))) -> 0 | M31: 0 | N31: =IF(SUM(I31,J31)=0,1,1-K31/SUM(I31,J31)) -> 1 | O31: =(J31+I31-M31)*N31 -> 0 | P31: =MAX(0,(W31+H31-wST.Jahr+IF(AND(W31<>wST.Jahr,MONTH(G31)>6),0.5,0))*IF(AND(W31=wST.Jahr,MONTH(G31)>6),2,1)) -> 0 | Q31: =R31+S31 -> 0 | R31: 0 | S31: =(J31+I31-M31)*(1-N31) -> 0 | T31: =MIN(I31+J31,M31+R31+S31) -> 0 | U31: =IF(W31>wST.Jahr,0,I31+J31-T31) -> 0 | V31: 0 | W31: =YEAR(G31) -> 1900 | X31: =IF(W31>wST.Jahr-1,0,I31*V31) -> 0 | AD31: 0 | AE31: 0 | AF31: 0 | AG31: 0 | AH31: 0 | AI31: 0
A32: =V32>0 -> FALSE | L32: =IF(AND(W32+H32<=wST.Jahr,J32<>0,NOT(ISBLANK(H32))),"Zugang ungültig!",IF(W32>wST.Jahr,0,SUM(I32,J32,-K32))) -> 0 | M32: 0 | N32: =IF(SUM(I32,J32)=0,1,1-K32/SUM(I32,J32)) -> 1 | O32: =(J32+I32-M32)*N32 -> 0 | P32: =MAX(0,(W32+H32-wST.Jahr+IF(AND(W32<>wST.Jahr,MONTH(G32)>6),0.5,0))*IF(AND(W32=wST.Jahr,MONTH(G32)>6),2,1)) -> 0 | Q32: =R32+S32 -> 0 | R32: 0 | S32: =(J32+I32-M32)*(1-N32) -> 0 | T32: =MIN(I32+J32,M32+R32+S32) -> 0 | U32: =IF(W32>wST.Jahr,0,I32+J32-T32) -> 0 | V32: 0 | W32: =YEAR(G32) -> 1900 | X32: =IF(W32>wST.Jahr-1,0,I32*V32) -> 0 | AD32: 0 | AE32: 0 | AF32: 0 | AG32: 0 | AH32: 0 | AI32: 0
A33: =V33>0 -> FALSE | L33: =IF(AND(W33+H33<=wST.Jahr,J33<>0,NOT(ISBLANK(H33))),"Zugang ungültig!",IF(W33>wST.Jahr,0,SUM(I33,J33,-K33))) -> 0 | M33: 0 | N33: =IF(SUM(I33,J33)=0,1,1-K33/SUM(I33,J33)) -> 1 | O33: =(J33+I33-M33)*N33 -> 0 | P33: =MAX(0,(W33+H33-wST.Jahr+IF(AND(W33<>wST.Jahr,MONTH(G33)>6),0.5,0))*IF(AND(W33=wST.Jahr,MONTH(G33)>6),2,1)) -> 0 | Q33: =R33+S33 -> 0 | R33: 0 | S33: =(J33+I33-M33)*(1-N33) -> 0 | T33: =MIN(I33+J33,M33+R33+S33) -> 0 | U33: =IF(W33>wST.Jahr,0,I33+J33-T33) -> 0 | V33: 0 | W33: =YEAR(G33) -> 1900 | X33: =IF(W33>wST.Jahr-1,0,I33*V33) -> 0 | AD33: 0 | AE33: 0 | AF33: 0 | AG33: 0 | AH33: 0 | AI33: 0
A34: =V34>0 -> FALSE | L34: =IF(AND(W34+H34<=wST.Jahr,J34<>0,NOT(ISBLANK(H34))),"Zugang ungültig!",IF(W34>wST.Jahr,0,SUM(I34,J34,-K34))) -> 0 | M34: 0 | N34: =IF(SUM(I34,J34)=0,1,1-K34/SUM(I34,J34)) -> 1 | O34: =(J34+I34-M34)*N34 -> 0 | P34: =MAX(0,(W34+H34-wST.Jahr+IF(AND(W34<>wST.Jahr,MONTH(G34)>6),0.5,0))*IF(AND(W34=wST.Jahr,MONTH(G34)>6),2,1)) -> 0 | Q34: =R34+S34 -> 0 | R34: 0 | S34: =(J34+I34-M34)*(1-N34) -> 0 | T34: =MIN(I34+J34,M34+R34+S34) -> 0 | U34: =IF(W34>wST.Jahr,0,I34+J34-T34) -> 0 | V34: 0 | W34: =YEAR(G34) -> 1900 | X34: =IF(W34>wST.Jahr-1,0,I34*V34) -> 0 | AD34: 0 | AE34: 0 | AF34: 0 | AG34: 0 | AH34: 0 | AI34: 0
A35: =V35>0 -> FALSE | L35: =IF(AND(W35+H35<=wST.Jahr,J35<>0,NOT(ISBLANK(H35))),"Zugang ungültig!",IF(W35>wST.Jahr,0,SUM(I35,J35,-K35))) -> 0 | M35: 0 | N35: =IF(SUM(I35,J35)=0,1,1-K35/SUM(I35,J35)) -> 1 | O35: =(J35+I35-M35)*N35 -> 0 | P35: =MAX(0,(W35+H35-wST.Jahr+IF(AND(W35<>wST.Jahr,MONTH(G35)>6),0.5,0))*IF(AND(W35=wST.Jahr,MONTH(G35)>6),2,1)) -> 0 | Q35: =R35+S35 -> 0 | R35: 0 | S35: =(J35+I35-M35)*(1-N35) -> 0 | T35: =MIN(I35+J35,M35+R35+S35) -> 0 | U35: =IF(W35>wST.Jahr,0,I35+J35-T35) -> 0 | V35: 0 | W35: =YEAR(G35) -> 1900 | X35: =IF(W35>wST.Jahr-1,0,I35*V35) -> 0 | AD35: =IF($AC35=AD$6,$Q35,) -> 0 | AE35: 0 | AF35: 0 | AG35: =IF($AC35=AG$6,$U35,) -> 0 | AH35: 0 | AI35: 0
A36: =V36>0 -> FALSE | L36: =IF(AND(W36+H36<=wST.Jahr,J36<>0,NOT(ISBLANK(H36))),"Zugang ungültig!",IF(W36>wST.Jahr,0,SUM(I36,J36,-K36))) -> 0 | M36: 0 | N36: =IF(SUM(I36,J36)=0,1,1-K36/SUM(I36,J36)) -> 1 | O36: =(J36+I36-M36)*N36 -> 0 | P36: =MAX(0,(W36+H36-wST.Jahr+IF(AND(W36<>wST.Jahr,MONTH(G36)>6),0.5,0))*IF(AND(W36=wST.Jahr,MONTH(G36)>6),2,1)) -> 0 | Q36: =R36+S36 -> 0 | R36: 0 | S36: =(J36+I36-M36)*(1-N36) -> 0 | T36: =MIN(I36+J36,M36+R36+S36) -> 0 | U36: =IF(W36>wST.Jahr,0,I36+J36-T36) -> 0 | V36: 0 | W36: =YEAR(G36) -> 1900 | X36: =IF(W36>wST.Jahr-1,0,I36*V36) -> 0 | AD36: 0 | AE36: 0 | AF36: 0 | AG36: 0 | AH36: 0 | AI36: 0
A37: =V37>0 -> FALSE | L37: =IF(AND(W37+H37<=wST.Jahr,J37<>0,NOT(ISBLANK(H37))),"Zugang ungültig!",IF(W37>wST.Jahr,0,SUM(I37,J37,-K37))) -> 0 | M37: 0 | N37: =IF(SUM(I37,J37)=0,1,1-K37/SUM(I37,J37)) -> 1 | O37: =(J37+I37-M37)*N37 -> 0 | P37: =MAX(0,(W37+H37-wST.Jahr+IF(AND(W37<>wST.Jahr,MONTH(G37)>6),0.5,0))*IF(AND(W37=wST.Jahr,MONTH(G37)>6),2,1)) -> 0 | Q37: =R37+S37 -> 0 | R37: 0 | S37: =(J37+I37-M37)*(1-N37) -> 0 | T37: =MIN(I37+J37,M37+R37+S37) -> 0 | U37: =IF(W37>wST.Jahr,0,I37+J37-T37) -> 0 | V37: 0 | W37: =YEAR(G37) -> 1900 | X37: =IF(W37>wST.Jahr-1,0,I37*V37) -> 0 | AD37: 0 | AE37: 0 | AF37: 0 | AG37: 0 | AH37: 0 | AI37: 0
A38: =V38>0 -> FALSE | L38: =IF(AND(W38+H38<=wST.Jahr,J38<>0,NOT(ISBLANK(H38))),"Zugang ungültig!",IF(W38>wST.Jahr,0,SUM(I38,J38,-K38))) -> 0 | M38: 0 | N38: =IF(SUM(I38,J38)=0,1,1-K38/SUM(I38,J38)) -> 1 | O38: =(J38+I38-M38)*N38 -> 0 | P38: =MAX(0,(W38+H38-wST.Jahr+IF(AND(W38<>wST.Jahr,MONTH(G38)>6),0.5,0))*IF(AND(W38=wST.Jahr,MONTH(G38)>6),2,1)) -> 0 | Q38: =R38+S38 -> 0 | R38: 0 | S38: =(J38+I38-M38)*(1-N38) -> 0 | T38: =MIN(I38+J38,M38+R38+S38) -> 0 | U38: =IF(W38>wST.Jahr,0,I38+J38-T38) -> 0 | V38: 0 | W38: =YEAR(G38) -> 1900 | X38: =IF(W38>wST.Jahr-1,0,I38*V38) -> 0 | AD38: 0 | AE38: 0 | AF38: 0 | AG38: 0 | AH38: 0 | AI38: 0
A39: =V39>0 -> FALSE | L39: =IF(AND(W39+H39<=wST.Jahr,J39<>0,NOT(ISBLANK(H39))),"Zugang ungültig!",IF(W39>wST.Jahr,0,SUM(I39,J39,-K39))) -> 0 | M39: 0 | N39: =IF(SUM(I39,J39)=0,1,1-K39/SUM(I39,J39)) -> 1 | O39: =(J39+I39-M39)*N39 -> 0 | P39: =MAX(0,(W39+H39-wST.Jahr+IF(AND(W39<>wST.Jahr,MONTH(G39)>6),0.5,0))*IF(AND(W39=wST.Jahr,MONTH(G39)>6),2,1)) -> 0 | Q39: =R39+S39 -> 0 | R39: 0 | S39: =(J39+I39-M39)*(1-N39) -> 0 | T39: =MIN(I39+J39,M39+R39+S39) -> 0 | U39: =IF(W39>wST.Jahr,0,I39+J39-T39) -> 0 | V39: 0 | W39: =YEAR(G39) -> 1900 | X39: =IF(W39>wST.Jahr-1,0,I39*V39) -> 0 | AD39: 0 | AE39: 0 | AF39: 0 | AG39: 0 | AH39: 0 | AI39: 0
A40: =V40>0 -> FALSE | L40: =IF(AND(W40+H40<=wST.Jahr,J40<>0,NOT(ISBLANK(H40))),"Zugang ungültig!",IF(W40>wST.Jahr,0,SUM(I40,J40,-K40))) -> 0 | M40: 0 | N40: =IF(SUM(I40,J40)=0,1,1-K40/SUM(I40,J40)) -> 1 | O40: =(J40+I40-M40)*N40 -> 0 | P40: =MAX(0,(W40+H40-wST.Jahr+IF(AND(W40<>wST.Jahr,MONTH(G40)>6),0.5,0))*IF(AND(W40=wST.Jahr,MONTH(G40)>6),2,1)) -> 0 | Q40: =R40+S40 -> 0 | R40: 0 | S40: =(J40+I40-M40)*(1-N40) -> 0 | T40: =MIN(I40+J40,M40+R40+S40) -> 0 | U40: =IF(W40>wST.Jahr,0,I40+J40-T40) -> 0 | V40: =IF(C40=0,0,IF(VALUE(LEFT(C40,3))=wST.Ansatz,1,0)) -> 0 | W40: =YEAR(G40) -> 1900 | X40: =IF(W40>wST.Jahr-1,0,I40*V40) -> 0 | AB40: =IF(AND(AC40="",C40=""),"",IF(AND(C40<>"",AC40=""),"Keine Zuordnung",IF(OR(AC40=$AD$6,AC40=$AE$6,AC40=$AF$6),"OK","Falsche Kostenstelle"))) ->  | AD40: 0 | AE40: 0 | AF40: 0 | AG40: 0 | AH40: 0 | AI40: 0
A41: =V41>0 -> FALSE | L41: =IF(AND(W41+H41<=wST.Jahr,J41<>0,NOT(ISBLANK(H41))),"Zugang ungültig!",IF(W41>wST.Jahr,0,SUM(I41,J41,-K41))) -> 0 | M41: 0 | N41: =IF(SUM(I41,J41)=0,1,1-K41/SUM(I41,J41)) -> 1 | O41: =(J41+I41-M41)*N41 -> 0 | P41: =MAX(0,(W41+H41-wST.Jahr+IF(AND(W41<>wST.Jahr,MONTH(G41)>6),0.5,0))*IF(AND(W41=wST.Jahr,MONTH(G41)>6),2,1)) -> 0 | Q41: =R41+S41 -> 0 | R41: 0 | S41: =(J41+I41-M41)*(1-N41) -> 0 | T41: =MIN(I41+J41,M41+R41+S41) -> 0 | U41: =IF(W41>wST.Jahr,0,I41+J41-T41) -> 0 | V41: =IF(C41=0,0,IF(VALUE(LEFT(C41,3))=wST.Ansatz,1,0)) -> 0 | W41: =YEAR(G41) -> 1900 | X41: =IF(W41>wST.Jahr-1,0,I41*V41) -> 0 | AB41: =IF(AND(AC41="",C41=""),"",IF(AND(C41<>"",AC41=""),"Keine Zuordnung",IF(OR(AC41=$AD$6,AC41=$AE$6,AC41=$AF$6),"OK","Falsche Kostenstelle"))) ->  | AD41: 0 | AE41: 0 | AF41: 0 | AG41: 0 | AH41: 0 | AI41: 0
A42: =V42>0 -> FALSE | L42: =IF(AND(W42+H42<=wST.Jahr,J42<>0,NOT(ISBLANK(H42))),"Zugang ungültig!",IF(W42>wST.Jahr,0,SUM(I42,J42,-K42))) -> 0 | M42: 0 | N42: =IF(SUM(I42,J42)=0,1,1-K42/SUM(I42,J42)) -> 1 | O42: =(J42+I42-M42)*N42 -> 0 | P42: =MAX(0,(W42+H42-wST.Jahr+IF(AND(W42<>wST.Jahr,MONTH(G42)>6),0.5,0))*IF(AND(W42=wST.Jahr,MONTH(G42)>6),2,1)) -> 0 | Q42: =R42+S42 -> 0 | R42: 0 | S42: =(J42+I42-M42)*(1-N42) -> 0 | T42: =MIN(I42+J42,M42+R42+S42) -> 0 | U42: =IF(W42>wST.Jahr,0,I42+J42-T42) -> 0 | V42: 0 | W42: =YEAR(G42) -> 1900 | X42: =IF(W42>wST.Jahr-1,0,I42*V42) -> 0 | AD42: 0 | AE42: 0 | AF42: 0 | AG42: 0 | AH42: 0 | AI42: 0
A43: =L43>0 -> FALSE | B43: 6 | C43: Sonstige Grundstückseinrichtungen | I43: =SUMPRODUCT(I44:I46,$V44:$V46) -> 0 | J43: =SUMPRODUCT(J44:J46,$V44:$V46) -> 0 | K43: =SUMPRODUCT(K44:K46,$V44:$V46) -> 0 | L43: =SUMPRODUCT(L44:L46,$V44:$V46) -> 0 | M43: =SUMPRODUCT(M44:M46,$V44:$V46) -> 0 | Q43: =SUMPRODUCT(Q44:Q46,$V44:$V46) -> 0 | R43: =SUMPRODUCT(R44:R46,$V44:$V46) -> 0 | T43: =SUMPRODUCT(T44:T46,$V44:$V46) -> 0 | U43: =SUMPRODUCT(U44:U46,$V44:$V46) -> 0 | X43: =SUM(X44:X46) -> 0
A44: =V44>0 -> FALSE | L44: =IF(AND(W44+H44<=wST.Jahr,J44<>0,NOT(ISBLANK(H44))),"Zugang ungültig!",IF(W44>wST.Jahr,0,SUM(I44,J44,-K44))) -> 0 | M44: =IF(H44=0,0,IF(W44>=wST.Jahr,0,MAX(0,MIN(I44,I44/H44*(wST.Jahr-W44)-I44/H44*IF(MONTH(G44)>6,0.5,0))))) -> 0 | N44: =IF(SUM(I44,J44)=0,1,1-K44/SUM(I44,J44)) -> 1 | O44: =(J44+I44-M44)*N44 -> 0 | P44: =MAX(0,(W44+H44-wST.Jahr+IF(AND(W44<>wST.Jahr,MONTH(G44)>6),0.5,0))*IF(AND(W44=wST.Jahr,MONTH(G44)>6),2,1)) -> 0 | Q44: =R44+S44 -> 0 | R44: =IF(P44=0,0,IF(W44>wST.Jahr,0,MAX(0,MIN(O44,O44/P44)))) -> 0 | S44: =(J44+I44-M44)*(1-N44) -> 0 | T44: =MIN(I44+J44,M44+R44+S44) -> 0 | U44: =IF(W44>wST.Jahr,0,I44+J44-T44) -> 0 | V44: =IF(C44=0,0,IF(VALUE(LEFT(C44,3))=wST.Ansatz,1,0)) -> 0 | W44: =YEAR(G44) -> 1900 | X44: =IF(W44>wST.Jahr-1,0,I44*V44) -> 0 | AB44: =IF(AND(AC44="",C44=""),"",IF(AND(C44<>"",AC44=""),"Keine Zuordnung",IF(OR(AC44=$AD$6,AC44=$AE$6,AC44=$AF$6),"OK","Falsche Kostenstelle"))) ->  | AD44: =IF($AC44=AD$6,$Q44,) -> 0 | AE44: 0 | AF44: 0 | AG44: =IF($AC44=AG$6,$U44,) -> 0 | AH44: 0 | AI44: 0
A45: =V45>0 -> FALSE | L45: =IF(AND(W45+H45<=wST.Jahr,J45<>0,NOT(ISBLANK(H45))),"Zugang ungültig!",IF(W45>wST.Jahr,0,SUM(I45,J45,-K45))) -> 0 | M45: =IF(H45=0,0,IF(W45>=wST.Jahr,0,MAX(0,MIN(I45,I45/H45*(wST.Jahr-W45)-I45/H45*IF(MONTH(G45)>6,0.5,0))))) -> 0 | N45: =IF(SUM(I45,J45)=0,1,1-K45/SUM(I45,J45)) -> 1 | O45: =(J45+I45-M45)*N45 -> 0 | P45: =MAX(0,(W45+H45-wST.Jahr+IF(AND(W45<>wST.Jahr,MONTH(G45)>6),0.5,0))*IF(AND(W45=wST.Jahr,MONTH(G45)>6),2,1)) -> 0 | Q45: =R45+S45 -> 0 | R45: =IF(P45=0,0,IF(W45>wST.Jahr,0,MAX(0,MIN(O45,O45/P45)))) -> 0 | S45: =(J45+I45-M45)*(1-N45) -> 0 | T45: =MIN(I45+J45,M45+R45+S45) -> 0 | U45: =IF(W45>wST.Jahr,0,I45+J45-T45) -> 0 | V45: =IF(C45=0,0,IF(VALUE(LEFT(C45,3))=wST.Ansatz,1,0)) -> 0 | W45: =YEAR(G45) -> 1900 | X45: =IF(W45>wST.Jahr-1,0,I45*V45) -> 0 | AD45: 0 | AE45: 0 | AF45: 0 | AG45: 0 | AH45: 0 | AI45: 0
A46: =V46>0 -> FALSE | L46: =IF(AND(W46+H46<=wST.Jahr,J46<>0,NOT(ISBLANK(H46))),"Zugang ungültig!",IF(W46>wST.Jahr,0,SUM(I46,J46,-K46))) -> 0 | M46: =IF(H46=0,0,IF(W46>=wST.Jahr,0,MAX(0,MIN(I46,I46/H46*(wST.Jahr-W46)-I46/H46*IF(MONTH(G46)>6,0.5,0))))) -> 0 | N46: =IF(SUM(I46,J46)=0,1,1-K46/SUM(I46,J46)) -> 1 | O46: =(J46+I46-M46)*N46 -> 0 | P46: =MAX(0,(W46+H46-wST.Jahr+IF(AND(W46<>wST.Jahr,MONTH(G46)>6),0.5,0))*IF(AND(W46=wST.Jahr,MONTH(G46)>6),2,1)) -> 0 | Q46: =R46+S46 -> 0 | R46: =IF(P46=0,0,IF(W46>wST.Jahr,0,MAX(0,MIN(O46,O46/P46)))) -> 0 | S46: =(J46+I46-M46)*(1-N46) -> 0 | T46: =MIN(I46+J46,M46+R46+S46) -> 0 | U46: =IF(W46>wST.Jahr,0,I46+J46-T46) -> 0 | V46: =IF(C46=0,0,IF(VALUE(LEFT(C46,3))=wST.Ansatz,1,0)) -> 0 | W46: =YEAR(G46) -> 1900 | X46: =IF(W46>wST.Jahr-1,0,I46*V46) -> 0 | AB46: =IF(AND(AC46="",C46=""),"",IF(AND(C46<>"",AC46=""),"Keine Zuordnung",IF(OR(AC46=$AD$6,AC46=$AE$6,AC46=$AF$6),"OK","Falsche Kostenstelle"))) ->  | AD46: 0 | AE46: 0 | AF46: 0 | AG46: 0 | AH46: 0 | AI46: 0
A47: =A7 -> FALSE | V47: =IF(C47=0,0,IF(VALUE(LEFT(C47,3))=wST.Ansatz,1,0)) -> 0
A48: =L48>0 -> FALSE | B48: 1 | C48: GEBÄUDE | I48: =I49 -> 0 | J48: =J49 -> 0 | K48: =K49 -> 0 | L48: =L49 -> 0 | M48: =M49 -> 0 | Q48: =Q49 -> 0 | R48: =R49 -> 0 | T48: =T49 -> 0 | U48: =U49 -> 0
A49: =L49>0 -> FALSE | B49: 10 | C49: Gebäude | I49: =SUMPRODUCT(I50:I52,$V50:$V52) -> 0 | J49: =SUMPRODUCT(J50:J52,$V50:$V52) -> 0 | K49: =SUMPRODUCT(K50:K52,$V50:$V52) -> 0 | L49: =SUMPRODUCT(L50:L52,$V50:$V52) -> 0 | M49: =SUMPRODUCT(M50:M52,$V50:$V52) -> 0 | Q49: =SUMPRODUCT(Q50:Q52,$V50:$V52) -> 0 | R49: =SUMPRODUCT(R50:R52,$V50:$V52) -> 0 | T49: =SUMPRODUCT(T50:T52,$V50:$V52) -> 0 | U49: =SUMPRODUCT(U50:U52,$V50:$V52) -> 0 | X49: =SUM(X50:X52) -> 0
A50: =V50>0 -> FALSE | L50: =IF(AND(W50+H50<=wST.Jahr,J50<>0,NOT(ISBLANK(H50))),"Zugang ungültig!",IF(W50>wST.Jahr,0,SUM(I50,J50,-K50))) -> 0 | M50: =IF(H50=0,0,IF(W50>=wST.Jahr,0,MAX(0,MIN(I50,I50/H50*(wST.Jahr-W50)-I50/H50*IF(MONTH(G50)>6,0.5,0))))) -> 0 | N50: =IF(SUM(I50,J50)=0,1,1-K50/SUM(I50,J50)) -> 1 | O50: =(J50+I50-M50)*N50 -> 0 | P50: =MAX(0,(W50+H50-wST.Jahr+IF(AND(W50<>wST.Jahr,MONTH(G50)>6),0.5,0))*IF(AND(W50=wST.Jahr,MONTH(G50)>6),2,1)) -> 0 | Q50: =R50+S50 -> 0 | R50: =IF(P50=0,0,IF(W50>wST.Jahr,0,MAX(0,MIN(O50,O50/P50)))) -> 0 | S50: =(J50+I50-M50)*(1-N50) -> 0 | T50: =MIN(I50+J50,M50+R50+S50) -> 0 | U50: =IF(W50>wST.Jahr,0,I50+J50-T50) -> 0 | V50: =IF(C50=0,0,IF(VALUE(LEFT(C50,3))=wST.Ansatz,1,0)) -> 0 | W50: =YEAR(G50) -> 1900 | X50: =IF(W50>wST.Jahr-1,0,I50*V50) -> 0 | AB50: =IF(AND(AC50="",C50=""),"",IF(AND(C50<>"",AC50=""),"Keine Zuordnung",IF(OR(AC50=$AD$6,AC50=$AE$6,AC50=$AF$6),"OK","Falsche Kostenstelle"))) ->  | AD50: =IF($AC50=AD$6,$Q50,) -> 0 | AE50: 0 | AF50: 0 | AG50: =IF($AC50=AG$6,$U50,) -> 0 | AH50: 0 | AI50: 0
A51: FALSE | L51: 0 | M51: =IF(H51=0,0,IF(W51>=wST.Jahr,0,MAX(0,MIN(I51,I51/H51*(wST.Jahr-W51)-I51/H51*IF(MONTH(G51)>6,0.5,0))))) -> 0 | N51: 1 | O51: 0 | P51: 0 | Q51: 0 | R51: =IF(P51=0,0,IF(W51>wST.Jahr,0,MAX(0,MIN(O51,O51/P51)))) -> 0 | S51: 0 | T51: 0 | U51: 0 | V51: 0 | W51: 1900 | X51: 0 | AD51: 0 | AE51: 0 | AF51: 0 | AG51: 0 | AH51: 0 | AI51: 0
A52: FALSE | L52: 0 | M52: =IF(H52=0,0,IF(W52>=wST.Jahr,0,MAX(0,MIN(I52,I52/H52*(wST.Jahr-W52)-I52/H52*IF(MONTH(G52)>6,0.5,0))))) -> 0 | N52: 1 | O52: 0 | P52: 0 | Q52: 0 | R52: =IF(P52=0,0,IF(W52>wST.Jahr,0,MAX(0,MIN(O52,O52/P52)))) -> 0 | S52: 0 | T52: 0 | U52: 0 | V52: 0 | W52: 1900 | X52: 0 | AD52: 0 | AE52: 0 | AF52: 0 | AG52: 0 | AH52: 0 | AI52: 0
A53: =A48 -> FALSE | V53: 0
A54: =L54>0 -> FALSE | B54: 2 | C54: MASCHINEN UND MASCHINELLE ANLAGEN | I54: =I55 -> 0 | J54: =J55 -> 0 | K54: =K55 -> 0 | L54: =L55 -> 0 | M54: =M55 -> 0 | Q54: =Q55 -> 0 | R54: =R55 -> 0 | T54: =T55 -> 0 | U54: =U55 -> 0
A55: =L55>0 -> FALSE | B55: 20 | C55: Maschinen und maschinelle Anlagen | I55: =SUMPRODUCT(I56:I65,$V56:$V65) -> 0 | J55: =SUMPRODUCT(J56:J65,$V56:$V65) -> 0 | K55: =SUMPRODUCT(K56:K65,$V56:$V65) -> 0 | L55: =SUMPRODUCT(L56:L65,$V56:$V65) -> 0 | M55: =SUMPRODUCT(M56:M65,$V56:$V65) -> 0 | Q55: =SUMPRODUCT(Q56:Q65,$V56:$V65) -> 0 | R55: =SUMPRODUCT(R56:R65,$V56:$V65) -> 0 | T55: =SUMPRODUCT(T56:T65,$V56:$V65) -> 0 | U55: =SUMPRODUCT(U56:U65,$V56:$V65) -> 0 | X55: =SUM(X56:X65) -> 0
A56: =L56>0 -> FALSE | L56: =IF(AND(W56+H56<=wST.Jahr,J56<>0,NOT(ISBLANK(H56))),"Zugang ungültig!",IF(W56>wST.Jahr,0,SUM(I56,J56,-K56))) -> 0 | M56: =IF(H56=0,0,IF(W56>=wST.Jahr,0,MAX(0,MIN(I56,I56/H56*(wST.Jahr-W56)-I56/H56*IF(MONTH(G56)>6,0.5,0))))) -> 0 | N56: =IF(SUM(I56,J56)=0,1,1-K56/SUM(I56,J56)) -> 1 | O56: =(J56+I56-M56)*N56 -> 0 | P56: =MAX(0,(W56+H56-wST.Jahr+IF(AND(W56<>wST.Jahr,MONTH(G56)>6),0.5,0))*IF(AND(W56=wST.Jahr,MONTH(G56)>6),2,1)) -> 0 | Q56: =R56+S56 -> 0 | R56: =IF(P56=0,0,IF(W56>wST.Jahr,0,MAX(0,MIN(O56,O56/P56)))) -> 0 | S56: =(J56+I56-M56)*(1-N56) -> 0 | T56: =MIN(I56+J56,M56+R56+S56) -> 0 | U56: =IF(W56>wST.Jahr,0,I56+J56-T56) -> 0 | V56: =IF(C56=0,0,IF(VALUE(LEFT(C56,3))=wST.Ansatz,1,0)) -> 0 | W56: =YEAR(G56) -> 1900 | X56: =IF(W56>wST.Jahr-1,0,I56*V56) -> 0 | AB56: =IF(AND(AC56="",C56=""),"",IF(AND(C56<>"",AC56=""),"Keine Zuordnung",IF(OR(AC56=$AD$6,AC56=$AE$6,AC56=$AF$6),"OK","Falsche Kostenstelle"))) ->  | AD56: =IF($AC56=AD$6,$Q56,) -> 0 | AE56: 0 | AF56: 0 | AG56: =IF($AC56=AG$6,$U56,) -> 0 | AH56: 0 | AI56: 0
A57: FALSE | L57: 0 | M57: 0 | N57: 1 | O57: 0 | P57: 0 | Q57: 0 | R57: 0 | S57: 0 | T57: 0 | U57: 0 | V57: 0 | W57: 1900 | X57: 0 | AD57: 0 | AE57: 0 | AF57: 0 | AG57: 0 | AH57: 0 | AI57: 0
A58: FALSE | L58: =IF(AND(W58+H58<=wST.Jahr,J58<>0,NOT(ISBLANK(H58))),"Zugang ungültig!",IF(W58>wST.Jahr,0,SUM(I58,J58,-K58))) -> 0 | M58: 0 | N58: =IF(SUM(I58,J58)=0,1,1-K58/SUM(I58,J58)) -> 1 | O58: =(J58+I58-M58)*N58 -> 0 | P58: =MAX(0,(W58+H58-wST.Jahr+IF(AND(W58<>wST.Jahr,MONTH(G58)>6),0.5,0))*IF(AND(W58=wST.Jahr,MONTH(G58)>6),2,1)) -> 0 | Q58: =R58+S58 -> 0 | R58: 0 | S58: =(J58+I58-M58)*(1-N58) -> 0 | T58: =MIN(I58+J58,M58+R58+S58) -> 0 | U58: =IF(W58>wST.Jahr,0,I58+J58-T58) -> 0 | V58: 0 | W58: =YEAR(G58) -> 1900 | X58: =IF(W58>wST.Jahr-1,0,I58*V58) -> 0 | AD58: 0 | AE58: 0 | AF58: 0 | AG58: 0 | AH58: 0 | AI58: 0
A59: FALSE | L59: =IF(AND(W59+H59<=wST.Jahr,J59<>0,NOT(ISBLANK(H59))),"Zugang ungültig!",IF(W59>wST.Jahr,0,SUM(I59,J59,-K59))) -> 0 | M59: 0 | N59: =IF(SUM(I59,J59)=0,1,1-K59/SUM(I59,J59)) -> 1 | O59: =(J59+I59-M59)*N59 -> 0 | P59: =MAX(0,(W59+H59-wST.Jahr+IF(AND(W59<>wST.Jahr,MONTH(G59)>6),0.5,0))*IF(AND(W59=wST.Jahr,MONTH(G59)>6),2,1)) -> 0 | Q59: =R59+S59 -> 0 | R59: 0 | S59: =(J59+I59-M59)*(1-N59) -> 0 | T59: =MIN(I59+J59,M59+R59+S59) -> 0 | U59: =IF(W59>wST.Jahr,0,I59+J59-T59) -> 0 | V59: 0 | W59: =YEAR(G59) -> 1900 | X59: =IF(W59>wST.Jahr-1,0,I59*V59) -> 0 | AD59: 0 | AE59: 0 | AF59: 0 | AG59: 0 | AH59: 0 | AI59: 0
A60: =L60>0 -> FALSE | L60: =IF(AND(W60+H60<=wST.Jahr,J60<>0,NOT(ISBLANK(H60))),"Zugang ungültig!",IF(W60>wST.Jahr,0,SUM(I60,J60,-K60))) -> 0 | M60: 0 | N60: =IF(SUM(I60,J60)=0,1,1-K60/SUM(I60,J60)) -> 1 | O60: =(J60+I60-M60)*N60 -> 0 | P60: =MAX(0,(W60+H60-wST.Jahr+IF(AND(W60<>wST.Jahr,MONTH(G60)>6),0.5,0))*IF(AND(W60=wST.Jahr,MONTH(G60)>6),2,1)) -> 0 | Q60: =R60+S60 -> 0 | R60: 0 | S60: =(J60+I60-M60)*(1-N60) -> 0 | T60: =MIN(I60+J60,M60+R60+S60) -> 0 | U60: =IF(W60>wST.Jahr,0,I60+J60-T60) -> 0 | V60: =IF(C60=0,0,IF(VALUE(LEFT(C60,3))=wST.Ansatz,1,0)) -> 0 | W60: =YEAR(G60) -> 1900 | X60: =IF(W60>wST.Jahr-1,0,I60*V60) -> 0 | AB60: =IF(AND(AC60="",C60=""),"",IF(AND(C60<>"",AC60=""),"Keine Zuordnung",IF(OR(AC60=$AD$6,AC60=$AE$6,AC60=$AF$6),"OK","Falsche Kostenstelle"))) ->  | AD60: 0 | AE60: 0 | AF60: 0 | AG60: 0 | AH60: 0 | AI60: 0
A61: =L61>0 -> FALSE | L61: =IF(AND(W61+H61<=wST.Jahr,J61<>0,NOT(ISBLANK(H61))),"Zugang ungültig!",IF(W61>wST.Jahr,0,SUM(I61,J61,-K61))) -> 0 | M61: 0 | N61: =IF(SUM(I61,J61)=0,1,1-K61/SUM(I61,J61)) -> 1 | O61: =(J61+I61-M61)*N61 -> 0 | P61: =MAX(0,(W61+H61-wST.Jahr+IF(AND(W61<>wST.Jahr,MONTH(G61)>6),0.5,0))*IF(AND(W61=wST.Jahr,MONTH(G61)>6),2,1)) -> 0 | Q61: =R61+S61 -> 0 | R61: 0 | S61: =(J61+I61-M61)*(1-N61) -> 0 | T61: =MIN(I61+J61,M61+R61+S61) -> 0 | U61: =IF(W61>wST.Jahr,0,I61+J61-T61) -> 0 | V61: =IF(C61=0,0,IF(VALUE(LEFT(C61,3))=wST.Ansatz,1,0)) -> 0 | W61: =YEAR(G61) -> 1900 | X61: =IF(W61>wST.Jahr-1,0,I61*V61) -> 0 | AB61: =IF(AND(AC61="",C61=""),"",IF(AND(C61<>"",AC61=""),"Keine Zuordnung",IF(OR(AC61=$AD$6,AC61=$AE$6,AC61=$AF$6),"OK","Falsche Kostenstelle"))) ->  | AD61: 0 | AE61: 0 | AF61: 0 | AG61: 0 | AH61: 0 | AI61: 0
A62: =L62>0 -> FALSE | L62: =IF(AND(W62+H62<=wST.Jahr,J62<>0,NOT(ISBLANK(H62))),"Zugang ungültig!",IF(W62>wST.Jahr,0,SUM(I62,J62,-K62))) -> 0 | M62: 0 | N62: =IF(SUM(I62,J62)=0,1,1-K62/SUM(I62,J62)) -> 1 | O62: =(J62+I62-M62)*N62 -> 0 | P62: =MAX(0,(W62+H62-wST.Jahr+IF(AND(W62<>wST.Jahr,MONTH(G62)>6),0.5,0))*IF(AND(W62=wST.Jahr,MONTH(G62)>6),2,1)) -> 0 | Q62: =R62+S62 -> 0 | R62: 0 | S62: =(J62+I62-M62)*(1-N62) -> 0 | T62: =MIN(I62+J62,M62+R62+S62) -> 0 | U62: =IF(W62>wST.Jahr,0,I62+J62-T62) -> 0 | V62: =IF(C62=0,0,IF(VALUE(LEFT(C62,3))=wST.Ansatz,1,0)) -> 0 | W62: =YEAR(G62) -> 1900 | X62: =IF(W62>wST.Jahr-1,0,I62*V62) -> 0 | AB62: =IF(AND(AC62="",C62=""),"",IF(AND(C62<>"",AC62=""),"Keine Zuordnung",IF(OR(AC62=$AD$6,AC62=$AE$6,AC62=$AF$6),"OK","Falsche Kostenstelle"))) ->  | AD62: 0 | AE62: 0 | AF62: 0 | AG62: 0 | AH62: 0 | AI62: 0
A63: =L63>0 -> FALSE | L63: =IF(AND(W63+H63<=wST.Jahr,J63<>0,NOT(ISBLANK(H63))),"Zugang ungültig!",IF(W63>wST.Jahr,0,SUM(I63,J63,-K63))) -> 0 | M63: 0 | N63: =IF(SUM(I63,J63)=0,1,1-K63/SUM(I63,J63)) -> 1 | O63: =(J63+I63-M63)*N63 -> 0 | P63: =MAX(0,(W63+H63-wST.Jahr+IF(AND(W63<>wST.Jahr,MONTH(G63)>6),0.5,0))*IF(AND(W63=wST.Jahr,MONTH(G63)>6),2,1)) -> 0 | Q63: =R63+S63 -> 0 | R63: 0 | S63: =(J63+I63-M63)*(1-N63) -> 0 | T63: =MIN(I63+J63,M63+R63+S63) -> 0 | U63: =IF(W63>wST.Jahr,0,I63+J63-T63) -> 0 | V63: =IF(C63=0,0,IF(VALUE(LEFT(C63,3))=wST.Ansatz,1,0)) -> 0 | W63: =YEAR(G63) -> 1900 | X63: =IF(W63>wST.Jahr-1,0,I63*V63) -> 0 | AB63: =IF(AND(AC63="",C63=""),"",IF(AND(C63<>"",AC63=""),"Keine Zuordnung",IF(OR(AC63=$AD$6,AC63=$AE$6,AC63=$AF$6),"OK","Falsche Kostenstelle"))) ->  | AD63: 0 | AE63: 0 | AF63: 0 | AG63: 0 | AH63: 0 | AI63: 0
A64: =L64>0 -> FALSE | L64: =IF(AND(W64+H64<=wST.Jahr,J64<>0,NOT(ISBLANK(H64))),"Zugang ungültig!",IF(W64>wST.Jahr,0,SUM(I64,J64,-K64))) -> 0 | M64: 0 | N64: =IF(SUM(I64,J64)=0,1,1-K64/SUM(I64,J64)) -> 1 | O64: =(J64+I64-M64)*N64 -> 0 | P64: =MAX(0,(W64+H64-wST.Jahr+IF(AND(W64<>wST.Jahr,MONTH(G64)>6),0.5,0))*IF(AND(W64=wST.Jahr,MONTH(G64)>6),2,1)) -> 0 | Q64: =R64+S64 -> 0 | R64: 0 | S64: =(J64+I64-M64)*(1-N64) -> 0 | T64: =MIN(I64+J64,M64+R64+S64) -> 0 | U64: =IF(W64>wST.Jahr,0,I64+J64-T64) -> 0 | V64: =IF(C64=0,0,IF(VALUE(LEFT(C64,3))=wST.Ansatz,1,0)) -> 0 | W64: =YEAR(G64) -> 1900 | X64: =IF(W64>wST.Jahr-1,0,I64*V64) -> 0 | AB64: =IF(AND(AC64="",C64=""),"",IF(AND(C64<>"",AC64=""),"Keine Zuordnung",IF(OR(AC64=$AD$6,AC64=$AE$6,AC64=$AF$6),"OK","Falsche Kostenstelle"))) ->  | AD64: 0 | AE64: 0 | AF64: 0 | AG64: 0 | AH64: 0 | AI64: 0
A65: FALSE | L65: =IF(AND(W65+H65<=wST.Jahr,J65<>0,NOT(ISBLANK(H65))),"Zugang ungültig!",IF(W65>wST.Jahr,0,SUM(I65,J65,-K65))) -> 0 | M65: 0 | N65: =IF(SUM(I65,J65)=0,1,1-K65/SUM(I65,J65)) -> 1 | O65: =(J65+I65-M65)*N65 -> 0 | P65: =MAX(0,(W65+H65-wST.Jahr+IF(AND(W65<>wST.Jahr,MONTH(G65)>6),0.5,0))*IF(AND(W65=wST.Jahr,MONTH(G65)>6),2,1)) -> 0 | Q65: =R65+S65 -> 0 | R65: 0 | S65: =(J65+I65-M65)*(1-N65) -> 0 | T65: =MIN(I65+J65,M65+R65+S65) -> 0 | U65: =IF(W65>wST.Jahr,0,I65+J65-T65) -> 0 | V65: 0 | W65: =YEAR(G65) -> 1900 | X65: =IF(W65>wST.Jahr-1,0,I65*V65) -> 0 | AD65: 0 | AE65: 0 | AF65: 0 | AG65: 0 | AH65: 0 | AI65: 0
A66: =A54 -> FALSE | V66: 0
A67: =L67>0 -> FALSE | B67: 3 | C67: WERKZEUGE U. GERÄTE | I67: =I68 -> 0 | J67: =J68 -> 0 | K67: =K68 -> 0 | L67: =L68 -> 0 | M67: =M68 -> 0 | Q67: =Q68 -> 0 | R67: =R68 -> 0 | T67: =T68 -> 0 | U67: =U68 -> 0
A68: =L68>0 -> FALSE | B68: 30 | C68: Werkzeuge und Geräte | I68: =SUMPRODUCT(I69:I71,$V69:$V71) -> 0 | J68: =SUMPRODUCT(J69:J71,$V69:$V71) -> 0 | K68: =SUMPRODUCT(K69:K71,$V69:$V71) -> 0 | L68: =SUMPRODUCT(L69:L71,$V69:$V71) -> 0 | M68: =SUMPRODUCT(M69:M71,$V69:$V71) -> 0 | Q68: =SUMPRODUCT(Q69:Q71,$V69:$V71) -> 0 | R68: =SUMPRODUCT(R69:R71,$V69:$V71) -> 0 | T68: =SUMPRODUCT(T69:T71,$V69:$V71) -> 0 | U68: =SUMPRODUCT(U69:U71,$V69:$V71) -> 0 | X68: =SUM(X69:X71) -> 0
A69: =V69>0 -> FALSE | L69: =IF(AND(W69+H69<=wST.Jahr,J69<>0,NOT(ISBLANK(H69))),"Zugang ungültig!",IF(W69>wST.Jahr,0,SUM(I69,J69,-K69))) -> 0 | M69: =IF(H69=0,0,IF(W69>=wST.Jahr,0,MAX(0,MIN(I69,I69/H69*(wST.Jahr-W69)-I69/H69*IF(MONTH(G69)>6,0.5,0))))) -> 0 | N69: =IF(SUM(I69,J69)=0,1,1-K69/SUM(I69,J69)) -> 1 | O69: =(J69+I69-M69)*N69 -> 0 | P69: =MAX(0,(W69+H69-wST.Jahr+IF(AND(W69<>wST.Jahr,MONTH(G69)>6),0.5,0))*IF(AND(W69=wST.Jahr,MONTH(G69)>6),2,1)) -> 0 | Q69: =R69+S69 -> 0 | R69: =IF(P69=0,0,IF(W69>wST.Jahr,0,MAX(0,MIN(O69,O69/P69)))) -> 0 | S69: =(J69+I69-M69)*(1-N69) -> 0 | T69: =MIN(I69+J69,M69+R69+S69) -> 0 | U69: =IF(W69>wST.Jahr,0,I69+J69-T69) -> 0 | V69: =IF(C69=0,0,IF(VALUE(LEFT(C69,3))=wST.Ansatz,1,0)) -> 0 | W69: =YEAR(G69) -> 1900 | X69: =IF(W69>wST.Jahr-1,0,I69*V69) -> 0 | AB69: =IF(AND(AC69="",C69=""),"",IF(AND(C69<>"",AC69=""),"Keine Zuordnung",IF(OR(AC69=$AD$6,AC69=$AE$6,AC69=$AF$6),"OK","Falsche Kostenstelle"))) ->  | AD69: =IF($AC69=AD$6,$Q69,) -> 0 | AE69: 0 | AF69: 0 | AG69: =IF($AC69=AG$6,$U69,) -> 0 | AH69: 0 | AI69: 0
A70: FALSE | L70: 0 | M70: =IF(H70=0,0,IF(W70>=wST.Jahr,0,MAX(0,MIN(I70,I70/H70*(wST.Jahr-W70)-I70/H70*IF(MONTH(G70)>6,0.5,0))))) -> 0 | N70: 1 | O70: 0 | P70: 0 | Q70: 0 | R70: =IF(P70=0,0,IF(W70>wST.Jahr,0,MAX(0,MIN(O70,O70/P70)))) -> 0 | S70: 0 | T70: 0 | U70: 0 | V70: 0 | W70: 1900 | X70: 0 | AD70: 0 | AE70: 0 | AF70: 0 | AG70: 0 | AH70: 0 | AI70: 0
A71: FALSE | L71: 0 | M71: =IF(H71=0,0,IF(W71>=wST.Jahr,0,MAX(0,MIN(I71,I71/H71*(wST.Jahr-W71)-I71/H71*IF(MONTH(G71)>6,0.5,0))))) -> 0 | N71: 1 | O71: 0 | P71: 0 | Q71: 0 | R71: =IF(P71=0,0,IF(W71>wST.Jahr,0,MAX(0,MIN(O71,O71/P71)))) -> 0 | S71: 0 | T71: 0 | U71: 0 | V71: 0 | W71: 1900 | X71: 0 | AD71: 0 | AE71: 0 | AF71: 0 | AG71: 0 | AH71: 0 | AI71: 0
A72: =A67 -> FALSE | V72: 0
A73: =L73>0 -> FALSE | B73: 4 | C73: AMTS-, BETRIEBS- U. GESCHÄFTSAUSSTATTUNG | I73: =SUM(I74,I79) -> 0 | J73: =SUM(J74,J79) -> 0 | K73: =SUM(K74,K79) -> 0 | L73: =SUM(L74,L79) -> 0 | M73: =SUM(M74,M79) -> 0 | Q73: =SUM(Q74,Q79) -> 0 | R73: =SUM(R74,R79) -> 0 | T73: =SUM(T74,T79) -> 0 | U73: =SUM(U74,U79) -> 0
A74: =L74>0 -> FALSE | B74: 40 | C74: Fahrzeuge | I74: =SUMPRODUCT(I75:I78,$V75:$V78) -> 0 | J74: =SUMPRODUCT(J75:J78,$V75:$V78) -> 0 | K74: =SUMPRODUCT(K75:K78,$V75:$V78) -> 0 | L74: =SUMPRODUCT(L75:L78,$V75:$V78) -> 0 | M74: =SUMPRODUCT(M75:M78,$V75:$V78) -> 0 | Q74: =SUMPRODUCT(Q75:Q78,$V75:$V78) -> 0 | R74: =SUMPRODUCT(R75:R78,$V75:$V78) -> 0 | T74: =SUMPRODUCT(T75:T78,$V75:$V78) -> 0 | U74: =SUMPRODUCT(U75:U78,$V75:$V78) -> 0 | X74: =SUM(X75:X78) -> 0
A75: =V75>0 -> FALSE | L75: =IF(AND(W75+H75<=wST.Jahr,J75<>0,NOT(ISBLANK(H75))),"Zugang ungültig!",IF(W75>wST.Jahr,0,SUM(I75,J75,-K75))) -> 0 | M75: =IF(H75=0,0,IF(W75>=wST.Jahr,0,MAX(0,MIN(I75,I75/H75*(wST.Jahr-W75)-I75/H75*IF(MONTH(G75)>6,0.5,0))))) -> 0 | N75: =IF(SUM(I75,J75)=0,1,1-K75/SUM(I75,J75)) -> 1 | O75: =(J75+I75-M75)*N75 -> 0 | P75: =MAX(0,(W75+H75-wST.Jahr+IF(AND(W75<>wST.Jahr,MONTH(G75)>6),0.5,0))*IF(AND(W75=wST.Jahr,MONTH(G75)>6),2,1)) -> 0 | Q75: =R75+S75 -> 0 | R75: =IF(P75=0,0,IF(W75>wST.Jahr,0,MAX(0,MIN(O75,O75/P75)))) -> 0 | S75: =(J75+I75-M75)*(1-N75) -> 0 | T75: =MIN(I75+J75,M75+R75+S75) -> 0 | U75: =IF(W75>wST.Jahr,0,I75+J75-T75) -> 0 | V75: =IF(C75=0,0,IF(VALUE(LEFT(C75,3))=wST.Ansatz,1,0)) -> 0 | W75: =YEAR(G75) -> 1900 | X75: =IF(W75>wST.Jahr-1,0,I75*V75) -> 0 | AB75: =IF(AND(AC75="",C75=""),"",IF(AND(C75<>"",AC75=""),"Keine Zuordnung",IF(OR(AC75=$AD$6,AC75=$AE$6,AC75=$AF$6),"OK","Falsche Kostenstelle"))) ->  | AD75: =IF($AC75=AD$6,$Q75,) -> 0 | AE75: 0 | AF75: 0 | AG75: =IF($AC75=AG$6,$U75,) -> 0 | AH75: 0 | AI75: 0
A76: FALSE | L76: 0 | M76: =IF(H76=0,0,IF(W76>=wST.Jahr,0,MAX(0,MIN(I76,I76/H76*(wST.Jahr-W76)-I76/H76*IF(MONTH(G76)>6,0.5,0))))) -> 0 | N76: 1 | O76: 0 | P76: 0 | Q76: 0 | R76: =IF(P76=0,0,IF(W76>wST.Jahr,0,MAX(0,MIN(O76,O76/P76)))) -> 0 | S76: 0 | T76: 0 | U76: 0 | V76: 0 | W76: 1900 | X76: 0 | AD76: 0 | AE76: 0 | AF76: 0 | AG76: 0 | AH76: 0 | AI76: 0
A77: FALSE | L77: 0 | M77: =IF(H77=0,0,IF(W77>=wST.Jahr,0,MAX(0,MIN(I77,I77/H77*(wST.Jahr-W77)-I77/H77*IF(MONTH(G77)>6,0.5,0))))) -> 0 | N77: 1 | O77: 0 | P77: 0 | Q77: 0 | R77: =IF(P77=0,0,IF(W77>wST.Jahr,0,MAX(0,MIN(O77,O77/P77)))) -> 0 | S77: 0 | T77: 0 | U77: 0 | V77: 0 | W77: 1900 | X77: 0 | AD77: 0 | AE77: 0 | AF77: 0 | AG77: 0 | AH77: 0 | AI77: 0
A78: =V78>0 -> FALSE | L78: =IF(AND(W78+H78<=wST.Jahr,J78<>0,NOT(ISBLANK(H78))),"Zugang ungültig!",IF(W78>wST.Jahr,0,SUM(I78,J78,-K78))) -> 0 | M78: =IF(H78=0,0,IF(W78>=wST.Jahr,0,MAX(0,MIN(I78,I78/H78*(wST.Jahr-W78)-I78/H78*IF(MONTH(G78)>6,0.5,0))))) -> 0 | N78: =IF(SUM(I78,J78)=0,1,1-K78/SUM(I78,J78)) -> 1 | O78: =(J78+I78-M78)*N78 -> 0 | P78: =MAX(0,(W78+H78-wST.Jahr+IF(AND(W78<>wST.Jahr,MONTH(G78)>6),0.5,0))*IF(AND(W78=wST.Jahr,MONTH(G78)>6),2,1)) -> 0 | Q78: =R78+S78 -> 0 | R78: =IF(P78=0,0,IF(W78>wST.Jahr,0,MAX(0,MIN(O78,O78/P78)))) -> 0 | S78: =(J78+I78-M78)*(1-N78) -> 0 | T78: =MIN(I78+J78,M78+R78+S78) -> 0 | U78: =IF(W78>wST.Jahr,0,I78+J78-T78) -> 0 | V78: 0 | W78: =YEAR(G78) -> 1900 | X78: =IF(W78>wST.Jahr-1,0,I78*V78) -> 0 | AD78: 0 | AE78: 0 | AF78: 0 | AG78: 0 | AH78: 0 | AI78: 0
A79: =L79>0 -> FALSE | B79: 42 | C79: Amts-, Betriebs- u. Geschäftsausstattung | I79: =SUMPRODUCT(I80:I82,$V80:$V82) -> 0 | J79: =SUMPRODUCT(J80:J82,$V80:$V82) -> 0 | K79: =SUMPRODUCT(K80:K82,$V80:$V82) -> 0 | L79: =SUMPRODUCT(L80:L82,$V80:$V82) -> 0 | M79: =SUMPRODUCT(M80:M82,$V80:$V82) -> 0 | Q79: =SUMPRODUCT(Q80:Q82,$V80:$V82) -> 0 | R79: =SUMPRODUCT(R80:R82,$V80:$V82) -> 0 | T79: =SUMPRODUCT(T80:T82,$V80:$V82) -> 0 | U79: =SUMPRODUCT(U80:U82,$V80:$V82) -> 0 | X79: =SUM(X80:X82) -> 0
A80: =V80>0 -> FALSE | L80: =IF(AND(W80+H80<=wST.Jahr,J80<>0,NOT(ISBLANK(H80))),"Zugang ungültig!",IF(W80>wST.Jahr,0,SUM(I80,J80,-K80))) -> 0 | M80: =IF(H80=0,0,IF(W80>=wST.Jahr,0,MAX(0,MIN(I80,I80/H80*(wST.Jahr-W80)-I80/H80*IF(MONTH(G80)>6,0.5,0))))) -> 0 | N80: =IF(SUM(I80,J80)=0,1,1-K80/SUM(I80,J80)) -> 1 | O80: =(J80+I80-M80)*N80 -> 0 | P80: =MAX(0,(W80+H80-wST.Jahr+IF(AND(W80<>wST.Jahr,MONTH(G80)>6),0.5,0))*IF(AND(W80=wST.Jahr,MONTH(G80)>6),2,1)) -> 0 | Q80: =R80+S80 -> 0 | R80: =IF(P80=0,0,IF(W80>wST.Jahr,0,MAX(0,MIN(O80,O80/P80)))) -> 0 | S80: =(J80+I80-M80)*(1-N80) -> 0 | T80: =MIN(I80+J80,M80+R80+S80) -> 0 | U80: =IF(W80>wST.Jahr,0,I80+J80-T80) -> 0 | V80: =IF(C80=0,0,IF(VALUE(LEFT(C80,3))=wST.Ansatz,1,0)) -> 0 | W80: =YEAR(G80) -> 1900 | X80: =IF(W80>wST.Jahr-1,0,I80*V80) -> 0 | AB80: =IF(AND(AC80="",C80=""),"",IF(AND(C80<>"",AC80=""),"Keine Zuordnung",IF(OR(AC80=$AD$6,AC80=$AE$6,AC80=$AF$6),"OK","Falsche Kostenstelle"))) ->  | AD80: =IF($AC80=AD$6,$Q80,) -> 0 | AE80: 0 | AF80: 0 | AG80: =IF($AC80=AG$6,$U80,) -> 0 | AH80: 0 | AI80: 0
A81: FALSE | L81: 0 | M81: =IF(H81=0,0,IF(W81>=wST.Jahr,0,MAX(0,MIN(I81,I81/H81*(wST.Jahr-W81)-I81/H81*IF(MONTH(G81)>6,0.5,0))))) -> 0 | N81: 1 | O81: 0 | P81: 0 | Q81: 0 | R81: =IF(P81=0,0,IF(W81>wST.Jahr,0,MAX(0,MIN(O81,O81/P81)))) -> 0 | S81: 0 | T81: 0 | U81: 0 | V81: =IF(C81=0,0,IF(VALUE(LEFT(C81,3))=wST.Ansatz,1,0)) -> 0 | W81: 1900 | X81: 0 | AD81: 0 | AE81: 0 | AF81: 0 | AG81: 0 | AH81: 0 | AI81: 0
A82: FALSE | L82: 0 | M82: =IF(H82=0,0,IF(W82>=wST.Jahr,0,MAX(0,MIN(I82,I82/H82*(wST.Jahr-W82)-I82/H82*IF(MONTH(G82)>6,0.5,0))))) -> 0 | N82: 1 | O82: 0 | P82: 0 | Q82: 0 | R82: =IF(P82=0,0,IF(W82>wST.Jahr,0,MAX(0,MIN(O82,O82/P82)))) -> 0 | S82: 0 | T82: 0 | U82: 0 | V82: =IF(C82=0,0,IF(VALUE(LEFT(C82,3))=wST.Ansatz,1,0)) -> 0 | W82: 1900 | X82: 0 | AD82: 0 | AE82: 0 | AF82: 0 | AG82: 0 | AH82: 0 | AI82: 0
A83: =L83>0 -> FALSE | B83: 7 | C83: Aktivierungsfähige Rechte und sonstige immaterielle Anlagen | I83: =I84 -> 0 | J83: =J84 -> 0 | K83: =K84 -> 0 | L83: =L84 -> 0 | M83: =M84 -> 0 | Q83: =Q84 -> 0 | R83: =R84 -> 0 | T83: =T84 -> 0 | U83: =U84 -> 0
A84: =L84>0 -> FALSE | B84: 70 | C84: Aktivierungsfähige Rechte und sonstige immaterielle Anlagen | I84: =SUMPRODUCT(I85:I88,$V85:$V88) -> 0 | J84: =SUMPRODUCT(J85:J88,$V85:$V88) -> 0 | K84: =SUMPRODUCT(K85:K88,$V85:$V88) -> 0 | L84: =SUMPRODUCT(L85:L88,$V85:$V88) -> 0 | M84: =SUMPRODUCT(M85:M88,$V85:$V88) -> 0 | Q84: =SUMPRODUCT(Q85:Q88,$V85:$V88) -> 0 | R84: =SUMPRODUCT(R85:R88,$V85:$V88) -> 0 | T84: =SUMPRODUCT(T85:T88,$V85:$V88) -> 0 | U84: =SUMPRODUCT(U85:U88,$V85:$V88) -> 0 | X84: =SUM(X85:X88) -> 0
A85: =V85>0 -> FALSE | L85: =IF(AND(W85+H85<=wST.Jahr,J85<>0,NOT(ISBLANK(H85))),"Zugang ungültig!",IF(W85>wST.Jahr,0,SUM(I85,J85,-K85))) -> 0 | M85: =IF(H85=0,0,IF(W85>=wST.Jahr,0,MAX(0,MIN(I85,I85/H85*(wST.Jahr-W85)-I85/H85*IF(MONTH(G85)>6,0.5,0))))) -> 0 | N85: =IF(SUM(I85,J85)=0,1,1-K85/SUM(I85,J85)) -> 1 | O85: =(J85+I85-M85)*N85 -> 0 | P85: =MAX(0,(W85+H85-wST.Jahr+IF(AND(W85<>wST.Jahr,MONTH(G85)>6),0.5,0))*IF(AND(W85=wST.Jahr,MONTH(G85)>6),2,1)) -> 0 | Q85: =R85+S85 -> 0 | R85: =IF(P85=0,0,IF(W85>wST.Jahr,0,MAX(0,MIN(O85,O85/P85)))) -> 0 | S85: =(J85+I85-M85)*(1-N85) -> 0 | T85: =MIN(I85+J85,M85+R85+S85) -> 0 | U85: =IF(W85>wST.Jahr,0,I85+J85-T85) -> 0 | V85: =IF(C85=0,0,IF(VALUE(LEFT(C85,3))=wST.Ansatz,1,0)) -> 0 | W85: =YEAR(G85) -> 1900 | X85: =IF(W85>wST.Jahr-1,0,I85*V85) -> 0 | AB85: =IF(AND(AC85="",C85=""),"",IF(AND(C85<>"",AC85=""),"Keine Zuordnung",IF(OR(AC85=$AD$6,AC85=$AE$6,AC85=$AF$6),"OK","Falsche Kostenstelle"))) ->  | AD85: =IF($AC85=AD$6,$Q85,) -> 0 | AE85: 0 | AF85: 0 | AG85: =IF($AC85=AG$6,$U85,) -> 0 | AH85: 0 | AI85: 0
A86: FALSE | L86: 0 | M86: =IF(H86=0,0,IF(W86>=wST.Jahr,0,MAX(0,MIN(I86,I86/H86*(wST.Jahr-W86)-I86/H86*IF(MONTH(G86)>6,0.5,0))))) -> 0 | N86: 1 | O86: 0 | P86: 0 | Q86: 0 | R86: =IF(P86=0,0,IF(W86>wST.Jahr,0,MAX(0,MIN(O86,O86/P86)))) -> 0 | S86: 0 | T86: 0 | U86: 0 | V86: =IF(C86=0,0,IF(VALUE(LEFT(C86,3))=wST.Ansatz,1,0)) -> 0 | W86: 1900 | X86: 0 | AD86: 0 | AE86: 0 | AF86: 0 | AG86: 0 | AH86: 0 | AI86: 0
A87: =V87>0 -> FALSE | L87: =IF(AND(W87+H87<=wST.Jahr,J87<>0,NOT(ISBLANK(H87))),"Zugang ungültig!",IF(W87>wST.Jahr,0,SUM(I87,J87,-K87))) -> 0 | M87: =IF(H87=0,0,IF(W87>=wST.Jahr,0,MAX(0,MIN(I87,I87/H87*(wST.Jahr-W87)-I87/H87*IF(MONTH(G87)>6,0.5,0))))) -> 0 | N87: =IF(SUM(I87,J87)=0,1,1-K87/SUM(I87,J87)) -> 1 | O87: =(J87+I87-M87)*N87 -> 0 | P87: =MAX(0,(W87+H87-wST.Jahr+IF(AND(W87<>wST.Jahr,MONTH(G87)>6),0.5,0))*IF(AND(W87=wST.Jahr,MONTH(G87)>6),2,1)) -> 0 | Q87: =R87+S87 -> 0 | R87: =IF(P87=0,0,IF(W87>wST.Jahr,0,MAX(0,MIN(O87,O87/P87)))) -> 0 | S87: =(J87+I87-M87)*(1-N87) -> 0 | T87: =MIN(I87+J87,M87+R87+S87) -> 0 | U87: =IF(W87>wST.Jahr,0,I87+J87-T87) -> 0 | V87: =IF(C87=0,0,IF(VALUE(LEFT(C87,3))=wST.Ansatz,1,0)) -> 0 | W87: =YEAR(G87) -> 1900 | X87: =IF(W87>wST.Jahr-1,0,I87*V87) -> 0 | AB87: =IF(AND(AC87="",C87=""),"",IF(AND(C87<>"",AC87=""),"Keine Zuordnung",IF(OR(AC87=$AD$6,AC87=$AE$6,AC87=$AF$6),"OK","Falsche Kostenstelle"))) ->  | AD87: 0 | AE87: 0 | AF87: 0 | AG87: 0 | AH87: 0 | AI87: 0
A88: =V88>0 -> FALSE | L88: 0 | M88: =IF(H88=0,0,IF(W88>=wST.Jahr,0,MAX(0,MIN(I88,I88/H88*(wST.Jahr-W88)-I88/H88*IF(MONTH(G88)>6,0.5,0))))) -> 0 | N88: =IF(SUM(I88,J88)=0,1,1-K88/SUM(I88,J88)) -> 1 | O88: =(J88+I88-M88)*N88 -> 0 | P88: 0 | Q88: =R88+S88 -> 0 | R88: =IF(P88=0,0,IF(W88>wST.Jahr,0,MAX(0,MIN(O88,O88/P88)))) -> 0 | S88: =(J88+I88-M88)*(1-N88) -> 0 | T88: =MIN(I88+J88,M88+R88+S88) -> 0 | U88: 0 | V88: =IF(C88=0,0,IF(VALUE(LEFT(C88,3))=wST.Ansatz,1,0)) -> 0 | W88: =YEAR(G88) -> 1900 | X88: 0 | AD88: =IF($AC88=AD$6,$Q88,) -> 0 | AE88: 0 | AF88: 0 | AG88: =IF($AC88=AG$6,$U88,) -> 0 | AH88: 0 | AI88: 0
A89: =A83 -> FALSE | V89: =IF(C89=0,0,IF(VALUE(LEFT(C89,3))=wST.Ansatz,1,0)) -> 0
A90: =L90>0 -> FALSE | B90: SUBVENTIONEN BUND/LAND/GEMEINDE/EU | I90: =I91 -> 0 | J90: =J91 -> 0 | K90: =K91 -> 0 | L90: =L91 -> 0 | M90: =M91 -> 0 | Q90: =Q91 -> 0 | R90: =R91 -> 0 | T90: =T91 -> 0 | U90: =U91 -> 0
A91: =L91>0 -> FALSE | B91: Subventionen Investitionszuschüsse und Barwert der Finanzierungszuschüsse | I91: =SUMPRODUCT(I92:I134,$V92:$V134) -> 0 | J91: =SUMPRODUCT(J92:J134,$V92:$V134) -> 0 | K91: =SUMPRODUCT(K92:K134,$V92:$V134) -> 0 | L91: =SUMPRODUCT(L92:L134,$V92:$V134) -> 0 | M91: =SUMPRODUCT(M92:M134,$V92:$V134) -> 0 | Q91: =SUMPRODUCT(Q92:Q134,$V92:$V134) -> 0 | R91: =SUMPRODUCT(R92:R134,$V92:$V134) -> 0 | T91: =SUMPRODUCT(T92:T134,$V92:$V134) -> 0 | U91: =SUMPRODUCT(U92:U134,$V92:$V134) -> 0 | X91: =SUM(X92:X134) -> 0
A92: =V92>0 -> FALSE | L92: =IF(AND(W92+H92<=wST.Jahr,J92<>0,NOT(ISBLANK(H92))),"Zugang ungültig!",IF(W92>wST.Jahr,0,SUM(I92,J92,-K92))) -> 0 | M92: =IF(H92=0,0,IF(W92>=wST.Jahr,0,MAX(0,MIN(I92,I92/H92*(wST.Jahr-W92)-I92/H92*IF(MONTH(G92)>6,0.5,0))))) -> 0 | N92: =IF(SUM(I92,J92)=0,1,1-K92/SUM(I92,J92)) -> 1 | O92: =(J92+I92-M92)*N92 -> 0 | P92: =MAX(0,(W92+H92-wST.Jahr+IF(AND(W92<>wST.Jahr,MONTH(G92)>6),0.5,0))*IF(AND(W92=wST.Jahr,MONTH(G92)>6),2,1)) -> 0 | Q92: =R92+S92 -> 0 | R92: =IF(P92=0,0,IF(W92>wST.Jahr,0,MAX(0,MIN(O92,O92/P92)))) -> 0 | S92: =(J92+I92-M92)*(1-N92) -> 0 | T92: =MIN(I92+J92,M92+R92+S92) -> 0 | U92: =IF(W92>wST.Jahr,0,I92+J92-T92) -> 0 | V92: =IF(C92=0,0,IF(VALUE(LEFT(C92,3))=wST.Ansatz,1,0)) -> 0 | W92: =YEAR(G92) -> 1900 | X92: =IF(W92>wST.Jahr-1,0,I92*V92) -> 0 | AB92: =IF(AND(AC92="",C92=""),"",IF(AND(C92<>"",AC92=""),"Keine Zuordnung",IF(OR(AC92=$AD$6,AC92=$AE$6,AC92=$AF$6),"OK","Falsche Kostenstelle"))) ->  | AD92: =IF($AC92=AD$6,$Q92,) -> 0 | AE92: 0 | AF92: 0 | AG92: =IF($AC92=AG$6,$U92,) -> 0 | AH92: 0 | AI92: 0
A93: FALSE | L93: =IF(AND(W93+H93<=wST.Jahr,J93<>0,NOT(ISBLANK(H93))),"Zugang ungültig!",IF(W93>wST.Jahr,0,SUM(I93,J93,-K93))) -> 0 | M93: 0 | N93: =IF(SUM(I93,J93)=0,1,1-K93/SUM(I93,J93)) -> 1 | O93: =(J93+I93-M93)*N93 -> 0 | P93: =MAX(0,(W93+H93-wST.Jahr+IF(AND(W93<>wST.Jahr,MONTH(G93)>6),0.5,0))*IF(AND(W93=wST.Jahr,MONTH(G93)>6),2,1)) -> 0 | Q93: =R93+S93 -> 0 | R93: 0 | S93: =(J93+I93-M93)*(1-N93) -> 0 | T93: =MIN(I93+J93,M93+R93+S93) -> 0 | U93: =IF(W93>wST.Jahr,0,I93+J93-T93) -> 0 | V93: 0 | W93: =YEAR(G93) -> 1900 | X93: =IF(W93>wST.Jahr-1,0,I93*V93) -> 0 | AD93: 0 | AE93: 0 | AF93: 0 | AG93: 0 | AH93: 0 | AI93: 0
A94: FALSE | L94: 0 | M94: 0 | N94: 1 | O94: 0 | P94: 0 | Q94: 0 | R94: 0 | S94: 0 | T94: 0 | U94: 0 | V94: 0 | W94: 1900 | X94: 0 | AD94: 0 | AE94: 0 | AF94: 0 | AG94: 0 | AH94: 0 | AI94: 0
A95: =V95>0 -> FALSE | L95: 0 | M95: 0 | N95: 1 | O95: 0 | P95: 0 | Q95: 0 | R95: 0 | S95: 0 | T95: 0 | U95: 0 | V95: 0 | W95: 1900 | X95: 0 | AD95: 0 | AE95: 0 | AF95: 0 | AG95: 0 | AH95: 0 | AI95: 0
A96: =V96>0 -> FALSE | L96: 0 | M96: 0 | N96: 1 | O96: 0 | P96: 0 | Q96: 0 | R96: 0 | S96: 0 | T96: 0 | U96: 0 | V96: 0 | W96: 1900 | X96: 0 | AD96: 0 | AE96: 0 | AF96: 0 | AG96: 0 | AH96: 0 | AI96: 0
A97: =V97>0 -> FALSE | L97: 0 | M97: 0 | N97: 1 | O97: 0 | P97: 0 | Q97: 0 | R97: 0 | S97: 0 | T97: 0 | U97: 0 | V97: 0 | W97: 1900 | X97: 0 | AD97: 0 | AE97: 0 | AF97: 0 | AG97: 0 | AH97: 0 | AI97: 0
A98: =V98>0 -> FALSE | L98: =IF(AND(W98+H98<=wST.Jahr,J98<>0,NOT(ISBLANK(H98))),"Zugang ungültig!",IF(W98>wST.Jahr,0,SUM(I98,J98,-K98))) -> 0 | M98: 0 | N98: =IF(SUM(I98,J98)=0,1,1-K98/SUM(I98,J98)) -> 1 | O98: =(J98+I98-M98)*N98 -> 0 | P98: =MAX(0,(W98+H98-wST.Jahr+IF(AND(W98<>wST.Jahr,MONTH(G98)>6),0.5,0))*IF(AND(W98=wST.Jahr,MONTH(G98)>6),2,1)) -> 0 | Q98: =R98+S98 -> 0 | R98: 0 | S98: =(J98+I98-M98)*(1-N98) -> 0 | T98: =MIN(I98+J98,M98+R98+S98) -> 0 | U98: =IF(W98>wST.Jahr,0,I98+J98-T98) -> 0 | V98: 0 | W98: =YEAR(G98) -> 1900 | X98: =IF(W98>wST.Jahr-1,0,I98*V98) -> 0 | AB98: =IF(AND(AC98="",C98=""),"",IF(AND(C98<>"",AC98=""),"Keine Zuordnung",IF(OR(AC98=$AD$6,AC98=$AE$6,AC98=$AF$6),"OK","Falsche Kostenstelle"))) ->  | AD98: 0 | AE98: 0 | AF98: 0 | AG98: 0 | AH98: 0 | AI98: 0
A99: =V99>0 -> FALSE | L99: =IF(AND(W99+H99<=wST.Jahr,J99<>0,NOT(ISBLANK(H99))),"Zugang ungültig!",IF(W99>wST.Jahr,0,SUM(I99,J99,-K99))) -> 0 | M99: 0 | N99: =IF(SUM(I99,J99)=0,1,1-K99/SUM(I99,J99)) -> 1 | O99: =(J99+I99-M99)*N99 -> 0 | P99: =MAX(0,(W99+H99-wST.Jahr+IF(AND(W99<>wST.Jahr,MONTH(G99)>6),0.5,0))*IF(AND(W99=wST.Jahr,MONTH(G99)>6),2,1)) -> 0 | Q99: =R99+S99 -> 0 | R99: 0 | S99: =(J99+I99-M99)*(1-N99) -> 0 | T99: =MIN(I99+J99,M99+R99+S99) -> 0 | U99: =IF(W99>wST.Jahr,0,I99+J99-T99) -> 0 | V99: 0 | W99: =YEAR(G99) -> 1900 | X99: =IF(W99>wST.Jahr-1,0,I99*V99) -> 0 | AB99: =IF(AND(AC99="",C99=""),"",IF(AND(C99<>"",AC99=""),"Keine Zuordnung",IF(OR(AC99=$AD$6,AC99=$AE$6,AC99=$AF$6),"OK","Falsche Kostenstelle"))) ->  | AD99: 0 | AE99: 0 | AF99: 0 | AG99: 0 | AH99: 0 | AI99: 0
A100: =V100>0 -> FALSE | L100: =IF(AND(W100+H100<=wST.Jahr,J100<>0,NOT(ISBLANK(H100))),"Zugang ungültig!",IF(W100>wST.Jahr,0,SUM(I100,J100,-K100))) -> 0 | M100: 0 | N100: =IF(SUM(I100,J100)=0,1,1-K100/SUM(I100,J100)) -> 1 | O100: =(J100+I100-M100)*N100 -> 0 | P100: =MAX(0,(W100+H100-wST.Jahr+IF(AND(W100<>wST.Jahr,MONTH(G100)>6),0.5,0))*IF(AND(W100=wST.Jahr,MONTH(G100)>6),2,1)) -> 0 | Q100: =R100+S100 -> 0 | R100: 0 | S100: =(J100+I100-M100)*(1-N100) -> 0 | T100: =MIN(I100+J100,M100+R100+S100) -> 0 | U100: =IF(W100>wST.Jahr,0,I100+J100-T100) -> 0 | V100: 0 | W100: =YEAR(G100) -> 1900 | X100: =IF(W100>wST.Jahr-1,0,I100*V100) -> 0 | AB100: =IF(AND(AC100="",C100=""),"",IF(AND(C100<>"",AC100=""),"Keine Zuordnung",IF(OR(AC100=$AD$6,AC100=$AE$6,AC100=$AF$6),"OK","Falsche Kostenstelle"))) ->  | AD100: 0 | AE100: 0 | AF100: 0 | AG100: 0 | AH100: 0 | AI100: 0
A101: =V101>0 -> FALSE | L101: =IF(AND(W101+H101<=wST.Jahr,J101<>0,NOT(ISBLANK(H101))),"Zugang ungültig!",IF(W101>wST.Jahr,0,SUM(I101,J101,-K101))) -> 0 | M101: 0 | N101: =IF(SUM(I101,J101)=0,1,1-K101/SUM(I101,J101)) -> 1 | O101: =(J101+I101-M101)*N101 -> 0 | P101: =MAX(0,(W101+H101-wST.Jahr+IF(AND(W101<>wST.Jahr,MONTH(G101)>6),0.5,0))*IF(AND(W101=wST.Jahr,MONTH(G101)>6),2,1)) -> 0 | Q101: =R101+S101 -> 0 | R101: 0 | S101: =(J101+I101-M101)*(1-N101) -> 0 | T101: =MIN(I101+J101,M101+R101+S101) -> 0 | U101: =IF(W101>wST.Jahr,0,I101+J101-T101) -> 0 | V101: 0 | W101: =YEAR(G101) -> 1900 | X101: =IF(W101>wST.Jahr-1,0,I101*V101) -> 0 | AB101: =IF(AND(AC101="",C101=""),"",IF(AND(C101<>"",AC101=""),"Keine Zuordnung",IF(OR(AC101=$AD$6,AC101=$AE$6,AC101=$AF$6),"OK","Falsche Kostenstelle"))) ->  | AD101: 0 | AE101: 0 | AF101: 0 | AG101: 0 | AH101: 0 | AI101: 0
A102: =V102>0 -> FALSE | L102: =IF(AND(W102+H102<=wST.Jahr,J102<>0,NOT(ISBLANK(H102))),"Zugang ungültig!",IF(W102>wST.Jahr,0,SUM(I102,J102,-K102))) -> 0 | M102: 0 | N102: =IF(SUM(I102,J102)=0,1,1-K102/SUM(I102,J102)) -> 1 | O102: =(J102+I102-M102)*N102 -> 0 | P102: =MAX(0,(W102+H102-wST.Jahr+IF(AND(W102<>wST.Jahr,MONTH(G102)>6),0.5,0))*IF(AND(W102=wST.Jahr,MONTH(G102)>6),2,1)) -> 0 | Q102: =R102+S102 -> 0 | R102: 0 | S102: =(J102+I102-M102)*(1-N102) -> 0 | T102: =MIN(I102+J102,M102+R102+S102) -> 0 | U102: =IF(W102>wST.Jahr,0,I102+J102-T102) -> 0 | V102: 0 | W102: =YEAR(G102) -> 1900 | X102: =IF(W102>wST.Jahr-1,0,I102*V102) -> 0 | AB102: =IF(AND(AC102="",C102=""),"",IF(AND(C102<>"",AC102=""),"Keine Zuordnung",IF(OR(AC102=$AD$6,AC102=$AE$6,AC102=$AF$6),"OK","Falsche Kostenstelle"))) ->  | AD102: 0 | AE102: 0 | AF102: 0 | AG102: 0 | AH102: 0 | AI102: 0
A103: =V103>0 -> FALSE | L103: =IF(AND(W103+H103<=wST.Jahr,J103<>0,NOT(ISBLANK(H103))),"Zugang ungültig!",IF(W103>wST.Jahr,0,SUM(I103,J103,-K103))) -> 0 | M103: 0 | N103: =IF(SUM(I103,J103)=0,1,1-K103/SUM(I103,J103)) -> 1 | O103: =(J103+I103-M103)*N103 -> 0 | P103: =MAX(0,(W103+H103-wST.Jahr+IF(AND(W103<>wST.Jahr,MONTH(G103)>6),0.5,0))*IF(AND(W103=wST.Jahr,MONTH(G103)>6),2,1)) -> 0 | Q103: =R103+S103 -> 0 | R103: 0 | S103: =(J103+I103-M103)*(1-N103) -> 0 | T103: =MIN(I103+J103,M103+R103+S103) -> 0 | U103: =IF(W103>wST.Jahr,0,I103+J103-T103) -> 0 | V103: 0 | W103: =YEAR(G103) -> 1900 | X103: =IF(W103>wST.Jahr-1,0,I103*V103) -> 0 | AB103: =IF(AND(AC103="",C103=""),"",IF(AND(C103<>"",AC103=""),"Keine Zuordnung",IF(OR(AC103=$AD$6,AC103=$AE$6,AC103=$AF$6),"OK","Falsche Kostenstelle"))) ->  | AD103: 0 | AE103: 0 | AF103: 0 | AG103: 0 | AH103: 0 | AI103: 0
A104: =V104>0 -> FALSE | L104: =IF(AND(W104+H104<=wST.Jahr,J104<>0,NOT(ISBLANK(H104))),"Zugang ungültig!",IF(W104>wST.Jahr,0,SUM(I104,J104,-K104))) -> 0 | M104: 0 | N104: =IF(SUM(I104,J104)=0,1,1-K104/SUM(I104,J104)) -> 1 | O104: =(J104+I104-M104)*N104 -> 0 | P104: =MAX(0,(W104+H104-wST.Jahr+IF(AND(W104<>wST.Jahr,MONTH(G104)>6),0.5,0))*IF(AND(W104=wST.Jahr,MONTH(G104)>6),2,1)) -> 0 | Q104: =R104+S104 -> 0 | R104: 0 | S104: =(J104+I104-M104)*(1-N104) -> 0 | T104: =MIN(I104+J104,M104+R104+S104) -> 0 | U104: =IF(W104>wST.Jahr,0,I104+J104-T104) -> 0 | V104: 0 | W104: =YEAR(G104) -> 1900 | X104: =IF(W104>wST.Jahr-1,0,I104*V104) -> 0 | AB104: =IF(AND(AC104="",C104=""),"",IF(AND(C104<>"",AC104=""),"Keine Zuordnung",IF(OR(AC104=$AD$6,AC104=$AE$6,AC104=$AF$6),"OK","Falsche Kostenstelle"))) ->  | AD104: 0 | AE104: 0 | AF104: 0 | AG104: 0 | AH104: 0 | AI104: 0
A105: =V105>0 -> FALSE | L105: =IF(AND(W105+H105<=wST.Jahr,J105<>0,NOT(ISBLANK(H105))),"Zugang ungültig!",IF(W105>wST.Jahr,0,SUM(I105,J105,-K105))) -> 0 | M105: 0 | N105: =IF(SUM(I105,J105)=0,1,1-K105/SUM(I105,J105)) -> 1 | O105: =(J105+I105-M105)*N105 -> 0 | P105: =MAX(0,(W105+H105-wST.Jahr+IF(AND(W105<>wST.Jahr,MONTH(G105)>6),0.5,0))*IF(AND(W105=wST.Jahr,MONTH(G105)>6),2,1)) -> 0 | Q105: =R105+S105 -> 0 | R105: 0 | S105: =(J105+I105-M105)*(1-N105) -> 0 | T105: =MIN(I105+J105,M105+R105+S105) -> 0 | U105: =IF(W105>wST.Jahr,0,I105+J105-T105) -> 0 | V105: 0 | W105: =YEAR(G105) -> 1900 | X105: =IF(W105>wST.Jahr-1,0,I105*V105) -> 0 | AB105: =IF(AND(AC105="",C105=""),"",IF(AND(C105<>"",AC105=""),"Keine Zuordnung",IF(OR(AC105=$AD$6,AC105=$AE$6,AC105=$AF$6),"OK","Falsche Kostenstelle"))) ->  | AD105: 0 | AE105: 0 | AF105: 0 | AG105: 0 | AH105: 0 | AI105: 0
A106: =V106>0 -> FALSE | L106: =IF(AND(W106+H106<=wST.Jahr,J106<>0,NOT(ISBLANK(H106))),"Zugang ungültig!",IF(W106>wST.Jahr,0,SUM(I106,J106,-K106))) -> 0 | M106: 0 | N106: =IF(SUM(I106,J106)=0,1,1-K106/SUM(I106,J106)) -> 1 | O106: =(J106+I106-M106)*N106 -> 0 | P106: =MAX(0,(W106+H106-wST.Jahr+IF(AND(W106<>wST.Jahr,MONTH(G106)>6),0.5,0))*IF(AND(W106=wST.Jahr,MONTH(G106)>6),2,1)) -> 0 | Q106: =R106+S106 -> 0 | R106: 0 | S106: =(J106+I106-M106)*(1-N106) -> 0 | T106: =MIN(I106+J106,M106+R106+S106) -> 0 | U106: =IF(W106>wST.Jahr,0,I106+J106-T106) -> 0 | V106: =IF(C106=0,0,IF(VALUE(LEFT(C106,3))=wST.Ansatz,1,0)) -> 0 | W106: =YEAR(G106) -> 1900 | X106: =IF(W106>wST.Jahr-1,0,I106*V106) -> 0 | AB106: =IF(AND(AC106="",C106=""),"",IF(AND(C106<>"",AC106=""),"Keine Zuordnung",IF(OR(AC106=$AD$6,AC106=$AE$6,AC106=$AF$6),"OK","Falsche Kostenstelle"))) ->  | AD106: 0 | AE106: 0 | AF106: 0 | AG106: 0 | AH106: 0 | AI106: 0
A107: =V107>0 -> FALSE | L107: =IF(AND(W107+H107<=wST.Jahr,J107<>0,NOT(ISBLANK(H107))),"Zugang ungültig!",IF(W107>wST.Jahr,0,SUM(I107,J107,-K107))) -> 0 | M107: 0 | N107: =IF(SUM(I107,J107)=0,1,1-K107/SUM(I107,J107)) -> 1 | O107: =(J107+I107-M107)*N107 -> 0 | P107: =MAX(0,(W107+H107-wST.Jahr+IF(AND(W107<>wST.Jahr,MONTH(G107)>6),0.5,0))*IF(AND(W107=wST.Jahr,MONTH(G107)>6),2,1)) -> 0 | Q107: =R107+S107 -> 0 | R107: 0 | S107: =(J107+I107-M107)*(1-N107) -> 0 | T107: =MIN(I107+J107,M107+R107+S107) -> 0 | U107: =IF(W107>wST.Jahr,0,I107+J107-T107) -> 0 | V107: =IF(C107=0,0,IF(VALUE(LEFT(C107,3))=wST.Ansatz,1,0)) -> 0 | W107: =YEAR(G107) -> 1900 | X107: =IF(W107>wST.Jahr-1,0,I107*V107) -> 0 | AB107: =IF(AND(AC107="",C107=""),"",IF(AND(C107<>"",AC107=""),"Keine Zuordnung",IF(OR(AC107=$AD$6,AC107=$AE$6,AC107=$AF$6),"OK","Falsche Kostenstelle"))) ->  | AD107: 0 | AE107: 0 | AF107: 0 | AG107: 0 | AH107: 0 | AI107: 0
A108: =V108>0 -> FALSE | L108: =IF(AND(W108+H108<=wST.Jahr,J108<>0,NOT(ISBLANK(H108))),"Zugang ungültig!",IF(W108>wST.Jahr,0,SUM(I108,J108,-K108))) -> 0 | M108: 0 | N108: =IF(SUM(I108,J108)=0,1,1-K108/SUM(I108,J108)) -> 1 | O108: =(J108+I108-M108)*N108 -> 0 | P108: =MAX(0,(W108+H108-wST.Jahr+IF(AND(W108<>wST.Jahr,MONTH(G108)>6),0.5,0))*IF(AND(W108=wST.Jahr,MONTH(G108)>6),2,1)) -> 0 | Q108: =R108+S108 -> 0 | R108: 0 | S108: =(J108+I108-M108)*(1-N108) -> 0 | T108: =MIN(I108+J108,M108+R108+S108) -> 0 | U108: =IF(W108>wST.Jahr,0,I108+J108-T108) -> 0 | V108: =IF(C108=0,0,IF(VALUE(LEFT(C108,3))=wST.Ansatz,1,0)) -> 0 | W108: =YEAR(G108) -> 1900 | X108: =IF(W108>wST.Jahr-1,0,I108*V108) -> 0 | AB108: =IF(AND(AC108="",C108=""),"",IF(AND(C108<>"",AC108=""),"Keine Zuordnung",IF(OR(AC108=$AD$6,AC108=$AE$6,AC108=$AF$6),"OK","Falsche Kostenstelle"))) ->  | AD108: 0 | AE108: 0 | AF108: 0 | AG108: 0 | AH108: 0 | AI108: 0
A109: =V109>0 -> FALSE | L109: =IF(AND(W109+H109<=wST.Jahr,J109<>0,NOT(ISBLANK(H109))),"Zugang ungültig!",IF(W109>wST.Jahr,0,SUM(I109,J109,-K109))) -> 0 | M109: 0 | N109: =IF(SUM(I109,J109)=0,1,1-K109/SUM(I109,J109)) -> 1 | O109: =(J109+I109-M109)*N109 -> 0 | P109: =MAX(0,(W109+H109-wST.Jahr+IF(AND(W109<>wST.Jahr,MONTH(G109)>6),0.5,0))*IF(AND(W109=wST.Jahr,MONTH(G109)>6),2,1)) -> 0 | Q109: =R109+S109 -> 0 | R109: 0 | S109: =(J109+I109-M109)*(1-N109) -> 0 | T109: =MIN(I109+J109,M109+R109+S109) -> 0 | U109: =IF(W109>wST.Jahr,0,I109+J109-T109) -> 0 | V109: =IF(C109=0,0,IF(VALUE(LEFT(C109,3))=wST.Ansatz,1,0)) -> 0 | W109: =YEAR(G109) -> 1900 | X109: =IF(W109>wST.Jahr-1,0,I109*V109) -> 0 | AB109: =IF(AND(AC109="",C109=""),"",IF(AND(C109<>"",AC109=""),"Keine Zuordnung",IF(OR(AC109=$AD$6,AC109=$AE$6,AC109=$AF$6),"OK","Falsche Kostenstelle"))) ->  | AD109: 0 | AE109: 0 | AF109: 0 | AG109: 0 | AH109: 0 | AI109: 0
A110: =V110>0 -> FALSE | L110: =IF(AND(W110+H110<=wST.Jahr,J110<>0,NOT(ISBLANK(H110))),"Zugang ungültig!",IF(W110>wST.Jahr,0,SUM(I110,J110,-K110))) -> 0 | M110: 0 | N110: =IF(SUM(I110,J110)=0,1,1-K110/SUM(I110,J110)) -> 1 | O110: =(J110+I110-M110)*N110 -> 0 | P110: =MAX(0,(W110+H110-wST.Jahr+IF(AND(W110<>wST.Jahr,MONTH(G110)>6),0.5,0))*IF(AND(W110=wST.Jahr,MONTH(G110)>6),2,1)) -> 0 | Q110: =R110+S110 -> 0 | R110: 0 | S110: =(J110+I110-M110)*(1-N110) -> 0 | T110: =MIN(I110+J110,M110+R110+S110) -> 0 | U110: =IF(W110>wST.Jahr,0,I110+J110-T110) -> 0 | V110: =IF(C110=0,0,IF(VALUE(LEFT(C110,3))=wST.Ansatz,1,0)) -> 0 | W110: =YEAR(G110) -> 1900 | X110: =IF(W110>wST.Jahr-1,0,I110*V110) -> 0 | AB110: =IF(AND(AC110="",C110=""),"",IF(AND(C110<>"",AC110=""),"Keine Zuordnung",IF(OR(AC110=$AD$6,AC110=$AE$6,AC110=$AF$6),"OK","Falsche Kostenstelle"))) ->  | AD110: 0 | AE110: 0 | AF110: 0 | AG110: 0 | AH110: 0 | AI110: 0
A111: =V111>0 -> FALSE | L111: =IF(AND(W111+H111<=wST.Jahr,J111<>0,NOT(ISBLANK(H111))),"Zugang ungültig!",IF(W111>wST.Jahr,0,SUM(I111,J111,-K111))) -> 0 | M111: 0 | N111: =IF(SUM(I111,J111)=0,1,1-K111/SUM(I111,J111)) -> 1 | O111: =(J111+I111-M111)*N111 -> 0 | P111: =MAX(0,(W111+H111-wST.Jahr+IF(AND(W111<>wST.Jahr,MONTH(G111)>6),0.5,0))*IF(AND(W111=wST.Jahr,MONTH(G111)>6),2,1)) -> 0 | Q111: =R111+S111 -> 0 | R111: 0 | S111: =(J111+I111-M111)*(1-N111) -> 0 | T111: =MIN(I111+J111,M111+R111+S111) -> 0 | U111: =IF(W111>wST.Jahr,0,I111+J111-T111) -> 0 | V111: =IF(C111=0,0,IF(VALUE(LEFT(C111,3))=wST.Ansatz,1,0)) -> 0 | W111: =YEAR(G111) -> 1900 | X111: =IF(W111>wST.Jahr-1,0,I111*V111) -> 0 | AB111: =IF(AND(AC111="",C111=""),"",IF(AND(C111<>"",AC111=""),"Keine Zuordnung",IF(OR(AC111=$AD$6,AC111=$AE$6,AC111=$AF$6),"OK","Falsche Kostenstelle"))) ->  | AD111: 0 | AE111: 0 | AF111: 0 | AG111: 0 | AH111: 0 | AI111: 0
A112: =V112>0 -> FALSE | L112: =IF(AND(W112+H112<=wST.Jahr,J112<>0,NOT(ISBLANK(H112))),"Zugang ungültig!",IF(W112>wST.Jahr,0,SUM(I112,J112,-K112))) -> 0 | M112: 0 | N112: =IF(SUM(I112,J112)=0,1,1-K112/SUM(I112,J112)) -> 1 | O112: =(J112+I112-M112)*N112 -> 0 | P112: =MAX(0,(W112+H112-wST.Jahr+IF(AND(W112<>wST.Jahr,MONTH(G112)>6),0.5,0))*IF(AND(W112=wST.Jahr,MONTH(G112)>6),2,1)) -> 0 | Q112: =R112+S112 -> 0 | R112: 0 | S112: =(J112+I112-M112)*(1-N112) -> 0 | T112: =MIN(I112+J112,M112+R112+S112) -> 0 | U112: =IF(W112>wST.Jahr,0,I112+J112-T112) -> 0 | V112: =IF(C112=0,0,IF(VALUE(LEFT(C112,3))=wST.Ansatz,1,0)) -> 0 | W112: =YEAR(G112) -> 1900 | X112: =IF(W112>wST.Jahr-1,0,I112*V112) -> 0 | AB112: =IF(AND(AC112="",C112=""),"",IF(AND(C112<>"",AC112=""),"Keine Zuordnung",IF(OR(AC112=$AD$6,AC112=$AE$6,AC112=$AF$6),"OK","Falsche Kostenstelle"))) ->  | AD112: 0 | AE112: 0 | AF112: 0 | AG112: 0 | AH112: 0 | AI112: 0
A113: =V113>0 -> FALSE | L113: =IF(AND(W113+H113<=wST.Jahr,J113<>0,NOT(ISBLANK(H113))),"Zugang ungültig!",IF(W113>wST.Jahr,0,SUM(I113,J113,-K113))) -> 0 | M113: 0 | N113: =IF(SUM(I113,J113)=0,1,1-K113/SUM(I113,J113)) -> 1 | O113: =(J113+I113-M113)*N113 -> 0 | P113: =MAX(0,(W113+H113-wST.Jahr+IF(AND(W113<>wST.Jahr,MONTH(G113)>6),0.5,0))*IF(AND(W113=wST.Jahr,MONTH(G113)>6),2,1)) -> 0 | Q113: =R113+S113 -> 0 | R113: 0 | S113: =(J113+I113-M113)*(1-N113) -> 0 | T113: =MIN(I113+J113,M113+R113+S113) -> 0 | U113: =IF(W113>wST.Jahr,0,I113+J113-T113) -> 0 | V113: =IF(C113=0,0,IF(VALUE(LEFT(C113,3))=wST.Ansatz,1,0)) -> 0 | W113: =YEAR(G113) -> 1900 | X113: =IF(W113>wST.Jahr-1,0,I113*V113) -> 0 | AB113: =IF(AND(AC113="",C113=""),"",IF(AND(C113<>"",AC113=""),"Keine Zuordnung",IF(OR(AC113=$AD$6,AC113=$AE$6,AC113=$AF$6),"OK","Falsche Kostenstelle"))) ->  | AD113: 0 | AE113: 0 | AF113: 0 | AG113: 0 | AH113: 0 | AI113: 0
A114: =V114>0 -> FALSE | L114: =IF(AND(W114+H114<=wST.Jahr,J114<>0,NOT(ISBLANK(H114))),"Zugang ungültig!",IF(W114>wST.Jahr,0,SUM(I114,J114,-K114))) -> 0 | M114: 0 | N114: =IF(SUM(I114,J114)=0,1,1-K114/SUM(I114,J114)) -> 1 | O114: =(J114+I114-M114)*N114 -> 0 | P114: =MAX(0,(W114+H114-wST.Jahr+IF(AND(W114<>wST.Jahr,MONTH(G114)>6),0.5,0))*IF(AND(W114=wST.Jahr,MONTH(G114)>6),2,1)) -> 0 | Q114: =R114+S114 -> 0 | R114: 0 | S114: =(J114+I114-M114)*(1-N114) -> 0 | T114: =MIN(I114+J114,M114+R114+S114) -> 0 | U114: =IF(W114>wST.Jahr,0,I114+J114-T114) -> 0 | V114: =IF(C114=0,0,IF(VALUE(LEFT(C114,3))=wST.Ansatz,1,0)) -> 0 | W114: =YEAR(G114) -> 1900 | X114: =IF(W114>wST.Jahr-1,0,I114*V114) -> 0 | AB114: =IF(AND(AC114="",C114=""),"",IF(AND(C114<>"",AC114=""),"Keine Zuordnung",IF(OR(AC114=$AD$6,AC114=$AE$6,AC114=$AF$6),"OK","Falsche Kostenstelle"))) ->  | AD114: 0 | AE114: 0 | AF114: 0 | AG114: 0 | AH114: 0 | AI114: 0
A115: =V115>0 -> FALSE | L115: =IF(AND(W115+H115<=wST.Jahr,J115<>0,NOT(ISBLANK(H115))),"Zugang ungültig!",IF(W115>wST.Jahr,0,SUM(I115,J115,-K115))) -> 0 | M115: 0 | N115: =IF(SUM(I115,J115)=0,1,1-K115/SUM(I115,J115)) -> 1 | O115: =(J115+I115-M115)*N115 -> 0 | P115: =MAX(0,(W115+H115-wST.Jahr+IF(AND(W115<>wST.Jahr,MONTH(G115)>6),0.5,0))*IF(AND(W115=wST.Jahr,MONTH(G115)>6),2,1)) -> 0 | Q115: =R115+S115 -> 0 | R115: 0 | S115: =(J115+I115-M115)*(1-N115) -> 0 | T115: =MIN(I115+J115,M115+R115+S115) -> 0 | U115: =IF(W115>wST.Jahr,0,I115+J115-T115) -> 0 | V115: =IF(C115=0,0,IF(VALUE(LEFT(C115,3))=wST.Ansatz,1,0)) -> 0 | W115: =YEAR(G115) -> 1900 | X115: =IF(W115>wST.Jahr-1,0,I115*V115) -> 0 | AB115: =IF(AND(AC115="",C115=""),"",IF(AND(C115<>"",AC115=""),"Keine Zuordnung",IF(OR(AC115=$AD$6,AC115=$AE$6,AC115=$AF$6),"OK","Falsche Kostenstelle"))) ->  | AD115: 0 | AE115: 0 | AF115: 0 | AG115: 0 | AH115: 0 | AI115: 0
A116: =V116>0 -> FALSE | L116: =IF(AND(W116+H116<=wST.Jahr,J116<>0,NOT(ISBLANK(H116))),"Zugang ungültig!",IF(W116>wST.Jahr,0,SUM(I116,J116,-K116))) -> 0 | M116: 0 | N116: =IF(SUM(I116,J116)=0,1,1-K116/SUM(I116,J116)) -> 1 | O116: =(J116+I116-M116)*N116 -> 0 | P116: =MAX(0,(W116+H116-wST.Jahr+IF(AND(W116<>wST.Jahr,MONTH(G116)>6),0.5,0))*IF(AND(W116=wST.Jahr,MONTH(G116)>6),2,1)) -> 0 | Q116: =R116+S116 -> 0 | R116: 0 | S116: =(J116+I116-M116)*(1-N116) -> 0 | T116: =MIN(I116+J116,M116+R116+S116) -> 0 | U116: =IF(W116>wST.Jahr,0,I116+J116-T116) -> 0 | V116: =IF(C116=0,0,IF(VALUE(LEFT(C116,3))=wST.Ansatz,1,0)) -> 0 | W116: =YEAR(G116) -> 1900 | X116: =IF(W116>wST.Jahr-1,0,I116*V116) -> 0 | AB116: =IF(AND(AC116="",C116=""),"",IF(AND(C116<>"",AC116=""),"Keine Zuordnung",IF(OR(AC116=$AD$6,AC116=$AE$6,AC116=$AF$6),"OK","Falsche Kostenstelle"))) ->  | AD116: 0 | AE116: 0 | AF116: 0 | AG116: 0 | AH116: 0 | AI116: 0
A117: =V117>0 -> FALSE | L117: =IF(AND(W117+H117<=wST.Jahr,J117<>0,NOT(ISBLANK(H117))),"Zugang ungültig!",IF(W117>wST.Jahr,0,SUM(I117,J117,-K117))) -> 0 | M117: 0 | N117: =IF(SUM(I117,J117)=0,1,1-K117/SUM(I117,J117)) -> 1 | O117: =(J117+I117-M117)*N117 -> 0 | P117: =MAX(0,(W117+H117-wST.Jahr+IF(AND(W117<>wST.Jahr,MONTH(G117)>6),0.5,0))*IF(AND(W117=wST.Jahr,MONTH(G117)>6),2,1)) -> 0 | Q117: =R117+S117 -> 0 | R117: 0 | S117: =(J117+I117-M117)*(1-N117) -> 0 | T117: =MIN(I117+J117,M117+R117+S117) -> 0 | U117: =IF(W117>wST.Jahr,0,I117+J117-T117) -> 0 | V117: =IF(C117=0,0,IF(VALUE(LEFT(C117,3))=wST.Ansatz,1,0)) -> 0 | W117: =YEAR(G117) -> 1900 | X117: =IF(W117>wST.Jahr-1,0,I117*V117) -> 0 | AB117: =IF(AND(AC117="",C117=""),"",IF(AND(C117<>"",AC117=""),"Keine Zuordnung",IF(OR(AC117=$AD$6,AC117=$AE$6,AC117=$AF$6),"OK","Falsche Kostenstelle"))) ->  | AD117: 0 | AE117: 0 | AF117: 0 | AG117: 0 | AH117: 0 | AI117: 0
A118: =V118>0 -> FALSE | L118: =IF(AND(W118+H118<=wST.Jahr,J118<>0,NOT(ISBLANK(H118))),"Zugang ungültig!",IF(W118>wST.Jahr,0,SUM(I118,J118,-K118))) -> 0 | M118: 0 | N118: =IF(SUM(I118,J118)=0,1,1-K118/SUM(I118,J118)) -> 1 | O118: =(J118+I118-M118)*N118 -> 0 | P118: =MAX(0,(W118+H118-wST.Jahr+IF(AND(W118<>wST.Jahr,MONTH(G118)>6),0.5,0))*IF(AND(W118=wST.Jahr,MONTH(G118)>6),2,1)) -> 0 | Q118: =R118+S118 -> 0 | R118: 0 | S118: =(J118+I118-M118)*(1-N118) -> 0 | T118: =MIN(I118+J118,M118+R118+S118) -> 0 | U118: =IF(W118>wST.Jahr,0,I118+J118-T118) -> 0 | V118: =IF(C118=0,0,IF(VALUE(LEFT(C118,3))=wST.Ansatz,1,0)) -> 0 | W118: =YEAR(G118) -> 1900 | X118: =IF(W118>wST.Jahr-1,0,I118*V118) -> 0 | AB118: =IF(AND(AC118="",C118=""),"",IF(AND(C118<>"",AC118=""),"Keine Zuordnung",IF(OR(AC118=$AD$6,AC118=$AE$6,AC118=$AF$6),"OK","Falsche Kostenstelle"))) ->  | AD118: 0 | AE118: 0 | AF118: 0 | AG118: 0 | AH118: 0 | AI118: 0
A119: =V119>0 -> FALSE | L119: =IF(AND(W119+H119<=wST.Jahr,J119<>0,NOT(ISBLANK(H119))),"Zugang ungültig!",IF(W119>wST.Jahr,0,SUM(I119,J119,-K119))) -> 0 | M119: 0 | N119: =IF(SUM(I119,J119)=0,1,1-K119/SUM(I119,J119)) -> 1 | O119: =(J119+I119-M119)*N119 -> 0 | P119: =MAX(0,(W119+H119-wST.Jahr+IF(AND(W119<>wST.Jahr,MONTH(G119)>6),0.5,0))*IF(AND(W119=wST.Jahr,MONTH(G119)>6),2,1)) -> 0 | Q119: =R119+S119 -> 0 | R119: 0 | S119: =(J119+I119-M119)*(1-N119) -> 0 | T119: =MIN(I119+J119,M119+R119+S119) -> 0 | U119: =IF(W119>wST.Jahr,0,I119+J119-T119) -> 0 | V119: =IF(C119=0,0,IF(VALUE(LEFT(C119,3))=wST.Ansatz,1,0)) -> 0 | W119: =YEAR(G119) -> 1900 | X119: =IF(W119>wST.Jahr-1,0,I119*V119) -> 0 | AB119: =IF(AND(AC119="",C119=""),"",IF(AND(C119<>"",AC119=""),"Keine Zuordnung",IF(OR(AC119=$AD$6,AC119=$AE$6,AC119=$AF$6),"OK","Falsche Kostenstelle"))) ->  | AD119: 0 | AE119: 0 | AF119: 0 | AG119: 0 | AH119: 0 | AI119: 0
A120: =V120>0 -> FALSE | L120: =IF(AND(W120+H120<=wST.Jahr,J120<>0,NOT(ISBLANK(H120))),"Zugang ungültig!",IF(W120>wST.Jahr,0,SUM(I120,J120,-K120))) -> 0 | M120: 0 | N120: =IF(SUM(I120,J120)=0,1,1-K120/SUM(I120,J120)) -> 1 | O120: =(J120+I120-M120)*N120 -> 0 | P120: =MAX(0,(W120+H120-wST.Jahr+IF(AND(W120<>wST.Jahr,MONTH(G120)>6),0.5,0))*IF(AND(W120=wST.Jahr,MONTH(G120)>6),2,1)) -> 0 | Q120: =R120+S120 -> 0 | R120: 0 | S120: =(J120+I120-M120)*(1-N120) -> 0 | T120: =MIN(I120+J120,M120+R120+S120) -> 0 | U120: =IF(W120>wST.Jahr,0,I120+J120-T120) -> 0 | V120: =IF(C120=0,0,IF(VALUE(LEFT(C120,3))=wST.Ansatz,1,0)) -> 0 | W120: =YEAR(G120) -> 1900 | X120: =IF(W120>wST.Jahr-1,0,I120*V120) -> 0 | AB120: =IF(AND(AC120="",C120=""),"",IF(AND(C120<>"",AC120=""),"Keine Zuordnung",IF(OR(AC120=$AD$6,AC120=$AE$6,AC120=$AF$6),"OK","Falsche Kostenstelle"))) ->  | AD120: 0 | AE120: 0 | AF120: 0 | AG120: 0 | AH120: 0 | AI120: 0
A121: =V121>0 -> FALSE | L121: =IF(AND(W121+H121<=wST.Jahr,J121<>0,NOT(ISBLANK(H121))),"Zugang ungültig!",IF(W121>wST.Jahr,0,SUM(I121,J121,-K121))) -> 0 | M121: 0 | N121: =IF(SUM(I121,J121)=0,1,1-K121/SUM(I121,J121)) -> 1 | O121: =(J121+I121-M121)*N121 -> 0 | P121: =MAX(0,(W121+H121-wST.Jahr+IF(AND(W121<>wST.Jahr,MONTH(G121)>6),0.5,0))*IF(AND(W121=wST.Jahr,MONTH(G121)>6),2,1)) -> 0 | Q121: =R121+S121 -> 0 | R121: 0 | S121: =(J121+I121-M121)*(1-N121) -> 0 | T121: =MIN(I121+J121,M121+R121+S121) -> 0 | U121: =IF(W121>wST.Jahr,0,I121+J121-T121) -> 0 | V121: =IF(C121=0,0,IF(VALUE(LEFT(C121,3))=wST.Ansatz,1,0)) -> 0 | W121: =YEAR(G121) -> 1900 | X121: =IF(W121>wST.Jahr-1,0,I121*V121) -> 0 | AB121: =IF(AND(AC121="",C121=""),"",IF(AND(C121<>"",AC121=""),"Keine Zuordnung",IF(OR(AC121=$AD$6,AC121=$AE$6,AC121=$AF$6),"OK","Falsche Kostenstelle"))) ->  | AD121: 0 | AE121: 0 | AF121: 0 | AG121: 0 | AH121: 0 | AI121: 0
A122: =V122>0 -> FALSE | L122: =IF(AND(W122+H122<=wST.Jahr,J122<>0,NOT(ISBLANK(H122))),"Zugang ungültig!",IF(W122>wST.Jahr,0,SUM(I122,J122,-K122))) -> 0 | M122: 0 | N122: =IF(SUM(I122,J122)=0,1,1-K122/SUM(I122,J122)) -> 1 | O122: =(J122+I122-M122)*N122 -> 0 | P122: =MAX(0,(W122+H122-wST.Jahr+IF(AND(W122<>wST.Jahr,MONTH(G122)>6),0.5,0))*IF(AND(W122=wST.Jahr,MONTH(G122)>6),2,1)) -> 0 | Q122: =R122+S122 -> 0 | R122: 0 | S122: =(J122+I122-M122)*(1-N122) -> 0 | T122: =MIN(I122+J122,M122+R122+S122) -> 0 | U122: =IF(W122>wST.Jahr,0,I122+J122-T122) -> 0 | V122: =IF(C122=0,0,IF(VALUE(LEFT(C122,3))=wST.Ansatz,1,0)) -> 0 | W122: =YEAR(G122) -> 1900 | X122: =IF(W122>wST.Jahr-1,0,I122*V122) -> 0 | AB122: =IF(AND(AC122="",C122=""),"",IF(AND(C122<>"",AC122=""),"Keine Zuordnung",IF(OR(AC122=$AD$6,AC122=$AE$6,AC122=$AF$6),"OK","Falsche Kostenstelle"))) ->  | AD122: 0 | AE122: 0 | AF122: 0 | AG122: 0 | AH122: 0 | AI122: 0
A123: =V123>0 -> FALSE | L123: =IF(AND(W123+H123<=wST.Jahr,J123<>0,NOT(ISBLANK(H123))),"Zugang ungültig!",IF(W123>wST.Jahr,0,SUM(I123,J123,-K123))) -> 0 | M123: 0 | N123: =IF(SUM(I123,J123)=0,1,1-K123/SUM(I123,J123)) -> 1 | O123: =(J123+I123-M123)*N123 -> 0 | P123: =MAX(0,(W123+H123-wST.Jahr+IF(AND(W123<>wST.Jahr,MONTH(G123)>6),0.5,0))*IF(AND(W123=wST.Jahr,MONTH(G123)>6),2,1)) -> 0 | Q123: =R123+S123 -> 0 | R123: 0 | S123: =(J123+I123-M123)*(1-N123) -> 0 | T123: =MIN(I123+J123,M123+R123+S123) -> 0 | U123: =IF(W123>wST.Jahr,0,I123+J123-T123) -> 0 | V123: =IF(C123=0,0,IF(VALUE(LEFT(C123,3))=wST.Ansatz,1,0)) -> 0 | W123: =YEAR(G123) -> 1900 | X123: =IF(W123>wST.Jahr-1,0,I123*V123) -> 0 | AB123: =IF(AND(AC123="",C123=""),"",IF(AND(C123<>"",AC123=""),"Keine Zuordnung",IF(OR(AC123=$AD$6,AC123=$AE$6,AC123=$AF$6),"OK","Falsche Kostenstelle"))) ->  | AD123: 0 | AE123: 0 | AF123: 0 | AG123: 0 | AH123: 0 | AI123: 0
A124: =V124>0 -> FALSE | L124: =IF(AND(W124+H124<=wST.Jahr,J124<>0,NOT(ISBLANK(H124))),"Zugang ungültig!",IF(W124>wST.Jahr,0,SUM(I124,J124,-K124))) -> 0 | M124: 0 | N124: =IF(SUM(I124,J124)=0,1,1-K124/SUM(I124,J124)) -> 1 | O124: =(J124+I124-M124)*N124 -> 0 | P124: =MAX(0,(W124+H124-wST.Jahr+IF(AND(W124<>wST.Jahr,MONTH(G124)>6),0.5,0))*IF(AND(W124=wST.Jahr,MONTH(G124)>6),2,1)) -> 0 | Q124: =R124+S124 -> 0 | R124: 0 | S124: =(J124+I124-M124)*(1-N124) -> 0 | T124: =MIN(I124+J124,M124+R124+S124) -> 0 | U124: =IF(W124>wST.Jahr,0,I124+J124-T124) -> 0 | V124: =IF(C124=0,0,IF(VALUE(LEFT(C124,3))=wST.Ansatz,1,0)) -> 0 | W124: =YEAR(G124) -> 1900 | X124: =IF(W124>wST.Jahr-1,0,I124*V124) -> 0 | AB124: =IF(AND(AC124="",C124=""),"",IF(AND(C124<>"",AC124=""),"Keine Zuordnung",IF(OR(AC124=$AD$6,AC124=$AE$6,AC124=$AF$6),"OK","Falsche Kostenstelle"))) ->  | AD124: 0 | AE124: 0 | AF124: 0 | AG124: 0 | AH124: 0 | AI124: 0
A125: =V125>0 -> FALSE | L125: =IF(AND(W125+H125<=wST.Jahr,J125<>0,NOT(ISBLANK(H125))),"Zugang ungültig!",IF(W125>wST.Jahr,0,SUM(I125,J125,-K125))) -> 0 | M125: 0 | N125: =IF(SUM(I125,J125)=0,1,1-K125/SUM(I125,J125)) -> 1 | O125: =(J125+I125-M125)*N125 -> 0 | P125: =MAX(0,(W125+H125-wST.Jahr+IF(AND(W125<>wST.Jahr,MONTH(G125)>6),0.5,0))*IF(AND(W125=wST.Jahr,MONTH(G125)>6),2,1)) -> 0 | Q125: =R125+S125 -> 0 | R125: 0 | S125: =(J125+I125-M125)*(1-N125) -> 0 | T125: =MIN(I125+J125,M125+R125+S125) -> 0 | U125: =IF(W125>wST.Jahr,0,I125+J125-T125) -> 0 | V125: =IF(C125=0,0,IF(VALUE(LEFT(C125,3))=wST.Ansatz,1,0)) -> 0 | W125: =YEAR(G125) -> 1900 | X125: =IF(W125>wST.Jahr-1,0,I125*V125) -> 0 | AB125: =IF(AND(AC125="",C125=""),"",IF(AND(C125<>"",AC125=""),"Keine Zuordnung",IF(OR(AC125=$AD$6,AC125=$AE$6,AC125=$AF$6),"OK","Falsche Kostenstelle"))) ->  | AD125: 0 | AE125: 0 | AF125: 0 | AG125: 0 | AH125: 0 | AI125: 0
A126: =V126>0 -> FALSE | L126: =IF(AND(W126+H126<=wST.Jahr,J126<>0,NOT(ISBLANK(H126))),"Zugang ungültig!",IF(W126>wST.Jahr,0,SUM(I126,J126,-K126))) -> 0 | M126: 0 | N126: =IF(SUM(I126,J126)=0,1,1-K126/SUM(I126,J126)) -> 1 | O126: =(J126+I126-M126)*N126 -> 0 | P126: =MAX(0,(W126+H126-wST.Jahr+IF(AND(W126<>wST.Jahr,MONTH(G126)>6),0.5,0))*IF(AND(W126=wST.Jahr,MONTH(G126)>6),2,1)) -> 0 | Q126: =R126+S126 -> 0 | R126: 0 | S126: =(J126+I126-M126)*(1-N126) -> 0 | T126: =MIN(I126+J126,M126+R126+S126) -> 0 | U126: =IF(W126>wST.Jahr,0,I126+J126-T126) -> 0 | V126: =IF(C126=0,0,IF(VALUE(LEFT(C126,3))=wST.Ansatz,1,0)) -> 0 | W126: =YEAR(G126) -> 1900 | X126: =IF(W126>wST.Jahr-1,0,I126*V126) -> 0 | AB126: =IF(AND(AC126="",C126=""),"",IF(AND(C126<>"",AC126=""),"Keine Zuordnung",IF(OR(AC126=$AD$6,AC126=$AE$6,AC126=$AF$6),"OK","Falsche Kostenstelle"))) ->  | AD126: 0 | AE126: 0 | AF126: 0 | AG126: 0 | AH126: 0 | AI126: 0
A127: =V127>0 -> FALSE | L127: =IF(AND(W127+H127<=wST.Jahr,J127<>0,NOT(ISBLANK(H127))),"Zugang ungültig!",IF(W127>wST.Jahr,0,SUM(I127,J127,-K127))) -> 0 | M127: 0 | N127: =IF(SUM(I127,J127)=0,1,1-K127/SUM(I127,J127)) -> 1 | O127: =(J127+I127-M127)*N127 -> 0 | P127: =MAX(0,(W127+H127-wST.Jahr+IF(AND(W127<>wST.Jahr,MONTH(G127)>6),0.5,0))*IF(AND(W127=wST.Jahr,MONTH(G127)>6),2,1)) -> 0 | Q127: =R127+S127 -> 0 | R127: 0 | S127: =(J127+I127-M127)*(1-N127) -> 0 | T127: =MIN(I127+J127,M127+R127+S127) -> 0 | U127: =IF(W127>wST.Jahr,0,I127+J127-T127) -> 0 | V127: =IF(C127=0,0,IF(VALUE(LEFT(C127,3))=wST.Ansatz,1,0)) -> 0 | W127: =YEAR(G127) -> 1900 | X127: =IF(W127>wST.Jahr-1,0,I127*V127) -> 0 | AB127: =IF(AND(AC127="",C127=""),"",IF(AND(C127<>"",AC127=""),"Keine Zuordnung",IF(OR(AC127=$AD$6,AC127=$AE$6,AC127=$AF$6),"OK","Falsche Kostenstelle"))) ->  | AD127: 0 | AE127: 0 | AF127: 0 | AG127: 0 | AH127: 0 | AI127: 0
A128: =V128>0 -> FALSE | L128: =IF(AND(W128+H128<=wST.Jahr,J128<>0,NOT(ISBLANK(H128))),"Zugang ungültig!",IF(W128>wST.Jahr,0,SUM(I128,J128,-K128))) -> 0 | M128: 0 | N128: =IF(SUM(I128,J128)=0,1,1-K128/SUM(I128,J128)) -> 1 | O128: =(J128+I128-M128)*N128 -> 0 | P128: =MAX(0,(W128+H128-wST.Jahr+IF(AND(W128<>wST.Jahr,MONTH(G128)>6),0.5,0))*IF(AND(W128=wST.Jahr,MONTH(G128)>6),2,1)) -> 0 | Q128: =R128+S128 -> 0 | R128: 0 | S128: =(J128+I128-M128)*(1-N128) -> 0 | T128: =MIN(I128+J128,M128+R128+S128) -> 0 | U128: =IF(W128>wST.Jahr,0,I128+J128-T128) -> 0 | V128: =IF(C128=0,0,IF(VALUE(LEFT(C128,3))=wST.Ansatz,1,0)) -> 0 | W128: =YEAR(G128) -> 1900 | X128: =IF(W128>wST.Jahr-1,0,I128*V128) -> 0 | AB128: =IF(AND(AC128="",C128=""),"",IF(AND(C128<>"",AC128=""),"Keine Zuordnung",IF(OR(AC128=$AD$6,AC128=$AE$6,AC128=$AF$6),"OK","Falsche Kostenstelle"))) ->  | AD128: 0 | AE128: 0 | AF128: 0 | AG128: 0 | AH128: 0 | AI128: 0
A129: =V129>0 -> FALSE | L129: =IF(AND(W129+H129<=wST.Jahr,J129<>0,NOT(ISBLANK(H129))),"Zugang ungültig!",IF(W129>wST.Jahr,0,SUM(I129,J129,-K129))) -> 0 | M129: 0 | N129: =IF(SUM(I129,J129)=0,1,1-K129/SUM(I129,J129)) -> 1 | O129: =(J129+I129-M129)*N129 -> 0 | P129: =MAX(0,(W129+H129-wST.Jahr+IF(AND(W129<>wST.Jahr,MONTH(G129)>6),0.5,0))*IF(AND(W129=wST.Jahr,MONTH(G129)>6),2,1)) -> 0 | Q129: =R129+S129 -> 0 | R129: 0 | S129: =(J129+I129-M129)*(1-N129) -> 0 | T129: =MIN(I129+J129,M129+R129+S129) -> 0 | U129: =IF(W129>wST.Jahr,0,I129+J129-T129) -> 0 | V129: =IF(C129=0,0,IF(VALUE(LEFT(C129,3))=wST.Ansatz,1,0)) -> 0 | W129: =YEAR(G129) -> 1900 | X129: =IF(W129>wST.Jahr-1,0,I129*V129) -> 0 | AB129: =IF(AND(AC129="",C129=""),"",IF(AND(C129<>"",AC129=""),"Keine Zuordnung",IF(OR(AC129=$AD$6,AC129=$AE$6,AC129=$AF$6),"OK","Falsche Kostenstelle"))) ->  | AD129: 0 | AE129: 0 | AF129: 0 | AG129: 0 | AH129: 0 | AI129: 0
A130: =V130>0 -> FALSE | L130: =IF(AND(W130+H130<=wST.Jahr,J130<>0,NOT(ISBLANK(H130))),"Zugang ungültig!",IF(W130>wST.Jahr,0,SUM(I130,J130,-K130))) -> 0 | M130: 0 | N130: =IF(SUM(I130,J130)=0,1,1-K130/SUM(I130,J130)) -> 1 | O130: =(J130+I130-M130)*N130 -> 0 | P130: =MAX(0,(W130+H130-wST.Jahr+IF(AND(W130<>wST.Jahr,MONTH(G130)>6),0.5,0))*IF(AND(W130=wST.Jahr,MONTH(G130)>6),2,1)) -> 0 | Q130: =R130+S130 -> 0 | R130: 0 | S130: =(J130+I130-M130)*(1-N130) -> 0 | T130: =MIN(I130+J130,M130+R130+S130) -> 0 | U130: =IF(W130>wST.Jahr,0,I130+J130-T130) -> 0 | V130: =IF(C130=0,0,IF(VALUE(LEFT(C130,3))=wST.Ansatz,1,0)) -> 0 | W130: =YEAR(G130) -> 1900 | X130: =IF(W130>wST.Jahr-1,0,I130*V130) -> 0 | AB130: =IF(AND(AC130="",C130=""),"",IF(AND(C130<>"",AC130=""),"Keine Zuordnung",IF(OR(AC130=$AD$6,AC130=$AE$6,AC130=$AF$6),"OK","Falsche Kostenstelle"))) ->  | AD130: 0 | AE130: 0 | AF130: 0 | AG130: 0 | AH130: 0 | AI130: 0
A131: =V131>0 -> FALSE | L131: =IF(AND(W131+H131<=wST.Jahr,J131<>0,NOT(ISBLANK(H131))),"Zugang ungültig!",IF(W131>wST.Jahr,0,SUM(I131,J131,-K131))) -> 0 | M131: 0 | N131: =IF(SUM(I131,J131)=0,1,1-K131/SUM(I131,J131)) -> 1 | O131: =(J131+I131-M131)*N131 -> 0 | P131: =MAX(0,(W131+H131-wST.Jahr+IF(AND(W131<>wST.Jahr,MONTH(G131)>6),0.5,0))*IF(AND(W131=wST.Jahr,MONTH(G131)>6),2,1)) -> 0 | Q131: =R131+S131 -> 0 | R131: 0 | S131: =(J131+I131-M131)*(1-N131) -> 0 | T131: =MIN(I131+J131,M131+R131+S131) -> 0 | U131: =IF(W131>wST.Jahr,0,I131+J131-T131) -> 0 | V131: =IF(C131=0,0,IF(VALUE(LEFT(C131,3))=wST.Ansatz,1,0)) -> 0 | W131: =YEAR(G131) -> 1900 | X131: =IF(W131>wST.Jahr-1,0,I131*V131) -> 0 | AB131: =IF(AND(AC131="",C131=""),"",IF(AND(C131<>"",AC131=""),"Keine Zuordnung",IF(OR(AC131=$AD$6,AC131=$AE$6,AC131=$AF$6),"OK","Falsche Kostenstelle"))) ->  | AD131: 0 | AE131: 0 | AF131: 0 | AG131: 0 | AH131: 0 | AI131: 0
A132: =V132>0 -> FALSE | L132: =IF(AND(W132+H132<=wST.Jahr,J132<>0,NOT(ISBLANK(H132))),"Zugang ungültig!",IF(W132>wST.Jahr,0,SUM(I132,J132,-K132))) -> 0 | M132: 0 | N132: =IF(SUM(I132,J132)=0,1,1-K132/SUM(I132,J132)) -> 1 | O132: =(J132+I132-M132)*N132 -> 0 | P132: =MAX(0,(W132+H132-wST.Jahr+IF(AND(W132<>wST.Jahr,MONTH(G132)>6),0.5,0))*IF(AND(W132=wST.Jahr,MONTH(G132)>6),2,1)) -> 0 | Q132: =R132+S132 -> 0 | R132: 0 | S132: =(J132+I132-M132)*(1-N132) -> 0 | T132: =MIN(I132+J132,M132+R132+S132) -> 0 | U132: =IF(W132>wST.Jahr,0,I132+J132-T132) -> 0 | V132: =IF(C132=0,0,IF(VALUE(LEFT(C132,3))=wST.Ansatz,1,0)) -> 0 | W132: =YEAR(G132) -> 1900 | X132: =IF(W132>wST.Jahr-1,0,I132*V132) -> 0 | AB132: =IF(AND(AC132="",C132=""),"",IF(AND(C132<>"",AC132=""),"Keine Zuordnung",IF(OR(AC132=$AD$6,AC132=$AE$6,AC132=$AF$6),"OK","Falsche Kostenstelle"))) ->  | AD132: 0 | AE132: 0 | AF132: 0 | AG132: 0 | AH132: 0 | AI132: 0
A133: =V133>0 -> FALSE | L133: =IF(AND(W133+H133<=wST.Jahr,J133<>0,NOT(ISBLANK(H133))),"Zugang ungültig!",IF(W133>wST.Jahr,0,SUM(I133,J133,-K133))) -> 0 | M133: =IF(H133=0,0,IF(W133>=wST.Jahr,0,MAX(0,MIN(I133,I133/H133*(wST.Jahr-W133)-I133/H133*IF(MONTH(G133)>6,0.5,0))))) -> 0 | N133: =IF(SUM(I133,J133)=0,1,1-K133/SUM(I133,J133)) -> 1 | O133: =(J133+I133-M133)*N133 -> 0 | P133: =MAX(0,(W133+H133-wST.Jahr+IF(AND(W133<>wST.Jahr,MONTH(G133)>6),0.5,0))*IF(AND(W133=wST.Jahr,MONTH(G133)>6),2,1)) -> 0 | Q133: =R133+S133 -> 0 | R133: =IF(P133=0,0,IF(W133>wST.Jahr,0,MAX(0,MIN(O133,O133/P133)))) -> 0 | S133: =(J133+I133-M133)*(1-N133) -> 0 | T133: =MIN(I133+J133,M133+R133+S133) -> 0 | U133: =IF(W133>wST.Jahr,0,I133+J133-T133) -> 0 | V133: =IF(C133=0,0,IF(VALUE(LEFT(C133,3))=wST.Ansatz,1,0)) -> 0 | W133: =YEAR(G133) -> 1900 | X133: =IF(W133>wST.Jahr-1,0,I133*V133) -> 0 | AB133: =IF(AND(AC133="",C133=""),"",IF(AND(C133<>"",AC133=""),"Keine Zuordnung",IF(OR(AC133=$AD$6,AC133=$AE$6,AC133=$AF$6),"OK","Falsche Kostenstelle"))) ->  | AD133: 0 | AE133: 0 | AF133: 0 | AG133: 0 | AH133: 0 | AI133: 0
A134: FALSE | L134: 0 | M134: 0 | N134: 1 | O134: 0 | P134: 0 | Q134: 0 | R134: 0 | S134: 0 | T134: 0 | U134: 0 | V134: 0 | W134: 1900 | X134: 0 | AD134: 0 | AE134: 0 | AF134: 0 | AG134: 0 | AH134: 0 | AI134: 0
A135: =A90 -> FALSE
A136: =L136>0 -> FALSE | B136: INTERESSENTENBEITRÄGE | I136: =I137 -> 0 | J136: =J137 -> 0 | K136: =K137 -> 0 | L136: =L137 -> 0 | M136: =M137 -> 0 | Q136: =Q137 -> 0 | R136: =R137 -> 0 | T136: =T137 -> 0 | U136: =U137 -> 0
A137: =L137>0 -> FALSE | B137: Interessentenbeiträge | I137: =SUMPRODUCT(I138:I158,$V138:$V158) -> 0 | J137: =SUMPRODUCT(J138:J158,$V138:$V158) -> 0 | K137: =SUMPRODUCT(K138:K158,$V138:$V158) -> 0 | L137: =SUMPRODUCT(L138:L158,$V138:$V158) -> 0 | M137: =SUMPRODUCT(M138:M158,$V138:$V158) -> 0 | Q137: =SUMPRODUCT(Q138:Q158,$V138:$V158) -> 0 | R137: =SUMPRODUCT(R138:R158,$V138:$V158) -> 0 | T137: =SUMPRODUCT(T138:T158,$V138:$V158) -> 0 | U137: =SUMPRODUCT(U138:U158,$V138:$V158) -> 0 | V137: =IF(C137=0,0,IF(VALUE(LEFT(C137,3))=wST.Ansatz,1,0)) -> 0 | X137: =SUM(X138:X158) -> 0
A138: =V138>0 -> FALSE | L138: =IF(AND(W138+H138<=wST.Jahr,J138<>0,NOT(ISBLANK(H138))),"Zugang ungültig!",IF(W138>wST.Jahr,0,SUM(I138,J138,-K138))) -> 0 | M138: =IF(H138=0,0,IF(W138>=wST.Jahr,0,MAX(0,MIN(I138,I138/H138*(wST.Jahr-W138)-I138/H138*IF(MONTH(G138)>6,0.5,0))))) -> 0 | N138: =IF(SUM(I138,J138)=0,1,1-K138/SUM(I138,J138)) -> 1 | O138: =(J138+I138-M138)*N138 -> 0 | P138: =MAX(0,(W138+H138-wST.Jahr+IF(AND(W138<>wST.Jahr,MONTH(G138)>6),0.5,0))*IF(AND(W138=wST.Jahr,MONTH(G138)>6),2,1)) -> 0 | Q138: =R138+S138 -> 0 | R138: =IF(P138=0,0,IF(W138>wST.Jahr,0,MAX(0,MIN(O138,O138/P138)))) -> 0 | S138: =(J138+I138-M138)*(1-N138) -> 0 | T138: =MIN(I138+J138,M138+R138+S138) -> 0 | U138: =IF(W138>wST.Jahr,0,I138+J138-T138) -> 0 | V138: 0 | W138: =YEAR(G138) -> 1900 | X138: =IF(W138>wST.Jahr-1,0,I138*V138) -> 0 | AB138: =IF(AND(AC138="",C138=""),"",IF(AND(C138<>"",AC138=""),"Keine Zuordnung",IF(OR(AC138=$AD$6,AC138=$AE$6,AC138=$AF$6),"OK","Falsche Kostenstelle"))) ->  | AD138: =IF($AC138=AD$6,$Q138,) -> 0 | AE138: 0 | AF138: 0 | AG138: =IF($AC138=AG$6,$U138,) -> 0 | AH138: 0 | AI138: 0
A139: FALSE | L139: 0 | M139: 0 | N139: 1 | O139: 0 | P139: 0 | Q139: 0 | R139: 0 | S139: 0 | T139: 0 | U139: 0 | V139: 0 | W139: 1900 | X139: 0 | AD139: 0 | AE139: 0 | AF139: 0 | AG139: 0 | AH139: 0 | AI139: 0
A140: FALSE | L140: 0 | M140: 0 | N140: 1 | O140: 0 | P140: 0 | Q140: 0 | R140: 0 | S140: 0 | T140: 0 | U140: 0 | V140: 0 | W140: 1900 | X140: 0 | AD140: 0 | AE140: 0 | AF140: 0 | AG140: 0 | AH140: 0 | AI140: 0
A141: FALSE | L141: =IF(AND(W141+H141<=wST.Jahr,J141<>0,NOT(ISBLANK(H141))),"Zugang ungültig!",IF(W141>wST.Jahr,0,SUM(I141,J141,-K141))) -> 0 | M141: 0 | N141: =IF(SUM(I141,J141)=0,1,1-K141/SUM(I141,J141)) -> 1 | O141: =(J141+I141-M141)*N141 -> 0 | P141: =MAX(0,(W141+H141-wST.Jahr+IF(AND(W141<>wST.Jahr,MONTH(G141)>6),0.5,0))*IF(AND(W141=wST.Jahr,MONTH(G141)>6),2,1)) -> 0 | Q141: =R141+S141 -> 0 | R141: 0 | S141: =(J141+I141-M141)*(1-N141) -> 0 | T141: =MIN(I141+J141,M141+R141+S141) -> 0 | U141: =IF(W141>wST.Jahr,0,I141+J141-T141) -> 0 | V141: 0 | W141: =YEAR(G141) -> 1900 | X141: =IF(W141>wST.Jahr-1,0,I141*V141) -> 0 | AD141: 0 | AE141: 0 | AF141: 0 | AG141: 0 | AH141: 0 | AI141: 0
A142: FALSE | L142: =IF(AND(W142+H142<=wST.Jahr,J142<>0,NOT(ISBLANK(H142))),"Zugang ungültig!",IF(W142>wST.Jahr,0,SUM(I142,J142,-K142))) -> 0 | M142: 0 | N142: =IF(SUM(I142,J142)=0,1,1-K142/SUM(I142,J142)) -> 1 | O142: =(J142+I142-M142)*N142 -> 0 | P142: =MAX(0,(W142+H142-wST.Jahr+IF(AND(W142<>wST.Jahr,MONTH(G142)>6),0.5,0))*IF(AND(W142=wST.Jahr,MONTH(G142)>6),2,1)) -> 0 | Q142: =R142+S142 -> 0 | R142: 0 | S142: =(J142+I142-M142)*(1-N142) -> 0 | T142: =MIN(I142+J142,M142+R142+S142) -> 0 | U142: =IF(W142>wST.Jahr,0,I142+J142-T142) -> 0 | V142: 0 | W142: =YEAR(G142) -> 1900 | X142: =IF(W142>wST.Jahr-1,0,I142*V142) -> 0 | AD142: 0 | AE142: 0 | AF142: 0 | AG142: 0 | AH142: 0 | AI142: 0
A143: FALSE | L143: =IF(AND(W143+H143<=wST.Jahr,J143<>0,NOT(ISBLANK(H143))),"Zugang ungültig!",IF(W143>wST.Jahr,0,SUM(I143,J143,-K143))) -> 0 | M143: 0 | N143: =IF(SUM(I143,J143)=0,1,1-K143/SUM(I143,J143)) -> 1 | O143: =(J143+I143-M143)*N143 -> 0 | P143: =MAX(0,(W143+H143-wST.Jahr+IF(AND(W143<>wST.Jahr,MONTH(G143)>6),0.5,0))*IF(AND(W143=wST.Jahr,MONTH(G143)>6),2,1)) -> 0 | Q143: =R143+S143 -> 0 | R143: 0 | S143: =(J143+I143-M143)*(1-N143) -> 0 | T143: =MIN(I143+J143,M143+R143+S143) -> 0 | U143: =IF(W143>wST.Jahr,0,I143+J143-T143) -> 0 | V143: 0 | W143: =YEAR(G143) -> 1900 | X143: =IF(W143>wST.Jahr-1,0,I143*V143) -> 0 | AD143: 0 | AE143: 0 | AF143: 0 | AG143: 0 | AH143: 0 | AI143: 0
A144: FALSE | L144: =IF(AND(W144+H144<=wST.Jahr,J144<>0,NOT(ISBLANK(H144))),"Zugang ungültig!",IF(W144>wST.Jahr,0,SUM(I144,J144,-K144))) -> 0 | M144: 0 | N144: =IF(SUM(I144,J144)=0,1,1-K144/SUM(I144,J144)) -> 1 | O144: =(J144+I144-M144)*N144 -> 0 | P144: =MAX(0,(W144+H144-wST.Jahr+IF(AND(W144<>wST.Jahr,MONTH(G144)>6),0.5,0))*IF(AND(W144=wST.Jahr,MONTH(G144)>6),2,1)) -> 0 | Q144: =R144+S144 -> 0 | R144: 0 | S144: =(J144+I144-M144)*(1-N144) -> 0 | T144: =MIN(I144+J144,M144+R144+S144) -> 0 | U144: =IF(W144>wST.Jahr,0,I144+J144-T144) -> 0 | V144: 0 | W144: =YEAR(G144) -> 1900 | X144: =IF(W144>wST.Jahr-1,0,I144*V144) -> 0 | AD144: 0 | AE144: 0 | AF144: 0 | AG144: 0 | AH144: 0 | AI144: 0
A145: FALSE | L145: =IF(AND(W145+H145<=wST.Jahr,J145<>0,NOT(ISBLANK(H145))),"Zugang ungültig!",IF(W145>wST.Jahr,0,SUM(I145,J145,-K145))) -> 0 | M145: 0 | N145: =IF(SUM(I145,J145)=0,1,1-K145/SUM(I145,J145)) -> 1 | O145: =(J145+I145-M145)*N145 -> 0 | P145: =MAX(0,(W145+H145-wST.Jahr+IF(AND(W145<>wST.Jahr,MONTH(G145)>6),0.5,0))*IF(AND(W145=wST.Jahr,MONTH(G145)>6),2,1)) -> 0 | Q145: =R145+S145 -> 0 | R145: 0 | S145: =(J145+I145-M145)*(1-N145) -> 0 | T145: =MIN(I145+J145,M145+R145+S145) -> 0 | U145: =IF(W145>wST.Jahr,0,I145+J145-T145) -> 0 | V145: 0 | W145: =YEAR(G145) -> 1900 | X145: =IF(W145>wST.Jahr-1,0,I145*V145) -> 0 | AD145: 0 | AE145: 0 | AF145: 0 | AG145: 0 | AH145: 0 | AI145: 0
A146: FALSE | L146: =IF(AND(W146+H146<=wST.Jahr,J146<>0,NOT(ISBLANK(H146))),"Zugang ungültig!",IF(W146>wST.Jahr,0,SUM(I146,J146,-K146))) -> 0 | M146: 0 | N146: =IF(SUM(I146,J146)=0,1,1-K146/SUM(I146,J146)) -> 1 | O146: =(J146+I146-M146)*N146 -> 0 | P146: =MAX(0,(W146+H146-wST.Jahr+IF(AND(W146<>wST.Jahr,MONTH(G146)>6),0.5,0))*IF(AND(W146=wST.Jahr,MONTH(G146)>6),2,1)) -> 0 | Q146: =R146+S146 -> 0 | R146: 0 | S146: =(J146+I146-M146)*(1-N146) -> 0 | T146: =MIN(I146+J146,M146+R146+S146) -> 0 | U146: =IF(W146>wST.Jahr,0,I146+J146-T146) -> 0 | V146: 0 | W146: =YEAR(G146) -> 1900 | X146: =IF(W146>wST.Jahr-1,0,I146*V146) -> 0 | AD146: 0 | AE146: 0 | AF146: 0 | AG146: 0 | AH146: 0 | AI146: 0
A147: =V147>0 -> FALSE | L147: =IF(AND(W147+H147<=wST.Jahr,J147<>0,NOT(ISBLANK(H147))),"Zugang ungültig!",IF(W147>wST.Jahr,0,SUM(I147,J147,-K147))) -> 0 | M147: 0 | N147: =IF(SUM(I147,J147)=0,1,1-K147/SUM(I147,J147)) -> 1 | O147: =(J147+I147-M147)*N147 -> 0 | P147: =MAX(0,(W147+H147-wST.Jahr+IF(AND(W147<>wST.Jahr,MONTH(G147)>6),0.5,0))*IF(AND(W147=wST.Jahr,MONTH(G147)>6),2,1)) -> 0 | Q147: =R147+S147 -> 0 | R147: 0 | S147: =(J147+I147-M147)*(1-N147) -> 0 | T147: =MIN(I147+J147,M147+R147+S147) -> 0 | U147: =IF(W147>wST.Jahr,0,I147+J147-T147) -> 0 | V147: 0 | W147: =YEAR(G147) -> 1900 | X147: =IF(W147>wST.Jahr-1,0,I147*V147) -> 0 | AB147: =IF(AND(AC147="",C147=""),"",IF(AND(C147<>"",AC147=""),"Keine Zuordnung",IF(OR(AC147=$AD$6,AC147=$AE$6,AC147=$AF$6),"OK","Falsche Kostenstelle"))) ->  | AD147: 0 | AE147: 0 | AF147: 0 | AG147: 0 | AH147: 0 | AI147: 0
A148: =V148>0 -> FALSE | L148: =IF(AND(W148+H148<=wST.Jahr,J148<>0,NOT(ISBLANK(H148))),"Zugang ungültig!",IF(W148>wST.Jahr,0,SUM(I148,J148,-K148))) -> 0 | M148: 0 | N148: =IF(SUM(I148,J148)=0,1,1-K148/SUM(I148,J148)) -> 1 | O148: =(J148+I148-M148)*N148 -> 0 | P148: =MAX(0,(W148+H148-wST.Jahr+IF(AND(W148<>wST.Jahr,MONTH(G148)>6),0.5,0))*IF(AND(W148=wST.Jahr,MONTH(G148)>6),2,1)) -> 0 | Q148: =R148+S148 -> 0 | R148: 0 | S148: =(J148+I148-M148)*(1-N148) -> 0 | T148: =MIN(I148+J148,M148+R148+S148) -> 0 | U148: =IF(W148>wST.Jahr,0,I148+J148-T148) -> 0 | V148: =IF(C148=0,0,IF(VALUE(LEFT(C148,3))=wST.Ansatz,1,0)) -> 0 | W148: =YEAR(G148) -> 1900 | X148: =IF(W148>wST.Jahr-1,0,I148*V148) -> 0 | AB148: =IF(AND(AC148="",C148=""),"",IF(AND(C148<>"",AC148=""),"Keine Zuordnung",IF(OR(AC148=$AD$6,AC148=$AE$6,AC148=$AF$6),"OK","Falsche Kostenstelle"))) ->  | AD148: 0 | AE148: 0 | AF148: 0 | AG148: 0 | AH148: 0 | AI148: 0
A149: =V149>0 -> FALSE | L149: =IF(AND(W149+H149<=wST.Jahr,J149<>0,NOT(ISBLANK(H149))),"Zugang ungültig!",IF(W149>wST.Jahr,0,SUM(I149,J149,-K149))) -> 0 | M149: 0 | N149: =IF(SUM(I149,J149)=0,1,1-K149/SUM(I149,J149)) -> 1 | O149: =(J149+I149-M149)*N149 -> 0 | P149: =MAX(0,(W149+H149-wST.Jahr+IF(AND(W149<>wST.Jahr,MONTH(G149)>6),0.5,0))*IF(AND(W149=wST.Jahr,MONTH(G149)>6),2,1)) -> 0 | Q149: =R149+S149 -> 0 | R149: 0 | S149: =(J149+I149-M149)*(1-N149) -> 0 | T149: =MIN(I149+J149,M149+R149+S149) -> 0 | U149: =IF(W149>wST.Jahr,0,I149+J149-T149) -> 0 | V149: =IF(C149=0,0,IF(VALUE(LEFT(C149,3))=wST.Ansatz,1,0)) -> 0 | W149: =YEAR(G149) -> 1900 | X149: =IF(W149>wST.Jahr-1,0,I149*V149) -> 0 | AB149: =IF(AND(AC149="",C149=""),"",IF(AND(C149<>"",AC149=""),"Keine Zuordnung",IF(OR(AC149=$AD$6,AC149=$AE$6,AC149=$AF$6),"OK","Falsche Kostenstelle"))) ->  | AD149: 0 | AE149: 0 | AF149: 0 | AG149: 0 | AH149: 0 | AI149: 0
A150: =V150>0 -> FALSE | L150: =IF(AND(W150+H150<=wST.Jahr,J150<>0,NOT(ISBLANK(H150))),"Zugang ungültig!",IF(W150>wST.Jahr,0,SUM(I150,J150,-K150))) -> 0 | M150: 0 | N150: =IF(SUM(I150,J150)=0,1,1-K150/SUM(I150,J150)) -> 1 | O150: =(J150+I150-M150)*N150 -> 0 | P150: =MAX(0,(W150+H150-wST.Jahr+IF(AND(W150<>wST.Jahr,MONTH(G150)>6),0.5,0))*IF(AND(W150=wST.Jahr,MONTH(G150)>6),2,1)) -> 0 | Q150: =R150+S150 -> 0 | R150: 0 | S150: =(J150+I150-M150)*(1-N150) -> 0 | T150: =MIN(I150+J150,M150+R150+S150) -> 0 | U150: =IF(W150>wST.Jahr,0,I150+J150-T150) -> 0 | V150: =IF(C150=0,0,IF(VALUE(LEFT(C150,3))=wST.Ansatz,1,0)) -> 0 | W150: =YEAR(G150) -> 1900 | X150: =IF(W150>wST.Jahr-1,0,I150*V150) -> 0 | AB150: =IF(AND(AC150="",C150=""),"",IF(AND(C150<>"",AC150=""),"Keine Zuordnung",IF(OR(AC150=$AD$6,AC150=$AE$6,AC150=$AF$6),"OK","Falsche Kostenstelle"))) ->  | AD150: 0 | AE150: 0 | AF150: 0 | AG150: 0 | AH150: 0 | AI150: 0
A151: =V151>0 -> FALSE | L151: =IF(AND(W151+H151<=wST.Jahr,J151<>0,NOT(ISBLANK(H151))),"Zugang ungültig!",IF(W151>wST.Jahr,0,SUM(I151,J151,-K151))) -> 0 | M151: 0 | N151: =IF(SUM(I151,J151)=0,1,1-K151/SUM(I151,J151)) -> 1 | O151: =(J151+I151-M151)*N151 -> 0 | P151: =MAX(0,(W151+H151-wST.Jahr+IF(AND(W151<>wST.Jahr,MONTH(G151)>6),0.5,0))*IF(AND(W151=wST.Jahr,MONTH(G151)>6),2,1)) -> 0 | Q151: =R151+S151 -> 0 | R151: 0 | S151: =(J151+I151-M151)*(1-N151) -> 0 | T151: =MIN(I151+J151,M151+R151+S151) -> 0 | U151: =IF(W151>wST.Jahr,0,I151+J151-T151) -> 0 | V151: =IF(C151=0,0,IF(VALUE(LEFT(C151,3))=wST.Ansatz,1,0)) -> 0 | W151: =YEAR(G151) -> 1900 | X151: =IF(W151>wST.Jahr-1,0,I151*V151) -> 0 | AB151: =IF(AND(AC151="",C151=""),"",IF(AND(C151<>"",AC151=""),"Keine Zuordnung",IF(OR(AC151=$AD$6,AC151=$AE$6,AC151=$AF$6),"OK","Falsche Kostenstelle"))) ->  | AD151: 0 | AE151: 0 | AF151: 0 | AG151: 0 | AH151: 0 | AI151: 0
A152: =V152>0 -> FALSE | L152: =IF(AND(W152+H152<=wST.Jahr,J152<>0,NOT(ISBLANK(H152))),"Zugang ungültig!",IF(W152>wST.Jahr,0,SUM(I152,J152,-K152))) -> 0 | M152: 0 | N152: =IF(SUM(I152,J152)=0,1,1-K152/SUM(I152,J152)) -> 1 | O152: =(J152+I152-M152)*N152 -> 0 | P152: =MAX(0,(W152+H152-wST.Jahr+IF(AND(W152<>wST.Jahr,MONTH(G152)>6),0.5,0))*IF(AND(W152=wST.Jahr,MONTH(G152)>6),2,1)) -> 0 | Q152: =R152+S152 -> 0 | R152: 0 | S152: =(J152+I152-M152)*(1-N152) -> 0 | T152: =MIN(I152+J152,M152+R152+S152) -> 0 | U152: =IF(W152>wST.Jahr,0,I152+J152-T152) -> 0 | V152: =IF(C152=0,0,IF(VALUE(LEFT(C152,3))=wST.Ansatz,1,0)) -> 0 | W152: =YEAR(G152) -> 1900 | X152: =IF(W152>wST.Jahr-1,0,I152*V152) -> 0 | AB152: =IF(AND(AC152="",C152=""),"",IF(AND(C152<>"",AC152=""),"Keine Zuordnung",IF(OR(AC152=$AD$6,AC152=$AE$6,AC152=$AF$6),"OK","Falsche Kostenstelle"))) ->  | AD152: 0 | AE152: 0 | AF152: 0 | AG152: 0 | AH152: 0 | AI152: 0
A153: =V153>0 -> FALSE | L153: =IF(AND(W153+H153<=wST.Jahr,J153<>0,NOT(ISBLANK(H153))),"Zugang ungültig!",IF(W153>wST.Jahr,0,SUM(I153,J153,-K153))) -> 0 | M153: 0 | N153: =IF(SUM(I153,J153)=0,1,1-K153/SUM(I153,J153)) -> 1 | O153: =(J153+I153-M153)*N153 -> 0 | P153: =MAX(0,(W153+H153-wST.Jahr+IF(AND(W153<>wST.Jahr,MONTH(G153)>6),0.5,0))*IF(AND(W153=wST.Jahr,MONTH(G153)>6),2,1)) -> 0 | Q153: =R153+S153 -> 0 | R153: 0 | S153: =(J153+I153-M153)*(1-N153) -> 0 | T153: =MIN(I153+J153,M153+R153+S153) -> 0 | U153: =IF(W153>wST.Jahr,0,I153+J153-T153) -> 0 | V153: =IF(C153=0,0,IF(VALUE(LEFT(C153,3))=wST.Ansatz,1,0)) -> 0 | W153: =YEAR(G153) -> 1900 | X153: =IF(W153>wST.Jahr-1,0,I153*V153) -> 0 | AB153: =IF(AND(AC153="",C153=""),"",IF(AND(C153<>"",AC153=""),"Keine Zuordnung",IF(OR(AC153=$AD$6,AC153=$AE$6,AC153=$AF$6),"OK","Falsche Kostenstelle"))) ->  | AD153: 0 | AE153: 0 | AF153: 0 | AG153: 0 | AH153: 0 | AI153: 0
A154: =V154>0 -> FALSE | L154: =IF(AND(W154+H154<=wST.Jahr,J154<>0,NOT(ISBLANK(H154))),"Zugang ungültig!",IF(W154>wST.Jahr,0,SUM(I154,J154,-K154))) -> 0 | M154: 0 | N154: =IF(SUM(I154,J154)=0,1,1-K154/SUM(I154,J154)) -> 1 | O154: =(J154+I154-M154)*N154 -> 0 | P154: =MAX(0,(W154+H154-wST.Jahr+IF(AND(W154<>wST.Jahr,MONTH(G154)>6),0.5,0))*IF(AND(W154=wST.Jahr,MONTH(G154)>6),2,1)) -> 0 | Q154: =R154+S154 -> 0 | R154: 0 | S154: =(J154+I154-M154)*(1-N154) -> 0 | T154: =MIN(I154+J154,M154+R154+S154) -> 0 | U154: =IF(W154>wST.Jahr,0,I154+J154-T154) -> 0 | V154: =IF(C154=0,0,IF(VALUE(LEFT(C154,3))=wST.Ansatz,1,0)) -> 0 | W154: =YEAR(G154) -> 1900 | X154: =IF(W154>wST.Jahr-1,0,I154*V154) -> 0 | AB154: =IF(AND(AC154="",C154=""),"",IF(AND(C154<>"",AC154=""),"Keine Zuordnung",IF(OR(AC154=$AD$6,AC154=$AE$6,AC154=$AF$6),"OK","Falsche Kostenstelle"))) ->  | AD154: 0 | AE154: 0 | AF154: 0 | AG154: 0 | AH154: 0 | AI154: 0
A155: =V155>0 -> FALSE | L155: =IF(AND(W155+H155<=wST.Jahr,J155<>0,NOT(ISBLANK(H155))),"Zugang ungültig!",IF(W155>wST.Jahr,0,SUM(I155,J155,-K155))) -> 0 | M155: 0 | N155: =IF(SUM(I155,J155)=0,1,1-K155/SUM(I155,J155)) -> 1 | O155: =(J155+I155-M155)*N155 -> 0 | P155: =MAX(0,(W155+H155-wST.Jahr+IF(AND(W155<>wST.Jahr,MONTH(G155)>6),0.5,0))*IF(AND(W155=wST.Jahr,MONTH(G155)>6),2,1)) -> 0 | Q155: =R155+S155 -> 0 | R155: 0 | S155: =(J155+I155-M155)*(1-N155) -> 0 | T155: =MIN(I155+J155,M155+R155+S155) -> 0 | U155: =IF(W155>wST.Jahr,0,I155+J155-T155) -> 0 | V155: =IF(C155=0,0,IF(VALUE(LEFT(C155,3))=wST.Ansatz,1,0)) -> 0 | W155: =YEAR(G155) -> 1900 | X155: =IF(W155>wST.Jahr-1,0,I155*V155) -> 0 | AB155: =IF(AND(AC155="",C155=""),"",IF(AND(C155<>"",AC155=""),"Keine Zuordnung",IF(OR(AC155=$AD$6,AC155=$AE$6,AC155=$AF$6),"OK","Falsche Kostenstelle"))) ->  | AD155: 0 | AE155: 0 | AF155: 0 | AG155: 0 | AH155: 0 | AI155: 0
A156: =V156>0 -> FALSE | L156: =IF(AND(W156+H156<=wST.Jahr,J156<>0,NOT(ISBLANK(H156))),"Zugang ungültig!",IF(W156>wST.Jahr,0,SUM(I156,J156,-K156))) -> 0 | M156: 0 | N156: =IF(SUM(I156,J156)=0,1,1-K156/SUM(I156,J156)) -> 1 | O156: =(J156+I156-M156)*N156 -> 0 | P156: =MAX(0,(W156+H156-wST.Jahr+IF(AND(W156<>wST.Jahr,MONTH(G156)>6),0.5,0))*IF(AND(W156=wST.Jahr,MONTH(G156)>6),2,1)) -> 0 | Q156: =R156+S156 -> 0 | R156: 0 | S156: =(J156+I156-M156)*(1-N156) -> 0 | T156: =MIN(I156+J156,M156+R156+S156) -> 0 | U156: =IF(W156>wST.Jahr,0,I156+J156-T156) -> 0 | V156: =IF(C156=0,0,IF(VALUE(LEFT(C156,3))=wST.Ansatz,1,0)) -> 0 | W156: =YEAR(G156) -> 1900 | X156: =IF(W156>wST.Jahr-1,0,I156*V156) -> 0 | AB156: =IF(AND(AC156="",C156=""),"",IF(AND(C156<>"",AC156=""),"Keine Zuordnung",IF(OR(AC156=$AD$6,AC156=$AE$6,AC156=$AF$6),"OK","Falsche Kostenstelle"))) ->  | AD156: 0 | AE156: 0 | AF156: 0 | AG156: 0 | AH156: 0 | AI156: 0
A157: =V157>0 -> FALSE | L157: =IF(AND(W157+H157<=wST.Jahr,J157<>0,NOT(ISBLANK(H157))),"Zugang ungültig!",IF(W157>wST.Jahr,0,SUM(I157,J157,-K157))) -> 0 | M157: 0 | N157: =IF(SUM(I157,J157)=0,1,1-K157/SUM(I157,J157)) -> 1 | O157: =(J157+I157-M157)*N157 -> 0 | P157: =MAX(0,(W157+H157-wST.Jahr+IF(AND(W157<>wST.Jahr,MONTH(G157)>6),0.5,0))*IF(AND(W157=wST.Jahr,MONTH(G157)>6),2,1)) -> 0 | Q157: =R157+S157 -> 0 | R157: 0 | S157: =(J157+I157-M157)*(1-N157) -> 0 | T157: =MIN(I157+J157,M157+R157+S157) -> 0 | U157: =IF(W157>wST.Jahr,0,I157+J157-T157) -> 0 | V157: =IF(C157=0,0,IF(VALUE(LEFT(C157,3))=wST.Ansatz,1,0)) -> 0 | W157: =YEAR(G157) -> 1900 | X157: =IF(W157>wST.Jahr-1,0,I157*V157) -> 0 | AB157: =IF(AND(AC157="",C157=""),"",IF(AND(C157<>"",AC157=""),"Keine Zuordnung",IF(OR(AC157=$AD$6,AC157=$AE$6,AC157=$AF$6),"OK","Falsche Kostenstelle"))) ->  | AD157: 0 | AE157: 0 | AF157: 0 | AG157: 0 | AH157: 0 | AI157: 0
A158: =V158>0 -> FALSE | L158: =IF(AND(W158+H158<=wST.Jahr,J158<>0,NOT(ISBLANK(H158))),"Zugang ungültig!",IF(W158>wST.Jahr,0,SUM(I158,J158,-K158))) -> 0 | M158: 0 | N158: =IF(SUM(I158,J158)=0,1,1-K158/SUM(I158,J158)) -> 1 | O158: =(J158+I158-M158)*N158 -> 0 | P158: =MAX(0,(W158+H158-wST.Jahr+IF(AND(W158<>wST.Jahr,MONTH(G158)>6),0.5,0))*IF(AND(W158=wST.Jahr,MONTH(G158)>6),2,1)) -> 0 | Q158: =R158+S158 -> 0 | R158: 0 | S158: =(J158+I158-M158)*(1-N158) -> 0 | T158: =MIN(I158+J158,M158+R158+S158) -> 0 | U158: =IF(W158>wST.Jahr,0,I158+J158-T158) -> 0 | V158: 0 | W158: =YEAR(G158) -> 1900 | X158: =IF(W158>wST.Jahr-1,0,I158*V158) -> 0 | AB158: =IF(AND(AC158="",C158=""),"",IF(AND(C158<>"",AC158=""),"Keine Zuordnung",IF(OR(AC158=$AD$6,AC158=$AE$6,AC158=$AF$6),"OK","Falsche Kostenstelle"))) ->  | AD158: 0 | AE158: 0 | AF158: 0 | AG158: 0 | AH158: 0 | AI158: 0
A159: =A136 -> FALSE
A160: FALSE
A161: =SUM(Q161:Q161)<>0 -> FALSE | C161: GESAMTSUMME ALLER ANLAGEN | I161: =I83+I73+I67+I54+I48+I7 -> 0 | J161: =J83+J73+J67+J54+J48+J7 -> 0 | K161: =K83+K73+K67+K54+K48+K7 -> 0 | L161: =L83+L73+L67+L54+L48+L7 -> 0 | Q161: =Q83+Q73+Q67+Q54+Q48+Q7 -> 0 | R161: =SUM(R7,R48,R54,R67,R73,R83,R90,R136) -> 0 | T161: =T83+T73+T67+T54+T48+T7 -> 0 | U161: =U83+U73+U67+U54+U48+U7 -> 0
A162: =SUM(Q162:Q162)<>0 -> FALSE
A163: FALSE | C163: TEILERGEBNIS ANLAGEN | I163: =SUBTOTAL(9,I85:I88,I80:I82,I75:I78,I69:I71,I56:I65,I50:I52,I44:I46,I23:I42,I19:I21,I15:I17,I9:I13) -> 0 | J163: 0 | K163: 0 | L163: 0 | M163: 0 | N163: 61 | O163: 0 | P163: 0 | Q163: 0 | R163: 0 | S163: 0 | T163: 0 | U163: 0
A164: FALSE | C164: TEILERGEBNIS SUBVENTIONEN | I164: =SUBTOTAL(9,I92:I134) -> 0 | J164: 0 | K164: 0 | L164: 0 | M164: 0 | N164: 43 | O164: 0 | P164: 0 | Q164: 0 | R164: 0 | S164: 0 | T164: 0 | U164: 0
A165: FALSE | C165: TEILERGEBNIS INTERESSENTENBEITRÄGE | I165: =SUBTOTAL(9,I138:I158) -> 0 | J165: 0 | K165: 0 | L165: 0 | M165: 0 | N165: 21 | O165: 0 | P165: 0 | Q165: 0 | R165: 0 | S165: 0 | T165: 0 | U165: 0
A166: Ende

Sheet Schulden
A1: FALSE | B1: TRUE | C1: Ende
A2: FALSE | B2: Anlagen | C2: 001.00
A3: FALSE | B3: Ende
A4: TRUE | B4: =CONCATENATE("Nachweis über den Schuldenstand Wasserversorgung per "&TEXT(wST.PeriodeEnde,"T. MMMM JJJJ")&" KLR-Ebene: "&wST.ORT) -> Nachweis über den Schuldenstand Wasserversorgung per 31. Dezember 2017 KLR-Ebene:
A5: TRUE
A6: TRUE | B6: Konto | C6: Ansatz | D6: Bezeichnung / Zweck / Darlehensgeber / Darlehensnummer | E6: Laufzeitende (TT.MM.JJJJ) | F6: Darlehensbetrag bei Aufnahme | G6: ="Schuldenstand per "&TEXT(wST.PeriodeAnfang-1,"T.M.JJJJ") -> Schuldenstand per 31.12.2016 | H6: ="Zugänge im Jahr "&TEXT(wST.PeriodeAnfang,"JJJJ") -> Zugänge im Jahr 2017 | I6: ="Abgänge im Jahr "&TEXT(wST.PeriodeAnfang,"JJJJ") -> Abgänge im Jahr 2017 | J6: ="Schuldenstand per "&TEXT(wST.PeriodeEnde,"T.M.JJJJ") -> Schuldenstand per 31.12.2017 | N6: Zuordnung Anlagen-zusammenfassung | O6: Kontrolle für KLR | P6: Kostenstelle für KLR | Q6: Tilgung | T6: Schuldenstand
A7: TRUE | Q7: Verteilung | R7: Gewinnung | S7: Verwaltung | T7: Verteilung | U7: Gewinnung | V7: Verwaltung
A8: =OR(A9,A13,A17,A21,A25,A29,A33,A49,A53,A57) -> FALSE | B8: 31 | C8: LEASING | F8: =SUM(F9,F13) -> 0 | G8: =SUM(G9,G13) -> 0 | H8: =SUM(H9,H13) -> 0 | I8: =SUM(I9,I13) -> 0 | J8: =SUM(J9,J13) -> 0
A9: =OR(A10:A12) -> FALSE | B9: 310 | C9: Verbindlichkeiten aus Finanzierungsleasing | F9: =SUMPRODUCT(F10:F12,$K10:$K12) -> 0 | G9: =SUMPRODUCT(G10:G12,$K10:$K12) -> 0 | H9: =SUMPRODUCT(H10:H12,$K10:$K12) -> 0 | I9: =SUMPRODUCT(I10:I12,$K10:$K12) -> 0 | J9: =SUM(G9,H9,-I9) -> 0
A10: =K10>0 -> FALSE | G10: 0 | J10: 0 | K10: =IF(C10=0,0,IF(VALUE(LEFT(C10,3))=wST.Ansatz,1,0)) -> 0 | L10: =IF(C10=0,0,VALUE(LEFT(C10,3))) -> 0 | O10: =IF(AND(P10="",C10=""),"",IF(AND(C10<>"",P10=""),"Keine Zuordnung",IF(OR(P10=$Q$7,P10=$R$7,P10=$S$7),"OK","Falsche Kostenstelle"))) ->  | Q10: =IF($P10=Q$7,$I10-$H10,) -> 0 | R10: 0 | S10: 0 | T10: =IF($P10=T$7,$J10,) -> 0 | U10: 0 | V10: 0
A11: =K11>0 -> FALSE | G11: 0 | J11: =SUM(G11,H11,-I11) -> 0 | K11: =IF(C11=0,0,IF(VALUE(LEFT(C11,3))=wST.Ansatz,1,0)) -> 0 | L11: =IF(C11=0,0,VALUE(LEFT(C11,3))) -> 0 | O11: =IF(AND(P11="",C11=""),"",IF(AND(C11<>"",P11=""),"Keine Zuordnung",IF(OR(P11=$Q$7,P11=$R$7,P11=$S$7),"OK","Falsche Kostenstelle"))) ->  | Q11: 0 | R11: 0 | S11: 0 | T11: 0 | U11: 0 | V11: 0
A12: =K12>0 -> FALSE | G12: 0 | J12: 0 | K12: =IF(C12=0,0,IF(VALUE(LEFT(C12,3))=wST.Ansatz,1,0)) -> 0 | L12: =IF(C12=0,0,VALUE(LEFT(C12,3))) -> 0 | Q12: 0 | R12: 0 | S12: 0 | T12: 0 | U12: 0 | V12: 0
A13: =OR(A14:A16) -> FALSE | B13: 311 | C13: Forderungskauf (Schuldeinlösung) | F13: =SUMPRODUCT(F14:F16,$K14:$K16) -> 0 | G13: =SUMPRODUCT(G14:G16,$K14:$K16) -> 0 | H13: =SUMPRODUCT(H14:H16,$K14:$K16) -> 0 | I13: =SUMPRODUCT(I14:I16,$K14:$K16) -> 0 | J13: 0
A14: =K14>0 -> FALSE | J14: 0 | K14: =IF(C14=0,0,IF(VALUE(LEFT(C14,3))=wST.Ansatz,1,0)) -> 0 | L14: =IF(C14=0,0,VALUE(LEFT(C14,3))) -> 0 | O14: =IF(AND(P14="",C14=""),"",IF(AND(C14<>"",P14=""),"Keine Zuordnung",IF(OR(P14=$Q$7,P14=$R$7,P14=$S$7),"OK","Falsche Kostenstelle"))) ->  | Q14: 0 | R14: 0 | S14: 0 | T14: 0 | U14: 0 | V14: 0
A15: =K15>0 -> FALSE | J15: =SUM(G15,H15,-I15) -> 0 | K15: =IF(C15=0,0,IF(VALUE(LEFT(C15,3))=wST.Ansatz,1,0)) -> 0 | L15: =IF(C15=0,0,VALUE(LEFT(C15,3))) -> 0 | O15: =IF(AND(P15="",C15=""),"",IF(AND(C15<>"",P15=""),"Keine Zuordnung",IF(OR(P15=$Q$7,P15=$R$7,P15=$S$7),"OK","Falsche Kostenstelle"))) ->  | Q15: 0 | R15: 0 | S15: 0 | T15: 0 | U15: 0 | V15: 0
A16: FALSE | J16: 0 | K16: 0 | L16: 0 | Q16: 0 | R16: 0 | S16: 0 | T16: 0 | U16: 0 | V16: 0
A17: =OR(A18,A22,A26,A30,A34,A38,A42,A58,A62,A66) -> FALSE | B17: 34 | C17: INVESTITIONSDARLEHEN | F17: =SUM(F18,F22,F26,F30,F34,F38,F42,F58,F62,F66) -> 0 | G17: =SUM(G18,G22,G26,G30,G34,G38,G42,G58,G62,G66) -> 0 | H17: =SUM(H18,H22,H26,H30,H34,H38,H42,H58,H62,H66) -> 0 | I17: =SUM(I18,I22,I26,I30,I34,I38,I42,I58,I62,I66) -> 0 | J17: =SUM(J18,J22,J26,J30,J34,J38,J42,J58,J62,J66) -> 0
A18: =OR(A19:A21) -> FALSE | B18: 340 | C18: Investitionsdarlehen vom Bund, Bundesfonds und Bundeskammern | F18: =SUMPRODUCT(F19:F21,$K19:$K21) -> 0 | G18: =SUMPRODUCT(G19:G21,$K19:$K21) -> 0 | H18: =SUMPRODUCT(H19:H21,$K19:$K21) -> 0 | I18: =SUMPRODUCT(I19:I21,$K19:$K21) -> 0 | J18: =SUM(G18,H18,-I18) -> 0
A19: =K19>0 -> FALSE | G19: 0 | J19: 0 | K19: =IF(C19=0,0,IF(VALUE(LEFT(C19,3))=wST.Ansatz,1,0)) -> 0 | L19: =IF(C19=0,0,VALUE(LEFT(C19,3))) -> 0 | O19: =IF(AND(P19="",C19=""),"",IF(AND(C19<>"",P19=""),"Keine Zuordnung",IF(OR(P19=$Q$7,P19=$R$7,P19=$S$7),"OK","Falsche Kostenstelle"))) ->  | Q19: =IF($P19=Q$7,$I19-$H19,) -> 0 | R19: 0 | S19: 0 | T19: =IF($P19=T$7,$J19,) -> 0 | U19: 0 | V19: 0
A20: =K20>0 -> FALSE | G20: 0 | J20: =SUM(G20,H20,-I20) -> 0 | K20: =IF(C20=0,0,IF(VALUE(LEFT(C20,3))=wST.Ansatz,1,0)) -> 0 | L20: =IF(C20=0,0,VALUE(LEFT(C20,3))) -> 0 | O20: =IF(AND(P20="",C20=""),"",IF(AND(C20<>"",P20=""),"Keine Zuordnung",IF(OR(P20=$Q$7,P20=$R$7,P20=$S$7),"OK","Falsche Kostenstelle"))) ->  | Q20: 0 | R20: 0 | S20: 0 | T20: 0 | U20: 0 | V20: 0
A21: =K21>0 -> FALSE | G21: 0 | J21: 0 | K21: =IF(C21=0,0,IF(VALUE(LEFT(C21,3))=wST.Ansatz,1,0)) -> 0 | L21: =IF(C21=0,0,VALUE(LEFT(C21,3))) -> 0 | Q21: 0 | R21: 0 | S21: 0 | T21: 0 | U21: 0 | V21: 0
A22: =OR(A23:A25) -> FALSE | B22: 341 | C22: Investitionsdarlehen von Ländern, Landesfonds und Landeskammern | F22: =SUMPRODUCT(F23:F25,$K23:$K25) -> 0 | G22: =SUMPRODUCT(G23:G25,$K23:$K25) -> 0 | H22: =SUMPRODUCT(H23:H25,$K23:$K25) -> 0 | I22: =SUMPRODUCT(I23:I25,$K23:$K25) -> 0 | J22: 0
A23: =K23>0 -> FALSE | J23: 0 | K23: =IF(C23=0,0,IF(VALUE(LEFT(C23,3))=wST.Ansatz,1,0)) -> 0 | L23: =IF(C23=0,0,VALUE(LEFT(C23,3))) -> 0 | O23: =IF(AND(P23="",C23=""),"",IF(AND(C23<>"",P23=""),"Keine Zuordnung",IF(OR(P23=$Q$7,P23=$R$7,P23=$S$7),"OK","Falsche Kostenstelle"))) ->  | Q23: 0 | R23: 0 | S23: 0 | T23: 0 | U23: 0 | V23: 0
A24: FALSE | J24: 0 | K24: 0 | L24: 0 | Q24: 0 | R24: 0 | S24: 0 | T24: 0 | U24: 0 | V24: 0
A25: FALSE | J25: 0 | K25: 0 | L25: 0 | Q25: 0 | R25: 0 | S25: 0 | T25: 0 | U25: 0 | V25: 0
A26: =OR(A27:A29) -> FALSE | B26: 342 | C26: Investitionsdarl. v. Gemeinden, Gdeverb. (o. marktb. Tätigk.) und Gdefonds inkl. innerer Darlehen | F26: =SUMPRODUCT(F27:F29,$K27:$K29) -> 0 | G26: =SUMPRODUCT(G27:G29,$K27:$K29) -> 0 | H26: =SUMPRODUCT(H27:H29,$K27:$K29) -> 0 | I26: =SUMPRODUCT(I27:I29,$K27:$K29) -> 0 | J26: 0
A27: =K27>0 -> FALSE | G27: 0 | J27: 0 | K27: =IF(C27=0,0,IF(VALUE(LEFT(C27,3))=wST.Ansatz,1,0)) -> 0 | L27: =IF(C27=0,0,VALUE(LEFT(C27,3))) -> 0 | O27: =IF(AND(P27="",C27=""),"",IF(AND(C27<>"",P27=""),"Keine Zuordnung",IF(OR(P27=$Q$7,P27=$R$7,P27=$S$7),"OK","Falsche Kostenstelle"))) ->  | Q27: 0 | R27: 0 | S27: 0 | T27: 0 | U27: 0 | V27: 0
A28: =K28>0 -> FALSE | G28: 0 | J28: 0 | K28: =IF(C28=0,0,IF(VALUE(LEFT(C28,3))=wST.Ansatz,1,0)) -> 0 | L28: =IF(C28=0,0,VALUE(LEFT(C28,3))) -> 0 | Q28: 0 | R28: 0 | S28: 0 | T28: 0 | U28: 0 | V28: 0
A29: =K29>0 -> FALSE | G29: 0 | J29: 0 | K29: =IF(C29=0,0,IF(VALUE(LEFT(C29,3))=wST.Ansatz,1,0)) -> 0 | L29: =IF(C29=0,0,VALUE(LEFT(C29,3))) -> 0 | Q29: 0 | R29: 0 | S29: 0 | T29: 0 | U29: 0 | V29: 0
A30: =OR(A31:A33) -> FALSE | B30: 343 | C30: Investitionsdarlehen von Sozialversicherungsträgern | F30: =SUMPRODUCT(F31:F33,$K31:$K33) -> 0 | G30: =SUMPRODUCT(G31:G33,$K31:$K33) -> 0 | H30: =SUMPRODUCT(H31:H33,$K31:$K33) -> 0 | I30: =SUMPRODUCT(I31:I33,$K31:$K33) -> 0 | J30: 0
A31: =K31>0 -> FALSE | G31: 0 | J31: 0 | K31: =IF(C31=0,0,IF(VALUE(LEFT(C31,3))=wST.Ansatz,1,0)) -> 0 | L31: =IF(C31=0,0,VALUE(LEFT(C31,3))) -> 0 | O31: =IF(AND(P31="",C31=""),"",IF(AND(C31<>"",P31=""),"Keine Zuordnung",IF(OR(P31=$Q$7,P31=$R$7,P31=$S$7),"OK","Falsche Kostenstelle"))) ->  | Q31: 0 | R31: 0 | S31: 0 | T31: 0 | U31: 0 | V31: 0
A32: =K32>0 -> FALSE | G32: 0 | J32: 0 | K32: =IF(C32=0,0,IF(VALUE(LEFT(C32,3))=wST.Ansatz,1,0)) -> 0 | L32: =IF(C32=0,0,VALUE(LEFT(C32,3))) -> 0 | Q32: =IF($P32=Q$7,$I32-$H32,) -> 0 | R32: 0 | S32: 0 | T32: =IF($P32=T$7,$J32,) -> 0 | U32: 0 | V32: 0
A33: =K33>0 -> FALSE | G33: 0 | J33: 0 | K33: =IF(C33=0,0,IF(VALUE(LEFT(C33,3))=wST.Ansatz,1,0)) -> 0 | L33: =IF(C33=0,0,VALUE(LEFT(C33,3))) -> 0 | Q33: 0 | R33: 0 | S33: 0 | T33: 0 | U33: 0 | V33: 0
A34: =OR(A35:A37) -> FALSE | B34: 344 | C34: Investitionsdarlehen von sonstigen Trägern des öffentlichen Rechtes | F34: =SUMPRODUCT(F35:F37,$K35:$K37) -> 0 | G34: =SUMPRODUCT(G35:G37,$K35:$K37) -> 0 | H34: =SUMPRODUCT(H35:H37,$K35:$K37) -> 0 | I34: =SUMPRODUCT(I35:I37,$K35:$K37) -> 0 | J34: 0
A35: =K35>0 -> FALSE | G35: 0 | J35: 0 | K35: =IF(C35=0,0,IF(VALUE(LEFT(C35,3))=wST.Ansatz,1,0)) -> 0 | L35: =IF(C35=0,0,VALUE(LEFT(C35,3))) -> 0 | O35: =IF(AND(P35="",C35=""),"",IF(AND(C35<>"",P35=""),"Keine Zuordnung",IF(OR(P35=$Q$7,P35=$R$7,P35=$S$7),"OK","Falsche Kostenstelle"))) ->  | Q35: 0 | R35: 0 | S35: 0 | T35: 0 | U35: 0 | V35: 0
A36: =K36>0 -> FALSE | G36: 0 | J36: 0 | K36: =IF(C36=0,0,IF(VALUE(LEFT(C36,3))=wST.Ansatz,1,0)) -> 0 | L36: =IF(C36=0,0,VALUE(LEFT(C36,3))) -> 0 | Q36: 0 | R36: 0 | S36: 0 | T36: 0 | U36: 0 | V36: 0
A37: =K37>0 -> FALSE | G37: 0 | J37: 0 | K37: =IF(C37=0,0,IF(VALUE(LEFT(C37,3))=wST.Ansatz,1,0)) -> 0 | L37: =IF(C37=0,0,VALUE(LEFT(C37,3))) -> 0 | Q37: 0 | R37: 0 | S37: 0 | T37: 0 | U37: 0 | V37: 0
A38: =OR(A39:A41) -> FALSE | B38: 345 | C38: Investitionsdarlehen von Beteiligungen | F38: =SUMPRODUCT(F39:F41,$K39:$K41) -> 0 | G38: =SUMPRODUCT(G39:G41,$K39:$K41) -> 0 | H38: =SUMPRODUCT(H39:H41,$K39:$K41) -> 0 | I38: =SUMPRODUCT(I39:I41,$K39:$K41) -> 0 | J38: 0
A39: =K39>0 -> FALSE | G39: 0 | J39: 0 | K39: =IF(C39=0,0,IF(VALUE(LEFT(C39,3))=wST.Ansatz,1,0)) -> 0 | L39: =IF(C39=0,0,VALUE(LEFT(C39,3))) -> 0 | O39: =IF(AND(P39="",C39=""),"",IF(AND(C39<>"",P39=""),"Keine Zuordnung",IF(OR(P39=$Q$7,P39=$R$7,P39=$S$7),"OK","Falsche Kostenstelle"))) ->  | Q39: 0 | R39: 0 | S39: 0 | T39: 0 | U39: 0 | V39: 0
A40: =K40>0 -> FALSE | G40: 0 | J40: 0 | K40: =IF(C40=0,0,IF(VALUE(LEFT(C40,3))=wST.Ansatz,1,0)) -> 0 | L40: =IF(C40=0,0,VALUE(LEFT(C40,3))) -> 0 | Q40: 0 | R40: 0 | S40: 0 | T40: 0 | U40: 0 | V40: 0
A41: =K41>0 -> FALSE | G41: 0 | J41: 0 | K41: =IF(C41=0,0,IF(VALUE(LEFT(C41,3))=wST.Ansatz,1,0)) -> 0 | L41: =IF(C41=0,0,VALUE(LEFT(C41,3))) -> 0 | Q41: 0 | R41: 0 | S41: 0 | T41: 0 | U41: 0 | V41: 0
A42: =OR(A43:A57) -> FALSE | B42: 346 | C42: Investitionsdarlehen von Finanzunternehmen | F42: =SUMPRODUCT(F43:F57,$K43:$K57) -> 0 | G42: =SUMPRODUCT(G43:G57,$K43:$K57) -> 0 | H42: =SUMPRODUCT(H43:H57,$K43:$K57) -> 0 | I42: =SUMPRODUCT(I43:I57,$K43:$K57) -> 0 | J42: 0
A43: =K43>0 -> FALSE | J43: 0 | K43: =IF(C43=0,0,IF(VALUE(LEFT(C43,3))=wST.Ansatz,1,0)) -> 0 | L43: =IF(C43=0,0,VALUE(LEFT(C43,3))) -> 0 | O43: =IF(AND(P43="",C43=""),"",IF(AND(C43<>"",P43=""),"Keine Zuordnung",IF(OR(P43=$Q$7,P43=$R$7,P43=$S$7),"OK","Falsche Kostenstelle"))) ->  | Q43: 0 | R43: 0 | S43: 0 | T43: 0 | U43: 0 | V43: 0
A44: FALSE | J44: 0 | K44: 0 | L44: 0 | O44: =IF(AND(P44="",C44=""),"",IF(AND(C44<>"",P44=""),"Keine Zuordnung",IF(OR(P44=$Q$7,P44=$R$7,P44=$S$7),"OK","Falsche Kostenstelle"))) ->  | Q44: 0 | R44: 0 | S44: 0 | T44: 0 | U44: 0 | V44: 0
A45: FALSE | J45: 0 | K45: 0 | L45: 0 | Q45: 0 | R45: 0 | S45: 0 | T45: 0 | U45: 0 | V45: 0
A46: FALSE | J46: 0 | K46: 0 | L46: 0 | Q46: 0 | R46: 0 | S46: 0 | T46: 0 | U46: 0 | V46: 0
A47: FALSE | J47: 0 | K47: 0 | L47: 0 | Q47: 0 | R47: 0 | S47: 0 | T47: 0 | U47: 0 | V47: 0
A48: FALSE | J48: 0 | K48: 0 | L48: 0 | Q48: 0 | R48: 0 | S48: 0 | T48: 0 | U48: 0 | V48: 0
A49: FALSE | J49: 0 | K49: 0 | L49: 0 | Q49: 0 | R49: 0 | S49: 0 | T49: 0 | U49: 0 | V49: 0
A50: FALSE | J50: 0 | K50: 0 | L50: 0 | Q50: =IF($P50=Q$7,$I50-$H50,) -> 0 | R50: 0 | S50: 0 | T50: =IF($P50=T$7,$J50,) -> 0 | U50: 0 | V50: 0
A51: FALSE | G51: 0 | J51: 0 | K51: 0 | L51: 0 | Q51: 0 | R51: 0 | S51: 0 | T51: 0 | U51: 0 | V51: 0
A52: =K52>0 -> FALSE | G52: 0 | J52: 0 | K52: =IF(C52=0,0,IF(VALUE(LEFT(C52,3))=wST.Ansatz,1,0)) -> 0 | L52: =IF(C52=0,0,VALUE(LEFT(C52,3))) -> 0 | Q52: 0 | R52: 0 | S52: 0 | T52: 0 | U52: 0 | V52: 0
A53: FALSE | G53: 0 | J53: 0 | K53: 0 | L53: 0 | Q53: 0 | R53: 0 | S53: 0 | T53: 0 | U53: 0 | V53: 0
A54: =K54>0 -> FALSE | G54: 0 | J54: =SUM(G54,H54,-I54) -> 0 | K54: =IF(C54=0,0,IF(VALUE(LEFT(C54,3))=wST.Ansatz,1,0)) -> 0 | L54: =IF(C54=0,0,VALUE(LEFT(C54,3))) -> 0 | Q54: 0 | R54: 0 | S54: 0 | T54: 0 | U54: 0 | V54: 0
A55: =K55>0 -> FALSE | G55: 0 | J55: =SUM(G55,H55,-I55) -> 0 | K55: =IF(C55=0,0,IF(VALUE(LEFT(C55,3))=wST.Ansatz,1,0)) -> 0 | L55: =IF(C55=0,0,VALUE(LEFT(C55,3))) -> 0 | O55: =IF(AND(P55="",C55=""),"",IF(AND(C55<>"",P55=""),"Keine Zuordnung",IF(OR(P55=$Q$7,P55=$R$7,P55=$S$7),"OK","Falsche Kostenstelle"))) ->  | Q55: 0 | R55: 0 | S55: 0 | T55: 0 | U55: 0 | V55: 0
A56: =K56>0 -> FALSE | G56: 0 | J56: =SUM(G56,H56,-I56) -> 0 | K56: =IF(C56=0,0,IF(VALUE(LEFT(C56,3))=wST.Ansatz,1,0)) -> 0 | L56: =IF(C56=0,0,VALUE(LEFT(C56,3))) -> 0 | O56: =IF(AND(P56="",C56=""),"",IF(AND(C56<>"",P56=""),"Keine Zuordnung",IF(OR(P56=$Q$7,P56=$R$7,P56=$S$7),"OK","Falsche Kostenstelle"))) ->  | Q56: 0 | R56: 0 | S56: 0 | T56: 0 | U56: 0 | V56: 0
A57: =K57>0 -> FALSE | G57: 0 | J57: 0 | K57: =IF(C57=0,0,IF(VALUE(LEFT(C57,3))=wST.Ansatz,1,0)) -> 0 | L57: =IF(C57=0,0,VALUE(LEFT(C57,3))) -> 0 | Q57: 0 | R57: 0 | S57: 0 | T57: 0 | U57: 0 | V57: 0
A58: =OR(A59:A61) -> FALSE | B58: 347 | C58: Investitionsdarlehen von Unternehmen (ohne Finanzunternehmen) und anderen | F58: =SUMPRODUCT(F59:F61,$K59:$K61) -> 0 | G58: =SUMPRODUCT(G59:G61,$K59:$K61) -> 0 | H58: =SUMPRODUCT(H59:H61,$K59:$K61) -> 0 | I58: =SUMPRODUCT(I59:I61,$K59:$K61) -> 0 | J58: =SUM(G58,H58,-I58) -> 0
A59: =K59>0 -> FALSE | F59: 0 | G59: 0 | J59: 0 | K59: =IF(C59=0,0,IF(VALUE(LEFT(C59,3))=wST.Ansatz,1,0)) -> 0 | L59: =IF(C59=0,0,VALUE(LEFT(C59,3))) -> 0 | O59: =IF(AND(P59="",C59=""),"",IF(AND(C59<>"",P59=""),"Keine Zuordnung",IF(OR(P59=$Q$7,P59=$R$7,P59=$S$7),"OK","Falsche Kostenstelle"))) ->  | Q59: 0 | R59: 0 | S59: 0 | T59: 0 | U59: 0 | V59: 0
A60: =K60>0 -> FALSE | F60: 0 | G60: 0 | J60: =SUM(G60,H60,-I60) -> 0 | K60: =IF(C60=0,0,IF(VALUE(LEFT(C60,3))=wST.Ansatz,1,0)) -> 0 | L60: =IF(C60=0,0,VALUE(LEFT(C60,3))) -> 0 | O60: =IF(AND(P60="",C60=""),"",IF(AND(C60<>"",P60=""),"Keine Zuordnung",IF(OR(P60=$Q$7,P60=$R$7,P60=$S$7),"OK","Falsche Kostenstelle"))) ->  | Q60: 0 | R60: 0 | S60: 0 | T60: 0 | U60: 0 | V60: 0
A61: =K61>0 -> FALSE | F61: 0 | G61: 0 | J61: 0 | K61: =IF(C61=0,0,IF(VALUE(LEFT(C61,3))=wST.Ansatz,1,0)) -> 0 | L61: =IF(C61=0,0,VALUE(LEFT(C61,3))) -> 0 | Q61: 0 | R61: 0 | S61: 0 | T61: 0 | U61: 0 | V61: 0
A62: =OR(A63:A65) -> FALSE | B62: 348 | C62: Auslandsanleihen für Investitionszwecke | F62: =SUMPRODUCT(F63:F65,$K63:$K65) -> 0 | G62: =SUMPRODUCT(G63:G65,$K63:$K65) -> 0 | H62: =SUMPRODUCT(H63:H65,$K63:$K65) -> 0 | I62: =SUMPRODUCT(I63:I65,$K63:$K65) -> 0 | J62: 0
A63: =K63>0 -> FALSE | F63: 0 | G63: 0 | J63: 0 | K63: =IF(C63=0,0,IF(VALUE(LEFT(C63,3))=wST.Ansatz,1,0)) -> 0 | L63: =IF(C63=0,0,VALUE(LEFT(C63,3))) -> 0 | O63: =IF(AND(P63="",C63=""),"",IF(AND(C63<>"",P63=""),"Keine Zuordnung",IF(OR(P63=$Q$7,P63=$R$7,P63=$S$7),"OK","Falsche Kostenstelle"))) ->  | Q63: 0 | R63: 0 | S63: 0 | T63: 0 | U63: 0 | V63: 0
A64: =K64>0 -> FALSE | F64: 0 | G64: 0 | J64: 0 | K64: =IF(C64=0,0,IF(VALUE(LEFT(C64,3))=wST.Ansatz,1,0)) -> 0 | L64: =IF(C64=0,0,VALUE(LEFT(C64,3))) -> 0 | Q64: 0 | R64: 0 | S64: 0 | T64: 0 | U64: 0 | V64: 0
A65: =K65>0 -> FALSE | F65: 0 | G65: 0 | J65: 0 | K65: =IF(C65=0,0,IF(VALUE(LEFT(C65,3))=wST.Ansatz,1,0)) -> 0 | L65: =IF(C65=0,0,VALUE(LEFT(C65,3))) -> 0 | Q65: 0 | R65: 0 | S65: 0 | T65: 0 | U65: 0 | V65: 0
A66: =OR(A67:A69) -> FALSE | B66: 349 | C66: Inlandsanleihen für Investitionszwecke | F66: =SUMPRODUCT(F67:F69,$K67:$K69) -> 0 | G66: =SUMPRODUCT(G67:G69,$K67:$K69) -> 0 | H66: =SUMPRODUCT(H67:H69,$K67:$K69) -> 0 | I66: =SUMPRODUCT(I67:I69,$K67:$K69) -> 0 | J66: 0
A67: =K67>0 -> FALSE | F67: 0 | G67: 0 | J67: 0 | K67: =IF(C67=0,0,IF(VALUE(LEFT(C67,3))=wST.Ansatz,1,0)) -> 0 | L67: =IF(C67=0,0,VALUE(LEFT(C67,3))) -> 0 | O67: =IF(AND(P67="",C67=""),"",IF(AND(C67<>"",P67=""),"Keine Zuordnung",IF(OR(P67=$Q$7,P67=$R$7,P67=$S$7),"OK","Falsche Kostenstelle"))) ->  | Q67: 0 | R67: 0 | S67: 0 | T67: 0 | U67: 0 | V67: 0
A68: =K68>0 -> FALSE | F68: 0 | G68: 0 | J68: =SUM(G68,H68,-I68) -> 0 | K68: =IF(C68=0,0,IF(VALUE(LEFT(C68,3))=wST.Ansatz,1,0)) -> 0 | L68: =IF(C68=0,0,VALUE(LEFT(C68,3))) -> 0 | Q68: 0 | R68: 0 | S68: 0 | T68: 0 | U68: 0 | V68: 0
A69: =K69>0 -> FALSE | F69: 0 | G69: 0 | J69: 0 | K69: =IF(C69=0,0,IF(VALUE(LEFT(C69,3))=wST.Ansatz,1,0)) -> 0 | L69: =IF(C69=0,0,VALUE(LEFT(C69,3))) -> 0 | Q69: 0 | R69: 0 | S69: 0 | T69: 0 | U69: 0 | V69: 0
A70: =OR(A71,A75,A79,A83,A87,A91,A95,A99,A103,A107,) -> FALSE | B70: 35 | C70: AUFNAHME LANGFRISTIGER UND KURZFRISTIGER FINANZSCHULDEN | F70: =SUM(F71,F75,F79,F83,F87,F91,F95,F99,F103,F107) -> 0 | G70: =SUM(G71,G75,G79,G83,G87,G91,G95,G99,G103,G107) -> 0 | H70: =SUM(H71,H75,H79,H83,H87,H91,H95,H99,H103,H107) -> 0 | I70: =SUM(I71,I75,I79,I83,I87,I91,I95,I99,I103,I107) -> 0 | J70: =SUM(J71,J75,J79,J83,J87,J91,J95,J99,J103,J107) -> 0
A71: =OR(A72:A74) -> FALSE | B71: 350 | C71: Finanzschulden in Euro gegenüber Bund, Bundesfonds und Bundeskammern | F71: =SUMPRODUCT(F72:F74,$K72:$K74) -> 0 | G71: =SUMPRODUCT(G72:G74,$K72:$K74) -> 0 | H71: =SUMPRODUCT(H72:H74,$K72:$K74) -> 0 | I71: =SUMPRODUCT(I72:I74,$K72:$K74) -> 0 | J71: =SUM(G71,H71,-I71) -> 0
A72: =K72>0 -> FALSE | F72: 0 | G72: 0 | J72: 0 | K72: =IF(C72=0,0,IF(VALUE(LEFT(C72,3))=wST.Ansatz,1,0)) -> 0 | L72: =IF(C72=0,0,VALUE(LEFT(C72,3))) -> 0
A73: =K73>0 -> FALSE | F73: 0 | G73: 0 | J73: 0 | K73: =IF(C73=0,0,IF(VALUE(LEFT(C73,3))=wST.Ansatz,1,0)) -> 0 | L73: =IF(C73=0,0,VALUE(LEFT(C73,3))) -> 0
A74: =K74>0 -> FALSE | F74: 0 | G74: 0 | J74: 0 | K74: =IF(C74=0,0,IF(VALUE(LEFT(C74,3))=wST.Ansatz,1,0)) -> 0 | L74: =IF(C74=0,0,VALUE(LEFT(C74,3))) -> 0
A75: =OR(A76:A78) -> FALSE | B75: 351 | C75: Finanzschulden in Euro gegenüber Ländern, Landesfonds und Landeskammern | F75: =SUMPRODUCT(F76:F78,$K76:$K78) -> 0 | G75: =SUMPRODUCT(G76:G78,$K76:$K78) -> 0 | H75: =SUMPRODUCT(H76:H78,$K76:$K78) -> 0 | I75: =SUMPRODUCT(I76:I78,$K76:$K78) -> 0 | J75: 0
A76: =K76>0 -> FALSE | F76: 0 | G76: 0 | J76: 0 | K76: =IF(C76=0,0,IF(VALUE(LEFT(C76,3))=wST.Ansatz,1,0)) -> 0 | L76: =IF(C76=0,0,VALUE(LEFT(C76,3))) -> 0
A77: =K77>0 -> FALSE | F77: 0 | G77: 0 | J77: 0 | K77: =IF(C77=0,0,IF(VALUE(LEFT(C77,3))=wST.Ansatz,1,0)) -> 0 | L77: =IF(C77=0,0,VALUE(LEFT(C77,3))) -> 0
A78: =K78>0 -> FALSE | F78: 0 | G78: 0 | J78: 0 | K78: =IF(C78=0,0,IF(VALUE(LEFT(C78,3))=wST.Ansatz,1,0)) -> 0 | L78: =IF(C78=0,0,VALUE(LEFT(C78,3))) -> 0
A79: =OR(A80:A82) -> FALSE | B79: 352 | C79: Finanzschulden in Euro geg. Gde, Gdeverb. (o. marktb. Tät.) u. Gdefonds inkl. innerer Darlehen | F79: =SUMPRODUCT(F80:F82,$K80:$K82) -> 0 | G79: =SUMPRODUCT(G80:G82,$K80:$K82) -> 0 | H79: =SUMPRODUCT(H80:H82,$K80:$K82) -> 0 | I79: =SUMPRODUCT(I80:I82,$K80:$K82) -> 0 | J79: 0
A80: =K80>0 -> FALSE | F80: 0 | G80: 0 | J80: 0 | K80: =IF(C80=0,0,IF(VALUE(LEFT(C80,3))=wST.Ansatz,1,0)) -> 0 | L80: =IF(C80=0,0,VALUE(LEFT(C80,3))) -> 0
A81: =K81>0 -> FALSE | F81: 0 | G81: 0 | J81: 0 | K81: =IF(C81=0,0,IF(VALUE(LEFT(C81,3))=wST.Ansatz,1,0)) -> 0 | L81: =IF(C81=0,0,VALUE(LEFT(C81,3))) -> 0
A82: =K82>0 -> FALSE | F82: 0 | G82: 0 | J82: 0 | K82: =IF(C82=0,0,IF(VALUE(LEFT(C82,3))=wST.Ansatz,1,0)) -> 0 | L82: =IF(C82=0,0,VALUE(LEFT(C82,3))) -> 0
A83: =OR(A84:A86) -> FALSE | B83: 353 | C83: Finanzschulden in Euro gegenüber Sozialversicherungsträgern | F83: =SUMPRODUCT(F84:F86,$K84:$K86) -> 0 | G83: =SUMPRODUCT(G84:G86,$K84:$K86) -> 0 | H83: =SUMPRODUCT(H84:H86,$K84:$K86) -> 0 | I83: =SUMPRODUCT(I84:I86,$K84:$K86) -> 0 | J83: 0
A84: =K84>0 -> FALSE | F84: 0 | G84: 0 | J84: 0 | K84: =IF(C84=0,0,IF(VALUE(LEFT(C84,3))=wST.Ansatz,1,0)) -> 0 | L84: =IF(C84=0,0,VALUE(LEFT(C84,3))) -> 0
A85: =K85>0 -> FALSE | F85: 0 | G85: 0 | J85: 0 | K85: =IF(C85=0,0,IF(VALUE(LEFT(C85,3))=wST.Ansatz,1,0)) -> 0 | L85: =IF(C85=0,0,VALUE(LEFT(C85,3))) -> 0
A86: =K86>0 -> FALSE | F86: 0 | G86: 0 | J86: 0 | K86: =IF(C86=0,0,IF(VALUE(LEFT(C86,3))=wST.Ansatz,1,0)) -> 0 | L86: =IF(C86=0,0,VALUE(LEFT(C86,3))) -> 0
A87: =OR(A88:A90) -> FALSE | B87: 354 | C87: Finanzschulden in Euro gegenüber sonst. Trägern des öffentlichen Rechtes | F87: =SUMPRODUCT(F88:F90,$K88:$K90) -> 0 | G87: =SUMPRODUCT(G88:G90,$K88:$K90) -> 0 | H87: =SUMPRODUCT(H88:H90,$K88:$K90) -> 0 | I87: =SUMPRODUCT(I88:I90,$K88:$K90) -> 0 | J87: 0
A88: =K88>0 -> FALSE | F88: 0 | G88: 0 | J88: 0 | K88: =IF(C88=0,0,IF(VALUE(LEFT(C88,3))=wST.Ansatz,1,0)) -> 0 | L88: =IF(C88=0,0,VALUE(LEFT(C88,3))) -> 0
A89: =K89>0 -> FALSE | F89: 0 | G89: 0 | J89: 0 | K89: =IF(C89=0,0,IF(VALUE(LEFT(C89,3))=wST.Ansatz,1,0)) -> 0 | L89: =IF(C89=0,0,VALUE(LEFT(C89,3))) -> 0
A90: =K90>0 -> FALSE | F90: 0 | G90: 0 | J90: 0 | K90: =IF(C90=0,0,IF(VALUE(LEFT(C90,3))=wST.Ansatz,1,0)) -> 0 | L90: =IF(C90=0,0,VALUE(LEFT(C90,3))) -> 0
A91: =OR(A92:A94) -> FALSE | B91: 355 | C91: Finanzschulden in Euro gegenüber Beteiligungen | F91: =SUMPRODUCT(F92:F94,$K92:$K94) -> 0 | G91: =SUMPRODUCT(G92:G94,$K92:$K94) -> 0 | H91: =SUMPRODUCT(H92:H94,$K92:$K94) -> 0 | I91: =SUMPRODUCT(I92:I94,$K92:$K94) -> 0 | J91: 0
A92: =K92>0 -> FALSE | F92: 0 | G92: 0 | J92: 0 | K92: =IF(C92=0,0,IF(VALUE(LEFT(C92,3))=wST.Ansatz,1,0)) -> 0 | L92: =IF(C92=0,0,VALUE(LEFT(C92,3))) -> 0
A93: =K93>0 -> FALSE | F93: 0 | G93: 0 | J93: 0 | K93: =IF(C93=0,0,IF(VALUE(LEFT(C93,3))=wST.Ansatz,1,0)) -> 0 | L93: =IF(C93=0,0,VALUE(LEFT(C93,3))) -> 0
A94: =K94>0 -> FALSE | F94: 0 | G94: 0 | J94: 0 | K94: =IF(C94=0,0,IF(VALUE(LEFT(C94,3))=wST.Ansatz,1,0)) -> 0 | L94: =IF(C94=0,0,VALUE(LEFT(C94,3))) -> 0
A95: =OR(A96:A98) -> FALSE | B95: 356 | C95: Finanzschulden in Euro gegenüber Finanzunternehmen | F95: =SUMPRODUCT(F96:F98,$K96:$K98) -> 0 | G95: =SUMPRODUCT(G96:G98,$K96:$K98) -> 0 | H95: =SUMPRODUCT(H96:H98,$K96:$K98) -> 0 | I95: =SUMPRODUCT(I96:I98,$K96:$K98) -> 0 | J95: 0
A96: =K96>0 -> FALSE | F96: 0 | G96: 0 | J96: 0 | K96: =IF(C96=0,0,IF(VALUE(LEFT(C96,3))=wST.Ansatz,1,0)) -> 0 | L96: =IF(C96=0,0,VALUE(LEFT(C96,3))) -> 0
A97: =K97>0 -> FALSE | F97: 0 | G97: 0 | J97: 0 | K97: =IF(C97=0,0,IF(VALUE(LEFT(C97,3))=wST.Ansatz,1,0)) -> 0 | L97: =IF(C97=0,0,VALUE(LEFT(C97,3))) -> 0
A98: =K98>0 -> FALSE | F98: 0 | G98: 0 | J98: 0 | K98: =IF(C98=0,0,IF(VALUE(LEFT(C98,3))=wST.Ansatz,1,0)) -> 0 | L98: =IF(C98=0,0,VALUE(LEFT(C98,3))) -> 0
A99: =OR(A100:A102) -> FALSE | B99: 357 | C99: Finanzschulden in Euro gegenüber Unternehmen (ohne Finanzunternehmen) und anderen | F99: =SUMPRODUCT(F100:F102,$K100:$K102) -> 0 | G99: =SUMPRODUCT(G100:G102,$K100:$K102) -> 0 | H99: =SUMPRODUCT(H100:H102,$K100:$K102) -> 0 | I99: =SUMPRODUCT(I100:I102,$K100:$K102) -> 0 | J99: 0
A100: =K100>0 -> FALSE | F100: 0 | G100: 0 | J100: 0 | K100: =IF(C100=0,0,IF(VALUE(LEFT(C100,3))=wST.Ansatz,1,0)) -> 0 | L100: =IF(C100=0,0,VALUE(LEFT(C100,3))) -> 0
A101: =K101>0 -> FALSE | F101: 0 | G101: 0 | J101: 0 | K101: =IF(C101=0,0,IF(VALUE(LEFT(C101,3))=wST.Ansatz,1,0)) -> 0 | L101: =IF(C101=0,0,VALUE(LEFT(C101,3))) -> 0
A102: =K102>0 -> FALSE | F102: 0 | G102: 0 | J102: 0 | K102: =IF(C102=0,0,IF(VALUE(LEFT(C102,3))=wST.Ansatz,1,0)) -> 0 | L102: =IF(C102=0,0,VALUE(LEFT(C102,3))) -> 0
A103: =OR(A104:A106) -> FALSE | B103: 358 | C103: Kurzfristige Finanzschulden aus Barvorlagen | F103: =SUMPRODUCT(F104:F106,$K104:$K106) -> 0 | G103: =SUMPRODUCT(G104:G106,$K104:$K106) -> 0 | H103: =SUMPRODUCT(H104:H106,$K104:$K106) -> 0 | I103: =SUMPRODUCT(I104:I106,$K104:$K106) -> 0 | J103: 0
A104: =K104>0 -> FALSE | F104: 0 | G104: 0 | J104: 0 | K104: =IF(C104=0,0,IF(VALUE(LEFT(C104,3))=wST.Ansatz,1,0)) -> 0 | L104: =IF(C104=0,0,VALUE(LEFT(C104,3))) -> 0
A105: =K105>0 -> FALSE | F105: 0 | G105: 0 | J105: 0 | K105: =IF(C105=0,0,IF(VALUE(LEFT(C105,3))=wST.Ansatz,1,0)) -> 0 | L105: =IF(C105=0,0,VALUE(LEFT(C105,3))) -> 0
A106: =K106>0 -> FALSE | F106: 0 | G106: 0 | J106: 0 | K106: =IF(C106=0,0,IF(VALUE(LEFT(C106,3))=wST.Ansatz,1,0)) -> 0 | L106: =IF(C106=0,0,VALUE(LEFT(C106,3))) -> 0
A107: =OR(A108:A110) -> FALSE | B107: 359 | C107: Sonstige kurzfristige Finanzschulden | F107: =SUMPRODUCT(F108:F110,$K108:$K110) -> 0 | G107: =SUMPRODUCT(G108:G110,$K108:$K110) -> 0 | H107: =SUMPRODUCT(H108:H110,$K108:$K110) -> 0 | I107: =SUMPRODUCT(I108:I110,$K108:$K110) -> 0 | J107: 0
A108: =K108>0 -> FALSE | F108: 0 | G108: 0 | J108: 0 | K108: =IF(C108=0,0,IF(VALUE(LEFT(C108,3))=wST.Ansatz,1,0)) -> 0 | L108: =IF(C108=0,0,VALUE(LEFT(C108,3))) -> 0
A109: =K109>0 -> FALSE | F109: 0 | G109: 0 | J109: 0 | K109: =IF(C109=0,0,IF(VALUE(LEFT(C109,3))=wST.Ansatz,1,0)) -> 0 | L109: =IF(C109=0,0,VALUE(LEFT(C109,3))) -> 0
A110: =K110>0 -> FALSE | F110: 0 | G110: 0 | J110: 0 | K110: =IF(C110=0,0,IF(VALUE(LEFT(C110,3))=wST.Ansatz,1,0)) -> 0 | L110: =IF(C110=0,0,VALUE(LEFT(C110,3))) -> 0
A111: Ende
C114: TEILERGEBNIS | F114: =SUBTOTAL(9,F19:F21,F23:F25,F27:F29,F31:F33,F35:F37,F39:F41,F43:F57,F59:F61,F63:F65,F67:F69,F72:F74,F76:F78,F80:F82,F84:F86,F88:F90,F92:F94,F96:F98,F100:F102,F104:F106,F108:F110) -> 0 | G114: =SUBTOTAL(9,G19:G21,G23:G25,G27:G29,G31:G33,G35:G37,G39:G41,G43:G57,G59:G61,G63:G65,G67:G69,G72:G74,G76:G78,G80:G82,G84:G86,G88:G90,G92:G94,G96:G98,G100:G102,G104:G106,G108:G110) -> 0 | H114: =SUBTOTAL(9,H19:H21,H23:H25,H27:H29,H31:H33,H35:H37,H39:H41,H43:H57,H59:H61,H63:H65,H67:H69,H72:H74,H76:H78,H80:H82,H84:H86,H88:H90,H92:H94,H96:H98,H100:H102,H104:H106,H108:H110) -> 0 | I114: =SUBTOTAL(9,I19:I21,I23:I25,I27:I29,I31:I33,I35:I37,I39:I41,I43:I57,I59:I61,I63:I65,I67:I69,I72:I74,I76:I78,I80:I82,I84:I86,I88:I90,I92:I94,I96:I98,I100:I102,I104:I106,I108:I110) -> 0 | J114: =SUBTOTAL(9,J19:J21,J23:J25,J27:J29,J31:J33,J35:J37,J39:J41,J43:J57,J59:J61,J63:J65,J67:J69,J72:J74,J76:J78,J80:J82,J84:J86,J88:J90,J92:J94,J96:J98,J100:J102,J104:J106,J108:J110) -> 0 | K114: =SUBTOTAL(9,N40:N78,N34:N37,N26:N32,N24:N24,N19:N23,N3:N7,#REF!,#REF!,#REF!,#REF!,#REF!,#REF!,#REF!) ->  | L114: =SUBTOTAL(9,O40:O78,O34:O37,O26:O32,O24:O24,O19:O23,O3:O7,#REF!,#REF!,#REF!,#REF!,#REF!,#REF!,#REF!) -> 

Sheet Anlagenzusammenfassung
A1: FALSE | K1: IZ | S1: FZ
A2: FALSE
A3: TRUE | B3: =CONCATENATE("Anlagenzusammenfassung Wasserversorgung Rechnungsabschluss "&BAB!J12," KLR-Ebene: "&Info!C17) -> Anlagenzusammenfassung Wasserversorgung Rechnungsabschluss 2017 KLR-Ebene:
A5: TRUE | B5: Zuordnung Anlagen-zusammen-fassung | C5: Anschaffungswert | G5: AfA | K5: Schlüssige Finanzierung
A6: TRUE | C6: Anfangsbestand | D6: Zugang | E6: Abgang | F6: Endbestand | G6: ="im Jahr "&YEAR(wST.PeriodeEnde) -> im Jahr 2017 | H6: kum. AfA | I6: Restbuchwert | J6: Anschaffungs-kosten | K6: Subventionen (IZ) Bund / Land / Gemeinde / EU | L6: Interessenten - beiträge | M6: Darlehen | N6: Inneres Darlehen | O6: Finanzierungs-Leasing und Forderungskauf (Nominale) | P6: Rücklagen | Q6: OH / Operative Gebarung | R6: Ausgelaufene Darlehen (Nominale) | S6: Finanzierungs-zuschüsse (Barwert) | T6: SALDO (ohne Finanzie- rungszuschüsse)
A7: =B7<>"" -> FALSE | C7: =SUMIF(Anlagen!$Z$7:$Z$88,$B7,Anlagen!$I$7:$I$88) -> 0 | D7: =SUMIF(Anlagen!$Z$7:$Z$88,$B7,Anlagen!$J$7:$J$88) -> 0 | E7: =SUMIF(Anlagen!$Z$7:$Z$88,$B7,Anlagen!$K$7:$K$88) -> 0 | F7: =C7+D7-E7 -> 0 | G7: =SUMIF(Anlagen!$Z$7:$Z$88,$B7,Anlagen!$Q$7:$Q$88) -> 0 | H7: =SUMIF(Anlagen!$Z$7:$Z$88,$B7,Anlagen!$T$7:$T$88) -> 0 | I7: =SUMIF(Anlagen!$Z$7:$Z$88,$B7,Anlagen!$U$7:$U$88) -> 0 | J7: =F7 -> 0 | K7: =SUMIFS(Anlagen!$L$92:$L$134,Anlagen!$Z$92:$Z$134,B7,Anlagen!$AA$92:$AA$134,$K$1) -> 0 | L7: =SUMIF(Anlagen!$Z$138:$Z$158,$B7,Anlagen!$L$138:$L$158) -> 0 | M7: =SUMIF(Schulden!N:N,$B7,Schulden!F:F)-N7-O7 -> 0 | N7: =SUMIF(Schulden!$N$27:$N$29,$B7,Schulden!$F$27:$F$29)+SUMIF(Schulden!$N$80:$N$82,$B7,Schulden!$F$80:$F$82) -> 0 | O7: =SUMIF(Schulden!$N$10:$N$16,$B7,Schulden!$F$10:$F$16) -> 0 | S7: =SUMIFS(Anlagen!$L$92:$L$134,Anlagen!$Z$92:$Z$134,B7,Anlagen!$AA$92:$AA$134,$S$1) -> 0 | T7: =(K7+L7+M7+N7+O7+P7+Q7+R7)-J7 -> 0 | W7: =IF(T7>=0,T7,"") -> 0 | X7: =IF(W7="",T7,"") -> 
A8: =B8<>"" -> FALSE | C8: =SUMIF(Anlagen!$Z$7:$Z$88,$B8,Anlagen!$I$7:$I$88) -> 0 | D8: =SUMIF(Anlagen!$Z$7:$Z$88,$B8,Anlagen!$J$7:$J$88) -> 0 | E8: =SUMIF(Anlagen!$Z$7:$Z$88,$B8,Anlagen!$K$7:$K$88) -> 0 | F8: =C8+D8-E8 -> 0 | G8: =SUMIF(Anlagen!$Z$7:$Z$88,$B8,Anlagen!$Q$7:$Q$88) -> 0 | H8: =SUMIF(Anlagen!$Z$7:$Z$88,$B8,Anlagen!$T$7:$T$88) -> 0 | I8: =SUMIF(Anlagen!$Z$7:$Z$88,$B8,Anlagen!$U$7:$U$88) -> 0 | J8: =F8 -> 0 | K8: =SUMIFS(Anlagen!$L$92:$L$134,Anlagen!$Z$92:$Z$134,B8,Anlagen!$AA$92:$AA$134,$K$1) -> 0 | L8: =SUMIF(Anlagen!$Z$138:$Z$158,$B8,Anlagen!$L$138:$L$158) -> 0 | M8: =SUMIF(Schulden!N:N,$B8,Schulden!F:F)-N8-O8 -> 0 | N8: =SUMIF(Schulden!$N$27:$N$29,$B8,Schulden!$F$27:$F$29)+SUMIF(Schulden!$N$80:$N$82,$B8,Schulden!$F$80:$F$82) -> 0 | O8: =SUMIF(Schulden!$N$10:$N$16,$B8,Schulden!$F$10:$F$16) -> 0 | S8: =SUMIFS(Anlagen!$L$92:$L$134,Anlagen!$Z$92:$Z$134,B8,Anlagen!$AA$92:$AA$134,$S$1) -> 0 | T8: 0 | W8: =IF(T8>=0,T8,"") -> 0 | X8: =IF(W8="",T8,"") -> 
A9: FALSE | C9: =SUMIF(Anlagen!$Z$7:$Z$88,$B9,Anlagen!$I$7:$I$88) -> 0 | D9: =SUMIF(Anlagen!$Z$7:$Z$88,$B9,Anlagen!$J$7:$J$88) -> 0 | E9: =SUMIF(Anlagen!$Z$7:$Z$88,$B9,Anlagen!$K$7:$K$88) -> 0 | F9: 0 | G9: =SUMIF(Anlagen!$Z$7:$Z$88,$B9,Anlagen!$Q$7:$Q$88) -> 0 | H9: =SUMIF(Anlagen!$Z$7:$Z$88,$B9,Anlagen!$T$7:$T$88) -> 0 | I9: =SUMIF(Anlagen!$Z$7:$Z$88,$B9,Anlagen!$U$7:$U$88) -> 0 | J9: 0 | K9: =SUMIFS(Anlagen!$L$92:$L$134,Anlagen!$Z$92:$Z$134,B9,Anlagen!$AA$92:$AA$134,$K$1) -> 0 | L9: =SUMIF(Anlagen!$Z$138:$Z$158,$B9,Anlagen!$L$138:$L$158) -> 0 | M9: =SUMIF(Schulden!N:N,$B9,Schulden!F:F)-N9-O9 -> 0 | N9: =SUMIF(Schulden!$N$27:$N$29,$B9,Schulden!$F$27:$F$29)+SUMIF(Schulden!$N$80:$N$82,$B9,Schulden!$F$80:$F$82) -> 0 | O9: =SUMIF(Schulden!$N$10:$N$16,$B9,Schulden!$F$10:$F$16) -> 0 | S9: =SUMIFS(Anlagen!$L$92:$L$134,Anlagen!$Z$92:$Z$134,B9,Anlagen!$AA$92:$AA$134,$S$1) -> 0 | T9: 0 | W9: =IF(T9>=0,T9,"") -> 0
A10: =B10<>"" -> FALSE | C10: =SUMIF(Anlagen!$Z$7:$Z$88,$B10,Anlagen!$I$7:$I$88) -> 0 | D10: =SUMIF(Anlagen!$Z$7:$Z$88,$B10,Anlagen!$J$7:$J$88) -> 0 | E10: =SUMIF(Anlagen!$Z$7:$Z$88,$B10,Anlagen!$K$7:$K$88) -> 0 | F10: =C10+D10-E10 -> 0 | G10: =SUMIF(Anlagen!$Z$7:$Z$88,$B10,Anlagen!$Q$7:$Q$88) -> 0 | H10: =SUMIF(Anlagen!$Z$7:$Z$88,$B10,Anlagen!$T$7:$T$88) -> 0 | I10: =SUMIF(Anlagen!$Z$7:$Z$88,$B10,Anlagen!$U$7:$U$88) -> 0 | J10: =F10 -> 0 | K10: =SUMIFS(Anlagen!$L$92:$L$134,Anlagen!$Z$92:$Z$134,B10,Anlagen!$AA$92:$AA$134,$K$1) -> 0 | L10: =SUMIF(Anlagen!$Z$138:$Z$158,$B10,Anlagen!$L$138:$L$158) -> 0 | M10: =SUMIF(Schulden!N:N,$B10,Schulden!F:F)-N10-O10 -> 0 | N10: =SUMIF(Schulden!$N$27:$N$29,$B10,Schulden!$F$27:$F$29)+SUMIF(Schulden!$N$80:$N$82,$B10,Schulden!$F$80:$F$82) -> 0 | O10: =SUMIF(Schulden!$N$10:$N$16,$B10,Schulden!$F$10:$F$16) -> 0 | S10: =SUMIFS(Anlagen!$L$92:$L$134,Anlagen!$Z$92:$Z$134,B10,Anlagen!$AA$92:$AA$134,$S$1) -> 0 | T10: 0 | W10: 0
A11: =B11<>"" -> FALSE | C11: =SUMIF(Anlagen!$Z$7:$Z$88,$B11,Anlagen!$I$7:$I$88) -> 0 | D11: =SUMIF(Anlagen!$Z$7:$Z$88,$B11,Anlagen!$J$7:$J$88) -> 0 | E11: =SUMIF(Anlagen!$Z$7:$Z$88,$B11,Anlagen!$K$7:$K$88) -> 0 | F11: 0 | G11: =SUMIF(Anlagen!$Z$7:$Z$88,$B11,Anlagen!$Q$7:$Q$88) -> 0 | H11: =SUMIF(Anlagen!$Z$7:$Z$88,$B11,Anlagen!$T$7:$T$88) -> 0 | I11: =SUMIF(Anlagen!$Z$7:$Z$88,$B11,Anlagen!$U$7:$U$88) -> 0 | J11: =F11 -> 0 | K11: =SUMIFS(Anlagen!$L$92:$L$134,Anlagen!$Z$92:$Z$134,B11,Anlagen!$AA$92:$AA$134,$K$1) -> 0 | L11: =SUMIF(Anlagen!$Z$138:$Z$158,$B11,Anlagen!$L$138:$L$158) -> 0 | M11: =SUMIF(Schulden!N:N,$B11,Schulden!F:F)-N11-O11 -> 0 | N11: =SUMIF(Schulden!$N$27:$N$29,$B11,Schulden!$F$27:$F$29)+SUMIF(Schulden!$N$80:$N$82,$B11,Schulden!$F$80:$F$82) -> 0 | O11: =SUMIF(Schulden!$N$10:$N$16,$B11,Schulden!$F$10:$F$16) -> 0 | S11: =SUMIFS(Anlagen!$L$92:$L$134,Anlagen!$Z$92:$Z$134,B11,Anlagen!$AA$92:$AA$134,$S$1) -> 0 | T11: 0 | W11: 0
A12: =B12<>"" -> FALSE | C12: =SUMIF(Anlagen!$Z$7:$Z$88,$B12,Anlagen!$I$7:$I$88) -> 0 | D12: =SUMIF(Anlagen!$Z$7:$Z$88,$B12,Anlagen!$J$7:$J$88) -> 0 | E12: =SUMIF(Anlagen!$Z$7:$Z$88,$B12,Anlagen!$K$7:$K$88) -> 0 | F12: 0 | G12: =SUMIF(Anlagen!$Z$7:$Z$88,$B12,Anlagen!$Q$7:$Q$88) -> 0 | H12: =SUMIF(Anlagen!$Z$7:$Z$88,$B12,Anlagen!$T$7:$T$88) -> 0 | I12: =SUMIF(Anlagen!$Z$7:$Z$88,$B12,Anlagen!$U$7:$U$88) -> 0 | J12: =F12 -> 0 | K12: =SUMIFS(Anlagen!$L$92:$L$134,Anlagen!$Z$92:$Z$134,B12,Anlagen!$AA$92:$AA$134,$K$1) -> 0 | L12: =SUMIF(Anlagen!$Z$138:$Z$158,$B12,Anlagen!$L$138:$L$158) -> 0 | M12: =SUMIF(Schulden!N:N,$B12,Schulden!F:F)-N12-O12 -> 0 | N12: =SUMIF(Schulden!$N$27:$N$29,$B12,Schulden!$F$27:$F$29)+SUMIF(Schulden!$N$80:$N$82,$B12,Schulden!$F$80:$F$82) -> 0 | O12: =SUMIF(Schulden!$N$10:$N$16,$B12,Schulden!$F$10:$F$16) -> 0 | S12: =SUMIFS(Anlagen!$L$92:$L$134,Anlagen!$Z$92:$Z$134,B12,Anlagen!$AA$92:$AA$134,$S$1) -> 0 | T12: 0 | W12: 0
A13: =B13<>"" -> FALSE | C13: =SUMIF(Anlagen!$Z$7:$Z$88,$B13,Anlagen!$I$7:$I$88) -> 0 | D13: =SUMIF(Anlagen!$Z$7:$Z$88,$B13,Anlagen!$J$7:$J$88) -> 0 | E13: =SUMIF(Anlagen!$Z$7:$Z$88,$B13,Anlagen!$K$7:$K$88) -> 0 | F13: 0 | G13: =SUMIF(Anlagen!$Z$7:$Z$88,$B13,Anlagen!$Q$7:$Q$88) -> 0 | H13: =SUMIF(Anlagen!$Z$7:$Z$88,$B13,Anlagen!$T$7:$T$88) -> 0 | I13: =SUMIF(Anlagen!$Z$7:$Z$88,$B13,Anlagen!$U$7:$U$88) -> 0 | J13: =F13 -> 0 | K13: =SUMIFS(Anlagen!$L$92:$L$134,Anlagen!$Z$92:$Z$134,B13,Anlagen!$AA$92:$AA$134,$K$1) -> 0 | L13: =SUMIF(Anlagen!$Z$138:$Z$158,$B13,Anlagen!$L$138:$L$158) -> 0 | M13: =SUMIF(Schulden!N:N,$B13,Schulden!F:F)-N13-O13 -> 0 | N13: =SUMIF(Schulden!$N$27:$N$29,$B13,Schulden!$F$27:$F$29)+SUMIF(Schulden!$N$80:$N$82,$B13,Schulden!$F$80:$F$82) -> 0 | O13: =SUMIF(Schulden!$N$10:$N$16,$B13,Schulden!$F$10:$F$16) -> 0 | S13: =SUMIFS(Anlagen!$L$92:$L$134,Anlagen!$Z$92:$Z$134,B13,Anlagen!$AA$92:$AA$134,$S$1) -> 0 | T13: 0 | W13: 0
A14: =B14<>"" -> FALSE | C14: =SUMIF(Anlagen!$Z$7:$Z$88,$B14,Anlagen!$I$7:$I$88) -> 0 | D14: =SUMIF(Anlagen!$Z$7:$Z$88,$B14,Anlagen!$J$7:$J$88) -> 0 | E14: =SUMIF(Anlagen!$Z$7:$Z$88,$B14,Anlagen!$K$7:$K$88) -> 0 | F14: 0 | G14: =SUMIF(Anlagen!$Z$7:$Z$88,$B14,Anlagen!$Q$7:$Q$88) -> 0 | H14: =SUMIF(Anlagen!$Z$7:$Z$88,$B14,Anlagen!$T$7:$T$88) -> 0 | I14: =SUMIF(Anlagen!$Z$7:$Z$88,$B14,Anlagen!$U$7:$U$88) -> 0 | J14: =F14 -> 0 | K14: =SUMIFS(Anlagen!$L$92:$L$134,Anlagen!$Z$92:$Z$134,B14,Anlagen!$AA$92:$AA$134,$K$1) -> 0 | L14: =SUMIF(Anlagen!$Z$138:$Z$158,$B14,Anlagen!$L$138:$L$158) -> 0 | M14: =SUMIF(Schulden!N:N,$B14,Schulden!F:F)-N14-O14 -> 0 | N14: =SUMIF(Schulden!$N$27:$N$29,$B14,Schulden!$F$27:$F$29)+SUMIF(Schulden!$N$80:$N$82,$B14,Schulden!$F$80:$F$82) -> 0 | O14: =SUMIF(Schulden!$N$10:$N$16,$B14,Schulden!$F$10:$F$16) -> 0 | S14: =SUMIFS(Anlagen!$L$92:$L$134,Anlagen!$Z$92:$Z$134,B14,Anlagen!$AA$92:$AA$134,$S$1) -> 0 | T14: 0 | W14: 0
A15: =B15<>"" -> FALSE | C15: =SUMIF(Anlagen!$Z$7:$Z$88,$B15,Anlagen!$I$7:$I$88) -> 0 | D15: =SUMIF(Anlagen!$Z$7:$Z$88,$B15,Anlagen!$J$7:$J$88) -> 0 | E15: =SUMIF(Anlagen!$Z$7:$Z$88,$B15,Anlagen!$K$7:$K$88) -> 0 | F15: 0 | G15: =SUMIF(Anlagen!$Z$7:$Z$88,$B15,Anlagen!$Q$7:$Q$88) -> 0 | H15: =SUMIF(Anlagen!$Z$7:$Z$88,$B15,Anlagen!$T$7:$T$88) -> 0 | I15: =SUMIF(Anlagen!$Z$7:$Z$88,$B15,Anlagen!$U$7:$U$88) -> 0 | J15: =F15 -> 0 | K15: =SUMIFS(Anlagen!$L$92:$L$134,Anlagen!$Z$92:$Z$134,B15,Anlagen!$AA$92:$AA$134,$K$1) -> 0 | L15: =SUMIF(Anlagen!$Z$138:$Z$158,$B15,Anlagen!$L$138:$L$158) -> 0 | M15: =SUMIF(Schulden!N:N,$B15,Schulden!F:F)-N15-O15 -> 0 | N15: =SUMIF(Schulden!$N$27:$N$29,$B15,Schulden!$F$27:$F$29)+SUMIF(Schulden!$N$80:$N$82,$B15,Schulden!$F$80:$F$82) -> 0 | O15: =SUMIF(Schulden!$N$10:$N$16,$B15,Schulden!$F$10:$F$16) -> 0 | S15: =SUMIFS(Anlagen!$L$92:$L$134,Anlagen!$Z$92:$Z$134,B15,Anlagen!$AA$92:$AA$134,$S$1) -> 0 | T15: 0 | W15: 0
A16: =B16<>"" -> FALSE | C16: =SUMIF(Anlagen!$Z$7:$Z$88,$B16,Anlagen!$I$7:$I$88) -> 0 | D16: =SUMIF(Anlagen!$Z$7:$Z$88,$B16,Anlagen!$J$7:$J$88) -> 0 | E16: =SUMIF(Anlagen!$Z$7:$Z$88,$B16,Anlagen!$K$7:$K$88) -> 0 | F16: 0 | G16: =SUMIF(Anlagen!$Z$7:$Z$88,$B16,Anlagen!$Q$7:$Q$88) -> 0 | H16: =SUMIF(Anlagen!$Z$7:$Z$88,$B16,Anlagen!$T$7:$T$88) -> 0 | I16: =SUMIF(Anlagen!$Z$7:$Z$88,$B16,Anlagen!$U$7:$U$88) -> 0 | J16: =F16 -> 0 | K16: =SUMIFS(Anlagen!$L$92:$L$134,Anlagen!$Z$92:$Z$134,B16,Anlagen!$AA$92:$AA$134,$K$1) -> 0 | L16: =SUMIF(Anlagen!$Z$138:$Z$158,$B16,Anlagen!$L$138:$L$158) -> 0 | M16: =SUMIF(Schulden!N:N,$B16,Schulden!F:F)-N16-O16 -> 0 | N16: =SUMIF(Schulden!$N$27:$N$29,$B16,Schulden!$F$27:$F$29)+SUMIF(Schulden!$N$80:$N$82,$B16,Schulden!$F$80:$F$82) -> 0 | O16: =SUMIF(Schulden!$N$10:$N$16,$B16,Schulden!$F$10:$F$16) -> 0 | S16: =SUMIFS(Anlagen!$L$92:$L$134,Anlagen!$Z$92:$Z$134,B16,Anlagen!$AA$92:$AA$134,$S$1) -> 0 | T16: 0 | W16: 0
A17: =B17<>"" -> FALSE | C17: =SUMIF(Anlagen!$Z$7:$Z$88,$B17,Anlagen!$I$7:$I$88) -> 0 | D17: =SUMIF(Anlagen!$Z$7:$Z$88,$B17,Anlagen!$J$7:$J$88) -> 0 | E17: =SUMIF(Anlagen!$Z$7:$Z$88,$B17,Anlagen!$K$7:$K$88) -> 0 | F17: =C17+D17-E17 -> 0 | G17: =SUMIF(Anlagen!$Z$7:$Z$88,$B17,Anlagen!$Q$7:$Q$88) -> 0 | H17: =SUMIF(Anlagen!$Z$7:$Z$88,$B17,Anlagen!$T$7:$T$88) -> 0 | I17: =SUMIF(Anlagen!$Z$7:$Z$88,$B17,Anlagen!$U$7:$U$88) -> 0 | J17: =F17 -> 0 | K17: =SUMIFS(Anlagen!$L$92:$L$134,Anlagen!$Z$92:$Z$134,B17,Anlagen!$AA$92:$AA$134,$K$1) -> 0 | L17: =SUMIF(Anlagen!$Z$138:$Z$158,$B17,Anlagen!$L$138:$L$158) -> 0 | M17: =SUMIF(Schulden!N:N,$B17,Schulden!F:F)-N17-O17 -> 0 | N17: =SUMIF(Schulden!$N$27:$N$29,$B17,Schulden!$F$27:$F$29)+SUMIF(Schulden!$N$80:$N$82,$B17,Schulden!$F$80:$F$82) -> 0 | O17: =SUMIF(Schulden!$N$10:$N$16,$B17,Schulden!$F$10:$F$16) -> 0 | S17: =SUMIFS(Anlagen!$L$92:$L$134,Anlagen!$Z$92:$Z$134,B17,Anlagen!$AA$92:$AA$134,$S$1) -> 0 | T17: 0 | W17: =IF(T17>=0,T17,"") -> 0 | X17: =IF(W17="",T17,"") -> 
A18: FALSE | C18: =SUMIF(Anlagen!$Z$7:$Z$88,$B18,Anlagen!$I$7:$I$88) -> 0 | D18: =SUMIF(Anlagen!$Z$7:$Z$88,$B18,Anlagen!$J$7:$J$88) -> 0 | E18: =SUMIF(Anlagen!$Z$7:$Z$88,$B18,Anlagen!$K$7:$K$88) -> 0 | F18: 0 | G18: =SUMIF(Anlagen!$Z$7:$Z$88,$B18,Anlagen!$Q$7:$Q$88) -> 0 | H18: =SUMIF(Anlagen!$Z$7:$Z$88,$B18,Anlagen!$T$7:$T$88) -> 0 | I18: =SUMIF(Anlagen!$Z$7:$Z$88,$B18,Anlagen!$U$7:$U$88) -> 0 | J18: 0 | K18: =SUMIFS(Anlagen!$L$92:$L$134,Anlagen!$Z$92:$Z$134,B18,Anlagen!$AA$92:$AA$134,$K$1) -> 0 | L18: =SUMIF(Anlagen!$Z$138:$Z$158,$B18,Anlagen!$L$138:$L$158) -> 0 | M18: =SUMIF(Schulden!N:N,$B18,Schulden!F:F)-N18-O18 -> 0 | N18: =SUMIF(Schulden!$N$27:$N$29,$B18,Schulden!$F$27:$F$29)+SUMIF(Schulden!$N$80:$N$82,$B18,Schulden!$F$80:$F$82) -> 0 | O18: =SUMIF(Schulden!$N$10:$N$16,$B18,Schulden!$F$10:$F$16) -> 0 | S18: =SUMIFS(Anlagen!$L$92:$L$134,Anlagen!$Z$92:$Z$134,B18,Anlagen!$AA$92:$AA$134,$S$1) -> 0 | T18: 0 | W18: 0
A19: FALSE | C19: =SUMIF(Anlagen!$Z$7:$Z$88,$B19,Anlagen!$I$7:$I$88) -> 0 | D19: =SUMIF(Anlagen!$Z$7:$Z$88,$B19,Anlagen!$J$7:$J$88) -> 0 | E19: =SUMIF(Anlagen!$Z$7:$Z$88,$B19,Anlagen!$K$7:$K$88) -> 0 | F19: 0 | G19: =SUMIF(Anlagen!$Z$7:$Z$88,$B19,Anlagen!$Q$7:$Q$88) -> 0 | H19: =SUMIF(Anlagen!$Z$7:$Z$88,$B19,Anlagen!$T$7:$T$88) -> 0 | I19: =SUMIF(Anlagen!$Z$7:$Z$88,$B19,Anlagen!$U$7:$U$88) -> 0 | J19: 0 | K19: =SUMIFS(Anlagen!$L$92:$L$134,Anlagen!$Z$92:$Z$134,B19,Anlagen!$AA$92:$AA$134,$K$1) -> 0 | L19: =SUMIF(Anlagen!$Z$138:$Z$158,$B19,Anlagen!$L$138:$L$158) -> 0 | M19: =SUMIF(Schulden!N:N,$B19,Schulden!F:F)-N19-O19 -> 0 | N19: =SUMIF(Schulden!$N$27:$N$29,$B19,Schulden!$F$27:$F$29)+SUMIF(Schulden!$N$80:$N$82,$B19,Schulden!$F$80:$F$82) -> 0 | O19: =SUMIF(Schulden!$N$10:$N$16,$B19,Schulden!$F$10:$F$16) -> 0 | S19: =SUMIFS(Anlagen!$L$92:$L$134,Anlagen!$Z$92:$Z$134,B19,Anlagen!$AA$92:$AA$134,$S$1) -> 0 | T19: 0 | W19: 0
A20: FALSE | C20: =SUMIF(Anlagen!$Z$7:$Z$88,$B20,Anlagen!$I$7:$I$88) -> 0 | D20: =SUMIF(Anlagen!$Z$7:$Z$88,$B20,Anlagen!$J$7:$J$88) -> 0 | E20: =SUMIF(Anlagen!$Z$7:$Z$88,$B20,Anlagen!$K$7:$K$88) -> 0 | F20: 0 | G20: =SUMIF(Anlagen!$Z$7:$Z$88,$B20,Anlagen!$Q$7:$Q$88) -> 0 | H20: =SUMIF(Anlagen!$Z$7:$Z$88,$B20,Anlagen!$T$7:$T$88) -> 0 | I20: =SUMIF(Anlagen!$Z$7:$Z$88,$B20,Anlagen!$U$7:$U$88) -> 0 | J20: 0 | K20: =SUMIFS(Anlagen!$L$92:$L$134,Anlagen!$Z$92:$Z$134,B20,Anlagen!$AA$92:$AA$134,$K$1) -> 0 | L20: =SUMIF(Anlagen!$Z$138:$Z$158,$B20,Anlagen!$L$138:$L$158) -> 0 | M20: =SUMIF(Schulden!N:N,$B20,Schulden!F:F)-N20-O20 -> 0 | N20: =SUMIF(Schulden!$N$27:$N$29,$B20,Schulden!$F$27:$F$29)+SUMIF(Schulden!$N$80:$N$82,$B20,Schulden!$F$80:$F$82) -> 0 | O20: =SUMIF(Schulden!$N$10:$N$16,$B20,Schulden!$F$10:$F$16) -> 0 | S20: =SUMIFS(Anlagen!$L$92:$L$134,Anlagen!$Z$92:$Z$134,B20,Anlagen!$AA$92:$AA$134,$S$1) -> 0 | T20: 0 | W20: 0
A21: FALSE | C21: =SUMIF(Anlagen!$Z$7:$Z$88,$B21,Anlagen!$I$7:$I$88) -> 0 | D21: =SUMIF(Anlagen!$Z$7:$Z$88,$B21,Anlagen!$J$7:$J$88) -> 0 | E21: =SUMIF(Anlagen!$Z$7:$Z$88,$B21,Anlagen!$K$7:$K$88) -> 0 | F21: 0 | G21: =SUMIF(Anlagen!$Z$7:$Z$88,$B21,Anlagen!$Q$7:$Q$88) -> 0 | H21: =SUMIF(Anlagen!$Z$7:$Z$88,$B21,Anlagen!$T$7:$T$88) -> 0 | I21: =SUMIF(Anlagen!$Z$7:$Z$88,$B21,Anlagen!$U$7:$U$88) -> 0 | J21: 0 | K21: =SUMIFS(Anlagen!$L$92:$L$134,Anlagen!$Z$92:$Z$134,B21,Anlagen!$AA$92:$AA$134,$K$1) -> 0 | L21: =SUMIF(Anlagen!$Z$138:$Z$158,$B21,Anlagen!$L$138:$L$158) -> 0 | M21: =SUMIF(Schulden!N:N,$B21,Schulden!F:F)-N21-O21 -> 0 | N21: =SUMIF(Schulden!$N$27:$N$29,$B21,Schulden!$F$27:$F$29)+SUMIF(Schulden!$N$80:$N$82,$B21,Schulden!$F$80:$F$82) -> 0 | O21: =SUMIF(Schulden!$N$10:$N$16,$B21,Schulden!$F$10:$F$16) -> 0 | S21: =SUMIFS(Anlagen!$L$92:$L$134,Anlagen!$Z$92:$Z$134,B21,Anlagen!$AA$92:$AA$134,$S$1) -> 0 | T21: 0 | W21: 0
A22: =B22<>"" -> FALSE | C22: =SUMIF(Anlagen!$Z$7:$Z$88,$B22,Anlagen!$I$7:$I$88) -> 0 | D22: =SUMIF(Anlagen!$Z$7:$Z$88,$B22,Anlagen!$J$7:$J$88) -> 0 | E22: =SUMIF(Anlagen!$Z$7:$Z$88,$B22,Anlagen!$K$7:$K$88) -> 0 | F22: 0 | G22: =SUMIF(Anlagen!$Z$7:$Z$88,$B22,Anlagen!$Q$7:$Q$88) -> 0 | H22: =SUMIF(Anlagen!$Z$7:$Z$88,$B22,Anlagen!$T$7:$T$88) -> 0 | I22: =SUMIF(Anlagen!$Z$7:$Z$88,$B22,Anlagen!$U$7:$U$88) -> 0 | J22: =F22 -> 0 | K22: =SUMIFS(Anlagen!$L$92:$L$134,Anlagen!$Z$92:$Z$134,B22,Anlagen!$AA$92:$AA$134,$K$1) -> 0 | L22: =SUMIF(Anlagen!$Z$138:$Z$158,$B22,Anlagen!$L$138:$L$158) -> 0 | M22: =SUMIF(Schulden!N:N,$B22,Schulden!F:F)-N22-O22 -> 0 | N22: =SUMIF(Schulden!$N$27:$N$29,$B22,Schulden!$F$27:$F$29)+SUMIF(Schulden!$N$80:$N$82,$B22,Schulden!$F$80:$F$82) -> 0 | O22: =SUMIF(Schulden!$N$10:$N$16,$B22,Schulden!$F$10:$F$16) -> 0 | S22: =SUMIFS(Anlagen!$L$92:$L$134,Anlagen!$Z$92:$Z$134,B22,Anlagen!$AA$92:$AA$134,$S$1) -> 0 | T22: 0 | W22: 0
A23: =B23<>"" -> FALSE | C23: =SUMIF(Anlagen!$Z$7:$Z$88,$B23,Anlagen!$I$7:$I$88) -> 0 | D23: =SUMIF(Anlagen!$Z$7:$Z$88,$B23,Anlagen!$J$7:$J$88) -> 0 | E23: =SUMIF(Anlagen!$Z$7:$Z$88,$B23,Anlagen!$K$7:$K$88) -> 0 | F23: 0 | G23: =SUMIF(Anlagen!$Z$7:$Z$88,$B23,Anlagen!$Q$7:$Q$88) -> 0 | H23: =SUMIF(Anlagen!$Z$7:$Z$88,$B23,Anlagen!$T$7:$T$88) -> 0 | I23: =SUMIF(Anlagen!$Z$7:$Z$88,$B23,Anlagen!$U$7:$U$88) -> 0 | J23: =F23 -> 0 | K23: =SUMIFS(Anlagen!$L$92:$L$134,Anlagen!$Z$92:$Z$134,B23,Anlagen!$AA$92:$AA$134,$K$1) -> 0 | L23: =SUMIF(Anlagen!$Z$138:$Z$158,$B23,Anlagen!$L$138:$L$158) -> 0 | M23: =SUMIF(Schulden!N:N,$B23,Schulden!F:F)-N23-O23 -> 0 | N23: =SUMIF(Schulden!$N$27:$N$29,$B23,Schulden!$F$27:$F$29)+SUMIF(Schulden!$N$80:$N$82,$B23,Schulden!$F$80:$F$82) -> 0 | O23: =SUMIF(Schulden!$N$10:$N$16,$B23,Schulden!$F$10:$F$16) -> 0 | S23: =SUMIFS(Anlagen!$L$92:$L$134,Anlagen!$Z$92:$Z$134,B23,Anlagen!$AA$92:$AA$134,$S$1) -> 0 | T23: 0 | W23: 0
A24: =B24<>"" -> FALSE | C24: =SUMIF(Anlagen!$Z$7:$Z$88,$B24,Anlagen!$I$7:$I$88) -> 0 | D24: =SUMIF(Anlagen!$Z$7:$Z$88,$B24,Anlagen!$J$7:$J$88) -> 0 | E24: =SUMIF(Anlagen!$Z$7:$Z$88,$B24,Anlagen!$K$7:$K$88) -> 0 | F24: 0 | G24: =SUMIF(Anlagen!$Z$7:$Z$88,$B24,Anlagen!$Q$7:$Q$88) -> 0 | H24: =SUMIF(Anlagen!$Z$7:$Z$88,$B24,Anlagen!$T$7:$T$88) -> 0 | I24: =SUMIF(Anlagen!$Z$7:$Z$88,$B24,Anlagen!$U$7:$U$88) -> 0 | J24: =F24 -> 0 | K24: =SUMIFS(Anlagen!$L$92:$L$134,Anlagen!$Z$92:$Z$134,B24,Anlagen!$AA$92:$AA$134,$K$1) -> 0 | L24: =SUMIF(Anlagen!$Z$138:$Z$158,$B24,Anlagen!$L$138:$L$158) -> 0 | M24: =SUMIF(Schulden!N:N,$B24,Schulden!F:F)-N24-O24 -> 0 | N24: =SUMIF(Schulden!$N$27:$N$29,$B24,Schulden!$F$27:$F$29)+SUMIF(Schulden!$N$80:$N$82,$B24,Schulden!$F$80:$F$82) -> 0 | O24: =SUMIF(Schulden!$N$10:$N$16,$B24,Schulden!$F$10:$F$16) -> 0 | S24: =SUMIFS(Anlagen!$L$92:$L$134,Anlagen!$Z$92:$Z$134,B24,Anlagen!$AA$92:$AA$134,$S$1) -> 0 | T24: 0 | W24: 0
A25: =B25<>"" -> FALSE | C25: =SUMIF(Anlagen!$Z$7:$Z$88,$B25,Anlagen!$I$7:$I$88) -> 0 | D25: =SUMIF(Anlagen!$Z$7:$Z$88,$B25,Anlagen!$J$7:$J$88) -> 0 | E25: =SUMIF(Anlagen!$Z$7:$Z$88,$B25,Anlagen!$K$7:$K$88) -> 0 | F25: =C25+D25-E25 -> 0 | G25: =SUMIF(Anlagen!$Z$7:$Z$88,$B25,Anlagen!$Q$7:$Q$88) -> 0 | H25: =SUMIF(Anlagen!$Z$7:$Z$88,$B25,Anlagen!$T$7:$T$88) -> 0 | I25: =SUMIF(Anlagen!$Z$7:$Z$88,$B25,Anlagen!$U$7:$U$88) -> 0 | J25: =F25 -> 0 | K25: =SUMIFS(Anlagen!$L$92:$L$134,Anlagen!$Z$92:$Z$134,B25,Anlagen!$AA$92:$AA$134,$K$1) -> 0 | L25: =SUMIF(Anlagen!$Z$138:$Z$158,$B25,Anlagen!$L$138:$L$158) -> 0 | M25: =SUMIF(Schulden!N:N,$B25,Schulden!F:F)-N25-O25 -> 0 | N25: =SUMIF(Schulden!$N$27:$N$29,$B25,Schulden!$F$27:$F$29)+SUMIF(Schulden!$N$80:$N$82,$B25,Schulden!$F$80:$F$82) -> 0 | O25: =SUMIF(Schulden!$N$10:$N$16,$B25,Schulden!$F$10:$F$16) -> 0 | S25: =SUMIFS(Anlagen!$L$92:$L$134,Anlagen!$Z$92:$Z$134,B25,Anlagen!$AA$92:$AA$134,$S$1) -> 0 | T25: 0 | W25: 0
A26: FALSE | C26: =SUMIF(Anlagen!$Z$7:$Z$88,$B26,Anlagen!$I$7:$I$88) -> 0 | D26: =SUMIF(Anlagen!$Z$7:$Z$88,$B26,Anlagen!$J$7:$J$88) -> 0 | E26: =SUMIF(Anlagen!$Z$7:$Z$88,$B26,Anlagen!$K$7:$K$88) -> 0 | F26: 0 | G26: =SUMIF(Anlagen!$Z$7:$Z$88,$B26,Anlagen!$Q$7:$Q$88) -> 0 | H26: =SUMIF(Anlagen!$Z$7:$Z$88,$B26,Anlagen!$T$7:$T$88) -> 0 | I26: =SUMIF(Anlagen!$Z$7:$Z$88,$B26,Anlagen!$U$7:$U$88) -> 0 | J26: 0 | K26: =SUMIFS(Anlagen!$L$92:$L$134,Anlagen!$Z$92:$Z$134,B26,Anlagen!$AA$92:$AA$134,$K$1) -> 0 | L26: =SUMIF(Anlagen!$Z$138:$Z$158,$B26,Anlagen!$L$138:$L$158) -> 0 | M26: =SUMIF(Schulden!N:N,$B26,Schulden!F:F)-N26-O26 -> 0 | N26: =SUMIF(Schulden!$N$27:$N$29,$B26,Schulden!$F$27:$F$29)+SUMIF(Schulden!$N$80:$N$82,$B26,Schulden!$F$80:$F$82) -> 0 | O26: =SUMIF(Schulden!$N$10:$N$16,$B26,Schulden!$F$10:$F$16) -> 0 | S26: =SUMIFS(Anlagen!$L$92:$L$134,Anlagen!$Z$92:$Z$134,B26,Anlagen!$AA$92:$AA$134,$S$1) -> 0 | T26: 0 | W26: 0
A27: TRUE | B27: Summe mit Zuordnung | C27: =SUM(C7:C26) -> 0 | D27: 0 | E27: 0 | F27: 0 | G27: 0 | H27: 0 | I27: 0 | J27: 0 | K27: 0 | L27: 0 | M27: 0 | N27: 0 | O27: 0 | P27: 0 | Q27: 0 | R27: 0 | S27: 0
A28: TRUE | B28: Summe ohne Zuordnung | C28: =Anlagen!I161-C27 -> 0 | D28: =Anlagen!J161-D27 -> 0 | E28: =Anlagen!K161-E27 -> 0 | F28: =Anlagen!L161-F27 -> 0 | G28: =Anlagen!Q161-G27 -> 0 | H28: =Anlagen!T161-H27 -> 0 | I28: =Anlagen!U161-I27 -> 0 | J28: =C28 -> 0
A29: TRUE | B29: Summe aller Anlagen | C29: =C27+C28 -> 0 | D29: =D27+D28 -> 0 | E29: 0 | F29: 0 | G29: 0 | H29: 0 | I29: 0 | J29: =C29 -> 0
A30: Ende | P30: Schlüssige Finanzierung der Anlagen mit Zuordnung gegeben
P31: Summe der Überfinanzierungen der Analgen mit Zuordnung | T31: =SUM(W7:W26) -> 0
P32: Summe der Unterfinanzierungen der Anlagen mit Zuordnung | T32: =SUM(X7:X26) -> 0
P33: SALDO der Finanzierung der Anlagen mit Zuordnung | T33: =SUM(T7:T26) -> 0

Sheet Wertpapiere (hidden)
A1: FALSE | B1: Ende
A2: FALSE | B2: Beteiligungen und Wertpapiere | C2: 001.00
A3: FALSE | B3: Ende
A4: TRUE | B4: =TEXT(wST.Ansatz,"000")&", BETEILIGUNGEN UND WERTPAPIERE per "&TEXT(wST.PeriodeEnde,"T. MMMM JJJJ") -> 850, BETEILIGUNGEN UND WERTPAPIERE per 31. Dezember 2017 | H4: =wST.ORT -> 0
A5: TRUE
A6: TRUE | B6: Posten- | E6: Buchwert | F6: Zugänge | G6: Abgänge | H6: Buchwert
A7: TRUE | B7: gruppe | C7: Teilabschnitt | D7: Bezeichnung | E7: =TEXT(wST.PeriodeAnfang-1,"T.M.JJJJ") -> 31.12.2016 | F7: ="im Jahr "&TEXT(wST.PeriodeAnfang,"JJJJ") -> im Jahr 2017 | G7: ="im Jahr "&TEXT(wST.PeriodeAnfang,"JJJJ") -> im Jahr 2017 | H7: =TEXT(wST.PeriodeEnde,"T.M.JJJJ") -> 31.12.2017
A8: TRUE
A9: =OR(A10,A14) -> FALSE | B9: 8 | C9: BETEILIGUNGEN UND ANLAGEWERTPAPIERE | E9: =SUM(E10,E14) -> 0 | F9: =SUM(F10,F14) -> 0 | G9: =SUM(G10,G14) -> 0 | H9: =SUM(H10,H14) -> 0
A10: =OR(A11:A13) -> FALSE | B10: 80 | C10: Beteiligungen | E10: =SUMPRODUCT(E11:E13,$I11:$I13) -> 0 | F10: =SUMPRODUCT(F11:F13,$I11:$I13) -> 0 | G10: =SUMPRODUCT(G11:G13,$I11:$I13) -> 0 | H10: =SUMPRODUCT(H11:H13,$I11:$I13) -> 0
A11: =I11>0 -> FALSE | E11: 0 | H11: =E11+F11-G11 -> 0 | I11: =IF(C11=0,0,IF(VALUE(LEFT(C11,3))=wST.Ansatz,1,0)) -> 0
A12: =I12>0 -> FALSE | E12: 0 | H12: =E12+F12-G12 -> 0 | I12: =IF(C12=0,0,IF(VALUE(LEFT(C12,3))=wST.Ansatz,1,0)) -> 0
A13: =I13>0 -> FALSE | E13: 0 | H13: =E13+F13-G13 -> 0 | I13: =IF(C13=0,0,IF(VALUE(LEFT(C13,3))=wST.Ansatz,1,0)) -> 0
A14: =OR(A15:A24) -> FALSE | B14: 85 | C14: Anlagewertpapiere | E14: =SUMPRODUCT(E15:E24,$I15:$I24) -> 0 | F14: =SUMPRODUCT(F15:F24,$I15:$I24) -> 0 | G14: =SUMPRODUCT(G15:G24,$I15:$I24) -> 0 | H14: =SUMPRODUCT(H15:H24,$I15:$I24) -> 0
A15: =I15>0 -> FALSE | E15: 0 | H15: =E15+F15-G15 -> 0 | I15: =IF(C15=0,0,IF(VALUE(LEFT(C15,3))=wST.Ansatz,1,0)) -> 0
A16: FALSE | H16: 0 | I16: 0
A17: FALSE | H17: 0 | I17: 0
A18: FALSE | H18: 0 | I18: 0
A19: FALSE | H19: 0 | I19: 0
A20: FALSE | H20: 0 | I20: 0
A21: FALSE | E21: 0 | H21: 0 | I21: 0
A22: FALSE | E22: 0 | H22: 0 | I22: 0
A23: FALSE | E23: 0 | H23: 0 | I23: 0
A24: FALSE | E24: 0 | H24: 0 | I24: 0
A25: =A9 -> FALSE
A26: =A27 -> FALSE | B26: 22 | C26: WERTPAPIERE DES UMLAUFVERMÖGENS | E26: =E27 -> 0 | H26: =H27 -> 0
A27: =OR(A28:A30) -> FALSE | B27: 220 | C27: Wertpapiere des Umlaufvermögens | E27: =SUMPRODUCT(E28:E30,$I28:$I30) -> 0 | F27: =SUMPRODUCT(F28:F30,$I28:$I30) -> 0 | G27: =SUMPRODUCT(G28:G30,$I28:$I30) -> 0 | H27: =SUMPRODUCT(H28:H30,$I28:$I30) -> 0
A28: =I28>0 -> FALSE | E28: 0 | H28: =E28+F28-G28 -> 0 | I28: =IF(C28=0,0,IF(VALUE(LEFT(C28,3))=wST.Ansatz,1,0)) -> 0
A29: =I29>0 -> FALSE | E29: 0 | H29: =E29+F29-G29 -> 0 | I29: =IF(C29=0,0,IF(VALUE(LEFT(C29,3))=wST.Ansatz,1,0)) -> 0
A30: =I30>0 -> FALSE | E30: 0 | H30: =E30+F30-G30 -> 0 | I30: =IF(C30=0,0,IF(VALUE(LEFT(C30,3))=wST.Ansatz,1,0)) -> 0
A31: Ende

Sheet Vorräte (hidden)
A1: FALSE | B1: Ende
A2: FALSE | B2: Vorräte | C2: 001.00
A3: FALSE | B3: Ende
A4: TRUE | B4: =TEXT(wST.Ansatz,"000")&", VORRÄTE per "&TEXT(wST.PeriodeEnde,"T. MMMM JJJJ") -> 850, VORRÄTE per 31. Dezember 2017 | I4: =wST.ORT -> 0
A5: TRUE
A6: TRUE | B6: Posten- gruppe | C6: Teil- Abschn. | D6: Bezeichnung | E6: ="Inventur "&TEXT(wST.PeriodeAnfang-1,"T.M.JJJJ") -> Inventur 31.12.2016 | F6: ="Zugänge im Jahr "&TEXT(wST.PeriodeAnfang,"JJJJ") -> Zugänge im Jahr 2017 | G6: ="Abgänge im Jahr "&TEXT(wST.PeriodeAnfang,"JJJJ") -> Abgänge im Jahr 2017 | H6: ="Inventur "&TEXT(wST.PeriodeEnde,"T.M.JJJJ") -> Inventur 31.12.2017
A7: TRUE
A8: =A9 -> FALSE | B8: 10 | C8: ERSATZTEILE | E8: =E9 -> 0 | F8: =F9 -> 0 | G8: =G9 -> 0 | H8: =H9 -> 0
A9: =OR(A10:A12) -> FALSE | B9: 100 | C9: Ersatzteile | E9: =SUMPRODUCT(E10:E12,$J10:$J12) -> 0 | F9: =SUMPRODUCT(F10:F12,$J10:$J12) -> 0 | G9: =SUMPRODUCT(G10:G12,$J10:$J12) -> 0 | H9: =SUMPRODUCT(H10:H12,$J10:$J12) -> 0
A10: =J10<>0 -> FALSE | E10: 0 | F10: =MAX(0,H10-E10) -> 0 | G10: =MAX(0,-H10+E10) -> 0 | H10: 0 | J10: =IF(C10=0,0,IF(VALUE(LEFT(C10,3))=wST.Ansatz,1,0)) -> 0
A11: =J11<>0 -> FALSE | E11: 0 | F11: =MAX(0,H11-E11) -> 0 | G11: =MAX(0,-H11+E11) -> 0 | H11: 0 | J11: =IF(C11=0,0,IF(VALUE(LEFT(C11,3))=wST.Ansatz,1,0)) -> 0
A12: =J12<>0 -> FALSE | E12: 0 | F12: =MAX(0,H12-E12) -> 0 | G12: =MAX(0,-H12+E12) -> 0 | H12: 0 | J12: =IF(C12=0,0,IF(VALUE(LEFT(C12,3))=wST.Ansatz,1,0)) -> 0
A13: =A8 -> FALSE | E13: 0 | H13: 0
A14: =A15 -> FALSE | B14: 11 | C14: GEBRAUCHSGÜTER | E14: =E15 -> 0 | F14: =F15 -> 0 | G14: =G15 -> 0 | H14: =H15 -> 0
A15: =OR(A16:A84) -> FALSE | B15: 110 | C15: Geringwertige Wirtschaftsgüter (lt. VRV) | E15: =SUMPRODUCT(E16:E84,$J16:$J84) -> 0 | F15: =SUMPRODUCT(F16:F84,$J16:$J84) -> 0 | G15: =SUMPRODUCT(G16:G84,$J16:$J84) -> 0 | H15: =SUMPRODUCT(H16:H84,$J16:$J84) -> 0
A16: =J16<>0 -> FALSE | F16: =MAX(0,H16-E16) -> 0 | G16: =MAX(0,-H16+E16) -> 0 | J16: =IF(C16=0,0,IF(VALUE(LEFT(C16,3))=wST.Ansatz,1,0)) -> 0
A17: FALSE | F17: 0 | G17: 0 | J17: 0
A18: FALSE | F18: 0 | G18: 0 | J18: 0
A19: FALSE | F19: 0 | G19: 0 | J19: 0
A20: FALSE | F20: 0 | G20: 0 | J20: 0
A21: FALSE | F21: 0 | G21: 0 | J21: 0
A22: FALSE | F22: 0 | G22: 0 | J22: 0
A23: FALSE | F23: 0 | G23: 0 | J23: 0
A24: FALSE | F24: 0 | G24: 0 | J24: 0
A25: FALSE | F25: 0 | G25: 0 | J25: 0
A26: FALSE | F26: 0 | G26: 0 | J26: 0
A27: FALSE | F27: 0 | G27: 0 | J27: 0
A28: FALSE | F28: 0 | G28: 0 | J28: 0
A29: FALSE | F29: 0 | G29: 0 | J29: 0
A30: FALSE | F30: 0 | G30: 0 | J30: 0
A31: FALSE | F31: 0 | G31: 0 | J31: 0
A32: FALSE | F32: 0 | G32: 0 | J32: 0
A33: FALSE | F33: 0 | G33: 0 | J33: 0
A34: FALSE | F34: 0 | G34: 0 | J34: 0
A35: FALSE | F35: 0 | G35: 0 | J35: 0
A36: FALSE | F36: 0 | G36: 0 | J36: 0
A37: FALSE | F37: 0 | G37: 0 | J37: 0
A38: FALSE | F38: 0 | G38: 0 | J38: 0
A39: FALSE | F39: 0 | G39: 0 | J39: 0
A40: FALSE | F40: 0 | G40: 0 | J40: 0
A41: FALSE | F41: 0 | G41: 0 | J41: 0
A42: FALSE | F42: 0 | G42: 0 | J42: 0
A43: FALSE | F43: 0 | G43: 0 | J43: 0
A44: FALSE | F44: 0 | G44: 0 | J44: 0
A45: FALSE | F45: 0 | G45: 0 | J45: 0
A46: FALSE | F46: 0 | G46: 0 | J46: 0
A47: =J47<>0 -> FALSE | F47: =MAX(0,H47-E47) -> 0 | G47: =MAX(0,-H47+E47) -> 0 | J47: =IF(C47=0,0,IF(VALUE(LEFT(C47,3))=wST.Ansatz,1,0)) -> 0
A48: FALSE | F48: 0 | G48: 0 | J48: 0
A49: FALSE | F49: 0 | G49: 0 | J49: 0
A50: FALSE | F50: 0 | G50: 0 | J50: 0
A51: FALSE | F51: 0 | G51: 0 | J51: 0
A52: FALSE | F52: 0 | G52: 0 | J52: 0
A53: FALSE | F53: 0 | G53: 0 | J53: 0
A54: FALSE | F54: 0 | G54: 0 | J54: 0
A55: FALSE | F55: 0 | G55: 0 | J55: 0
A56: FALSE | F56: 0 | G56: 0 | J56: 0
A57: FALSE | F57: 0 | G57: 0 | J57: 0
A58: FALSE | F58: 0 | G58: 0 | J58: 0
A59: FALSE | F59: 0 | G59: 0 | J59: 0
A60: FALSE | F60: 0 | G60: 0 | J60: 0
A61: FALSE | F61: 0 | G61: 0 | J61: 0
A62: FALSE | F62: 0 | G62: 0 | J62: 0
A63: FALSE | F63: 0 | G63: 0 | J63: 0
A64: FALSE | F64: 0 | G64: 0 | J64: 0
A65: FALSE | F65: 0 | G65: 0 | J65: 0
A66: FALSE | F66: 0 | G66: 0 | J66: 0
A67: FALSE | F67: 0 | G67: 0 | J67: 0
A68: FALSE | F68: 0 | G68: 0 | J68: 0
A69: FALSE | F69: 0 | G69: 0 | J69: 0
A70: FALSE | F70: 0 | G70: 0 | J70: 0
A71: FALSE | F71: 0 | G71: 0 | J71: 0
A72: FALSE | F72: 0 | G72: 0 | J72: 0
A73: FALSE | E73: 0 | F73: 0 | G73: 0 | H73: 0 | J73: 0
A74: FALSE | E74: 0 | F74: 0 | G74: 0 | H74: 0 | J74: 0
A75: FALSE | E75: 0 | F75: 0 | G75: 0 | H75: 0 | J75: 0
A76: FALSE | E76: 0 | F76: 0 | G76: 0 | H76: 0 | J76: 0
A77: FALSE | E77: 0 | F77: 0 | G77: 0 | H77: 0 | J77: 0
A78: =J78<>0 -> FALSE | E78: 0 | F78: =MAX(0,H78-E78) -> 0 | G78: =MAX(0,-H78+E78) -> 0 | H78: 0 | J78: =IF(C78=0,0,IF(VALUE(LEFT(C78,3))=wST.Ansatz,1,0)) -> 0
A79: FALSE | E79: 0 | F79: 0 | G79: 0 | H79: 0 | J79: 0
A80: FALSE | E80: 0 | F80: 0 | G80: 0 | H80: 0 | J80: 0
A81: FALSE | E81: 0 | F81: 0 | G81: 0 | H81: 0 | J81: 0
A82: FALSE | E82: 0 | F82: 0 | G82: 0 | H82: 0 | J82: 0
A83: =J83<>0 -> FALSE | E83: 0 | F83: =MAX(0,H83-E83) -> 0 | G83: =MAX(0,-H83+E83) -> 0 | H83: 0 | J83: =IF(C83=0,0,IF(VALUE(LEFT(C83,3))=wST.Ansatz,1,0)) -> 0
A84: FALSE | E84: 0 | F84: 0 | G84: 0 | H84: 0 | J84: 0
A85: =A14 -> FALSE | E85: 0 | H85: 0
A86: =A87 -> FALSE | B86: 12 | C86: WERKSTOFFE | E86: =E87 -> 0 | F86: =F87 -> 0 | G86: =G87 -> 0 | H86: =H87 -> 0
A87: =OR(A88:A90) -> FALSE | B87: 120 | C87: Werkstoffe | E87: =SUMPRODUCT(E88:E90,$J88:$J90) -> 0 | F87: =SUMPRODUCT(F88:F90,$J88:$J90) -> 0 | G87: =SUMPRODUCT(G88:G90,$J88:$J90) -> 0 | H87: =SUMPRODUCT(H88:H90,$J88:$J90) -> 0
A88: =J88<>0 -> FALSE | E88: 0 | F88: =MAX(0,H88-E88) -> 0 | G88: =MAX(0,-H88+E88) -> 0 | H88: 0 | J88: =IF(C88=0,0,IF(VALUE(LEFT(C88,3))=wST.Ansatz,1,0)) -> 0
A89: =J89<>0 -> FALSE | E89: 0 | F89: =MAX(0,H89-E89) -> 0 | G89: =MAX(0,-H89+E89) -> 0 | H89: 0 | J89: =IF(C89=0,0,IF(VALUE(LEFT(C89,3))=wST.Ansatz,1,0)) -> 0
A90: =J90<>0 -> FALSE | E90: 0 | F90: =MAX(0,H90-E90) -> 0 | G90: =MAX(0,-H90+E90) -> 0 | H90: 0 | J90: =IF(C90=0,0,IF(VALUE(LEFT(C90,3))=wST.Ansatz,1,0)) -> 0
A91: =A86 -> FALSE | E91: 0 | H91: 0
A92: =A93 -> FALSE | B92: 13 | C92: HANDELSWAREN | E92: =E93 -> 0 | F92: =F93 -> 0 | G92: =G93 -> 0 | H92: =H93 -> 0
A93: =OR(A94:A96) -> FALSE | B93: 130 | C93: Handelswaren | E93: =SUMPRODUCT(E94:E96,$J94:$J96) -> 0 | F93: =SUMPRODUCT(F94:F96,$J94:$J96) -> 0 | G93: =SUMPRODUCT(G94:G96,$J94:$J96) -> 0 | H93: =SUMPRODUCT(H94:H96,$J94:$J96) -> 0
A94: =J94<>0 -> FALSE | F94: =MAX(0,H94-E94) -> 0 | G94: =MAX(0,-H94+E94) -> 0 | J94: =IF(C94=0,0,IF(VALUE(LEFT(C94,3))=wST.Ansatz,1,0)) -> 0
A95: =J95<>0 -> FALSE | E95: 0 | F95: =MAX(0,H95-E95) -> 0 | G95: =MAX(0,-H95+E95) -> 0 | H95: 0 | J95: =IF(C95=0,0,IF(VALUE(LEFT(C95,3))=wST.Ansatz,1,0)) -> 0
A96: =J96<>0 -> FALSE | E96: 0 | F96: =MAX(0,H96-E96) -> 0 | G96: =MAX(0,-H96+E96) -> 0 | H96: 0 | J96: =IF(C96=0,0,IF(VALUE(LEFT(C96,3))=wST.Ansatz,1,0)) -> 0
A97: =A92 -> FALSE | E97: 0 | H97: 0
A98: =A99 -> FALSE | B98: 14 | C98: VERBRAUCHSGÜTER, LEBENS- UND FUTTERMITTEL | E98: =E99 -> 0 | F98: =F99 -> 0 | G98: =G99 -> 0 | H98: =H99 -> 0
A99: =OR(A100:A102) -> FALSE | B99: 140 | C99: Verbrauchsgüter, Lebens- und Futtermittel | E99: =SUMPRODUCT(E100:E102,$J100:$J102) -> 0 | F99: =SUMPRODUCT(F100:F102,$J100:$J102) -> 0 | G99: =SUMPRODUCT(G100:G102,$J100:$J102) -> 0 | H99: =SUMPRODUCT(H100:H102,$J100:$J102) -> 0
A100: =J100<>0 -> FALSE | E100: 0 | F100: =MAX(0,H100-E100) -> 0 | G100: =MAX(0,-H100+E100) -> 0 | H100: 0 | J100: =IF(C100=0,0,IF(VALUE(LEFT(C100,3))=wST.Ansatz,1,0)) -> 0
A101: =J101<>0 -> FALSE | E101: 0 | F101: =MAX(0,H101-E101) -> 0 | G101: =MAX(0,-H101+E101) -> 0 | H101: 0 | J101: =IF(C101=0,0,IF(VALUE(LEFT(C101,3))=wST.Ansatz,1,0)) -> 0
A102: =J102<>0 -> FALSE | E102: 0 | F102: =MAX(0,H102-E102) -> 0 | G102: =MAX(0,-H102+E102) -> 0 | H102: 0 | J102: =IF(C102=0,0,IF(VALUE(LEFT(C102,3))=wST.Ansatz,1,0)) -> 0
A103: =A98 -> FALSE | E103: 0 | H103: 0
A104: =A105 -> FALSE | B104: 15 | C104: BETRIEBSSTOFFE UND SONSTIGE VERBRAUCHSGÜTER | E104: =E105 -> 0 | F104: =F105 -> 0 | G104: =G105 -> 0 | H104: =H105 -> 0
A105: =OR(A106:A108) -> FALSE | B105: 150 | C105: Betriebsstoffe und sonstige Verbrauchsgüter | E105: =SUMPRODUCT(E106:E108,$J106:$J108) -> 0 | F105: =SUMPRODUCT(F106:F108,$J106:$J108) -> 0 | G105: =SUMPRODUCT(G106:G108,$J106:$J108) -> 0 | H105: =SUMPRODUCT(H106:H108,$J106:$J108) -> 0
A106: =J106<>0 -> FALSE | E106: 0 | F106: =MAX(0,H106-E106) -> 0 | G106: =MAX(0,-H106+E106) -> 0 | H106: 0 | J106: =IF(C106=0,0,IF(VALUE(LEFT(C106,3))=wST.Ansatz,1,0)) -> 0
A107: =J107<>0 -> FALSE | E107: 0 | F107: =MAX(0,H107-E107) -> 0 | G107: =MAX(0,-H107+E107) -> 0 | H107: 0 | J107: =IF(C107=0,0,IF(VALUE(LEFT(C107,3))=wST.Ansatz,1,0)) -> 0
A108: =J108<>0 -> FALSE | E108: 0 | F108: =MAX(0,H108-E108) -> 0 | G108: =MAX(0,-H108+E108) -> 0 | H108: 0 | J108: =IF(C108=0,0,IF(VALUE(LEFT(C108,3))=wST.Ansatz,1,0)) -> 0
A109: =A104 -> FALSE | E109: 0 | H109: 0
A110: =A111 -> FALSE | B110: 16 | C110: ALTMATERIAL | E110: =E111 -> 0 | F110: =F111 -> 0 | G110: =G111 -> 0 | H110: =H111 -> 0
A111: =OR(A112:A114) -> FALSE | B111: 160 | C111: Altmaterial | E111: =SUMPRODUCT(E112:E114,$J112:$J114) -> 0 | F111: =SUMPRODUCT(F112:F114,$J112:$J114) -> 0 | G111: =SUMPRODUCT(G112:G114,$J112:$J114) -> 0 | H111: =SUMPRODUCT(H112:H114,$J112:$J114) -> 0
A112: =J112<>0 -> FALSE | E112: 0 | F112: =MAX(0,H112-E112) -> 0 | G112: =MAX(0,-H112+E112) -> 0 | H112: 0 | J112: =IF(C112=0,0,IF(VALUE(LEFT(C112,3))=wST.Ansatz,1,0)) -> 0
A113: =J113<>0 -> FALSE | E113: 0 | F113: =MAX(0,H113-E113) -> 0 | G113: =MAX(0,-H113+E113) -> 0 | H113: 0 | J113: =IF(C113=0,0,IF(VALUE(LEFT(C113,3))=wST.Ansatz,1,0)) -> 0
A114: =J114<>0 -> FALSE | E114: 0 | F114: =MAX(0,H114-E114) -> 0 | G114: =MAX(0,-H114+E114) -> 0 | H114: 0 | J114: =IF(C114=0,0,IF(VALUE(LEFT(C114,3))=wST.Ansatz,1,0)) -> 0
A115: =A110 -> FALSE | E115: 0 | H115: 0
A116: =A117 -> FALSE | B116: 17 | C116: ERZEUGNISSE | E116: =E117 -> 0 | F116: =F117 -> 0 | G116: =G117 -> 0 | H116: =H117 -> 0
A117: =OR(A118:A120) -> FALSE | B117: 170 | C117: Erzeugnisse | E117: =SUMPRODUCT(E118:E120,$J118:$J120) -> 0 | F117: =SUMPRODUCT(F118:F120,$J118:$J120) -> 0 | G117: =SUMPRODUCT(G118:G120,$J118:$J120) -> 0 | H117: =SUMPRODUCT(H118:H120,$J118:$J120) -> 0
A118: =J118<>0 -> FALSE | E118: 0 | F118: =MAX(0,H118-E118) -> 0 | G118: =MAX(0,-H118+E118) -> 0 | H118: 0 | J118: =IF(C118=0,0,IF(VALUE(LEFT(C118,3))=wST.Ansatz,1,0)) -> 0
A119: =J119<>0 -> FALSE | E119: 0 | F119: =MAX(0,H119-E119) -> 0 | G119: =MAX(0,-H119+E119) -> 0 | H119: 0 | J119: =IF(C119=0,0,IF(VALUE(LEFT(C119,3))=wST.Ansatz,1,0)) -> 0
A120: =J120<>0 -> FALSE | E120: 0 | F120: =MAX(0,H120-E120) -> 0 | G120: =MAX(0,-H120+E120) -> 0 | H120: 0 | J120: =IF(C120=0,0,IF(VALUE(LEFT(C120,3))=wST.Ansatz,1,0)) -> 0
A121: Ende

Sheet Geldbestände (hidden)
A1: FALSE | B1: TRUE | C1: Ende
A2: FALSE | B2: Darlehen | C2: 001.00
A3: FALSE | B3: Ende
A4: TRUE | B4: =TEXT(wST.Ansatz,"000")&", GELDBESTÄNDE U. GEWÄHRTE DARLEHEN per "&TEXT(wST.PeriodeEnde,"T. MMMM JJJJ") -> 850, GELDBESTÄNDE U. GEWÄHRTE DARLEHEN per 31. Dezember 2017 | H4: =wST.ORT -> 0
A5: TRUE
A6: TRUE | B6: Posten- gruppe | C6: Teilabschnitt | D6: Bezeichnung | E6: ="Guthaben / Forderung per "&TEXT(wST.PeriodeAnfang-1,"T.M.JJJJ") -> Guthaben / Forderung per 31.12.2016 | F6: ="Zugänge im Jahr "&TEXT(wST.PeriodeAnfang,"JJJJ") -> Zugänge im Jahr 2017 | G6: ="Abgänge im Jahr "&TEXT(wST.PeriodeAnfang,"JJJJ") -> Abgänge im Jahr 2017 | H6: ="Guthaben / Forderung per "&TEXT(wST.PeriodeEnde,"T.M.JJJJ") -> Guthaben / Forderung per 31.12.2017
A7: TRUE
A8: =OR(A9:A11) -> FALSE | B8: 20 | C8: BARGELDBESTÄNDE | E8: =SUMPRODUCT(E9:E11,$I9:$I11) -> 0 | F8: =SUMPRODUCT(F9:F11,$I9:$I11) -> 0 | G8: =SUMPRODUCT(G9:G11,$I9:$I11) -> 0 | H8: =SUMPRODUCT(H9:H11,$I9:$I11) -> 0
A9: =I9>0 -> FALSE | H9: =SUM(E9,F9,-G9) -> 0 | I9: =IF(C9=0,0,IF(VALUE(LEFT(C9,3))=wST.Ansatz,1,0)) -> 0
A10: =I10>0 -> FALSE | E10: 0 | H10: =SUM(E10,F10,-G10) -> 0 | I10: =IF(C10=0,0,IF(VALUE(LEFT(C10,3))=wST.Ansatz,1,0)) -> 0
A11: =I11>0 -> FALSE | E11: 0 | H11: =SUM(E11,F11,-G11) -> 0 | I11: =IF(C11=0,0,IF(VALUE(LEFT(C11,3))=wST.Ansatz,1,0)) -> 0
A12: =A8 -> FALSE
A13: =OR(A14,A18) -> FALSE | B13: 21 | C13: GELDANSTALTEN | E13: =SUM(E14,E18) -> 0 | F13: =SUM(F14,F18) -> 0 | G13: =SUM(G14,G18) -> 0 | H13: =SUM(H14,H18) -> 0
A14: =OR(A15:A17) -> FALSE | B14: 210 | C14: Postsparkasse | E14: =SUMPRODUCT(E15:E17,$I15:$I17) -> 0 | F14: =SUMPRODUCT(F15:F17,$I15:$I17) -> 0 | G14: =SUMPRODUCT(G15:G17,$I15:$I17) -> 0 | H14: =SUMPRODUCT(H15:H17,$I15:$I17) -> 0
A15: =I15>0 -> FALSE | H15: =SUM(E15,F15,-G15) -> 0 | I15: =IF(C15=0,0,IF(VALUE(LEFT(C15,3))=wST.Ansatz,1,0)) -> 0
A16: =I16>0 -> FALSE | E16: 0 | H16: =SUM(E16,F16,-G16) -> 0 | I16: =IF(C16=0,0,IF(VALUE(LEFT(C16,3))=wST.Ansatz,1,0)) -> 0
A17: =I17>0 -> FALSE | E17: 0 | H17: =SUM(E17,F17,-G17) -> 0 | I17: =IF(C17=0,0,IF(VALUE(LEFT(C17,3))=wST.Ansatz,1,0)) -> 0
A18: =OR(A19:A22) -> FALSE | B18: 211 | C18: Sonstige Geldanstalten | E18: =SUMPRODUCT(E19:E22,$I19:$I22) -> 0 | F18: =SUMPRODUCT(F19:F22,$I19:$I22) -> 0 | G18: =SUMPRODUCT(G19:G22,$I19:$I22) -> 0 | H18: =SUMPRODUCT(H19:H22,$I19:$I22) -> 0
A19: =I19>0 -> FALSE | H19: =SUM(E19,F19,-G19) -> 0 | I19: =IF(C19=0,0,IF(VALUE(LEFT(C19,3))=wST.Ansatz,1,0)) -> 0
A20: =I20>0 -> FALSE | E20: 0 | H20: =SUM(E20,F20,-G20) -> 0 | I20: =IF(C20=0,0,IF(VALUE(LEFT(C20,3))=wST.Ansatz,1,0)) -> 0
A21: =I21>0 -> FALSE | E21: 0 | H21: =SUM(E21,F21,-G21) -> 0 | I21: =IF(C21=0,0,IF(VALUE(LEFT(C21,3))=wST.Ansatz,1,0)) -> 0
A22: =I22>0 -> FALSE | E22: 0 | H22: =SUM(E22,F22,-G22) -> 0 | I22: =IF(C22=0,0,IF(VALUE(LEFT(C22,3))=wST.Ansatz,1,0)) -> 0
A23: =A13 -> FALSE
A24: =OR(A25,A29,A33) -> FALSE | B24: 24 | C24: DARLEHEN ZUR INVESTITIONSFÖRDERUNG | E24: =SUM(E25,E29,E33) -> 0 | F24: =SUM(F25,F29,F33) -> 0 | G24: =SUM(G25,G29,G33) -> 0 | H24: =SUM(H25,H29,H33) -> 0
A25: =OR(A26:A28) -> FALSE | B25: 240 | C25: an Träger des öffentlichen Rechtes | E25: =SUMPRODUCT(E26:E28,$I26:$I28) -> 0 | F25: =SUMPRODUCT(F26:F28,$I26:$I28) -> 0 | G25: =SUMPRODUCT(G26:G28,$I26:$I28) -> 0 | H25: =SUMPRODUCT(H26:H28,$I26:$I28) -> 0
A26: =I26>0 -> FALSE | E26: 0 | H26: =SUM(E26,F26,-G26) -> 0 | I26: =IF(C26=0,0,IF(VALUE(LEFT(C26,3))=wST.Ansatz,1,0)) -> 0
A27: =I27>0 -> FALSE | E27: 0 | H27: =SUM(E27,F27,-G27) -> 0 | I27: =IF(C27=0,0,IF(VALUE(LEFT(C27,3))=wST.Ansatz,1,0)) -> 0
A28: =I28>0 -> FALSE | E28: 0 | H28: =SUM(E28,F28,-G28) -> 0 | I28: =IF(C28=0,0,IF(VALUE(LEFT(C28,3))=wST.Ansatz,1,0)) -> 0
A29: =OR(A30:A32) -> FALSE | B29: 241 | C29: an netto-veranschlagte Betriebe | E29: =SUMPRODUCT(E30:E32,$I30:$I32) -> 0 | F29: =SUMPRODUCT(F30:F32,$I30:$I32) -> 0 | G29: =SUMPRODUCT(G30:G32,$I30:$I32) -> 0 | H29: =SUMPRODUCT(H30:H32,$I30:$I32) -> 0
A30: =I30>0 -> FALSE | E30: 0 | H30: =SUM(E30,F30,-G30) -> 0 | I30: =IF(C30=0,0,IF(VALUE(LEFT(C30,3))=wST.Ansatz,1,0)) -> 0
A31: =I31>0 -> FALSE | E31: 0 | H31: =SUM(E31,F31,-G31) -> 0 | I31: =IF(C31=0,0,IF(VALUE(LEFT(C31,3))=wST.Ansatz,1,0)) -> 0
A32: =I32>0 -> FALSE | E32: 0 | H32: =SUM(E32,F32,-G32) -> 0 | I32: =IF(C32=0,0,IF(VALUE(LEFT(C32,3))=wST.Ansatz,1,0)) -> 0
A33: =OR(A34:A36) -> FALSE | B33: 242 | C33: an andere | E33: =SUMPRODUCT(E34:E36,$I34:$I36) -> 0 | F33: =SUMPRODUCT(F34:F36,$I34:$I36) -> 0 | G33: =SUMPRODUCT(G34:G36,$I34:$I36) -> 0 | H33: =SUMPRODUCT(H34:H36,$I34:$I36) -> 0
A34: =I34>0 -> FALSE | E34: 0 | H34: =SUM(E34,F34,-G34) -> 0 | I34: =IF(C34=0,0,IF(VALUE(LEFT(C34,3))=wST.Ansatz,1,0)) -> 0
A35: =I35>0 -> FALSE | E35: 0 | H35: =SUM(E35,F35,-G35) -> 0 | I35: =IF(C35=0,0,IF(VALUE(LEFT(C35,3))=wST.Ansatz,1,0)) -> 0
A36: =I36>0 -> FALSE | E36: 0 | H36: =SUM(E36,F36,-G36) -> 0 | I36: =IF(C36=0,0,IF(VALUE(LEFT(C36,3))=wST.Ansatz,1,0)) -> 0
A37: =A24 -> FALSE
A38: =OR(A39,A43,A47) -> FALSE | B38: 25 | C38: NICHT INVESTITIONSFÖRDERNDE DARLEHEN | E38: =SUM(E39,E43,E47) -> 0 | F38: =SUM(F39,F43,F47) -> 0 | G38: =SUM(G39,G43,G47) -> 0 | H38: =SUM(H39,H43,H47) -> 0
A39: =OR(A40:A42) -> FALSE | B39: 250 | C39: an Träger des öffentlichen Rechtes | E39: =SUMPRODUCT(E40:E42,$I40:$I42) -> 0 | F39: =SUMPRODUCT(F40:F42,$I40:$I42) -> 0 | G39: =SUMPRODUCT(G40:G42,$I40:$I42) -> 0 | H39: =SUMPRODUCT(H40:H42,$I40:$I42) -> 0
A40: =I40>0 -> FALSE | E40: 0 | H40: =SUM(E40,F40,-G40) -> 0 | I40: =IF(C40=0,0,IF(VALUE(LEFT(C40,3))=wST.Ansatz,1,0)) -> 0
A41: =I41>0 -> FALSE | E41: 0 | H41: =SUM(E41,F41,-G41) -> 0 | I41: =IF(C41=0,0,IF(VALUE(LEFT(C41,3))=wST.Ansatz,1,0)) -> 0
A42: =I42>0 -> FALSE | E42: 0 | H42: =SUM(E42,F42,-G42) -> 0 | I42: =IF(C42=0,0,IF(VALUE(LEFT(C42,3))=wST.Ansatz,1,0)) -> 0
A43: =OR(A44:A46) -> FALSE | B43: 251 | C43: an andere | E43: =SUMPRODUCT(E44:E46,$I44:$I46) -> 0 | F43: =SUMPRODUCT(F44:F46,$I44:$I46) -> 0 | G43: =SUMPRODUCT(G44:G46,$I44:$I46) -> 0 | H43: =SUMPRODUCT(H44:H46,$I44:$I46) -> 0
A44: =I44>0 -> FALSE | E44: 0 | H44: =SUM(E44,F44,-G44) -> 0 | I44: =IF(C44=0,0,IF(VALUE(LEFT(C44,3))=wST.Ansatz,1,0)) -> 0
A45: =I45>0 -> FALSE | E45: 0 | H45: =SUM(E45,F45,-G45) -> 0 | I45: =IF(C45=0,0,IF(VALUE(LEFT(C45,3))=wST.Ansatz,1,0)) -> 0
A46: =I46>0 -> FALSE | E46: 0 | H46: =SUM(E46,F46,-G46) -> 0 | I46: =IF(C46=0,0,IF(VALUE(LEFT(C46,3))=wST.Ansatz,1,0)) -> 0
A47: =OR(A48:A50) -> FALSE | B47: 256 | C47: Bezugsvorschüsse | E47: =SUMPRODUCT(E48:E50,$I48:$I50) -> 0 | F47: =SUMPRODUCT(F48:F50,$I48:$I50) -> 0 | G47: =SUMPRODUCT(G48:G50,$I48:$I50) -> 0 | H47: =SUMPRODUCT(H48:H50,$I48:$I50) -> 0
A48: =I48>0 -> FALSE | E48: 0 | H48: =SUM(E48,F48,-G48) -> 0 | I48: =IF(C48=0,0,IF(VALUE(LEFT(C48,3))=wST.Ansatz,1,0)) -> 0
A49: =I49>0 -> FALSE | E49: 0 | H49: =SUM(E49,F49,-G49) -> 0 | I49: =IF(C49=0,0,IF(VALUE(LEFT(C49,3))=wST.Ansatz,1,0)) -> 0
A50: =I50>0 -> FALSE | E50: 0 | H50: =SUM(E50,F50,-G50) -> 0 | I50: =IF(C50=0,0,IF(VALUE(LEFT(C50,3))=wST.Ansatz,1,0)) -> 0
A51: Ende

Sheet Erläuterungen
A1: =CONCATENATE("Erläuterungen Wasserversorgung Rechnungsabschluss "&BAB!J12," KLR-Ebene: "&Info!C17) -> Erläuterungen Wasserversorgung Rechnungsabschluss 2017 KLR-Ebene:
A3: Text | F3: Berechnungen

Sheet Baupreisindex
B1: =CONCATENATE("Baupreisindex Wasserversorgung Rechnungsabschluss "&BAB!J12," KLR-Ebene: "&Info!C17) -> Baupreisindex Wasserversorgung Rechnungsabschluss 2017 KLR-Ebene:
C2: Verketteter Baupreisindex für die Inflationsbereinigung von Wasser- und Abwasserbauten und -anlagen und Anlagen
C3: der Abfallwirtschaft zur Berechnung simulierter Anschaffungskosten gemäß ÖWAV Arbeitsbehelf 61 (Voranschlags-
C4: und Rechnungsabschlussverordnung 2015 in der Abwasser-, Abfall- und Schutzwasserwirtschaft):
C5: Seit 1984 "Baupreisindex für den sonstigen Tiefbau" mit Basis 1984 = 100,
C6: 1966 bis 1983 "verlängert" mit dem "umgerechneten Verbraucherpreisindex 1966"
C7: sowie 1946 bis 1965 "verlängert" mit dem "umgerechneten Lebenshaltungskostenindex (Wert 1952 interpoliert)"
D9: umgerechneter | F9: umgerechneter | H9: Baupreisindex | J9: Baupreisindex
D10: Lebenshaltungs- | F10: Verbraucher- | H10: sonstiger Tiefbau | J10: sonstiger Tiefbau
D11: kostenindex | F11: preisindex | H11: mit Basis 1984 = 100 | J11: mit Basis 1984 = 100
D12: Jahr | E12: Index | F12: Jahr | G12: Index | H12: Jahr | I12: Index | J12: Jahr | K12: Index
D13: 1946 | E13: 4.32 | F13: 1966 | G13: 38.46 | H13: 1984 | I13: 100 | J13: 2004 | K13: 145
D14: 1947 | E14: 8.53 | F14: 1967 | G14: 40 | H14: 1985 | I14: 102 | J14: 2005 | K14: 144.8
D15: 1948 | E15: 12.99 | F15: 1968 | G15: 41.12 | H15: 1986 | I15: 107 | J15: 2006 | K15: 148.3
D16: 1949 | E16: 16.64 | F16: 1969 | G16: 42.38 | H16: 1987 | I16: 113 | J16: 2007 | K16: 153.1
D17: 1950 | E17: 18.82 | F17: 1970 | G17: 44.23 | H17: 1988 | I17: 117 | J17: 2008 | K17: 161.6
D18: 1951 | E18: 24.05 | F18: 1971 | G18: 46.31 | H18: 1989 | I18: 122 | J18: 2009 | K18: 171
D19: 1952 | E19: 25.34 | F19: 1972 | G19: 49.23 | H19: 1990 | I19: 125 | J19: 2010 | K19: 184
D20: 1953 | E20: 26.63 | F20: 1973 | G20: 52.96 | H20: 1991 | I20: 129 | J20: 2011 | K20: 191
D21: 1954 | E21: 27.61 | F21: 1974 | G21: 58 | H21: 1992 | I21: 132 | J21: 2012 | K21: 195.8
D22: 1955 | E22: 27.82 | F22: 1975 | G22: 62.88 | H22: 1993 | I22: 134 | J22: 2013 | K22: 196.5
D23: 1956 | E23: 28.79 | F23: 1976 | G23: 67.5 | H23: 1994 | I23: 137 | J23: 2014 | K23: 197.2
D24: 1957 | E24: 29.43 | F24: 1977 | G24: 71.19 | H24: 1995 | I24: 140.54 | J24: 2015 | K24: 196.7
D25: 1958 | E25: 30.1 | F25: 1978 | G25: 73.73 | H25: 1996 | I25: 144.5 | J25: 2016 | K25: 198.3
D26: 1959 | E26: 30.58 | F26: 1979 | G26: 76.46 | H26: 1997 | I26: 147.9 | J26: 2017 | K26: 200.4
D27: 1960 | E27: 31.02 | F27: 1980 | G27: 81.81 | H27: 1998 | I27: 148.8
D28: 1961 | E28: 32.01 | F28: 1981 | G28: 86.85 | H28: 1999 | I28: 147.1
D29: 1962 | E29: 33.56 | F29: 1982 | G29: 91.58 | H29: 2000 | I29: 147
D30: 1963 | E30: 34.52 | F30: 1983 | G30: 94.62 | H30: 2001 | I30: 146.3
D31: 1964 | E31: 35.84 | H31: 2002 | I31: 145.9
D32: 1965 | E32: 37.75 | H32: 2003 | I32: 145.3
B34: Bezeichnung des Vermögenswertes und Dokumentation von Inbetriebnahmedatum, Mengenermittlung und Nutzungsdauer:
B41: Dokumentation der Grundlagen der Durchschnittspreisermittlung (oder der bestehenden Gutachten):
B51: Berechnung der simulierten Anschaffungskosten nach Inflationsbereinigung:
B53: Anlagenteile | D53: ermittelter | E53: Menge | F53: Menge mal Preis | H53: Jahr der | I53: Indexzahl | J53: Jahr der | K53: Indexzahl | L53: simulierte
D54: Preis | H54: Preis- | I54: der Preis- | J54: Inbetrieb- | K54: Inbetrieb- | L54: Anschaffungs-
D55: € | F55: € | H55: ermittlung | I55: ermittlung | J55: nahme | K55: nahme | L55: kosten in €
F56: =D56*E56 -> 0 | L56: =I56*E56/G56 -> 
F57: =D57*E57 -> 0
F58: =D58*E58 -> 0
F59: =D59*E59 -> 0
F60: =D60*E60 -> 0
B61: Summe Anlage | L61: =ROUND(SUM(L56:M60),0) -> 

Sheet Eigenkapitalzinsen
A1: FALSE | B1: Ende
A2: FALSE | B2: Anlagen
A3: FALSE | B3: Ende
A4: TRUE | B4: =CONCATENATE("Eigenkapitalzinsen Wasserversorgung Rechnungsabschluss "&BAB!J12," KLR-Ebene: "&Info!C17) -> Eigenkapitalzinsen Wasserversorgung Rechnungsabschluss 2017 KLR-Ebene:
A5: TRUE
A6: TRUE | D6: =CONCATENATE("Durchschnitt "&" Jahr "&YEAR(wST.PeriodeEnde)) -> Durchschnitt Jahr 2017 | F6: WERT KLR | J6: Kontrolle Zuordnung
A7: TRUE | F7: Verteilung | G7: Gewinnung | H7: Verwaltung
A8: TRUE
A9: TRUE | B9: ="+ Buchwert Investitionskosten" -> + Buchwert Investitionskosten | D9: =Anlagen!U7+Anlagen!Q7/2+Anlagen!U48+Anlagen!Q48/2+Anlagen!U54+Anlagen!Q54/2+Anlagen!U67+Anlagen!Q67/2+Anlagen!U73+Anlagen!Q73/2+Anlagen!U83+Anlagen!Q83/2 -> 0 | F9: =SUM(Anlagen!AD9:AD88)/2+SUM(Anlagen!AG9:AG88) -> 0 | G9: =SUM(Anlagen!AE9:AE88)/2+SUM(Anlagen!AH9:AH88) -> 0 | H9: =SUM(Anlagen!AF9:AF88)/2+SUM(Anlagen!AI9:AI88) -> 0 | J9: =D9-F9-G9-H9 -> 0 | L9: =Anlagen!U73+Anlagen!U67+Anlagen!U54+Anlagen!U48+Anlagen!U7 -> 0 | M9: =Anlagen!Q73+Anlagen!Q67+Anlagen!Q54+Anlagen!Q48+Anlagen!Q7 -> 0 | N9: =+M9/2+L9 -> 0
A10: TRUE | B10: =" - Buchwert Förderung Land und Bund (Barwerte von IZ und FZ)" -> - Buchwert Förderung Land und Bund (Barwerte von IZ und FZ) | D10: =-(SUM(Anlagen!U92:U134)+SUM(Anlagen!Q92:Q134)/2) -> 0 | F10: =-(SUM(Anlagen!AD92:AD134)/2+SUM(Anlagen!AG92:AG134)) -> 0 | G10: =-(SUM(Anlagen!AE92:AE134)/2+SUM(Anlagen!AH92:AH134)) -> 0 | H10: =-(SUM(Anlagen!AF92:AF134)/2+SUM(Anlagen!AI92:AI134)) -> 0 | J10: =D10-F10-G10-H10 -> 0 | L10: =SUM(Anlagen!#REF!) ->  | M10: =SUM(Anlagen!#REF!) ->  | N10: =+M10/2+L10 -> 
A11: TRUE | B11: =" - Buchwert aller Interessentenbeiträge" -> - Buchwert aller Interessentenbeiträge | D11: =-(SUM(Anlagen!U138:U158)+SUM(Anlagen!Q138:Q158)/2) -> 0 | F11: =-(SUM(Anlagen!AD138:AD158)/2+SUM(Anlagen!AG138:AG158)) -> 0 | G11: =-(SUM(Anlagen!AE138:AE158)/2+SUM(Anlagen!AH138:AH158)) -> 0 | H11: =-(SUM(Anlagen!AF138:AF158)/2+SUM(Anlagen!AI138:AI158)) -> 0 | J11: =D11-F11-G11-H11 -> 0 | L11: =SUM(Anlagen!U85:U86) -> 0 | M11: =SUM(Anlagen!Q85:Q86) -> 0 | N11: =+M11/2+L11 -> 0
A12: TRUE | B12: =" - Stand aller Schulden für Investitionen" -> - Stand aller Schulden für Investitionen | D12: =-(Schulden!J17+Schulden!I17/2-Schulden!H17/2)-(Schulden!J8+Schulden!I8/2-Schulden!H8/2) -> 0 | F12: =-(SUM(Schulden!Q10:Q69)/2+SUM(Schulden!T10:T69)) -> 0 | G12: =-(SUM(Schulden!R10:R69)/2+SUM(Schulden!U10:U69)) -> 0 | H12: =-(SUM(Schulden!S10:S69)/2+SUM(Schulden!V10:V69)) -> 0 | J12: =D12-F12-G12-H12 -> 0 | L12: =Schulden!J17 -> 0 | M12: =Schulden!I17-Schulden!H17 -> 0 | N12: =+M12/2+L12 -> 0
A13: TRUE
A14: TRUE | B14: Basis für Eigenkapitalzinsen | D14: =SUM(D9:D12) -> 0 | F14: =SUM(F9:F12) -> 0 | G14: 0 | H14: 0
A15: TRUE
A16: TRUE | B16: Eigenkapitalzinssatz und Eigenkapitalzinsen | D16: 0.0061 | F16: =F14*$D$16 -> 0 | G16: =G14*$D$16 -> 0 | H16: 0
A17: Ende

Sheet BÜB Ausgaben
A1: FALSE | C1: Ende
A2: FALSE | C2: Anlagen
A3: FALSE | C3: Ende
A4: TRUE | C4: =CONCATENATE("Betriebsüberleitungsbogen Daten Ausgaben (Anordnungssoll) Rechnungsabschluss "&BAB!J12&" KLR-Ebene: "&Info!C17) -> Betriebsüberleitungsbogen Daten Ausgaben (Anordnungssoll) Rechnungsabschluss 2017 KLR-Ebene:
A5: TRUE
A7: TRUE | C7: Ansatz | D7: Konto | E7: Bezeichnung | F7: Wert | G7: Anteil Kostenstelle KLR | J7: Angaben für BAB | K7: Angaben für Finanzierungs-plan | N7: Kommentar | P7: WERT KLR | T7: Kontrolle
A8: TRUE | G8: Verteilung | H8: Gewinnung | I8: Verwaltung | P8: Verteilung | Q8: Gewinnung | R8: Verwaltung
A9: TRUE
A10: =F10<>"" -> FALSE | L10: =IF(C10<>"",1,0) -> 0 | P10: =$F10*G10 -> 0 | Q10: =$F10*H10 -> 0 | R10: =$F10*I10 -> 0 | T10: =F10-P10-Q10-R10 -> 0
A11: =F11<>"" -> FALSE | L11: 0 | P11: 0 | Q11: 0 | R11: 0 | T11: 0
A12: FALSE | L12: 0 | P12: 0 | Q12: 0 | R12: 0 | T12: 0
A13: FALSE | L13: 0 | P13: 0 | Q13: 0 | R13: 0 | T13: 0
A14: FALSE | L14: 0 | P14: 0 | Q14: 0 | R14: 0 | T14: 0
A15: FALSE | L15: 0 | P15: 0 | Q15: 0 | R15: 0 | T15: 0
A16: FALSE | L16: 0 | P16: 0 | Q16: 0 | R16: 0 | T16: 0
A17: FALSE | L17: 0 | P17: 0 | Q17: 0 | R17: 0 | T17: 0
A18: FALSE | L18: 0 | P18: 0 | Q18: 0 | R18: 0 | T18: 0
A19: FALSE | L19: 0 | P19: 0 | Q19: 0 | R19: 0 | T19: 0
A20: FALSE | L20: 0 | P20: 0 | Q20: 0 | R20: 0 | T20: 0
A21: FALSE | L21: 0 | P21: 0 | Q21: 0 | R21: 0 | T21: 0
A22: FALSE | L22: 0 | P22: 0 | Q22: 0 | R22: 0 | T22: 0
A23: FALSE | L23: 0 | P23: 0 | Q23: 0 | R23: 0 | T23: 0
A24: FALSE | L24: 0 | P24: 0 | Q24: 0 | R24: 0 | T24: 0
A25: FALSE | L25: 0 | P25: 0 | Q25: 0 | R25: 0 | T25: 0
A26: FALSE | L26: 0 | P26: 0 | Q26: 0 | R26: 0 | T26: 0
A27: FALSE | L27: 0 | P27: 0 | Q27: 0 | R27: 0 | T27: 0
A28: =F28<>"" -> FALSE | L28: 0 | P28: 0 | Q28: 0 | R28: 0 | T28: 0
A29: =F29<>"" -> FALSE | L29: 0 | P29: 0 | Q29: 0 | R29: 0 | T29: 0
A30: =F30<>"" -> FALSE | L30: 0 | P30: 0 | Q30: 0 | R30: 0 | T30: 0
A31: =F31<>"" -> FALSE | L31: 0 | P31: 0 | Q31: 0 | R31: 0 | T31: 0
A32: =F32<>"" -> FALSE | L32: 0 | P32: 0 | Q32: 0 | R32: 0 | T32: 0
A33: =F33<>"" -> FALSE | L33: 0 | P33: 0 | Q33: 0 | R33: 0 | T33: 0
A34: =F34<>"" -> FALSE | L34: 0 | P34: 0 | Q34: 0 | R34: 0 | T34: 0
A35: =F35<>"" -> FALSE | L35: 0 | P35: =$F35*G35 -> 0 | Q35: =$F35*H35 -> 0 | R35: =$F35*I35 -> 0 | T35: 0
A36: =F36<>"" -> FALSE | L36: 0 | P36: =$F36*G36 -> 0 | Q36: =$F36*H36 -> 0 | R36: =$F36*I36 -> 0 | T36: 0
A37: =F37<>"" -> FALSE | L37: 0 | P37: =$F37*G37 -> 0 | Q37: =$F37*H37 -> 0 | R37: =$F37*I37 -> 0 | T37: 0
A38: =F38<>"" -> FALSE | L38: 0 | P38: =$F38*G38 -> 0 | Q38: =$F38*H38 -> 0 | R38: =$F38*I38 -> 0 | T38: 0
A39: =F39<>"" -> FALSE | L39: =IF(C39<>"",1,0) -> 0 | P39: =$F39*G39 -> 0 | Q39: =$F39*H39 -> 0 | R39: =$F39*I39 -> 0 | T39: =F39-P39-Q39-R39 -> 0
A40: =F40<>"" -> FALSE | L40: =IF(C40<>"",1,0) -> 0 | P40: =$F40*G40 -> 0 | Q40: =$F40*H40 -> 0 | R40: =$F40*I40 -> 0 | T40: =F40-P40-Q40-R40 -> 0
A41: =F41<>"" -> FALSE | L41: =IF(C41<>"",1,0) -> 0 | P41: =$F41*G41 -> 0 | Q41: =$F41*H41 -> 0 | R41: =$F41*I41 -> 0 | T41: =F41-P41-Q41-R41 -> 0
A42: =F42<>"" -> FALSE | L42: =IF(C42<>"",1,0) -> 0 | P42: =$F42*G42 -> 0 | Q42: =$F42*H42 -> 0 | R42: =$F42*I42 -> 0 | T42: =F42-P42-Q42-R42 -> 0
A43: =F43<>"" -> FALSE | L43: =IF(C43<>"",1,0) -> 0 | P43: =$F43*G43 -> 0 | Q43: =$F43*H43 -> 0 | R43: =$F43*I43 -> 0 | T43: =F43-P43-Q43-R43 -> 0
A44: =F44<>"" -> FALSE | L44: =IF(C44<>"",1,0) -> 0 | P44: =$F44*G44 -> 0 | Q44: =$F44*H44 -> 0 | R44: =$F44*I44 -> 0 | T44: =F44-P44-Q44-R44 -> 0
A45: =F45<>"" -> FALSE | L45: =IF(C45<>"",1,0) -> 0 | P45: =$F45*G45 -> 0 | Q45: =$F45*H45 -> 0 | R45: =$F45*I45 -> 0 | T45: =F45-P45-Q45-R45 -> 0
A46: FALSE | L46: =IF(C46<>"",1,0) -> 0 | P46: 0 | Q46: 0 | R46: 0 | T46: =F46-P46-Q46-R46 -> 0
A47: TRUE
A48: TRUE | C48: SUMME EINZELPOSITIONEN = SUMME RECHNUNGSABSCHLUSS | F48: =SUMPRODUCT(F10:F46,$L$10:$L$46) -> 0 | P48: =SUMPRODUCT(P10:P46,$L$10:$L$46) -> 0 | Q48: =SUMPRODUCT(Q10:Q46,$L$10:$L$46) -> 0 | R48: =SUMPRODUCT(R10:R46,$L$10:$L$46) -> 0 | T48: =SUMPRODUCT(T10:T46,$L$10:$L$46) -> 0
A49: TRUE
A50: Ende
C93: 1.1
C94: 1.2
C95: 1.3
C96: 1.4
C97: 1.5
C98: 1.6
C99: 1.7
C100: 2.2.2
C101: 2.3
C102: 2.4
C106: 1.8
C107: 2.6

Sheet BÜB Einnahmen
A1: FALSE | C1: Ende
A2: FALSE | C2: Anlagen
A3: FALSE | C3: Ende
A4: TRUE | C4: =CONCATENATE("Betriebsüberleitungsbogen Daten Einnahmen (Anordnungssoll) Rechnungsabschluss "&BAB!J12&" KLR-Ebene: "&Info!C17) -> Betriebsüberleitungsbogen Daten Einnahmen (Anordnungssoll) Rechnungsabschluss 2017 KLR-Ebene:
A5: TRUE
A6: TRUE | E6: =CONCATENATE("Rücklagenstand per 31.12."&YEAR(wST.PeriodeEnde)) -> Rücklagenstand per 31.12.2017 | K6: 10.
A7: TRUE
A8: TRUE | C8: Ansatz | D8: Konto | E8: Bezeichnung | F8: Wert | G8: Anteil Kostenstelle KLR | J8: Angaben für BAB | K8: Angaben für Finanzierungs-plan | N8: Kommentar | P8: WERT KLR | T8: Kontrolle
A9: TRUE | G9: Kanal | H9: Kläranlage | I9: Verwaltung | P9: Kanal | Q9: Kläranlage | R9: Verwaltung
A10: TRUE
A11: =F11<>"" -> FALSE | L11: =IF(C11<>"",1,0) -> 0 | P11: =$F11*G11 -> 0 | Q11: =$F11*H11 -> 0 | R11: =$F11*I11 -> 0 | T11: =F11-P11-Q11-R11 -> 0
A12: =F12<>"" -> FALSE | L12: 0 | P12: 0 | Q12: 0 | R12: 0 | T12: 0
A13: FALSE | L13: 0 | P13: 0 | Q13: 0 | R13: 0 | T13: 0
A14: FALSE | L14: 0 | P14: 0 | Q14: 0 | R14: 0 | T14: 0
A15: FALSE | L15: 0 | P15: 0 | Q15: 0 | R15: 0 | T15: 0
A16: FALSE | L16: 0 | P16: 0 | Q16: 0 | R16: 0 | T16: 0
A17: FALSE | L17: 0 | P17: 0 | Q17: 0 | R17: 0 | T17: 0
A18: FALSE | L18: 0 | P18: 0 | Q18: 0 | R18: 0 | T18: 0
A19: FALSE | L19: =IF(C19<>"",1,0) -> 0 | P19: =$F19*G19 -> 0 | Q19: =$F19*H19 -> 0 | R19: =$F19*I19 -> 0 | T19: =F19-P19-Q19-R19 -> 0
A20: FALSE | L20: 0 | P20: 0 | Q20: 0 | R20: 0 | T20: 0
A21: FALSE | L21: 0 | P21: 0 | Q21: 0 | R21: 0 | T21: 0
A22: FALSE | L22: 0 | P22: 0 | Q22: 0 | R22: 0 | T22: 0
A23: FALSE | L23: 0 | P23: 0 | Q23: 0 | R23: 0 | T23: 0
A24: FALSE | L24: 0 | P24: 0 | Q24: 0 | R24: 0 | T24: 0
A25: FALSE | L25: 0 | P25: 0 | Q25: 0 | R25: 0 | T25: 0
A26: FALSE | L26: 0 | P26: 0 | Q26: 0 | R26: 0 | T26: 0
A27: FALSE | L27: 0 | P27: 0 | Q27: 0 | R27: 0 | T27: 0
A28: FALSE | L28: =IF(C28<>"",1,0) -> 0 | P28: =$F28*G28 -> 0 | Q28: =$F28*H28 -> 0 | R28: =$F28*I28 -> 0 | T28: =F28-P28-Q28-R28 -> 0
A29: FALSE | L29: 0 | P29: 0 | Q29: 0 | R29: 0 | T29: 0
A30: FALSE | L30: 0 | P30: 0 | Q30: 0 | R30: 0 | T30: 0
A31: FALSE | L31: 0 | P31: 0 | Q31: 0 | R31: 0 | T31: 0
A32: FALSE | L32: 0 | P32: 0 | Q32: 0 | R32: 0 | T32: 0
A33: FALSE | L33: 0 | P33: 0 | Q33: 0 | R33: 0 | T33: 0
A34: FALSE | L34: 0 | P34: 0 | Q34: 0 | R34: 0 | T34: 0
A35: =F35<>"" -> FALSE | L35: 0 | P35: 0 | Q35: 0 | R35: 0 | T35: 0
A36: =F36<>"" -> FALSE | L36: =IF(C36<>"",1,0) -> 0 | P36: =$F36*G36 -> 0 | Q36: =$F36*H36 -> 0 | R36: =$F36*I36 -> 0 | T36: =F36-P36-Q36-R36 -> 0
A37: =F37<>"" -> FALSE | L37: =IF(C37<>"",1,0) -> 0 | P37: =$F37*G37 -> 0 | Q37: =$F37*H37 -> 0 | R37: =$F37*I37 -> 0 | T37: =F37-P37-Q37-R37 -> 0
A38: =F38<>"" -> FALSE | L38: =IF(C38<>"",1,0) -> 0 | P38: =$F38*G38 -> 0 | Q38: =$F38*H38 -> 0 | R38: =$F38*I38 -> 0 | T38: =F38-P38-Q38-R38 -> 0
A39: =F39<>"" -> FALSE | L39: =IF(C39<>"",1,0) -> 0 | P39: =$F39*G39 -> 0 | Q39: =$F39*H39 -> 0 | R39: =$F39*I39 -> 0 | T39: =F39-P39-Q39-R39 -> 0
A40: =F40<>"" -> FALSE | L40: =IF(C40<>"",1,0) -> 0 | P40: =$F40*G40 -> 0 | Q40: =$F40*H40 -> 0 | R40: =$F40*I40 -> 0 | T40: =F40-P40-Q40-R40 -> 0
A41: =F41<>"" -> FALSE | L41: =IF(C41<>"",1,0) -> 0 | P41: =$F41*G41 -> 0 | Q41: =$F41*H41 -> 0 | R41: =$F41*I41 -> 0 | T41: =F41-P41-Q41-R41 -> 0
A42: =F42<>"" -> FALSE | L42: =IF(C42<>"",1,0) -> 0 | P42: =$F42*G42 -> 0 | Q42: =$F42*H42 -> 0 | R42: =$F42*I42 -> 0 | T42: =F42-P42-Q42-R42 -> 0
A43: =F43<>"" -> FALSE | L43: =IF(C43<>"",1,0) -> 0 | P43: =$F43*G43 -> 0 | Q43: =$F43*H43 -> 0 | R43: =$F43*I43 -> 0 | T43: =F43-P43-Q43-R43 -> 0
A44: =F44<>"" -> FALSE | L44: =IF(C44<>"",1,0) -> 0 | P44: =$F44*G44 -> 0 | Q44: =$F44*H44 -> 0 | R44: =$F44*I44 -> 0 | T44: =F44-P44-Q44-R44 -> 0
A45: FALSE | L45: 0 | P45: 0 | Q45: 0 | R45: 0 | T45: 0
A46: TRUE
A47: TRUE | C47: SUMME EINZELPOSITIONEN = SUMME RECHNUNGSABSCHLUSS | F47: =SUMPRODUCT(F11:F45,$L$11:$L$45) -> 0 | P47: =SUMPRODUCT(P11:P45,$L$11:$L$45) -> 0 | Q47: =SUMPRODUCT(Q11:Q45,$L$11:$L$45) -> 0 | R47: =SUMPRODUCT(R11:R45,$L$11:$L$45) -> 0 | T47: =SUMPRODUCT(T11:T45,$L$11:$L$45) -> 0
A48: TRUE
A49: Ende
C92: 4.1
C93: 4.2
C105: 8.
C106: 9.

Sheet BAB
A1: FALSE | B1: Ende
A2: FALSE | B2: Anlagen
A3: FALSE | B3: Ende
A4: TRUE
A5: TRUE
A6: TRUE | C6: Eine Umweltförderung des BMLFUW – managed by Kommunalkredit Public Consulting
A7: TRUE
A8: TRUE | B8: Kosten- und Leistungsrechnung – WVA
A9: TRUE | B9: Betriebsabrechnungsbogen (BAB) in Anlehnung an ÖVGW W61 inkl. Erlösermittlung - Beiträge exkl. UST
A10: TRUE | B10: =CONCATENATE("Land Steiermark Version 02/2019; Erstellungsdatum "&TEXT(Info!G21,"TT.MM.JJJJ")) -> Land Steiermark Version 02/2019; Erstellungsdatum 00.01.1900
A11: TRUE
A12: TRUE | B12: KLR-Ebene: | C12: =Info!C17 -> 0 | I12: Jahr des Rechnungsabschlusses: | J12: =YEAR(wST.PeriodeEnde) -> 2017
A13: TRUE
A14: TRUE | E14: Summe | H14: Verteilung Speicherung | I14: Gewinnung Aufbereitung | J14: Verwaltung
A15: TRUE
A16: TRUE | B16: 1. | C16: Betriebskosten | E16: =SUM(H16:J16) -> 0 | H16: =SUM(H17:H32) -> 0 | I16: =SUM(I17:I32) -> 0 | J16: =SUM(J18:J31) -> 0
A17: TRUE
A18: TRUE | B18: 1.1 | C18: Material- und Stoffkosten | E18: =H18+I18+J18 -> 0 | H18: =SUMIF('BÜB Ausgaben'!$J$10:$J$46,$B18,'BÜB Ausgaben'!P$10:P$46) -> 0 | I18: =SUMIF('BÜB Ausgaben'!$J$10:$J$46,$B18,'BÜB Ausgaben'!Q$10:Q$46) -> 0 | J18: =SUMIF('BÜB Ausgaben'!$J$10:$J$46,$B18,'BÜB Ausgaben'!R$10:R$46) -> 0
A19: TRUE
A20: TRUE | B20: 1.2 | C20: Personalkosten | E20: =H20+I20+J20 -> 0 | H20: =SUMIF('BÜB Ausgaben'!$J$10:$J$46,$B20,'BÜB Ausgaben'!P$10:P$46) -> 0 | I20: =SUMIF('BÜB Ausgaben'!$J$10:$J$46,$B20,'BÜB Ausgaben'!Q$10:Q$46) -> 0 | J20: =SUMIF('BÜB Ausgaben'!$J$10:$J$46,$B20,'BÜB Ausgaben'!R$10:R$46) -> 0
A21: TRUE
A22: TRUE | B22: 1.3 | C22: Leistungen durch Dritte | E22: =H22+I22+J22 -> 0 | H22: =SUMIF('BÜB Ausgaben'!$J$10:$J$46,$B22,'BÜB Ausgaben'!P$10:P$46) -> 0 | I22: =SUMIF('BÜB Ausgaben'!$J$10:$J$46,$B22,'BÜB Ausgaben'!Q$10:Q$46) -> 0 | J22: =SUMIF('BÜB Ausgaben'!$J$10:$J$46,$B22,'BÜB Ausgaben'!R$10:R$46) -> 0
A23: TRUE
A24: TRUE | B24: 1.4 | C24: Energiekosten | E24: =H24+I24+J24 -> 0 | H24: =SUMIF('BÜB Ausgaben'!$J$10:$J$46,$B24,'BÜB Ausgaben'!P$10:P$46) -> 0 | I24: =SUMIF('BÜB Ausgaben'!$J$10:$J$46,$B24,'BÜB Ausgaben'!Q$10:Q$46) -> 0 | J24: =SUMIF('BÜB Ausgaben'!$J$10:$J$46,$B24,'BÜB Ausgaben'!R$10:R$46) -> 0
A25: TRUE
A26: TRUE | B26: 1.5 | C26: Kosten für Wasserbezug von Dritten | E26: =H26+I26+J26 -> 0 | H26: =SUMIF('BÜB Ausgaben'!$J$10:$J$46,$B26,'BÜB Ausgaben'!P$10:P$46) -> 0 | I26: =SUMIF('BÜB Ausgaben'!$J$10:$J$46,$B26,'BÜB Ausgaben'!Q$10:Q$46) -> 0 | J26: =SUMIF('BÜB Ausgaben'!$J$10:$J$46,$B26,'BÜB Ausgaben'!R$10:R$46) -> 0
A27: TRUE
A28: TRUE | B28: 1.6 | C28: Sonstige betriebliche Kosten | E28: =H28+I28+J28 -> 0 | H28: =SUMIF('BÜB Ausgaben'!$J$10:$J$46,$B28,'BÜB Ausgaben'!P$10:P$46) -> 0 | I28: =SUMIF('BÜB Ausgaben'!$J$10:$J$46,$B28,'BÜB Ausgaben'!Q$10:Q$46) -> 0 | J28: =SUMIF('BÜB Ausgaben'!$J$10:$J$46,$B28,'BÜB Ausgaben'!R$10:R$46) -> 0
A29: TRUE
A31: TRUE | B31: 1.7 | C31: Vorschreibung Verbandsanteil | E31: =H31+I31 -> 0 | H31: =SUMIF('BÜB Ausgaben'!$J$10:$J$46,$B31,'BÜB Ausgaben'!P$10:P$46) -> 0 | I31: =SUMIF('BÜB Ausgaben'!$J$10:$J$46,$B31,'BÜB Ausgaben'!Q$10:Q$46) -> 0
A32: TRUE
A33: TRUE
A34: TRUE | B34: 2. | C34: Kapitalkosten | E34: =SUM(H34:J34) -> 0 | H34: =SUM(H35:H46)-H38 -> 0 | I34: =SUM(I35:I46)-I38 -> 0 | J34: =SUM(J35:J46)-J38 -> 0
A35: TRUE
A36: TRUE | B36: 2.1 | C36: Kalkulatorische Anlagenabschreibung | E36: =H36+I36+J36 -> 0 | H36: =SUM(Anlagen!AD9:AD88) -> 0 | I36: =SUM(Anlagen!AE9:AE88) -> 0 | J36: =SUM(Anlagen!AF9:AF88) -> 0
A37: TRUE
A38: TRUE | B38: 2.2 | C38: Kalkulatorische Zinsen | E38: =H38+I38+J38 -> 0 | H38: =H40+H42 -> 0 | I38: =I40+I42 -> 0 | J38: =J40+J42 -> 0
A39: TRUE
A40: TRUE | B40: 2.2.1 | C40: Eigenkapitalzinsen | E40: =H40+I40+J40 -> 0 | H40: =Eigenkapitalzinsen!F16 -> 0 | I40: =Eigenkapitalzinsen!G16 -> 0 | J40: =Eigenkapitalzinsen!H16 -> 0
A41: TRUE
A42: TRUE | B42: 2.2.2 | C42: Fremdkapitalzinsen | E42: =H42+I42+J42 -> 0 | H42: =SUMIF('BÜB Ausgaben'!$J$10:$J$46,$B42,'BÜB Ausgaben'!P$10:P$46) -> 0 | I42: =SUMIF('BÜB Ausgaben'!$J$10:$J$46,$B42,'BÜB Ausgaben'!Q$10:Q$46) -> 0 | J42: =SUMIF('BÜB Ausgaben'!$J$10:$J$46,$B42,'BÜB Ausgaben'!R$10:R$46) -> 0
A43: TRUE
A44: TRUE | B44: 2.3 | C44: Kalkulatorische Wagnisse | E44: =H44+I44+J44 -> 0 | H44: =SUMIF('BÜB Ausgaben'!$J$10:$J$46,$B44,'BÜB Ausgaben'!P$10:P$46) -> 0 | I44: =SUMIF('BÜB Ausgaben'!$J$10:$J$46,$B44,'BÜB Ausgaben'!Q$10:Q$46) -> 0 | J44: =SUMIF('BÜB Ausgaben'!$J$10:$J$46,$B44,'BÜB Ausgaben'!R$10:R$46) -> 0
A45: TRUE
A46: TRUE | B46: 2.4 | C46: Sonstige kalkulatorischen Kosten | E46: =H46+I46+J46 -> 0 | H46: =SUMIF('BÜB Ausgaben'!$J$10:$J$46,$B46,'BÜB Ausgaben'!P$10:P$46) -> 0 | I46: =SUMIF('BÜB Ausgaben'!$J$10:$J$46,$B46,'BÜB Ausgaben'!Q$10:Q$46) -> 0 | J46: =SUMIF('BÜB Ausgaben'!$J$10:$J$46,$B46,'BÜB Ausgaben'!R$10:R$46) -> 0
A47: TRUE
A48: TRUE
A49: TRUE | B49: 3. | C49: Kostenauflösung / Kostenkorrektur | E49: =SUM(H49:J49) -> 0 | H49: =SUM(H50:H53) -> 0 | I49: =SUM(I50:I53) -> 0 | J49: =SUM(J50:J53) -> 0
A50: TRUE
A51: TRUE | B51: 3.1 | C51: Auflösung Subventionen - Korrektur Anlagenabschreibung | E51: =H51+I51+J51 -> 0 | H51: =-SUM(Anlagen!AD92:AD134) -> 0 | I51: =-SUM(Anlagen!AE92:AE134) -> 0 | J51: =-SUM(Anlagen!AF92:AF134) -> 0
A52: TRUE
A53: TRUE | B53: 3.2 | C53: Auflösung Beiträge - Korrektur Anlagenabschreibung | E53: =H53+I53+J53 -> 0 | H53: =-SUM(Anlagen!AD138:AD158) -> 0 | I53: =-SUM(Anlagen!AE138:AE158) -> 0 | J53: =-SUM(Anlagen!AF138:AF158) -> 0
A54: TRUE
A55: TRUE
A56: TRUE | B56: GESAMTKOSTEN vor Umlage Verwaltung | E56: =E49+E34+E16 -> 0 | H56: =H49+H34+H16 -> 0 | I56: =I49+I34+I16 -> 0 | J56: =J49+J34+J16 -> 0
A57: TRUE
A58: TRUE | B58: Umlage Verwaltungskosten | H58: =(J56/(H56+I56)*H56) ->  | I58: =(J56/(H56+I56)*I56) -> 
A59: TRUE
A60: TRUE | B60: GESAMTKOSTEN nach Umlage Verwaltung | E60: =H60+I60 ->  | H60: =H56+H58 ->  | I60: =I56+I58 -> 
A61: TRUE
A62: TRUE | E62: =IF(E60=0,"",E60/E60) ->  | H62: =IF(E60=0,"",H60/E60) ->  | I62: =IF(E60=0,"",I60/E60) -> 
A63: TRUE
A64: TRUE | E64: Summe
A65: TRUE
A66: TRUE | B66: 4. | C66: Erlöse | E66: =SUM(E68:F70) -> 0 | H66: 5. Allgemeine Angaben
A67: TRUE
A68: TRUE | B68: 4.1 | C68: Laufende Einnahmen | E68: =SUMIF('BÜB Einnahmen'!$J$11:$J$45,$B68,'BÜB Einnahmen'!F$11:F$45) -> 0 | H68: Wassermenge [m³]
A69: TRUE
A70: TRUE | B70: 4.2 | C70: Laufende Einnahmen von Dritten | E70: =SUMIF('BÜB Einnahmen'!$J$11:$J$45,$B70,'BÜB Einnahmen'!F$11:F$45) -> 0 | H70: Anschlussgrad [%]
A71: TRUE
A72: TRUE
A73: TRUE | B73: 6. | C73: Ergebnis
A74: TRUE
A75: TRUE | C75: Berechneter kostendeckender Wasserpreis (EUR/m³) | E75: =IF(J68=0,"",E60/J68) ->  | H75: Kostendeckungsgrad (%) | J75: =IF(E60=0,"",E66/E60) -> 
A76: TRUE
A77: TRUE
A78: TRUE | B78: 7. | C78: Anmerkungen (optional)
A79: TRUE
A80: TRUE
A84: TRUE
A85: TRUE
A86: TRUE
A87: TRUE | B87: =CONCATENATE("KLR-WVA Land Steiermark Version 02/2019; Erstellungsdatum "&TEXT(Info!G21,"TT.MM.JJJJ")) -> KLR-WVA Land Steiermark Version 02/2019; Erstellungsdatum 00.01.1900
A88: TRUE
A89: TRUE | B89: KLR-Ebene: | E89: =Info!C17 -> 0
A90: TRUE | B90: Betrieb und Wartung für Leitungen, Pumpwerke, Behälter und Sonderbauwerke durch:
A91: TRUE | B91: eigene Wassergewinnung / Wasserbezug von Dritten durch:
A92: TRUE | B92: Betrieb und Wartung für Gewinnung und Aufbereitung durch:
A93: TRUE
A94: TRUE | B94: Vorgaben des Landes Steiermark zur einheitlichen Kostenüberleitung bei der Ermittlung des einfachen Jahreserfordernisses gemäß ÖWAV Arbeitsbehelf 41 in Anlehnung an ÖVGW Richtlinie 61 für den Betriebsabrechnungsbogen (BAB)
A95: TRUE
A96: TRUE | B96: Fremdkapitalzinsen
A97: TRUE | B97: Beim einfachen Jahreserfordernis des "BAB" zählen gemäß ÖWAV AB 41 die tatsächlichen Fremdkapitalzinsen des abgeschlossenen Rechnungsjahres von Finanzierungsleasing / Forderungskauf, von Darlehen / Inneren Darlehen und von sonstigen Schuldaufnahmen zu den Fremdkapitalzinsen des einfachen Jahreserfordernisses der KLR. Dies gilt auch nach Ablauf der Nutzungsdauer von Investitionen.
A98: TRUE
B99: Eigenkapitalzinsen
B100: Die Eigenkapitalbasis ist gemäß ÖWAV AB 41 der Jahresdurchschnitt der Restwerte von: Anschaffungskosten minus Interessentenbeiträge und Subventionsbarwerte (der Investitionskosten- und Finanzierungszuschüsse) minus Nominalen der Schulden für Investitionen des einfachen Jahreserfordernisses gemäß ÖWAV AB 48. Als Eigenkapitalzinssatz ist der Zinssatz der zum Zeitpunkt der Erstellung der Kosten- und Leistungsrechnung zuletzt begebenen langfristigen inländischen Bundesanleihe anzugeben. Dieser kann mit dem nachfolgenden Link aus der Liste der Barwertzinssätze der Kommunalkredit Public Consulting GmbH entnommen werden:
B101: https://www.umweltfoerderung.at/fileadmin/user_upload/media/umweltfoerderung/Dokumente_Betriebe/Wasser_Betriebe/Alle_Dokumente/Termine_KOSI_Zinssatz_Index_SWW.pdf
A102: TRUE | B102: Plausibilitätsgrenzen für nicht verbuchte innerbetriebliche Verwaltungsleistungen
A103: TRUE | B103: Im Fall nicht verbuchter innerbetrieblicher Leistungen sind als Vorgabe des Landes Steiermark ohne Nachweis höchstens nachfolgend angeführte Prozentsätze der Ausgaben (Anordnungssoll) des laufenden Betriebes (Eingabe bei "BÜB Ausgaben") für Vertretungskörper, Hauptverwaltung sowie für Anlagen der Verwaltung dem Haushalt Wasserversorgung als Verwaltungskosten plausibel den kalkulatorischen Kosten zurechenbar:
A105: TRUE | B105: 5 % wenn der gesamte Betrieb nur von der KLR-Ebene durchgeführt wird
A106: TRUE | B106: 4 % wenn der Betrieb der Gewinnung nicht von der KLR-Ebene durchgeführt wird
A107: TRUE | B107: 3 % wenn der gesamte Betrieb nicht vovon der KLR-Ebene durchgeführt wird
A108: TRUE
A109: TRUE | B109: Rückstellungen (finanzierungswirksame oder kalkulatorische)
A110: TRUE | B110: Kosten für die Neubildung von Rückstellungen und Erlöse für die Auflösung von Rückstellungen sind nur für die erworbenen Ansprüche aus der betriebsnotwendigen Leistungserbringung für das betrachtete Rechnungsjahr ansetzbar.
B112: Anschlussgrad
B113: Bei der KLR von Gemeinden ist im Anschlussgrad der Hauptwohnsitzbevölkerung auch die durch Wassergenossenschaften entsorgte Haupt-wohnsitzbevölkerung einzurechnen. Bei der KLR von Wasserverbänden und Wassergenossenschaften ist der Anschlussgrad immer 100%.
A115: TRUE | B115: Vorgegebene Nutzungsdauern der KLR in ganzen Jahren, sofern keine Begründungen für Abweichungen vorliegen
B116: Vor dem Beschluss der Eröffnungsbilanz gemäß VRV 2015 ist für die örtlichen Nutzungsdauern der rot und kursiv gekennzeichneten Anlagen ein Gemeinderatsbeschluss bzw. ein Verbandsbeschluss zu fassen.
B117: 000 Bebaute Grundstücke | J117: keine Eingabe
B118: 001 Unbebaute Grundstücke | J118: keine Eingabe
B119: 004 Wasser- u. Kanalisationsbauten- u. anlagen, bauliche Anlagen, ohne Wasserleitungen | J119: 25
B120: 004 Wasser- u. Kanalisationsbauten- u. anlagen, Wasserleitungen, Hydranten, Schieber, Entlüftungen | J120: 50
B121: 020 Maschinen u. masch. Anlagen, Installat., elektr. u. elektron. Anl. u. Steuerungen, Wassseraufbereitung, Notstromaggregate | J121: 13
B122: 030 Werkzeuge und Geräte | J122: 8
B123: 040 Personenkraftwagen | J123: 8
B124: 040 Betriebsfahrzeuge ohne Personenkraftwagen | J124: 10
B125: 042 Arbeitsplatzausstattung, mit Betriebssystemen | J125: 4
B126: 042 Bodenbeläge, Wandverkleidungen, Wasseruhren, Feuerbekämpfungsanlagen- u. geräte | J126: 5
B127: 042 Videoanlagen | J127: 6
B128: 042 Server | J128: 7
B129: 042 Sonstige elektronische Maschinen u. Büromaschinen | J129: 8
B130: 042 Einrichtungs- u. Ausstattungsgegenstände, Laboreinrichtungen, Überwachungs-, Alarm- u. Fernwirkanlagen | J130: 10
A131: TRUE | B131: 070 Immaterielle Anlagen, mit gekaufter Software, ohne Leitungsinformationssysteme | H131: nach Vertrag / nach beabsichtigter Nutzung
A132: TRUE | B132: 070 Leitungsinformationssysteme | J132: 10
A133: TRUE
A134: TRUE | B134: Nutzungsbedingungen
A135: TRUE | B135: Die gegenständliche Excel-Arbeitsmappe steht den Wasserversorgern in der Steiermark kostenlos zur Verfügung. Eine Nutzung für Wasserversorger außerhalb der Steiermark ist aus rechtlichen Gründen nicht zulässig.
A136: Ende

Sheet Finanzierungsplan
A1: FALSE | B1: Ende
A2: FALSE | B2: Anlagen
A3: FALSE | B3: Ende
A4: TRUE
A5: TRUE | C5: =CONCATENATE("Finanzierungsplan Wasserversorgung Rechnungsabschluss "&BAB!J12," KLR-Ebene: "&Info!C17) -> Finanzierungsplan Wasserversorgung Rechnungsabschluss 2017 KLR-Ebene:
A6: TRUE
A7: TRUE
A8: TRUE | F8: ="Summe "&BAB!J12 -> Summe 2017 | I8: Änd. p.a. | K8: =BAB!J12+1 -> 2018 | L8: =K8+1 -> 2019 | M8: 2020 | N8: 2021 | O8: 2022 | P8: 2023 | Q8: 2024 | R8: 2025 | S8: 2026 | T8: 2027
A9: TRUE
A10: TRUE | C10: 1. | D10: Betriebskosten | F10: =SUM(F11:F43) -> 0 | G10: =SUM(G11:G43) -> 0 | K10: =SUM(K12,K16,K20,K24,K28,K32,K36,K42) -> 0 | L10: =SUM(L12,L16,L20,L24,L28,L32,L36,L42) -> 0 | M10: 0 | N10: 0 | O10: 0 | P10: 0 | Q10: 0 | R10: 0 | S10: 0 | T10: 0
A11: TRUE
A12: TRUE | C12: 1.1 | D12: Material- und Stoffkosten | F12: =BAB!E18 -> 0 | I12: =AVERAGE(K14:T14) ->  | K12: =F12*(1+K14) -> 0 | L12: =K12*(1+L14) -> 0 | M12: =L12*(1+M14) -> 0 | N12: 0 | O12: 0 | P12: 0 | Q12: 0 | R12: 0 | S12: 0 | T12: 0
A13: TRUE
A14: TRUE | D14: jährliche Steigerung Material- und Stoffkosten geg. VJ %
A15: TRUE
A16: TRUE | C16: 1.2 | D16: Personalkosten | F16: =BAB!E20 -> 0 | I16: =AVERAGE(K18:T18) ->  | K16: =F16*(1+K18) -> 0 | L16: =K16*(1+L18) -> 0 | M16: =L16*(1+M18) -> 0 | N16: 0 | O16: 0 | P16: 0 | Q16: 0 | R16: 0 | S16: 0 | T16: 0
A17: TRUE
A18: TRUE | D18: jährliche Steigerung Personalkosten geg. VJ %
A19: TRUE
A20: TRUE | C20: 1.3 | D20: Leistungen durch Dritte | F20: =BAB!E22 -> 0 | I20: =AVERAGE(K22:T22) ->  | K20: =F20*(1+K22) -> 0 | L20: =K20*(1+L22) -> 0 | M20: =L20*(1+M22) -> 0 | N20: 0 | O20: 0 | P20: 0 | Q20: 0 | R20: 0 | S20: 0 | T20: 0
A21: TRUE
A22: TRUE | D22: jährliche Steigerung Leistungen durch Dritte geg. VJ %
A23: TRUE
A24: TRUE | C24: 1.4 | D24: Energiekosten | F24: =BAB!E24 -> 0 | I24: =AVERAGE(K26:T26) ->  | K24: =F24*(1+K26) -> 0 | L24: =K24*(1+L26) -> 0 | M24: =L24*(1+M26) -> 0 | N24: =M24*(1+N26) -> 0 | O24: =N24*(1+O26) -> 0 | P24: =O24*(1+P26) -> 0 | Q24: =P24*(1+Q26) -> 0 | R24: =Q24*(1+R26) -> 0 | S24: =R24*(1+S26) -> 0 | T24: =S24*(1+T26) -> 0
A25: TRUE
A26: TRUE | D26: jährliche Steigerung Energiekosten geg. VJ %
A27: TRUE
A28: TRUE | C28: 1.5 | D28: Kosten für Wasserbezug von Dritten | F28: =BAB!E26 -> 0 | I28: =AVERAGE(K30:T30) ->  | K28: =F28*(1+K30) -> 0 | L28: =K28*(1+L30) -> 0 | M28: =L28*(1+M30) -> 0 | N28: =M28*(1+N30) -> 0 | O28: =N28*(1+O30) -> 0 | P28: =O28*(1+P30) -> 0 | Q28: =P28*(1+Q30) -> 0 | R28: =Q28*(1+R30) -> 0 | S28: =R28*(1+S30) -> 0 | T28: =S28*(1+T30) -> 0
A29: TRUE
A30: TRUE | D30: jährl. Steigerung Kosten für Wasserbezug von Dritten geg. VJ %
A31: TRUE
A32: TRUE | C32: 1.6 | D32: Sonstige betriebliche Kosten | F32: =BAB!E28 -> 0 | I32: =AVERAGE(K34:T34) ->  | K32: =F32*(1+K34) -> 0 | L32: =K32*(1+L34) -> 0 | M32: =L32*(1+M34) -> 0 | N32: =M32*(1+N34) -> 0 | O32: =N32*(1+O34) -> 0 | P32: =O32*(1+P34) -> 0 | Q32: =P32*(1+Q34) -> 0 | R32: =Q32*(1+R34) -> 0 | S32: =R32*(1+S34) -> 0 | T32: =S32*(1+T34) -> 0
A33: TRUE
A34: TRUE | D34: jährliche Steigerung sonstige betriebliche Kosten geg. VJ %
A35: TRUE
A36: TRUE | C36: 1.7 | D36: Vorschreibung Verbandsanteil | F36: =BAB!E31 -> 0 | I36: =AVERAGE(K38:T38) ->  | K36: =F36*(1+K38) -> 0 | L36: =K36*(1+L38) -> 0 | M36: =L36*(1+M38) -> 0 | N36: =M36*(1+N38) -> 0 | O36: =N36*(1+O38) -> 0 | P36: =O36*(1+P38) -> 0 | Q36: =P36*(1+Q38) -> 0 | R36: =Q36*(1+R38) -> 0 | S36: =R36*(1+S38) -> 0 | T36: =S36*(1+T38) -> 0
A37: TRUE
A38: TRUE | D38: jährliche Steigerung Vorschreibung Verbandsanteil geg. VJ %
A39: TRUE
A40: TRUE | C40: 1.8 | D40: im RA-Jahr: sonstige OH Ausgaben incl.: 298, 769, 910 | F40: =SUMIF('BÜB Ausgaben'!$K$10:$K$46,$C40,'BÜB Ausgaben'!F$10:F$46) -> 0
C42: 1.9 | D42: nach dem RA-Jahr: sonstige OH Ausgaben excl.: 298, 769, 910
A43: TRUE
A44: TRUE
A45: TRUE | C45: 2. | D45: Kapitalausgaben | F45: =SUM(F47,F49) -> 0 | K45: =F45*(1+I45)+K51 -> 0 | L45: =K45*(1+$I45)+L51 -> 0 | M45: 0 | N45: 0 | O45: 0 | P45: 0 | Q45: 0 | R45: 0 | S45: 0 | T45: 0
A46: TRUE
A47: TRUE | C47: 2.1 | D47: Zinsen | F47: =BAB!E42 -> 0
A48: TRUE
A49: TRUE | C49: 2.6 | D49: Tilgungen | F49: =SUMIF('BÜB Ausgaben'!$K$10:$K$46,$C49,'BÜB Ausgaben'!F$10:F$46) -> 0
A50: TRUE
A51: TRUE | D51: auslaufende Annuitäten - negativ geg. VJ
A52: TRUE
A53: TRUE
A54: TRUE | C54: 8. | D54: jährliche Finanzierungszuschüsse | F54: =SUMIF('BÜB Einnahmen'!$K$11:$K$45,$C54,'BÜB Einnahmen'!F$11:F$45) -> 0 | K54: =F54*(1+I54)+K56 -> 0 | L54: =K54*(1+$I54)+L56 -> 0 | M54: =L54*(1+$I54)+M56 -> 0 | N54: 0 | O54: 0 | P54: 0 | Q54: 0 | R54: 0 | S54: 0 | T54: 0
A55: TRUE
A56: TRUE | D56: auslaufende Finanzierungszuschüsse - negativ geg. VJ
A57: TRUE
A58: TRUE
A59: TRUE | C59: GESAMTAUSGABEN exkl. zukünftige Investitionen | F59: =F10+F45-F54 -> 0 | K59: =K10+K45-K54 -> 0 | L59: 0 | M59: 0 | N59: 0 | O59: 0 | P59: 0 | Q59: 0 | R59: 0 | S59: 0 | T59: 0
A60: TRUE
A61: TRUE | C61: Planung der Investitionen der zukünftigen 10 Jahre
A62: TRUE
A63: TRUE | C63: Finanzierung und zusätzliche Betriebskosten der zuk. Inv. | K63: =SUM(K64:K123) -> 0 | L63: =SUM(L64:L123) -> 0 | M63: 0 | N63: 0 | O63: 0 | P63: 0 | Q63: 0 | R63: 0 | S63: 0 | T63: 0
A64: TRUE | B64: =K8 -> 2018 | C64: Investitionskosten excl. UST | J64: Beschreibung zukünftige Investitionen:
A65: TRUE | C65: Förderungsbarwerte für Investitionen (IZ/FZ)
A66: TRUE | C66: Interessentenbeiträge für Investitionen | F66: Darlehenslaufzeit:
A67: TRUE | C67: Rücklagen und OH für Investitionen | F67: Darlehenszinssatz:
A68: TRUE | C68: ungefördertes Darlehensnominale | E68: =E64-SUM(E65:E67) -> 0 | K68: =IF(E68=0,0,PMT(G67,G66,-E68)) -> 0 | L68: =K68 -> 0 | M68: =L68 -> 0 | N68: 0 | O68: 0 | P68: 0 | Q68: 0 | R68: 0 | S68: 0 | T68: 0
A69: TRUE | C69: zusätzliche Betriebskosten durch Investitionen | F69: Steigerung: | K69: =E69 -> 0 | L69: =K69*(1+$G69) -> 0 | M69: =L69*(1+$G69) -> 0 | N69: 0 | O69: 0 | P69: 0 | Q69: 0 | R69: 0 | S69: 0 | T69: 0
A70: TRUE | B70: =B64+1 -> 2019 | C70: Investitionskosten excl. UST | J70: Beschreibung zukünftige Investitionen:
A71: TRUE | C71: Förderungsbarwerte für Investitionen (IZ/FZ)
A72: TRUE | C72: Interessentenbeiträge für Investitionen | F72: Darlehenslaufzeit:
A73: TRUE | C73: Rücklagen und OH für Investitionen | F73: Darlehenszinssatz:
A74: TRUE | C74: ungefördertes Darlehensnominale | E74: =E70-SUM(E71:E73) -> 0 | L74: =IF(E74=0,0,PMT(G73,G72,-E74)) -> 0 | M74: =L74 -> 0 | N74: 0 | O74: 0 | P74: 0 | Q74: 0 | R74: 0 | S74: 0 | T74: 0
A75: TRUE | C75: zusätzliche Betriebskosten durch Investitionen | F75: Steigerung: | L75: =E75 -> 0 | M75: =L75*(1+$G75) -> 0 | N75: 0 | O75: 0 | P75: 0 | Q75: 0 | R75: 0 | S75: 0 | T75: 0
A76: TRUE | B76: =B70+1 -> 2020 | C76: Investitionskosten excl. UST | J76: Beschreibung zukünftige Investitionen:
A77: TRUE | C77: Förderungsbarwerte für Investitionen (IZ/FZ)
A78: TRUE | C78: interessentenbeiträge für Investitionen | F78: Darlehenslaufzeit:
A79: TRUE | C79: Rücklagen und OH für Investitionen | F79: Darlehenszinssatz:
A80: TRUE | C80: ungefördertes Darlehensnominale | E80: =E76-SUM(E77:E79) -> 0 | M80: =IF(E80=0,0,PMT(G79,G78,-E80)) -> 0 | N80: =M80 -> 0 | O80: 0 | P80: 0 | Q80: 0 | R80: 0 | S80: 0 | T80: 0
A81: TRUE | C81: zusätzliche Betriebskosten durch Investitionen | F81: Steigerung: | M81: =E81 -> 0 | N81: =M81*(1+$G81) -> 0 | O81: 0 | P81: 0 | Q81: 0 | R81: 0 | S81: 0 | T81: 0
A82: TRUE | B82: =B76+1 -> 2021 | C82: Investitionskosten excl. UST | J82: Beschreibung zukünftige Investitionen:
A83: TRUE | C83: Förderungsbarwerte für Investitionen (IZ/FZ)
A84: TRUE | C84: Interessentenbeiträge für Investitionen | F84: Darlehenslaufzeit:
A85: TRUE | C85: Rücklagen und OH für Investitionen | F85: Darlehenszinssatz:
A86: TRUE | C86: ungefördertes Darlehensnominale | E86: =E82-SUM(E83:E85) -> 0 | N86: =IF(E86=0,0,PMT(G85,G84,-E86)) -> 0 | O86: =N86 -> 0 | P86: 0 | Q86: 0 | R86: 0 | S86: 0 | T86: 0
A87: TRUE | C87: zusätzliche Betriebskosten durch Investitionen | F87: Steigerung: | N87: =E87 -> 0 | O87: =N87*(1+$G87) -> 0 | P87: 0 | Q87: 0 | R87: 0 | S87: 0 | T87: 0
A88: TRUE | B88: =B82+1 -> 2022 | C88: Investitionskosten excl. UST | J88: Beschreibung zukünftige Investitionen:
A89: TRUE | C89: Förderungsbarwerte für Investitionen (IZ/FZ)
A90: TRUE | C90: Interessentenbeiträge für Investitionen | F90: Darlehenslaufzeit:
A91: TRUE | C91: Rücklagen und OH für Investitionen | F91: Darlehenszinssatz:
A92: TRUE | C92: ungefördertes Darlehensnominale | E92: =E88-SUM(E89:E91) -> 0 | O92: =IF(E92=0,0,PMT(G91,G90,-E92)) -> 0 | P92: =O92 -> 0 | Q92: 0 | R92: 0 | S92: 0 | T92: 0
A93: TRUE | C93: zusätzliche Betriebskosten durch Investitionen | F93: Steigerung: | O93: =E93 -> 0 | P93: =O93*(1+$G93) -> 0 | Q93: 0 | R93: 0 | S93: 0 | T93: 0
A94: TRUE | B94: =B88+1 -> 2023 | C94: Investitionskosten excl. UST | J94: Beschreibung zukünftige Investitionen:
A95: TRUE | C95: Förderungsbarwerte für Investitionen (IZ/FZ)
A96: TRUE | C96: Interessentenbeiträge für Investitionen | F96: Darlehenslaufzeit:
A97: TRUE | C97: Rücklagen und OH für Investitionen | F97: Darlehenszinssatz:
A98: TRUE | C98: ungefördertes Darlehensnominale | E98: =E94-SUM(E95:E97) -> 0 | P98: =IF(E98=0,0,PMT(G97,G96,-E98)) -> 0 | Q98: =P98 -> 0 | R98: 0 | S98: 0 | T98: 0
A99: TRUE | C99: zusätzliche Betriebskosten durch Investitionen | F99: Steigerung: | P99: =E99 -> 0 | Q99: =P99*(1+$G99) -> 0 | R99: 0 | S99: 0 | T99: 0
A100: TRUE | B100: =B94+1 -> 2024 | C100: Investitionskosten excl. UST | J100: Beschreibung zukünftige Investitionen:
A101: TRUE | C101: Förderungsbarwerte für Investitionen (IZ/FZ)
A102: TRUE | C102: Interessentenbeiträge für Investitionen | F102: Darlehenslaufzeit:
A103: TRUE | C103: Rücklagen und OH für Investitionen | F103: Darlehenszinssatz:
A104: TRUE | C104: ungefördertes Darlehensnominale | E104: =E100-SUM(E101:E103) -> 0 | Q104: =IF(E104=0,0,PMT(G103,G102,-E104)) -> 0 | R104: =Q104 -> 0 | S104: 0 | T104: 0
A105: TRUE | C105: zusätzliche Betriebskosten durch Investitionen | F105: Steigerung: | Q105: =E105 -> 0 | R105: =Q105*(1+$G105) -> 0 | S105: 0 | T105: 0
A106: TRUE | B106: =B100+1 -> 2025 | C106: Investitionskosten excl. UST | J106: Beschreibung zukünftige Investitionen:
A107: TRUE | C107: Förderungsbarwerte für Investitionen (IZ/FZ)
A108: TRUE | C108: Interessentenbeiträge für Investitionen | F108: Darlehenslaufzeit:
A109: TRUE | C109: Rücklagen und OH für Investitionen | F109: Darlehenszinssatz:
A110: TRUE | C110: ungefördertes Darlehensnominale | E110: =E106-SUM(E107:E109) -> 0 | R110: =IF(E110=0,0,PMT(G109,G108,-E110)) -> 0 | S110: =R110 -> 0 | T110: 0
A111: TRUE | C111: zusätzliche Betriebskosten durch Investitionen | F111: Steigerung: | R111: =E111 -> 0 | S111: =R111*(1+$G111) -> 0 | T111: 0
A112: TRUE | B112: =B106+1 -> 2026 | C112: Investitionskosten excl. UST | J112: Beschreibung zukünftige Investitionen:
A113: TRUE | C113: Förderungsbarwerte für Investitionen (IZ/FZ)
A114: TRUE | C114: Interessentenbeiträge für Investitionen | F114: Darlehenslaufzeit:
A115: TRUE | C115: Rücklagen und OH für Investitionen | F115: Darlehenszinssatz:
A116: TRUE | C116: ungefördertes Darlehensnominale | E116: =E112-SUM(E113:E115) -> 0 | S116: =IF(E116=0,0,PMT(G115,G114,-E116)) -> 0 | T116: =S116 -> 0
A117: TRUE | C117: zusätzliche Betriebskosten durch Investitionen | F117: Steigerung: | S117: =E117 -> 0 | T117: =S117*(1+$G117) -> 0
A118: TRUE | B118: =B112+1 -> 2027 | C118: Investitionskosten excl. UST | J118: Beschreibung zukünftige Investitionen:
A119: TRUE | C119: Förderungsbarwerte für Investitionen (IZ/FZ)
A120: TRUE | C120: Interessentenbeiträge für Investitionen | F120: Darlehenslaufzeit:
A121: TRUE | C121: Rücklagen und OH für Investitionen | F121: Darlehenszinssatz:
A122: TRUE | C122: ungefördertes Darlehensnominale | E122: =E118-SUM(E119:E121) -> 0 | T122: =IF(E122=0,0,PMT(G121,G120,-E122)) -> 0
A123: TRUE | C123: zusätzliche Betriebskosten durch Investitionen | T123: =E123 -> 0
A124: TRUE
A125: TRUE | C125: GESAMTAUSGABEN inkl. zukünftige Investitionen | F125: =F59 -> 0 | G125: =G59+G63 -> 0 | K125: =K59+K63 -> 0 | L125: =L59+L63 -> 0 | M125: 0 | N125: 0 | O125: 0 | P125: 0 | Q125: 0 | R125: 0 | S125: 0 | T125: 0
A126: TRUE
A127: TRUE | C127: 9. für das RA-Jahr: Interessentenbeitr./IZ/sonst. Einnahmen | F127: =SUMIF('BÜB Einnahmen'!$K$11:$K$45,"9.",'BÜB Einnahmen'!F$11:F$45) -> 0 | G127: 0
A129: TRUE | C129: zus. zu FP-Projekten: Interessentenbeiträge/IZ/sonst. Einnahmen
C131: GESAMTEINNAHMEN exkl. zuk. Inv./Gebührenerhöhung | F131: =BAB!$E$66+F127 -> 0 | G131: =G61+G65 -> 0 | K131: =BAB!$E$66+K129 -> 0 | L131: =BAB!$E$66+L129 -> 0 | M131: =BAB!$E$66+M129 -> 0 | N131: =BAB!$E$66+N129 -> 0 | O131: =BAB!$E$66+O129 -> 0 | P131: =BAB!$E$66+P129 -> 0 | Q131: =BAB!$E$66+Q129 -> 0 | R131: =BAB!$E$66+R129 -> 0 | S131: =BAB!$E$66+S129 -> 0 | T131: =BAB!$E$66+T129 -> 0
A132: TRUE
A133: TRUE | C133: Gebührenerhöhung geg. VJ %
A134: TRUE | C134: zusätzliche Gebühreneinnahmen durch die zuk. Inv. geg. VJ
C136: GESAMTEINNAHMEN inkl. zuk. Inv./Gebührenerhöhung | F136: =F131 -> 0 | G136: =G61+#REF! ->  | K136: =BAB!E66*(1+K133)+K134+K129 -> 0 | L136: =(K136-K129)*(1+L133)+L134+L129 -> 0 | M136: 0 | N136: 0 | O136: 0 | P136: 0 | Q136: 0 | R136: 0 | S136: 0 | T136: 0
A137: TRUE
A138: TRUE | C138: LIQUIDITÄTSERGEBNIS exkl. zuk. Inv./Gebührenerhöhung | F138: =F131-F59 -> 0 | G138: =G63+G66 -> 0 | K138: =K131-K59 -> 0 | L138: =L131-L59 -> 0 | M138: 0 | N138: 0 | O138: 0 | P138: 0 | Q138: 0 | R138: 0 | S138: 0 | T138: 0
A139: TRUE
A140: TRUE | C140: LIQUIDITÄTSERGEBNIS inkl. zuk. Inv./Gebührenerhöhung | F140: =F136-F125 -> 0 | G140: =#REF!+G69 ->  | K140: =K136-K125 -> 0 | L140: 0 | M140: 0 | N140: 0 | O140: 0 | P140: 0 | Q140: 0 | R140: 0 | S140: 0 | T140: 0
A141: TRUE
A142: TRUE | C142: =CONCATENATE("10. Rücklagenstand Wasserhaushalt per 31.12."&YEAR(Info!G17)) -> 10. Rücklagenstand Wasserhaushalt per 31.12.2017 | F142: ='BÜB Einnahmen'!F6 -> 0
A143: TRUE
A144: TRUE | C144: LIQUIDITÄTSERGEBNIS kum. exkl. zuk. Inv./Gebührenerhöh. | F144: =F138+F142 -> 0 | G144: =G67+#REF! ->  | K144: =F144+K138 -> 0 | L144: =K144+L138 -> 0 | M144: 0 | N144: 0 | O144: 0 | P144: 0 | Q144: 0 | R144: 0 | S144: =R144+S138 -> 0 | T144: 0
A145: TRUE
A146: TRUE | C146: LIQUIDITÄTSERGEBNIS kum. inkl. zuk. Inv./Gebührenerhöh. | F146: =F140+F142 -> 0 | G146: =G70+G73 -> 0 | K146: =F146+K140-E67 -> 0 | L146: =K146+L140-E73 -> 0 | M146: =L146+M140-E79 -> 0 | N146: =M146+N140-E85 -> 0 | O146: =N146+O140-E91 -> 0 | P146: =O146+P140-E97 -> 0 | Q146: =P146+Q140-E103 -> 0 | R146: =Q146+R140-E109 -> 0 | S146: =R146+S140-E115 -> 0 | T146: =S146+T140-E121 -> 0
A147: TRUE
A148: Ende

Sheet Grafiken Finanzierungsplan
A1: FALSE | B1: Ende
A2: FALSE | B2: Anlagen
A3: FALSE | B3: Ende
A4: TRUE
A5: TRUE | C5: =CONCATENATE("Grafiken zum Finanzierungsplan Wasserversorgung Rechnungsabschluss "&BAB!J12," KLR-Ebene: "&Info!C17) -> Grafiken zum Finanzierungsplan Wasserversorgung Rechnungsabschluss 2017 KLR-Ebene:
A6: TRUE
A7: TRUE
A8: TRUE
A9: TRUE
A10: TRUE
A11: TRUE
A12: TRUE
A13: TRUE
A14: TRUE
A15: TRUE
A16: TRUE
A17: TRUE
A18: TRUE
A19: TRUE
A20: TRUE
A21: TRUE
A22: TRUE
A23: TRUE
A24: TRUE
A25: TRUE
A26: TRUE
A27: TRUE
A28: TRUE
A29: TRUE
A30: TRUE
A31: TRUE
A32: TRUE
A33: TRUE
A34: TRUE
A35: TRUE
A36: TRUE
A37: TRUE
A38: TRUE
A39: TRUE
A40: TRUE
A41: TRUE
A42: TRUE
A43: TRUE
A44: TRUE
A45: TRUE
A46: TRUE
A47: TRUE
A48: TRUE
A49: TRUE
A50: TRUE
A51: TRUE
A52: TRUE
A53: TRUE
A54: TRUE
A55: TRUE
A56: TRUE
A57: TRUE
A58: TRUE
A59: TRUE
A60: TRUE
A61: TRUE
A62: TRUE
A63: TRUE
A64: TRUE
A65: TRUE
A66: TRUE
A67: TRUE
A68: TRUE
A69: TRUE
A70: TRUE
A71: TRUE
A72: TRUE
A73: TRUE
A74: TRUE
A75: TRUE
A76: TRUE
A77: TRUE
A78: TRUE
A79: TRUE
A80: TRUE
A81: TRUE
A82: TRUE
A83: Ende

Sheet Andere (hidden)
A1: FALSE | B1: TRUE | C1: Ende
A2: FALSE | B2: Andere Nachweise | C2: 001.00
A3: FALSE | B3: Ende
A4: FALSE | B4: 4 | C4: 6 | D4: 42 | E4: 13 | F4: 13 | G4: 13 | H4: 13
A5: TRUE | B5: =TEXT(wST.Ansatz,"000")&", ANDERE NACHWEISE per "&TEXT(wST.PeriodeEnde,"T. MMMM JJJJ") -> 850, ANDERE NACHWEISE per 31. Dezember 2017 | H5: =wST.ORT -> 0
A6: TRUE
A7: TRUE | B7: Posten- gruppe | C7: Teil- Abschn. | D7: Bezeichnung | E7: ="Stand per "&TEXT(wST.PeriodeAnfang-1,"T.M.JJJJ") -> Stand per 31.12.2016 | F7: ="Zugänge im Jahr "&TEXT(wST.PeriodeAnfang,"JJJJ") -> Zugänge im Jahr 2017 | G7: ="Abgänge im Jahr "&TEXT(wST.PeriodeAnfang,"JJJJ") -> Abgänge im Jahr 2017 | H7: ="Stand per "&TEXT(wST.PeriodeEnde,"T.M.JJJJ") -> Stand per 31.12.2017
A8: TRUE
A9: =A10 -> FALSE | B9: 939 | C9: HAUSHALTSRÜCKLAGE | E9: =E10 -> 0 | F9: =F10 -> 0 | G9: =G10 -> 0 | H9: =H10 -> 0
A10: =OR(A11:A25) -> FALSE | B10: 939 | C10: Haushaltsrücklage (Bewegung: Post 298) | E10: =SUMPRODUCT(E11:E25,$I11:$I25) -> 0 | F10: =SUMPRODUCT(F11:F25,$I11:$I25) -> 0 | G10: =SUMPRODUCT(G11:G25,$I11:$I25) -> 0 | H10: =SUMPRODUCT(H11:H25,$I11:$I25) -> 0
A11: =I11>0 -> FALSE | H11: =SUM(E11,F11,-G11) -> 0 | I11: =IF(C11=0,0,IF(VALUE(LEFT(C11,3))=wST.Ansatz,1,0)) -> 0
A12: FALSE | H12: =SUM(E12,F12,-G12) -> 0 | I12: 0
A13: FALSE | H13: =SUM(E13,F13,-G13) -> 0 | I13: 0
A14: FALSE | H14: =SUM(E14,F14,-G14) -> 0 | I14: 0
A15: FALSE | I15: 0
A16: FALSE | I16: 0
A17: FALSE | I17: 0
A18: FALSE | I18: 0
A19: FALSE | I19: 0
A20: FALSE | I20: 0
A21: FALSE | I21: 0
A22: FALSE | I22: 0
A23: FALSE | I23: 0
A24: FALSE | I24: 0
A25: FALSE | I25: 0
A26: =A9 -> FALSE
A27: =OR(A29,A35,A45,A57) -> FALSE | B27: Vermögenspositionen:
A28: =A27 -> FALSE
A29: =A30 -> FALSE | B29: 23 | C29: LIEFERFORDERUNGEN | E29: =E30 -> 0 | F29: =F30 -> 0 | G29: =G30 -> 0 | H29: =H30 -> 0
A30: =OR(A31:A33) -> FALSE | B30: 230 | C30: Schließliche Reste (Einnahmen) | E30: =SUMPRODUCT(E31:E33,$I31:$I33) -> 0 | F30: =SUMPRODUCT(F31:F33,$I31:$I33) -> 0 | G30: =SUMPRODUCT(G31:G33,$I31:$I33) -> 0 | H30: =SUMPRODUCT(H31:H33,$I31:$I33) -> 0
A31: =I31>0 -> FALSE | F31: =MAX(0,H31-E31) -> 0 | G31: =MAX(0,-H31+E31) -> 0 | I31: =IF(C31=0,0,IF(VALUE(LEFT(C31,3))=wST.Ansatz,1,0)) -> 0
A32: =I32>0 -> FALSE | I32: =IF(C32=0,0,IF(VALUE(LEFT(C32,3))=wST.Ansatz,1,0)) -> 0
A33: =I33>0 -> FALSE | I33: =IF(C33=0,0,IF(VALUE(LEFT(C33,3))=wST.Ansatz,1,0)) -> 0
A34: =A29 -> FALSE
A35: =OR(A36,A40) -> FALSE | B35: 27 | C35: VORSCHÜSSE | E35: =SUM(E36,E40) -> 0 | F35: =SUM(F36,F40) -> 0 | G35: =SUM(G36,G40) -> 0 | H35: =SUM(H36,H40) -> 0
A36: =OR(A37:A39) -> FALSE | B36: 270 | C36: Finanzamt - Vorsteuerbeträge | E36: =SUMPRODUCT(E37:E39,$I37:$I39) -> 0 | F36: =SUMPRODUCT(F37:F39,$I37:$I39) -> 0 | G36: =SUMPRODUCT(G37:G39,$I37:$I39) -> 0 | H36: =SUMPRODUCT(H37:H39,$I37:$I39) -> 0
A37: =I37>0 -> FALSE | H37: =SUM(E37,F37,-G37) -> 0 | I37: =IF(C37=0,0,IF(VALUE(LEFT(C37,3))=wST.Ansatz,1,0)) -> 0
A38: =I38>0 -> FALSE | I38: =IF(C38=0,0,IF(VALUE(LEFT(C38,3))=wST.Ansatz,1,0)) -> 0
A39: =I39>0 -> FALSE | I39: =IF(C39=0,0,IF(VALUE(LEFT(C39,3))=wST.Ansatz,1,0)) -> 0
A40: =OR(A41:A43) -> FALSE | B40: 279 | C40: Sonstige Vorschüsse | E40: =SUMPRODUCT(E41:E43,$I41:$I43) -> 0 | F40: =SUMPRODUCT(F41:F43,$I41:$I43) -> 0 | G40: =SUMPRODUCT(G41:G43,$I41:$I43) -> 0 | H40: =SUMPRODUCT(H41:H43,$I41:$I43) -> 0
A41: =I41>0 -> FALSE | H41: =SUM(E41,F41,-G41) -> 0 | I41: =IF(C41=0,0,IF(VALUE(LEFT(C41,3))=wST.Ansatz,1,0)) -> 0
A42: =I42>0 -> FALSE | H42: =SUM(E42,F42,-G42) -> 0 | I42: =IF(C42=0,0,IF(VALUE(LEFT(C42,3))=wST.Ansatz,1,0)) -> 0
A43: =I43>0 -> FALSE | H43: =SUM(E43,F43,-G43) -> 0 | I43: =IF(C43=0,0,IF(VALUE(LEFT(C43,3))=wST.Ansatz,1,0)) -> 0
A44: =A35 -> FALSE
A45: =OR(A46,A50) -> FALSE | B45: 28 | C45: GEGEBENE ANZAHLUNGEN UND SONSTIGE FORDERUNGEN | E45: =SUM(E46,E50) -> 0 | F45: =SUM(F46,F50) -> 0 | G45: =SUM(G46,G50) -> 0 | H45: =SUM(H46,H50) -> 0
A46: =OR(A47:A49) -> FALSE | B46: 280 | C46: Anzahlungen an Geschäftsleute | E46: =SUMPRODUCT(E47:E49,$I47:$I49) -> 0 | F46: =SUMPRODUCT(F47:F49,$I47:$I49) -> 0 | G46: =SUMPRODUCT(G47:G49,$I47:$I49) -> 0 | H46: =SUMPRODUCT(H47:H49,$I47:$I49) -> 0
A47: =I47>0 -> FALSE | I47: =IF(C47=0,0,IF(VALUE(LEFT(C47,3))=wST.Ansatz,1,0)) -> 0
A48: =I48>0 -> FALSE | I48: =IF(C48=0,0,IF(VALUE(LEFT(C48,3))=wST.Ansatz,1,0)) -> 0
A49: =I49>0 -> FALSE | I49: =IF(C49=0,0,IF(VALUE(LEFT(C49,3))=wST.Ansatz,1,0)) -> 0
A50: =OR(A51:A53) -> FALSE | B50: 287 | C50: Sonstige Forderungen | E50: =SUMPRODUCT(E51:E53,$I51:$I53) -> 0 | F50: =SUMPRODUCT(F51:F53,$I51:$I53) -> 0 | G50: =SUMPRODUCT(G51:G53,$I51:$I53) -> 0 | H50: =SUMPRODUCT(H51:H53,$I51:$I53) -> 0
A51: =I51>0 -> FALSE | I51: =IF(C51=0,0,IF(VALUE(LEFT(C51,3))=wST.Ansatz,1,0)) -> 0
A52: =I52>0 -> FALSE | I52: =IF(C52=0,0,IF(VALUE(LEFT(C52,3))=wST.Ansatz,1,0)) -> 0
A53: =I53>0 -> FALSE | I53: =IF(C53=0,0,IF(VALUE(LEFT(C53,3))=wST.Ansatz,1,0)) -> 0
A56: =A45 -> FALSE
A57: =A58 -> FALSE | B57: 290 | C57: AKTIVE RECHNUNGSABGRENZUNG | E57: =E58 -> 0 | F57: =F58 -> 0 | G57: =G58 -> 0 | H57: =H58 -> 0
A58: =OR(A59:A61) -> FALSE | B58: 290 | C58: Aktive Rechnungsabgrenzung | E58: =SUMPRODUCT(E59:E61,$I59:$I61) -> 0 | F58: =SUMPRODUCT(F59:F61,$I59:$I61) -> 0 | G58: =SUMPRODUCT(G59:G61,$I59:$I61) -> 0 | H58: =SUMPRODUCT(H59:H61,$I59:$I61) -> 0
A59: =I59>0 -> FALSE | H59: =SUM(E59,F59,-G59) -> 0 | I59: =IF(C59=0,0,IF(VALUE(LEFT(C59,3))=wST.Ansatz,1,0)) -> 0
A60: =I60>0 -> FALSE | I60: =IF(C60=0,0,IF(VALUE(LEFT(C60,3))=wST.Ansatz,1,0)) -> 0
A61: =I61>0 -> FALSE | I61: =IF(C61=0,0,IF(VALUE(LEFT(C61,3))=wST.Ansatz,1,0)) -> 0
A62: =A51 -> FALSE
A63: =OR(A65,A71,A104,A114,A120) -> FALSE | B63: Schuldpositionen:
A64: =A63 -> FALSE
A65: =A66 -> FALSE | B65: 33 | C65: LIEFERSCHULDEN | E65: =E66 -> 0 | F65: =F66 -> 0 | G65: =G66 -> 0 | H65: =H66 -> 0
A66: =OR(A67:A69) -> FALSE | B66: 330 | C66: Schließliche Reste (Ausgaben) | E66: =SUMPRODUCT(E67:E69,$I67:$I69) -> 0 | F66: =SUMPRODUCT(F67:F69,$I67:$I69) -> 0 | G66: =SUMPRODUCT(G67:G69,$I67:$I69) -> 0 | H66: =SUMPRODUCT(H67:H69,$I67:$I69) -> 0
A67: =I67>0 -> FALSE | F67: =MAX(0,H67-E67) -> 0 | G67: =MAX(0,-H67+E67) -> 0 | I67: =IF(C67=0,0,IF(VALUE(LEFT(C67,3))=wST.Ansatz,1,0)) -> 0
A68: =I68>0 -> FALSE | I68: =IF(C68=0,0,IF(VALUE(LEFT(C68,3))=wST.Ansatz,1,0)) -> 0
A69: =I69>0 -> FALSE | I69: =IF(C69=0,0,IF(VALUE(LEFT(C69,3))=wST.Ansatz,1,0)) -> 0
A70: =A65 -> FALSE
A71: =OR(A72,A76,A80,A84,A90,A95,A99) -> FALSE | B71: 360 | C71: ERLÄGE | E71: =SUM(E72,E76,E80,E84,E90,E95,E99) -> 0 | F71: =SUM(F72,F76,F80,F84,F90,F95,F99) -> 0 | G71: =SUM(G72,G76,G80,G84,G90,G95,G99) -> 0 | H71: =SUM(H72,H76,H80,H84,H90,H95,H99) -> 0
A72: =OR(A73:A75) -> FALSE | B72: 360 | C72: Verbindlichkeiten aus Steuern | E72: =SUMPRODUCT(E73:E75,$I73:$I75) -> 0 | F72: =SUMPRODUCT(F73:F75,$I73:$I75) -> 0 | G72: =SUMPRODUCT(G73:G75,$I73:$I75) -> 0 | H72: =SUMPRODUCT(H73:H75,$I73:$I75) -> 0
A73: =I73>0 -> FALSE | H73: =SUM(E73,F73,-G73) -> 0 | I73: =IF(C73=0,0,IF(VALUE(LEFT(C73,3))=wST.Ansatz,1,0)) -> 0
A74: =I74>0 -> FALSE | I74: =IF(C74=0,0,IF(VALUE(LEFT(C74,3))=wST.Ansatz,1,0)) -> 0
A75: =I75>0 -> FALSE | I75: =IF(C75=0,0,IF(VALUE(LEFT(C75,3))=wST.Ansatz,1,0)) -> 0
A76: =OR(A77:A79) -> FALSE | B76: 361 | C76: Erläge von/für Dienststellen der Gebietskörperschaften | E76: =SUMPRODUCT(E77:E79,$I77:$I79) -> 0 | F76: =SUMPRODUCT(F77:F79,$I77:$I79) -> 0 | G76: =SUMPRODUCT(G77:G79,$I77:$I79) -> 0 | H76: =SUMPRODUCT(H77:H79,$I77:$I79) -> 0
A77: =I77>0 -> FALSE | I77: =IF(C77=0,0,IF(VALUE(LEFT(C77,3))=wST.Ansatz,1,0)) -> 0
A78: =I78>0 -> FALSE | I78: =IF(C78=0,0,IF(VALUE(LEFT(C78,3))=wST.Ansatz,1,0)) -> 0
A79: =I79>0 -> FALSE | I79: =IF(C79=0,0,IF(VALUE(LEFT(C79,3))=wST.Ansatz,1,0)) -> 0
A80: =OR(A81:A83) -> FALSE | B80: 362 | C80: Gehaltsabzugsgebarungen | E80: =SUMPRODUCT(E81:E83,$I81:$I83) -> 0 | F80: =SUMPRODUCT(F81:F83,$I81:$I83) -> 0 | G80: =SUMPRODUCT(G81:G83,$I81:$I83) -> 0 | H80: =SUMPRODUCT(H81:H83,$I81:$I83) -> 0
A81: =I81>0 -> FALSE | H81: =SUM(E81,F81,-G81) -> 0 | I81: =IF(C81=0,0,IF(VALUE(LEFT(C81,3))=wST.Ansatz,1,0)) -> 0
A82: =I82>0 -> FALSE | H82: =SUM(E82,F82,-G82) -> 0 | I82: =IF(C82=0,0,IF(VALUE(LEFT(C82,3))=wST.Ansatz,1,0)) -> 0
A83: =I83>0 -> FALSE | H83: =SUM(E83,F83,-G83) -> 0 | I83: =IF(C83=0,0,IF(VALUE(LEFT(C83,3))=wST.Ansatz,1,0)) -> 0
A84: =OR(A85:A89) -> FALSE | B84: 365 | C84: Sonstige Schulden an Dritte | E84: =SUMPRODUCT(E85:E89,$I85:$I89) -> 0 | F84: =SUMPRODUCT(F85:F89,$I85:$I89) -> 0 | G84: =SUMPRODUCT(G85:G89,$I85:$I89) -> 0 | H84: =SUMPRODUCT(H85:H89,$I85:$I89) -> 0
A85: =I85>0 -> FALSE | H85: =SUM(E85,F85,-G85) -> 0 | I85: =IF(C85=0,0,IF(VALUE(LEFT(C85,3))=wST.Ansatz,1,0)) -> 0
A86: =I86>0 -> FALSE | H86: =SUM(E86,F86,-G86) -> 0 | I86: =IF(C86=0,0,IF(VALUE(LEFT(C86,3))=wST.Ansatz,1,0)) -> 0
A87: =I87>0 -> FALSE | H87: =SUM(E87,F87,-G87) -> 0 | I87: =IF(C87=0,0,IF(VALUE(LEFT(C87,3))=wST.Ansatz,1,0)) -> 0
A88: =I88>0 -> FALSE | H88: =SUM(E88,F88,-G88) -> 0 | I88: =IF(C88=0,0,IF(VALUE(LEFT(C88,3))=wST.Ansatz,1,0)) -> 0
A89: =I89>0 -> FALSE | E89: 0 | H89: =SUM(E89,F89,-G89) -> 0 | I89: =IF(C89=0,0,IF(VALUE(LEFT(C89,3))=wST.Ansatz,1,0)) -> 0
A90: =OR(A91:A94) -> FALSE | B90: 366 | C90: Stiftungen und Fonds | E90: =SUMPRODUCT(E91:E94,$I91:$I94) -> 0 | F90: =SUMPRODUCT(F91:F94,$I91:$I94) -> 0 | G90: =SUMPRODUCT(G91:G94,$I91:$I94) -> 0 | H90: =SUMPRODUCT(H91:H94,$I91:$I94) -> 0
A91: =I91>0 -> FALSE | I91: =IF(C91=0,0,IF(VALUE(LEFT(C91,3))=wST.Ansatz,1,0)) -> 0
A92: =I92>0 -> FALSE | I92: =IF(C92=0,0,IF(VALUE(LEFT(C92,3))=wST.Ansatz,1,0)) -> 0
A93: =I93>0 -> FALSE | I93: =IF(C93=0,0,IF(VALUE(LEFT(C93,3))=wST.Ansatz,1,0)) -> 0
A94: =I94>0 -> FALSE | I94: =IF(C94=0,0,IF(VALUE(LEFT(C94,3))=wST.Ansatz,1,0)) -> 0
A95: =OR(A96:A98) -> FALSE | B95: 367 | C95: Sonstige Erläge | E95: =SUMPRODUCT(E96:E98,$I96:$I98) -> 0 | F95: =SUMPRODUCT(F96:F98,$I96:$I98) -> 0 | G95: =SUMPRODUCT(G96:G98,$I96:$I98) -> 0 | H95: =SUMPRODUCT(H96:H98,$I96:$I98) -> 0
A96: =I96>0 -> FALSE | I96: =IF(C96=0,0,IF(VALUE(LEFT(C96,3))=wST.Ansatz,1,0)) -> 0
A97: =I97>0 -> FALSE | I97: =IF(C97=0,0,IF(VALUE(LEFT(C97,3))=wST.Ansatz,1,0)) -> 0
A98: =I98>0 -> FALSE | I98: =IF(C98=0,0,IF(VALUE(LEFT(C98,3))=wST.Ansatz,1,0)) -> 0
A99: =OR(A100:A102) -> FALSE | B99: 368 | C99: Sonstige Erläge | E99: =SUMPRODUCT(E100:E102,$I100:$I102) -> 0 | F99: =SUMPRODUCT(F100:F102,$I100:$I102) -> 0 | G99: =SUMPRODUCT(G100:G102,$I100:$I102) -> 0 | H99: =SUMPRODUCT(H100:H102,$I100:$I102) -> 0
A100: =I100>0 -> FALSE | I100: =IF(C100=0,0,IF(VALUE(LEFT(C100,3))=wST.Ansatz,1,0)) -> 0
A101: =I101>0 -> FALSE | I101: =IF(C101=0,0,IF(VALUE(LEFT(C101,3))=wST.Ansatz,1,0)) -> 0
A102: =I102>0 -> FALSE | I102: =IF(C102=0,0,IF(VALUE(LEFT(C102,3))=wST.Ansatz,1,0)) -> 0
A103: =A71 -> FALSE
A104: =OR(A105,A109) -> FALSE | B104: 37 | C104: EMPFANGENE ANZAHLUNGEN UND SONSTIGE SCHULDEN | E104: =SUM(E105,E109) -> 0 | F104: =SUM(F105,F109) -> 0 | G104: =SUM(G105,G109) -> 0 | H104: =SUM(H105,H109) -> 0
A105: =OR(A106:A108) -> FALSE | B105: 370 | C105: Sonstige Schulden | E105: =SUMPRODUCT(E106:E108,$I106:$I108) -> 0 | F105: =SUMPRODUCT(F106:F108,$I106:$I108) -> 0 | G105: =SUMPRODUCT(G106:G108,$I106:$I108) -> 0 | H105: =SUMPRODUCT(H106:H108,$I106:$I108) -> 0
A106: =I106>0 -> FALSE | I106: =IF(C106=0,0,IF(VALUE(LEFT(C106,3))=wST.Ansatz,1,0)) -> 0
A107: =I107>0 -> FALSE | I107: =IF(C107=0,0,IF(VALUE(LEFT(C107,3))=wST.Ansatz,1,0)) -> 0
A108: =I108>0 -> FALSE | I108: =IF(C108=0,0,IF(VALUE(LEFT(C108,3))=wST.Ansatz,1,0)) -> 0
A109: =OR(A110:A112) -> FALSE | B109: 379 | C109: Empfangene Anzahlungen | E109: =SUMPRODUCT(E110:E112,$I110:$I112) -> 0 | F109: =SUMPRODUCT(F110:F112,$I110:$I112) -> 0 | G109: =SUMPRODUCT(G110:G112,$I110:$I112) -> 0 | H109: =SUMPRODUCT(H110:H112,$I110:$I112) -> 0
A110: =I110>0 -> FALSE | I110: =IF(C110=0,0,IF(VALUE(LEFT(C110,3))=wST.Ansatz,1,0)) -> 0
A111: =I111>0 -> FALSE | I111: =IF(C111=0,0,IF(VALUE(LEFT(C111,3))=wST.Ansatz,1,0)) -> 0
A112: =I112>0 -> FALSE | I112: =IF(C112=0,0,IF(VALUE(LEFT(C112,3))=wST.Ansatz,1,0)) -> 0
A113: =A104 -> FALSE
A114: =A115 -> FALSE | B114: 38 | C114: RÜCKSTELLUNGEN | E114: =E115 -> 0 | F114: =F115 -> 0 | G114: =G115 -> 0 | H114: =H115 -> 0
A115: =OR(A116:A118) -> FALSE | B115: 380 | C115: Rückstellungen | E115: =SUMPRODUCT(E116:E118,$I116:$I118) -> 0 | F115: =SUMPRODUCT(F116:F118,$I116:$I118) -> 0 | G115: =SUMPRODUCT(G116:G118,$I116:$I118) -> 0 | H115: =SUMPRODUCT(H116:H118,$I116:$I118) -> 0
A116: =I116>0 -> FALSE | I116: =IF(C116=0,0,IF(VALUE(LEFT(C116,3))=wST.Ansatz,1,0)) -> 0
A117: =I117>0 -> FALSE | I117: =IF(C117=0,0,IF(VALUE(LEFT(C117,3))=wST.Ansatz,1,0)) -> 0
A118: =I118>0 -> FALSE | I118: =IF(C118=0,0,IF(VALUE(LEFT(C118,3))=wST.Ansatz,1,0)) -> 0
A119: =A114 -> FALSE
A120: =A121 -> FALSE | B120: 39 | C120: PASSIVE RECHNUNGENABGRENZUNG | E120: =E121 -> 0 | F120: =F121 -> 0 | G120: =G121 -> 0 | H120: =H121 -> 0
A121: =OR(A122:A124) -> FALSE | B121: 390 | C121: Passive Rechnungsabgrenzung | E121: =SUMPRODUCT(E122:E124,$I122:$I124) -> 0 | F121: =SUMPRODUCT(F122:F124,$I122:$I124) -> 0 | G121: =SUMPRODUCT(G122:G124,$I122:$I124) -> 0 | H121: =SUMPRODUCT(H122:H124,$I122:$I124) -> 0
A122: =I122>0 -> FALSE | G122: 0 | H122: =SUM(E122,F122,-G122) -> 0 | I122: =IF(C122=0,0,IF(VALUE(LEFT(C122,3))=wST.Ansatz,1,0)) -> 0
A123: =I123>0 -> FALSE | I123: =IF(C123=0,0,IF(VALUE(LEFT(C123,3))=wST.Ansatz,1,0)) -> 0
A124: =I124>0 -> FALSE | E124: 0 | H124: =SUM(E124,F124,-G124) -> 0 | I124: =IF(C124=0,0,IF(VALUE(LEFT(C124,3))=wST.Ansatz,1,0)) -> 0
A125: TRUE
A126: Ende

Sheet Aktiva (hidden)
A1: FALSE | B1: TRUE | C1: Ende
A2: FALSE | B2: Aktiva | C2: 001.00
A3: FALSE | B3: Ende
A4: TRUE | B4: =TEXT(wST.Ansatz,"000")&", VERMÖGENS- UND SCHULDENNACHWEIS, AKTIVA" -> 850, VERMÖGENS- UND SCHULDENNACHWEIS, AKTIVA | H4: =wST.ORT -> 0
A5: TRUE | B5: ="per "&TEXT(wST.PeriodeEnde,"T. MMMM JJJJ") -> per 31. Dezember 2017 | F5: =wST.PeriodeEnde -> 2017-12-31 | H5: =IF(H74=0,"",wST.PeriodeAnfang-1) -> 
A6: TRUE | G6: Angaben in €
A7: =A34 ->  | B7: =CHAR(IF(A7,1,0)+64) ->  | C7: ANLAGEVERMÖGEN
A8: =OR(F8<>0,H8<>0) -> FALSE | B8: =IF(A8,"I","")&"." -> . | C8: Immaterielle Vermögensgegenstände | G8: =F9 -> 0 | H8: =H9 -> 0
A9: =OR(F9<>0,H9<>0) -> FALSE | D9: 70 | E9: Aktivierungsfähige Rechte | F9: =Anlagen!U137 -> 0 | H9: =Anlagen!X137-Anlagen!M137 -> 0
A10: =A8 -> FALSE
A11: =OR(A12,A20,A27) ->  | B11: =IF(A11,"I","")&B8 ->  | C11: Sachanlagevermögen | G11: =SUM(G12,G20,G27) ->  | H11: =SUM(H12,H20,H27) -> 
A12: =OR(G12<>0,H12<>0) -> FALSE | B12: =IF(A12,1,0) -> 0 | C12: Unbewegliches Sachanlagevermögen | G12: =SUM(F13:F19) -> 0 | H12: =SUM(H13:H19) -> 0
A13: =OR(F13<>0,H13<>0) -> FALSE | D13: 0 | E13: Bebaute Grundstücke | F13: =Anlagen!U8 -> 0 | H13: =Anlagen!X8-Anlagen!M8 -> 0
A14: FALSE | D14: 1 | E14: Unbebaute Grundstücke | F14: =Anlagen!U14 -> 0 | H14: =Anlagen!X14-Anlagen!M14 -> 0
A15: FALSE | D15: 2 | E15: Straßenbauten | F15: =Anlagen!U18 -> 0 | H15: =Anlagen!X18-Anlagen!M18 -> 0
A16: FALSE | D16: 4 | E16: Wasser- und Kanalisationsbauten | F16: =Anlagen!U22 -> 0 | H16: =Anlagen!X22-Anlagen!M22 -> 0
A17: FALSE | D17: 6 | E17: Sonstige Grundstückseinrichtungen | F17: =Anlagen!U43 -> 0 | H17: =Anlagen!X43-Anlagen!M43 -> 0
A18: FALSE | D18: 10 | E18: Gebäude | F18: =Anlagen!U49 -> 0 | H18: =Anlagen!X49-Anlagen!M49 -> 0
A19: FALSE | D19: 50 | E19: Sonderanlagen | F19: =Anlagen!U84 -> 0 | H19: =Anlagen!X84-Anlagen!M84 -> 0
A20: =OR(G20<>0,H20<>0) ->  | B20: =IF(A20,1,0)+B12 ->  | C20: Bewegliches Sachanlagevermögen | G20: =SUM(F21:F26) ->  | H20: =SUM(H21:H26) -> 
A21: =OR(F21<>0,H21<>0) -> FALSE | D21: 20 | E21: Maschinen und maschinelle Anlagen | F21: =Anlagen!U55 -> 0 | H21: =Anlagen!X55-Anlagen!M55 -> 0
A22: FALSE | D22: 30 | E22: Werkzeuge und sonstige Erzeugungshilfsmittel | F22: =Anlagen!U68 -> 0 | H22: =Anlagen!X68-Anlagen!M68 -> 0
A23: FALSE | D23: 40 | E23: Fahzeuge | F23: =Anlagen!U74 -> 0 | H23: =Anlagen!X74-Anlagen!M74 -> 0
A24: FALSE | D24: 42 | E24: Amtsausstattung | F24: =Anlagen!U79 -> 0 | H24: =Anlagen!X79-Anlagen!M79 -> 0
D25: 43 | E25: Betriebsausstattung | F25: =Anlagen!#REF! ->  | H25: =Anlagen!#REF!-Anlagen!#REF! -> 
D26: 44 | E26: Geschäftsausstattung | F26: =Anlagen!#REF! ->  | H26: =Anlagen!#REF!-Anlagen!#REF! -> 
A27: =OR(G27<>0,H27<>0) -> FALSE | B27: =IF(A27,1,0)+B20 ->  | C27: Anlagen in Bau | G27: =F28 -> 0 | H27: =H28 -> 0
A28: =OR(F28<>0,H28<>0) -> FALSE | D28: 60 | E28: In Bau befindliche Anlagen | F28: =Anlagen!U91 -> 0 | H28: =Anlagen!X91-Anlagen!M91 -> 0
A29: =A11 -> 
A30: =OR(A31:A32) -> FALSE | B30: =IF(A30,"I","")&B11 ->  | C30: Beteiligungen und Wertpapiere | G30: =SUM(F31,F32) -> 0 | H30: =SUM(H31,H32) -> 0
A31: =OR(F31<>0,H31<>0) -> FALSE | D31: 80 | E31: Beteiligungen | F31: =Wertpapiere!H10 -> 0 | H31: =Wertpapiere!E10 -> 0
A32: =OR(F32<>0,H32<>0) -> FALSE | D32: 85 | E32: Anlagewertpapiere | F32: =Wertpapiere!H14 -> 0 | H32: =Wertpapiere!E14 -> 0
A33: =A30 -> FALSE
A34: =OR(G34<>0,H34<>0) ->  | C34: SUMME ANLAGEVERMÖGEN | G34: =SUM(G8,G11,G30,) ->  | H34: =SUM(H8,H11,H30,) -> 
A35: =A34 -> 
A36: =A68 -> FALSE | B36: =CHAR(IF(A36,1,0)+CODE(B7)) ->  | C36: UMLAUFVERMÖGEN
A37: =OR(A38:A46) -> FALSE | B37: =IF(A37,"I","")&"." -> . | C37: Vorräte | G37: =SUM(F38:F46) -> 0 | H37: =SUM(H38:H46) -> 0
A38: =OR(F38<>0,H38<>0) -> FALSE | D38: 100 | E38: Ersatzteile | F38: =Vorräte!H9 -> 0 | H38: =Vorräte!E9 -> 0
A39: FALSE | D39: 110 | E39: Geringwertige Wirtschaftsgüter (lt. VRV) | F39: =Vorräte!H15 -> 0 | H39: =Vorräte!E15 -> 0
A40: FALSE | D40: 120 | E40: Werkstoffe | F40: =Vorräte!H87 -> 0 | H40: =Vorräte!E87 -> 0
A41: FALSE | D41: 140 | E41: Verbrauchsgüter, Lebens- und Futtermittel | F41: =Vorräte!H99 -> 0 | H41: =Vorräte!E99 -> 0
A42: FALSE | D42: 150 | E42: Betriebsstoffe und sonstige Verbrauchsgüter | F42: =Vorräte!H105 -> 0 | H42: =Vorräte!E105 -> 0
A43: FALSE | D43: 160 | E43: Altmaterial | F43: =Vorräte!H111 -> 0 | H43: =Vorräte!E111 -> 0
A44: =OR(F44<>0,H44<>0) -> FALSE | D44: 130 | E44: Handelswaren | F44: =Vorräte!H93 -> 0 | H44: =Vorräte!E93 -> 0
A45: =OR(F45<>0,H45<>0) -> FALSE | D45: 170 | E45: Erzeugnisse | F45: =Vorräte!H117 -> 0 | H45: =Vorräte!E117 -> 0
A46: =OR(F46<>0,H46<>0) -> FALSE | D46: 280 | E46: Anzahlungen an Geschäftsleute | F46: =Andere!H46 -> 0 | H46: =Andere!E46 -> 0
A47: =A37 -> FALSE
A48: =OR(A49:A52) -> FALSE | B48: =IF(A48,"I","")&B37 -> . | C48: Sonstige Forderungen | G48: =SUM(F49,F50,F51,F52) -> 0 | H48: =SUM(H49,H50,H51,H52) -> 0
A49: =OR(F49<>0,H49<>0) -> FALSE | D49: 230 | E49: Schließliche Reste (Einnahmen) | F49: =Andere!H30 -> 0 | H49: =Andere!E30 -> 0
A50: =OR(F50<>0,H50<>0) -> FALSE | D50: 270 | E50: Finanzamt - Vorsteuerbeträge | F50: =Andere!H36 -> 0 | H50: =Andere!E36 -> 0
A51: =OR(F51<>0,H51<>0) -> FALSE | D51: 279 | E51: Sonstige Vorschüsse | F51: =Andere!H40 -> 0 | H51: =Andere!E40 -> 0
A52: =OR(F52<>0,H52<>0) -> FALSE | D52: 287 | E52: Sonstige Forderungen | F52: =Andere!H50 -> 0 | H52: =Andere!E50 -> 0
A53: =OR(G53<>0,H53<>0) -> FALSE | B53: =IF(A53,"I","")&B48 -> . | C53: Forderungen aus Darlehen, Kapital- und Geldanlagen | G53: =G54+G61+G63 -> 0 | H53: =H54+H61+H63 -> 0
A54: =OR(G54<>0,H54<>0) -> FALSE | C54: Darlehen | G54: =SUM(F55:F60) -> 0 | H54: =SUM(H55:H60) -> 0
A55: =OR(F55<>0,H55<>0) -> FALSE | D55: 240 | E55: Darlehen zu Inv. zwecken an Träger des öffentl. Rechtes | F55: =Geldbestände!H25 -> 0 | H55: =Geldbestände!E25 -> 0
A56: FALSE | D56: 241 | E56: Darlehen zu Inv.zwecken an netto-veranschlagte Betriebe | F56: =Geldbestände!H29 -> 0 | H56: =Geldbestände!E29 -> 0
A57: FALSE | D57: 242 | E57: Darlehen zu Investitionszwecken an andere | F57: =Geldbestände!H33 -> 0 | H57: =Geldbestände!E33 -> 0
A58: FALSE | D58: 250 | E58: Darlehen ohne Inv. zweck an Träger des öffentl. Rechtes | F58: =Geldbestände!H39 -> 0 | H58: =Geldbestände!E39 -> 0
A59: FALSE | D59: 251 | E59: Darlehen ohne Investitionszweck an andere | F59: =Geldbestände!H43 -> 0 | H59: =Geldbestände!E43 -> 0
A60: FALSE | D60: 256 | E60: Bezugsvorschüsse | F60: =Geldbestände!H47 -> 0 | H60: =Geldbestände!E47 -> 0
A61: =OR(G61<>0,H61<>0) -> FALSE | C61: Kapitalanlagen | G61: =F62 -> 0 | H61: =H62 -> 0
A62: =OR(F62<>0,H62<>0) -> FALSE | D62: 220 | E62: Wertpapiere des Umlaufvermögens | F62: =Wertpapiere!H27 -> 0 | H62: =Wertpapiere!E27 -> 0
A63: =OR(G63<>0,H63<>0) -> FALSE | C63: Geldanlagen | G63: =SUM(F64:F66) -> 0 | H63: =SUM(H64:H66) -> 0
A64: =OR(F64<>0,H64<>0) -> FALSE | D64: 200 | E64: Bargeldbestände | F64: =Geldbestände!H8 -> 0 | H64: =Geldbestände!E8 -> 0
A65: =OR(F65<>0,H65<>0) -> FALSE | D65: 210 | E65: Postsparkasse | F65: =Geldbestände!H14 -> 0 | H65: =Geldbestände!E14 -> 0
A66: =OR(F66<>0,H66<>0) -> FALSE | D66: 211 | E66: Sonstige Geldanstalten | F66: =Geldbestände!H18 -> 0 | H66: =Geldbestände!E18 -> 0
A67: =A53 -> FALSE
A68: =OR(G68<>0,H68<>0) -> FALSE | C68: SUMME UMLAUFVERMÖGEN | G68: =SUM(G37,G48,G53,) -> 0 | H68: =SUM(H37,H48,H53) -> 0
A69: =A68 -> FALSE
A70: =A72 -> FALSE | B70: =CHAR(IF(A70,1,0)+CODE(B36)) ->  | C70: RECHNUNGSABGRENZUNGSPOSTEN
A71: =OR(F71<>0,H71<>0) -> FALSE | D71: 290 | E71: Aktive Rechnungsabgrenzung | F71: =Andere!H58 -> 0 | H71: =Andere!E58 -> 0
A72: =OR(G72<>0,H72<>0) -> FALSE | C72: SUMME RECHNUNGSABGRENZUNGSPOSTEN | G72: =F71 -> 0 | H72: =H71 -> 0
A73: =A72 -> FALSE
A74: Ende | C74: SUMME AKTIVA | G74: =SUM(G34,G68,G72) ->  | H74: =SUM(H34,H68,H72) -> 

Sheet Passiva (hidden)
A1: FALSE | B1: TRUE | C1: Ende
A2: FALSE | B2: Passiva | C2: 001.00
A3: FALSE | B3: Ende
A4: TRUE | B4: =TEXT(wST.Ansatz,"000")&", VERMÖGENS- UND SCHULDENNACHWEIS, PASSIVA" -> 850, VERMÖGENS- UND SCHULDENNACHWEIS, PASSIVA | H4: =wST.ORT -> 0
A5: TRUE | B5: ="per "&TEXT(wST.PeriodeEnde,"T. MMMM JJJJ") -> per 31. Dezember 2017 | F5: =wST.PeriodeEnde -> 2017-12-31 | H5: =IF(H66=0,"",wST.PeriodeAnfang-1) -> 
A6: TRUE | G6: Angaben in €
A7: =A9 -> FALSE | B7: =CHAR(IF(A7,1,0)+64) -> @ | C7: RÜCKLAGEN
A8: =OR(F8<>0,H8<>0) -> FALSE | D8: 298 | E8: Haushaltsrücklage | F8: =Andere!H10 -> 0 | H8: =Andere!E10 -> 0
A9: =OR(G9<>0,H9<>0) -> FALSE | C9: SUMME RÜCKLAGEN | G9: =F8 -> 0 | H9: =H8 -> 0
A10: =A9 -> FALSE
A11: =A13 -> FALSE | B11: =CHAR(IF(A11,1,0)+CODE(B7)) -> @ | C11: RÜCKSTELLUNGEN
A12: =OR(F12<>0,H12<>0) -> FALSE | D12: 380 | E12: Rückstellung | F12: =Andere!H115 -> 0 | H12: =Andere!E115 -> 0
A13: =OR(G13<>0,H13<>0) -> FALSE | C13: SUMME RÜCKSTELLUNGEN | G13: =F12 -> 0 | H13: =H12 -> 0
A14: =A13 -> FALSE
A15: =A46 -> FALSE | B15: =CHAR(IF(A15,1,0)+CODE(B11)) -> @ | C15: FINANZSCHULDEN
A16: =OR(G16<>0,H16<>0) -> FALSE | B16: =IF(A16,1,0) -> 0 | C16: Schulden beim Bund | G16: =SUM(F17:F18) -> 0 | H16: =SUM(H17:H18) -> 0
A17: =OR(F17<>0,H17<>0) -> FALSE | D17: 340 | E17: Schuldaufn. f. Inv.zwecke vom Bund | F17: =Schulden!J18 -> 0 | H17: =Schulden!G18 -> 0
A18: =OR(F18<>0,H18<>0) -> FALSE | D18: 350 | E18: Sonstige Schuldaufnahmen vom Bund | F18: =Schulden!J71 -> 0 | H18: =Schulden!G71 -> 0
A19: =OR(G19<>0,H19<>0) -> FALSE | B19: =IF(A19,1,0)+B16 -> 0 | C19: Schulden beim Land | G19: =SUM(F20:F21) -> 0 | H19: =SUM(H20:H21) -> 0
A20: =OR(F20<>0,H20<>0) -> FALSE | D20: 341 | E20: Schuldaufn. f. Inv.zwecke vom Land | F20: =Schulden!J22 -> 0 | H20: =Schulden!G22 -> 0
A21: =OR(F21<>0,H21<>0) -> FALSE | D21: 351 | E21: Sonstige Schuldaufnahmen vom Land | F21: =Schulden!J75 -> 0 | H21: =Schulden!G75 -> 0
A22: =OR(G22<>0,H22<>0) -> FALSE | B22: =IF(A22,1,0)+B19 -> 0 | C22: Sonstige bei sonst. Gebietskörperschaften | G22: =SUM(F23:F24) -> 0 | H22: =SUM(H23:H24) -> 0
A23: =OR(F23<>0,H23<>0) -> FALSE | D23: 342 | E23: Schuldaufn. f. Inv.zwecke von sonst. Gebietskörperschaften | F23: =Schulden!J26 -> 0 | H23: =Schulden!G26 -> 0
A24: =OR(F24<>0,H24<>0) -> FALSE | D24: 352 | E24: Sonstige Schuldaufn. von sonstigen Gebietskörperschaften | F24: =Schulden!J79 -> 0 | H24: =Schulden!G79 -> 0
A25: =OR(G25<>0,H25<>0) -> FALSE | B25: =IF(A25,1,0)+B22 -> 0 | C25: Schulden bei Sozialversicherungen | G25: =SUM(F26:F27) -> 0 | H25: =SUM(H26:H27) -> 0
A26: =OR(F26<>0,H26<>0) -> FALSE | D26: 343 | E26: Schuldaufn. f. Inv.zwecke von Sozialversicherungsträgern | F26: =Schulden!J30 -> 0 | H26: =Schulden!G30 -> 0
A27: =OR(F27<>0,H27<>0) -> FALSE | D27: 353 | E27: Sonstige Schuldaufn. von Sozialversicherungsträgern | F27: =Schulden!J83 -> 0 | H27: =Schulden!G83 -> 0
A28: =OR(G28<>0,H28<>0) -> FALSE | B28: =IF(A28,1,0)+B25 -> 0 | C28: Schulden bei sont. Trägern des öffentl. Rechtes | G28: =SUM(F29:F30) -> 0 | H28: =SUM(H29:H30) -> 0
A29: =OR(F29<>0,H29<>0) -> FALSE | D29: 344 | E29: Schuldaufn. f. Inv.zwecke von sonst. Trägern d. öffentl. Rechtes | F29: =Schulden!J34 -> 0 | H29: =Schulden!G34 -> 0
A30: =OR(F30<>0,H30<>0) -> FALSE | D30: 354 | E30: Sonstige Schuldaufn. von sonst. Trägern d. öffentl. Rechtes | F30: =Schulden!J87 -> 0 | H30: =Schulden!G87 -> 0
A31: =OR(G31<>0,H31<>0) -> FALSE | B31: =IF(A31,1,0)+B28 -> 0 | C31: Schulden bei Unternehmungen (ohne Finanzunternehmungen) | G31: =SUM(F32:F33) -> 0 | H31: =SUM(H32:H33) -> 0
A32: =OR(F32<>0,H32<>0) -> FALSE | D32: 345 | E32: Schuldaufn. f. Inv. von Unternehmungen (ohne Finanzuntern.) | F32: =Schulden!J38 -> 0 | H32: =Schulden!G38 -> 0
A33: =OR(A50:A58) -> FALSE | D33: 355 | E33: Sonst. Schuldaufn. von Unternehmungen (ohne Finanzuntern.) | F33: =Schulden!J91 -> 0 | H33: =Schulden!G91 -> 0
A34: =OR(G34<>0,H34<>0) -> FALSE | B34: =IF(A34,1,0)+B31 -> 0 | C34: Schulden bei Finanzunternehmungen | G34: =SUM(F35:F36) -> 0 | H34: =SUM(H35:H36) -> 0
A35: =OR(F35<>0,H35<>0) -> FALSE | D35: 346 | E35: Schuldaufn. f. Inv.zwecke von Finanzunternehmungen | F35: =Schulden!J42 -> 0 | H35: =Schulden!G42 -> 0
A36: =OR(F36<>0,H36<>0) -> FALSE | D36: 356 | E36: Sonstige Schuldaufnahmen von Finanzunternehmungen | F36: =Schulden!J95 -> 0 | H36: =Schulden!G95 -> 0
A37: =OR(G37<>0,H37<>0) -> FALSE | B37: =IF(A37,1,0)+B34 -> 0 | C37: Inlandsanleihen | G37: =SUM(F38:F39) -> 0 | H37: =SUM(H38:H39) -> 0
A38: =OR(F38<>0,H38<>0) -> FALSE | D38: 347 | E38: Schuldaufn. f. Inv.zwecke Inlandsanleihen | F38: =Schulden!J58 -> 0 | H38: =Schulden!G58 -> 0
A39: =OR(F39<>0,H39<>0) -> FALSE | D39: 357 | E39: Sonstige Schuldaufnahmen Inlandsanleihen | F39: =Schulden!J99 -> 0 | H39: =Schulden!G99 -> 0
A40: =OR(G40<>0,H40<>0) -> FALSE | B40: =IF(A40,1,0)+B37 -> 0 | C40: Auslandsanleihen | G40: =SUM(F41:F42) -> 0 | H40: =SUM(H41:H42) -> 0
A41: =OR(F41<>0,H41<>0) -> FALSE | D41: 348 | E41: Schuldaufn. f. Inv.zwecke Auslandsanleihen | F41: =Schulden!J62 -> 0 | H41: =Schulden!G62 -> 0
A42: =OR(F42<>0,H42<>0) -> FALSE | D42: 358 | E42: Sonstige Schuldaufnahme Auslandsanleihen | F42: =Schulden!J103 -> 0 | H42: =Schulden!G103 -> 0
A43: =OR(G43<>0,H43<>0) -> FALSE | B43: =IF(A43,1,0)+B40 -> 0 | C43: Sonstige Finanzschulden | G43: =SUM(F44:F45) -> 0 | H43: =SUM(H44:H45) -> 0
A44: =OR(F44<>0,H44<>0) -> FALSE | D44: 349 | E44: Schuldaufn. f. Inv.zwecke sonstige Finanzschulden | F44: =Schulden!J66 -> 0 | H44: =Schulden!G66 -> 0
A45: =OR(F45<>0,H45<>0) -> FALSE | D45: 359 | E45: Sonstige Schuldaufnahmen sonstige Finanzschulden | F45: =Schulden!J107 -> 0 | H45: =Schulden!G107 -> 0
A46: =OR(G46<>0,H46<>0) -> FALSE | C46: SUMME FINANZSCHULDEN | G46: =G16+G19+G22+G25+G28+G31+G34+G37+G40+G43 -> 0 | H46: =H16+H19+H22+H25+H28+H31+H34+H37+H40+H43 -> 0
A47: =A46 -> FALSE
A48: =A59 -> FALSE | B48: =CHAR(IF(A48,1,0)+CODE(B15)) -> @ | C48: SONSTIGE VERBINDLICHKEITEN
A49: =OR(F49<>0,H49<>0) -> FALSE | D49: 330 | E49: Schließliche Reste (Ausgaben) | F49: =Andere!H66 -> 0 | H49: =Andere!E66 -> 0
A50: FALSE | D50: 360 | E50: Verbindlichkeiten aus Steuern | F50: =Andere!H72 -> 0 | H50: =Andere!E72 -> 0
A51: FALSE | D51: 361 | E51: Erläge von/für Dienststellen der Gebietskörperschaften | F51: =Andere!H76 -> 0 | H51: =Andere!E76 -> 0
A52: FALSE | D52: 362 | E52: Gehaltsabzugsgebarungen | F52: =Andere!H80 -> 0 | H52: =Andere!E80 -> 0
A53: FALSE | D53: 366 | E53: Stiftungen und Fonds | F53: =Andere!H90 -> 0 | H53: =Andere!E90 -> 0
A54: FALSE | D54: 365 | E54: Sonstige Schulden an Dritte | F54: =Andere!H84 -> 0 | H54: =Andere!E84 -> 0
A55: FALSE | D55: 367 | E55: Sonstige Erläge | F55: =Andere!H95 -> 0 | H55: =Andere!E95 -> 0
A56: FALSE | D56: 368 | E56: Sonstige Erläge | F56: =Andere!H99 -> 0 | H56: =Andere!E99 -> 0
A57: FALSE | D57: 370 | E57: Sonstige Schulden | F57: =Andere!H105 -> 0 | H57: =Andere!E105 -> 0
A58: FALSE | D58: 379 | E58: Empfangene Anzahlungen | F58: =Andere!H109 -> 0 | H58: =Andere!E109 -> 0
A59: =OR(G59<>0,H59<>0) -> FALSE | C59: SUMME SONSTIGE VERBINDLICHKEITEN | G59: =SUM(F49:F58) -> 0 | H59: =SUM(H49:H58) -> 0
A60: =A59 -> FALSE
A61: =A63 -> FALSE | B61: =CHAR(IF(A61,1,0)+CODE(B15)) -> @ | C61: RECHNUNGSABGRENZUNGSPOSTEN
A62: =OR(F62<>0,H62<>0) -> FALSE | D62: 390 | E62: Passive Rechnungsabgrenzung | F62: =Andere!H121 -> 0 | H62: =Andere!E121 -> 0
A63: =OR(G63<>0,H63<>0) -> FALSE | C63: SUMME RECHNUNGSABGRENZUNGSPOSTEN | G63: =F62 -> 0 | H63: =H62 -> 0
A64: =A63 -> FALSE
A65: =OR(F65<>0,H65<>0) ->  | C65: Differenz zwischen Aktiva und Passiva | F65: =SUM(Aktiva!G74,-G9,-G13,-G46,-G59,-G63) ->  | H65: =SUM(Aktiva!H74,-H9,-H13,-H59,-H63,-H46) -> 
A66: Ende | C66: SUMME PASSIVA | G66: =SUM(G9,G13,G46,G59,G63,F65) ->  | H66: =SUM(H9,H13,H59,H63,H65,H46) -> 

Sheet MaastrichtSchulden (hidden)
A1: FALSE | B1: FALSE | C1: Ende
A2: FALSE | B2: Anlagen | C2: 001.00
A3: FALSE | B3: Ende
A4: TRUE | B4: code | C4: ="MAASTRICHTSCHULDEN per "&TEXT(wST.PeriodeEnde,"T. MMMM JJJJ") -> MAASTRICHTSCHULDEN per 31. Dezember 2017 | R4: =wST.ORT -> 0
A5: TRUE | C5: ACHTUNG:
C6: Für diese Auswertung müssen im Tabellenblatt "Schulden" sämtliche Schulden erfaßt werden! | D6: Gesamt- haushalt | F6: Wasser- versorgung | G6: Abwasser- entsorgung | H6: Müll- beseitigung | I6: Wohn- und Geschäfts- gebäude | J6: Zusammen-gefasste Betriebe | K6: Sonstige Betriebe | L6: Sonstige | M6: sonstige Betriebe/Unter- nehmungen | O6: Summe Betriebe/ Unternehmungen | Q6: Haushalt ohne Betriebe/Unter- nehmungen | R6: Maastricht- relevanter Schuldenstand
D7: GESAMT | F7: 850 | G7: 851 | H7: 852 | I7: 853 | J7: 858 | K7: 859 | L7: 999 | M7: A 86 - A 89 | O7: SUMME UA
C8: Schulden beim Bund | D8: =SUM(D9:D10) -> 0 | F8: =SUM(F9:F10) -> 0 | G8: =SUM(G9:G10) -> 0 | H8: 0 | I8: 0 | J8: 0 | K8: 0 | L8: 0 | M8: 0 | O8: =SUM(F8:M8) -> 0 | Q8: =D8-O8 -> 0 | R8: =IF(Q8<>0,0," ") -> 
C9: 340 | D9: =SUM(OFFSET(P_340,0,8)) -> 0 | F9: =SUMIF(OFFSET(P_340,0,10),F$7,OFFSET(P_340,0,8)) -> 0 | G9: 0 | H9: 0 | I9: 0 | J9: 0 | K9: 0 | L9: 0 | M9: =SUMIF(OFFSET(P_340,0,10),">=860",OFFSET(P_340,0,8))-SUMIF(OFFSET(P_340,0,10),">899",OFFSET(P_340,0,8)) -> 0 | O9: =SUM(F9:M9) -> 0 | Q9: =D9-O9 -> 0 | R9: =IF(Q9<>0,0," ") -> 
C10: 350 | D10: =SUM(OFFSET(P_350,0,8)) -> 0 | F10: =SUMIF(OFFSET(P_350,0,10),F$7,OFFSET(P_350,0,8)) -> 0 | G10: 0 | H10: 0 | I10: 0 | J10: 0 | K10: 0 | L10: 0 | M10: =SUMIF(OFFSET(P_350,0,10),">=860",OFFSET(P_350,0,8))-SUMIF(OFFSET(P_350,0,10),">899",OFFSET(P_350,0,8)) -> 0 | O10: =SUM(F10:M10) -> 0 | Q10: =D10-O10 -> 0 | R10: =IF(Q10<>0,0," ") -> 
C12: Schulden beim Land | D12: =SUM(D13:D14) -> 0 | F12: =SUM(F13:F14) -> 0 | G12: =SUM(G13:G14) -> 0 | H12: 0 | I12: 0 | J12: 0 | K12: 0 | L12: 0 | M12: 0 | O12: =SUM(F12:M12) -> 0 | Q12: =D12-O12 -> 0 | R12: =IF(Q12<>0,0," ") -> 
C13: 341 | D13: =SUM(OFFSET(P_341,0,8)) -> 0 | F13: =SUMIF(OFFSET(P_341,0,10),F$7,OFFSET(P_341,0,8)) -> 0 | G13: 0 | H13: 0 | I13: 0 | J13: 0 | K13: 0 | L13: 0 | M13: =SUMIF(OFFSET(P_341,0,10),">=860",OFFSET(P_341,0,8))-SUMIF(OFFSET(P_341,0,10),">899",OFFSET(P_341,0,8)) -> 0 | O13: =SUM(F13:M13) -> 0 | Q13: =D13-O13 -> 0 | R13: =IF(Q13<>0,0," ") -> 
C14: 351 | D14: =SUM(OFFSET(P_351,0,8)) -> 0 | F14: =SUMIF(OFFSET(P_351,0,10),F$7,OFFSET(P_351,0,8)) -> 0 | G14: 0 | H14: 0 | I14: 0 | J14: 0 | K14: 0 | L14: 0 | M14: =SUMIF(OFFSET(P_351,0,10),">=860",OFFSET(P_351,0,8))-SUMIF(OFFSET(P_351,0,10),">899",OFFSET(P_351,0,8)) -> 0 | O14: =SUM(F14:M14) -> 0 | Q14: =D14-O14 -> 0 | R14: =IF(Q14<>0,0," ") -> 
C16: Schulden bei sonst. Gebietskörperschaften | D16: =SUM(D17:D18) -> 0 | F16: =SUM(F17:F18) -> 0 | G16: =SUM(G17:G18) -> 0 | H16: 0 | I16: 0 | J16: 0 | K16: 0 | L16: 0 | M16: 0 | O16: =SUM(F16:M16) -> 0 | Q16: =D16-O16 -> 0 | R16: =IF(Q16<>0,0," ") -> 
C17: 342 | D17: =SUM(OFFSET(P_342,0,8)) -> 0 | F17: =SUMIF(OFFSET(P_342,0,10),F$7,OFFSET(P_342,0,8)) -> 0 | G17: 0 | H17: 0 | I17: 0 | J17: 0 | K17: 0 | L17: 0 | M17: =SUMIF(OFFSET(P_342,0,10),">=860",OFFSET(P_342,0,8))-SUMIF(OFFSET(P_342,0,10),">899",OFFSET(P_342,0,8)) -> 0 | O17: =SUM(F17:M17) -> 0 | Q17: =D17-O17 -> 0 | R17: =IF(Q17<>0,0," ") -> 
C18: 352 | D18: =SUM(OFFSET(P_352,0,8)) -> 0 | F18: =SUMIF(OFFSET(P_352,0,10),F$7,OFFSET(P_352,0,8)) -> 0 | G18: 0 | H18: 0 | I18: 0 | J18: 0 | K18: 0 | L18: 0 | M18: =SUMIF(OFFSET(P_352,0,10),">=860",OFFSET(P_352,0,8))-SUMIF(OFFSET(P_352,0,10),">899",OFFSET(P_352,0,8)) -> 0 | O18: =SUM(F18:M18) -> 0 | Q18: =D18-O18 -> 0 | R18: =IF(Q18<>0,0," ") -> 
C20: Schulden bei Sozialversicherungen | D20: =SUM(D21:D22) -> 0 | F20: =SUM(F21:F22) -> 0 | G20: =SUM(G21:G22) -> 0 | H20: 0 | I20: 0 | J20: 0 | K20: 0 | L20: 0 | M20: 0 | O20: =SUM(F20:M20) -> 0 | Q20: =D20-O20 -> 0 | R20: =IF(Q20<>0,0," ") -> 
C21: 343 | D21: =SUM(OFFSET(P_343,0,8)) -> 0 | F21: =SUMIF(OFFSET(P_343,0,10),F$7,OFFSET(P_343,0,8)) -> 0 | G21: 0 | H21: 0 | I21: 0 | J21: 0 | K21: 0 | L21: 0 | M21: =SUMIF(OFFSET(P_343,0,10),">=860",OFFSET(P_343,0,8))-SUMIF(OFFSET(P_343,0,10),">899",OFFSET(P_343,0,8)) -> 0 | O21: =SUM(F21:M21) -> 0 | Q21: =D21-O21 -> 0 | R21: =IF(Q21<>0,0," ") -> 
C22: 353 | D22: =SUM(OFFSET(P_353,0,8)) -> 0 | F22: =SUMIF(OFFSET(P_353,0,10),F$7,OFFSET(P_353,0,8)) -> 0 | G22: 0 | H22: 0 | I22: 0 | J22: 0 | K22: 0 | L22: 0 | M22: =SUMIF(OFFSET(P_353,0,10),">=860",OFFSET(P_353,0,8))-SUMIF(OFFSET(P_353,0,10),">899",OFFSET(P_353,0,8)) -> 0 | O22: =SUM(F22:M22) -> 0 | Q22: =D22-O22 -> 0 | R22: =IF(Q22<>0,0," ") -> 
C24: Schulden bei sonst. Trägern öffentl. Rechts | D24: =SUM(D25:D26) -> 0 | F24: =SUM(F25:F26) -> 0 | G24: =SUM(G25:G26) -> 0 | H24: 0 | I24: 0 | J24: 0 | K24: 0 | L24: 0 | M24: 0 | O24: =SUM(F24:M24) -> 0 | Q24: =D24-O24 -> 0 | R24: =IF(Q24<>0,0," ") -> 
C25: 344 | D25: =SUM(OFFSET(P_344,0,8)) -> 0 | F25: =SUMIF(OFFSET(P_344,0,10),F$7,OFFSET(P_344,0,8)) -> 0 | G25: 0 | H25: 0 | I25: 0 | J25: 0 | K25: 0 | L25: 0 | M25: =SUMIF(OFFSET(P_344,0,10),">=860",OFFSET(P_344,0,8))-SUMIF(OFFSET(P_344,0,10),">899",OFFSET(P_344,0,8)) -> 0 | O25: =SUM(F25:M25) -> 0 | Q25: =D25-O25 -> 0 | R25: =IF(Q25<>0,0," ") -> 
C26: 354 | D26: =SUM(OFFSET(P_354,0,8)) -> 0 | F26: =SUMIF(OFFSET(P_354,0,10),F$7,OFFSET(P_354,0,8)) -> 0 | G26: 0 | H26: 0 | I26: 0 | J26: 0 | K26: 0 | L26: 0 | M26: =SUMIF(OFFSET(P_354,0,10),">=860",OFFSET(P_354,0,8))-SUMIF(OFFSET(P_354,0,10),">899",OFFSET(P_354,0,8)) -> 0 | O26: =SUM(F26:M26) -> 0 | Q26: =D26-O26 -> 0 | R26: =IF(Q26<>0,0," ") -> 
C28: Schulden bei Unternehmungen | D28: =SUM(D29:D30) -> 0 | F28: =SUM(F29:F30) -> 0 | G28: =SUM(G29:G30) -> 0 | H28: 0 | I28: 0 | J28: 0 | K28: 0 | L28: 0 | M28: 0 | O28: =SUM(F28:M28) -> 0 | Q28: =D28-O28 -> 0 | R28: =Q28 -> 0
C29: 345 | D29: =SUM(OFFSET(P_345,0,8)) -> 0 | F29: =SUMIF(OFFSET(P_345,0,10),F$7,OFFSET(P_345,0,8)) -> 0 | G29: 0 | H29: 0 | I29: 0 | J29: 0 | K29: 0 | L29: 0 | M29: =SUMIF(OFFSET(P_345,0,10),">=860",OFFSET(P_345,0,8))-SUMIF(OFFSET(P_345,0,10),">899",OFFSET(P_345,0,8)) -> 0 | O29: =SUM(F29:M29) -> 0 | Q29: =D29-O29 -> 0 | R29: 0
C30: 355 | D30: =SUM(OFFSET(P_355,0,8)) -> 0 | F30: =SUMIF(OFFSET(P_355,0,10),F$7,OFFSET(P_355,0,8)) -> 0 | G30: 0 | H30: 0 | I30: 0 | J30: 0 | K30: 0 | L30: 0 | M30: =SUMIF(OFFSET(P_355,0,10),">=860",OFFSET(P_355,0,8))-SUMIF(OFFSET(P_355,0,10),">899",OFFSET(P_355,0,8)) -> 0 | O30: =SUM(F30:M30) -> 0 | Q30: =D30-O30 -> 0 | R30: 0
R31: 0
C32: Schulden bei Finanzunternehmungen | D32: =SUM(D33:D34) -> 0 | F32: =SUM(F33:F34) -> 0 | G32: =SUM(G33:G34) -> 0 | H32: 0 | I32: 0 | J32: 0 | K32: 0 | L32: 0 | M32: 0 | O32: =SUM(F32:M32) -> 0 | Q32: =D32-O32 -> 0 | R32: 0
C33: 346 | D33: =SUM(OFFSET(P_346,0,8)) -> 0 | F33: =SUMIF(OFFSET(P_346,0,10),F$7,OFFSET(P_346,0,8)) -> 0 | G33: 0 | H33: 0 | I33: 0 | J33: 0 | K33: 0 | L33: 0 | M33: =SUMIF(OFFSET(P_346,0,10),">=860",OFFSET(P_346,0,8))-SUMIF(OFFSET(P_346,0,10),">899",OFFSET(P_346,0,8)) -> 0 | O33: =SUM(F33:M33) -> 0 | Q33: =D33-O33 -> 0 | R33: 0
C34: 356 | D34: =SUM(OFFSET(P_356,0,8)) -> 0 | F34: =SUMIF(OFFSET(P_356,0,10),F$7,OFFSET(P_356,0,8)) -> 0 | G34: 0 | H34: 0 | I34: 0 | J34: 0 | K34: 0 | L34: 0 | M34: =SUMIF(OFFSET(P_356,0,10),">=860",OFFSET(P_356,0,8))-SUMIF(OFFSET(P_356,0,10),">899",OFFSET(P_356,0,8)) -> 0 | O34: =SUM(F34:M34) -> 0 | Q34: =D34-O34 -> 0 | R34: 0
C36: Inlandsanleihen | D36: =SUM(D37:D38) -> 0 | F36: =SUM(F37:F38) -> 0 | G36: =SUM(G37:G38) -> 0 | H36: 0 | I36: 0 | J36: 0 | K36: 0 | L36: 0 | M36: 0 | O36: =SUM(F36:M36) -> 0 | Q36: =D36-O36 -> 0
C37: 347 | D37: =SUM(OFFSET(P_347,0,8)) -> 0 | F37: =SUMIF(OFFSET(P_347,0,10),F$7,OFFSET(P_347,0,8)) -> 0 | G37: 0 | H37: 0 | I37: 0 | J37: 0 | K37: 0 | L37: 0 | M37: =SUMIF(OFFSET(P_347,0,10),">=860",OFFSET(P_347,0,8))-SUMIF(OFFSET(P_347,0,10),">899",OFFSET(P_347,0,8)) -> 0 | O37: =SUM(F37:M37) -> 0 | Q37: =D37-O37 -> 0 | R37: =Q37 -> 0
C38: 357 | D38: =SUM(OFFSET(P_357,0,8)) -> 0 | F38: =SUMIF(OFFSET(P_357,0,10),F$7,OFFSET(P_357,0,8)) -> 0 | G38: 0 | H38: 0 | I38: 0 | J38: 0 | K38: 0 | L38: 0 | M38: =SUMIF(OFFSET(P_357,0,10),">=860",OFFSET(P_357,0,8))-SUMIF(OFFSET(P_357,0,10),">899",OFFSET(P_357,0,8)) -> 0 | O38: =SUM(F38:M38) -> 0 | Q38: =D38-O38 -> 0 | R38: =Q38 -> 0
C40: Auslandsanleihen | D40: =SUM(D41:D42) -> 0 | F40: =SUM(F41:F42) -> 0 | G40: =SUM(G41:G42) -> 0 | H40: 0 | I40: 0 | J40: 0 | K40: 0 | L40: 0 | M40: 0 | O40: =SUM(F40:M40) -> 0 | Q40: =D40-O40 -> 0
C41: 348 | D41: =SUM(OFFSET(P_348,0,8)) -> 0 | F41: =SUMIF(OFFSET(P_348,0,10),F$7,OFFSET(P_348,0,8)) -> 0 | G41: 0 | H41: 0 | I41: 0 | J41: 0 | K41: 0 | L41: 0 | M41: =SUMIF(OFFSET(P_348,0,10),">=860",OFFSET(P_348,0,8))-SUMIF(OFFSET(P_348,0,10),">899",OFFSET(P_348,0,8)) -> 0 | O41: =SUM(F41:M41) -> 0 | Q41: =D41-O41 -> 0 | R41: =Q41 -> 0
C42: 358 | D42: =SUM(OFFSET(P_358,0,8)) -> 0 | F42: =SUMIF(OFFSET(P_358,0,10),F$7,OFFSET(P_358,0,8)) -> 0 | G42: 0 | H42: 0 | I42: 0 | J42: 0 | K42: 0 | L42: 0 | M42: =SUMIF(OFFSET(P_358,0,10),">=860",OFFSET(P_358,0,8))-SUMIF(OFFSET(P_358,0,10),">899",OFFSET(P_358,0,8)) -> 0 | O42: =SUM(F42:M42) -> 0 | Q42: =D42-O42 -> 0 | R42: =Q42 -> 0
C44: Sonstige Finanzschulden | D44: =SUM(D45:D46) -> 0 | F44: =SUM(F45:F46) -> 0 | G44: =SUM(G45:G46) -> 0 | H44: 0 | I44: 0 | J44: 0 | K44: 0 | L44: 0 | M44: 0 | O44: =SUM(F44:M44) -> 0 | Q44: =D44-O44 -> 0
C45: 349 | D45: =SUM(OFFSET(P_349,0,8)) -> 0 | F45: =SUMIF(OFFSET(P_349,0,10),F$7,OFFSET(P_349,0,8)) -> 0 | G45: 0 | H45: 0 | I45: 0 | J45: 0 | K45: 0 | L45: 0 | M45: =SUMIF(OFFSET(P_349,0,10),">=860",OFFSET(P_349,0,8))-SUMIF(OFFSET(P_349,0,10),">899",OFFSET(P_349,0,8)) -> 0 | O45: =SUM(F45:M45) -> 0 | Q45: =D45-O45 -> 0 | R45: =Q45 -> 0
C46: 359 | D46: =SUM(OFFSET(P_359,0,8)) -> 0 | F46: =SUMIF(OFFSET(P_359,0,10),F$7,OFFSET(P_359,0,8)) -> 0 | G46: 0 | H46: 0 | I46: 0 | J46: 0 | K46: 0 | L46: 0 | M46: =SUMIF(OFFSET(P_359,0,10),">=860",OFFSET(P_359,0,8))-SUMIF(OFFSET(P_359,0,10),">899",OFFSET(P_359,0,8)) -> 0 | O46: =SUM(F46:M46) -> 0 | Q46: =D46-O46 -> 0 | R46: =Q46 -> 0
C48: SUMME | D48: =SUM(D8,D12,D16,D20,D24,D28,D32,D36,D40,D44) -> 0 | F48: =SUM(F8,F12,F16,F20,F24,F28,F32,F36,F40,F44) -> 0 | G48: 0 | H48: 0 | I48: 0 | J48: 0 | K48: 0 | L48: 0 | M48: 0 | O48: =SUM(O8,O12,O16,O20,O24,O28,O32,O36,O40,O44) -> 0 | Q48: =SUM(Q8,Q12,Q16,Q20,Q24,Q28,Q32,Q36,Q40,Q44) -> 0 | R48: =SUM(R8,R12,R16,R20,R24,R28,R32,R36,R40,R44) -> 0
